Workbook

Sheet Infos (hidden)
A1: Wertungsbögen zum bundeseinheitlichen Leistungsvoraussetzungstest
A2: Kadertest Stand 09.07.2019
A8: Löschen von Teilnehmern - Zeile in Auswertungsblatt markieren, Rechtsklick, " Zellen löschen" - Aktivenblatt löschen
A10: Änderungen an Teilnehmerdaten Verein und Jahrgang lassen sich auf der jeweiligen Aktivenkarte ändern und werden auf dem Auswertungsblatt übernommen
A12: Passwort zum Bearbeiten von Zellen Kadertest
A14: Makros in Excel zulassen Datei --> Optionen --> Trust Center --> Einstellungen für das Trust Center --> Makroeinstellungen --> Alle Makros aktivieren
A16: Korbinian Hauck, 15.07.2019

Sheet Versionsinfo (hidden)
A1: Version | B1: Datum | C1: Änderungen
A2: 2019_v1 | B2: 2019-07-09 | C2: Erstanlage mit Bewertungstabelle für 2019
A3: 2019_v2 | B3: 2019-07-12 | C3: Gesamt-Mindestwert eingefügt
A4: 2019_v3 | B4: 2019-07-14 | C4: Formatierungen angepasst
A5: 2019_v4 | B5: 2019-07-15 | C5: Makro bzgl. Blattschutz angepasst

Sheet Auswertung_M
A1: Name | B1: Jg | C1: AK | D1: Verein | E1: FD | F1: BM | G1: BBW | H1: QSL | I1: QSR | J1: Punktzahl Beweglichkeit | K1: KLZ | L1: BEH | M1: FLG | N1: RV | O1: PS | P1: HAST | Q1: SW | R1: Bleep | S1: Punktzahl Kraft/Kondition | T1: SSH | U1: TBN 1 | V1: TBN 2 | W1: TBN 3 | X1: TN 1 | Y1: TN 2 | Z1: TN 3 | AA1: TN 4 | AB1: TN 5 | AC1: TN 6 | AD1: TV | AE1: Punktzahl Trampolin | AF1: Punktzahl BKÜ | AG1: Gesamtpunkte | AH1: Summe Kraft, Beweglichkeit, BKÜ | AI1: Mindestwert Kondi erfüllt? | AJ1: Mindestwert Gesamt | AK1: Gesamtwert erfüllt? | AL1: Alles erfüllt?
A2: Wolfrum, Philipp | B2: =(WolfrumPhilipp!$H$1) -> 2007 | C2: =(WolfrumPhilipp!$H$2) -> 13 | D2: =(WolfrumPhilipp!$B$2) -> Munich-Airriders | E2: =(WolfrumPhilipp!$H$4) -> 10 | F2: =(WolfrumPhilipp!$H$5) -> 10 | G2: =(WolfrumPhilipp!$H$6) -> 10 | H2: =(WolfrumPhilipp!$H$7) -> 10 | I2: =(WolfrumPhilipp!$H$8) -> 10 | J2: =(WolfrumPhilipp!$H$9) -> 50 | K2: =(WolfrumPhilipp!$H$11) -> 10 | L2: =(WolfrumPhilipp!$H$12) -> 1 | M2: =(WolfrumPhilipp!$H$13) -> 8 | N2: =(WolfrumPhilipp!$H$14) -> 10 | O2: =(WolfrumPhilipp!$H$15) -> 10 | P2: =(WolfrumPhilipp!$H$16) -> 10 | Q2: =(WolfrumPhilipp!$H$17) -> 10 | R2: =(WolfrumPhilipp!$H$18) -> 10 | S2: =(WolfrumPhilipp!$H$19) -> 69 | T2: =(WolfrumPhilipp!$H$21) -> 7.6 | U2: =(WolfrumPhilipp!$H$22) -> 8 | V2: =(WolfrumPhilipp!$H$23) -> 10 | W2: =(WolfrumPhilipp!$H$24) -> 0 | X2: =(WolfrumPhilipp!$H$25) -> 9 | Y2: =(WolfrumPhilipp!$H$26) -> 11 | Z2: =(WolfrumPhilipp!$H$27) -> 8 | AA2: =(WolfrumPhilipp!$H$28) -> 9 | AB2: =(WolfrumPhilipp!$H$29) -> 0 | AC2: =(WolfrumPhilipp!$H$30) -> 0 | AD2: =(WolfrumPhilipp!$H$36) -> 7 | AE2: =(WolfrumPhilipp!$H$37) -> 92.6 | AF2: =(WolfrumPhilipp!$H$51) -> 28 | AG2: =(WolfrumPhilipp!$H$52) -> 239.6 | AH2: =(WolfrumPhilipp!$B$75) -> 147 | AI2: =(WolfrumPhilipp!$B$76) -> Ja | AJ2: =(WolfrumPhilipp!$B$77) -> 144 | AK2: =(WolfrumPhilipp!$B$78) -> Ja | AL2: =(WolfrumPhilipp!$B$79) -> Ja
A3: Budde, Max | B3: =(BuddeMax!$H$1) -> 2002 | C3: =(BuddeMax!$H$2) -> 18 | D3: =(BuddeMax!$B$2) -> SC Cottbus | E3: =(BuddeMax!$H$4) -> 10 | F3: =(BuddeMax!$H$5) -> 10 | G3: =(BuddeMax!$H$6) -> 10 | H3: =(BuddeMax!$H$7) -> 6 | I3: =(BuddeMax!$H$8) -> 6 | J3: =(BuddeMax!$H$9) -> 42 | K3: =(BuddeMax!$H$11) -> 9 | L3: =(BuddeMax!$H$12) -> 2 | M3: =(BuddeMax!$H$13) -> 6 | N3: =(BuddeMax!$H$14) -> 10 | O3: =(BuddeMax!$H$15) -> 9 | P3: =(BuddeMax!$H$16) -> 10 | Q3: =(BuddeMax!$H$17) -> 4 | R3: =(BuddeMax!$H$18) -> 5 | S3: =(BuddeMax!$H$19) -> 55 | T3: =(BuddeMax!$H$21) -> 7.65 | U3: =(BuddeMax!$H$22) -> 0 | V3: =(BuddeMax!$H$23) -> 0 | W3: =(BuddeMax!$H$24) -> 0 | X3: =(BuddeMax!$H$25) -> 16 | Y3: =(BuddeMax!$H$26) -> 13 | Z3: =(BuddeMax!$H$27) -> 11 | AA3: =(BuddeMax!$H$28) -> 12 | AB3: =(BuddeMax!$H$29) -> 12 | AC3: =(BuddeMax!$H$30) -> 11 | AD3: =(BuddeMax!$H$36) -> 10 | AE3: =(BuddeMax!$H$37) -> 142.65 | AF3: =(BuddeMax!$H$51) -> 23 | AG3: =(BuddeMax!$H$52) -> 262.65 | AH3: =(BuddeMax!$B$75) -> 120 | AI3: =(BuddeMax!$B$76) -> Ja | AJ3: =(BuddeMax!$B$77) -> 186 | AK3: =(BuddeMax!$B$78) -> Ja | AL3: =(BuddeMax!$B$79) -> Ja
A4: Thomson, Adrian | B4: =(ThomsonAdrian!$H$1) -> 2006 | C4: =(ThomsonAdrian!$H$2) -> 14 | D4: =(ThomsonAdrian!$B$2) -> TG Münster | E4: =(ThomsonAdrian!$H$4) -> 10 | F4: =(ThomsonAdrian!$H$5) -> 6 | G4: =(ThomsonAdrian!$H$6) -> 10 | H4: =(ThomsonAdrian!$H$7) -> 6 | I4: =(ThomsonAdrian!$H$8) -> 6 | J4: =(ThomsonAdrian!$H$9) -> 38 | K4: =(ThomsonAdrian!$H$11) -> 7 | L4: =(ThomsonAdrian!$H$12) -> 4 | M4: =(ThomsonAdrian!$H$13) -> 2 | N4: =(ThomsonAdrian!$H$14) -> 10 | O4: =(ThomsonAdrian!$H$15) -> 10 | P4: =(ThomsonAdrian!$H$16) -> 10 | Q4: =(ThomsonAdrian!$H$17) -> 1 | R4: =(ThomsonAdrian!$H$18) -> 8 | S4: =(ThomsonAdrian!$H$19) -> 52 | T4: =(ThomsonAdrian!$H$21) -> 1.4 | U4: =(ThomsonAdrian!$H$22) -> 5 | V4: =(ThomsonAdrian!$H$23) -> 8 | W4: =(ThomsonAdrian!$H$24) -> 0 | X4: =(ThomsonAdrian!$H$25) -> 9 | Y4: =(ThomsonAdrian!$H$26) -> 7 | Z4: =(ThomsonAdrian!$H$27) -> 8 | AA4: =(ThomsonAdrian!$H$28) -> 8 | AB4: =(ThomsonAdrian!$H$29) -> 0 | AC4: =(ThomsonAdrian!$H$30) -> 0 | AD4: =(ThomsonAdrian!$H$36) -> 8 | AE4: =(ThomsonAdrian!$H$37) -> 74.4 | AF4: =(ThomsonAdrian!$H$51) -> 23.5 | AG4: =(ThomsonAdrian!$H$52) -> 187.9 | AH4: =(ThomsonAdrian!$B$75) -> 113.5 | AI4: =(ThomsonAdrian!$B$76) -> Ja | AJ4: =(ThomsonAdrian!$B$77) -> 144 | AK4: =(ThomsonAdrian!$B$78) -> Ja | AL4: =(ThomsonAdrian!$B$79) -> Ja
A5: Bubner, Jacob | B5: =(BubnerJacob!$H$1) -> 2001 | C5: =(BubnerJacob!$H$2) -> 19 | D5: =(BubnerJacob!$B$2) -> SC Cottbus | E5: =(BubnerJacob!$H$4) -> 10 | F5: =(BubnerJacob!$H$5) -> 6 | G5: =(BubnerJacob!$H$6) -> 4 | H5: =(BubnerJacob!$H$7) -> 2 | I5: =(BubnerJacob!$H$8) -> 6 | J5: =(BubnerJacob!$H$9) -> 28 | K5: =(BubnerJacob!$H$11) -> 10 | L5: =(BubnerJacob!$H$12) -> 6 | M5: =(BubnerJacob!$H$13) -> 4 | N5: =(BubnerJacob!$H$14) -> 10 | O5: =(BubnerJacob!$H$15) -> 9 | P5: =(BubnerJacob!$H$16) -> 10 | Q5: =(BubnerJacob!$H$17) -> 3 | R5: =(BubnerJacob!$H$18) -> 7 | S5: =(BubnerJacob!$H$19) -> 59 | T5: =(BubnerJacob!$H$21) -> -4.75 | U5: =(BubnerJacob!$H$22) -> 0 | V5: =(BubnerJacob!$H$23) -> 0 | W5: =(BubnerJacob!$H$24) -> 0 | X5: =(BubnerJacob!$H$25) -> 16 | Y5: =(BubnerJacob!$H$26) -> 13 | Z5: =(BubnerJacob!$H$27) -> 12 | AA5: =(BubnerJacob!$H$28) -> 15 | AB5: =(BubnerJacob!$H$29) -> 0 | AC5: =(BubnerJacob!$H$30) -> 0 | AD5: =(BubnerJacob!$H$36) -> 0 | AE5: =(BubnerJacob!$H$37) -> 98.25 | AF5: =(BubnerJacob!$H$51) -> 25.5 | AG5: =(BubnerJacob!$H$52) -> 210.75 | AH5: =(BubnerJacob!$B$75) -> 112.5 | AI5: =(BubnerJacob!$B$76) -> Ja | AJ5: =(BubnerJacob!$B$77) -> 198 | AK5: =(BubnerJacob!$B$78) -> Ja | AL5: =(BubnerJacob!$B$79) -> Ja
A6: Lauxtermann, Caio | B6: =(LauxtermannCaio!$H$1) -> 2003 | C6: =(LauxtermannCaio!$H$2) -> 17 | D6: =(LauxtermannCaio!$B$2) -> SC Cottbus | E6: =(LauxtermannCaio!$H$4) -> 10 | F6: =(LauxtermannCaio!$H$5) -> 6 | G6: =(LauxtermannCaio!$H$6) -> 8 | H6: =(LauxtermannCaio!$H$7) -> 10 | I6: =(LauxtermannCaio!$H$8) -> 6 | J6: =(LauxtermannCaio!$H$9) -> 40 | K6: =(LauxtermannCaio!$H$11) -> 10 | L6: =(LauxtermannCaio!$H$12) -> 1 | M6: =(LauxtermannCaio!$H$13) -> 2 | N6: =(LauxtermannCaio!$H$14) -> 10 | O6: =(LauxtermannCaio!$H$15) -> 10 | P6: =(LauxtermannCaio!$H$16) -> 10 | Q6: =(LauxtermannCaio!$H$17) -> 0 | R6: =(LauxtermannCaio!$H$18) -> 8 | S6: =(LauxtermannCaio!$H$19) -> 51 | T6: =(LauxtermannCaio!$H$21) -> 9.5 | U6: =(LauxtermannCaio!$H$22) -> 0 | V6: =(LauxtermannCaio!$H$23) -> 0 | W6: =(LauxtermannCaio!$H$24) -> 0 | X6: =(LauxtermannCaio!$H$25) -> 18 | Y6: =(LauxtermannCaio!$H$26) -> 15 | Z6: =(LauxtermannCaio!$H$27) -> 12 | AA6: =(LauxtermannCaio!$H$28) -> 14 | AB6: =(LauxtermannCaio!$H$29) -> 13 | AC6: =(LauxtermannCaio!$H$30) -> 11 | AD6: =(LauxtermannCaio!$H$36) -> 11 | AE6: =(LauxtermannCaio!$H$37) -> 153.5 | AF6: =(LauxtermannCaio!$H$51) -> 21 | AG6: =(LauxtermannCaio!$H$52) -> 265.5 | AH6: =(LauxtermannCaio!$B$75) -> 112 | AI6: =(LauxtermannCaio!$B$76) -> Ja | AJ6: =(LauxtermannCaio!$B$77) -> 186 | AK6: =(LauxtermannCaio!$B$78) -> Ja | AL6: =(LauxtermannCaio!$B$79) -> Ja
A7: Garmann, Lars | B7: =(GarmannLars!$H$1) -> 2004 | C7: =(GarmannLars!$H$2) -> 16 | D7: =(GarmannLars!$B$2) -> SC Cottbus | E7: =(GarmannLars!$H$4) -> 10 | F7: =(GarmannLars!$H$5) -> 10 | G7: =(GarmannLars!$H$6) -> 8 | H7: =(GarmannLars!$H$7) -> 10 | I7: =(GarmannLars!$H$8) -> 10 | J7: =(GarmannLars!$H$9) -> 48 | K7: =(GarmannLars!$H$11) -> 7 | L7: =(GarmannLars!$H$12) -> 1 | M7: =(GarmannLars!$H$13) -> 2 | N7: =(GarmannLars!$H$14) -> 10 | O7: =(GarmannLars!$H$15) -> 9 | P7: =(GarmannLars!$H$16) -> 10 | Q7: =(GarmannLars!$H$17) -> 0 | R7: =(GarmannLars!$H$18) -> 0 | S7: =(GarmannLars!$H$19) -> 39 | T7: =(GarmannLars!$H$21) -> -1.5 | U7: =(GarmannLars!$H$22) -> 9 | V7: =(GarmannLars!$H$23) -> 9 | W7: =(GarmannLars!$H$24) -> 0 | X7: =(GarmannLars!$H$25) -> 13 | Y7: =(GarmannLars!$H$26) -> 9 | Z7: =(GarmannLars!$H$27) -> 8 | AA7: =(GarmannLars!$H$28) -> 9 | AB7: =(GarmannLars!$H$29) -> 0 | AC7: =(GarmannLars!$H$30) -> 0 | AD7: =(GarmannLars!$H$36) -> 8 | AE7: =(GarmannLars!$H$37) -> 100.5 | AF7: =(GarmannLars!$H$51) -> 24 | AG7: =(GarmannLars!$H$52) -> 211.5 | AH7: =(GarmannLars!$B$75) -> 111 | AI7: =(GarmannLars!$B$76) -> Ja | AJ7: =(GarmannLars!$B$77) -> 162 | AK7: =(GarmannLars!$B$78) -> Ja | AL7: =(GarmannLars!$B$79) -> Ja
A8: Meinert, Paul | B8: =(MeinertPaul!$H$1) -> 2004 | C8: =(MeinertPaul!$H$2) -> 16 | D8: =(MeinertPaul!$B$2) -> TV Blecher | E8: =(MeinertPaul!$H$4) -> 6 | F8: =(MeinertPaul!$H$5) -> 6 | G8: =(MeinertPaul!$H$6) -> 10 | H8: =(MeinertPaul!$H$7) -> 6 | I8: =(MeinertPaul!$H$8) -> 6 | J8: =(MeinertPaul!$H$9) -> 34 | K8: =(MeinertPaul!$H$11) -> 10 | L8: =(MeinertPaul!$H$12) -> 2 | M8: =(MeinertPaul!$H$13) -> 4 | N8: =(MeinertPaul!$H$14) -> 10 | O8: =(MeinertPaul!$H$15) -> 10 | P8: =(MeinertPaul!$H$16) -> 10 | Q8: =(MeinertPaul!$H$17) -> 0 | R8: =(MeinertPaul!$H$18) -> 8 | S8: =(MeinertPaul!$H$19) -> 54 | T8: =(MeinertPaul!$H$21) -> 3.4 | U8: =(MeinertPaul!$H$22) -> 0 | V8: =(MeinertPaul!$H$23) -> 0 | W8: =(MeinertPaul!$H$24) -> 0 | X8: =(MeinertPaul!$H$25) -> 11 | Y8: =(MeinertPaul!$H$26) -> 0 | Z8: =(MeinertPaul!$H$27) -> 0 | AA8: =(MeinertPaul!$H$28) -> 0 | AB8: =(MeinertPaul!$H$29) -> 0 | AC8: =(MeinertPaul!$H$30) -> 0 | AD8: =(MeinertPaul!$H$36) -> 8 | AE8: =(MeinertPaul!$H$37) -> 56.4 | AF8: =(MeinertPaul!$H$51) -> 21.5 | AG8: =(MeinertPaul!$H$52) -> 165.9 | AH8: =(MeinertPaul!$B$75) -> 109.5 | AI8: =(MeinertPaul!$B$76) -> Ja | AJ8: =(MeinertPaul!$B$77) -> 162 | AK8: =(MeinertPaul!$B$78) -> Ja | AL8: =(MeinertPaul!$B$79) -> Ja
A9: Risch, Valentin | B9: =(RischValentin!$H$1) -> 2005 | C9: =(RischValentin!$H$2) -> 15 | D9: =(RischValentin!$B$2) -> SG Frankfurt-Nied | E9: =(RischValentin!$H$4) -> 10 | F9: =(RischValentin!$H$5) -> 10 | G9: =(RischValentin!$H$6) -> 10 | H9: =(RischValentin!$H$7) -> 10 | I9: =(RischValentin!$H$8) -> 6 | J9: =(RischValentin!$H$9) -> 46 | K9: =(RischValentin!$H$11) -> 5 | L9: =(RischValentin!$H$12) -> 6 | M9: =(RischValentin!$H$13) -> 0 | N9: =(RischValentin!$H$14) -> 7 | O9: =(RischValentin!$H$15) -> 10 | P9: =(RischValentin!$H$16) -> 10 | Q9: =(RischValentin!$H$17) -> 0 | R9: =(RischValentin!$H$18) -> 2 | S9: =(RischValentin!$H$19) -> 40 | T9: =(RischValentin!$H$21) -> 3.15 | U9: =(RischValentin!$H$22) -> 9 | V9: =(RischValentin!$H$23) -> 10 | W9: =(RischValentin!$H$24) -> 0 | X9: =(RischValentin!$H$25) -> 11 | Y9: =(RischValentin!$H$26) -> 13 | Z9: =(RischValentin!$H$27) -> 11 | AA9: =(RischValentin!$H$28) -> 12 | AB9: =(RischValentin!$H$29) -> 0 | AC9: =(RischValentin!$H$30) -> 0 | AD9: =(RischValentin!$H$36) -> 9 | AE9: =(RischValentin!$H$37) -> 112.15 | AF9: =(RischValentin!$H$51) -> 23.5 | AG9: =(RischValentin!$H$52) -> 221.65 | AH9: =(RischValentin!$B$75) -> 109.5 | AI9: =(RischValentin!$B$76) -> Ja | AJ9: =(RischValentin!$B$77) -> 162 | AK9: =(RischValentin!$B$78) -> Ja | AL9: =(RischValentin!$B$79) -> Ja
A10: Rösler, Manuel | B10: =(RöslerManuel!$H$1) -> 2002 | C10: =(RöslerManuel!$H$2) -> 18 | D10: =(RöslerManuel!$B$2) -> MTV Stuttgart | E10: =(RöslerManuel!$H$4) -> 10 | F10: =(RöslerManuel!$H$5) -> 6 | G10: =(RöslerManuel!$H$6) -> 2 | H10: =(RöslerManuel!$H$7) -> 6 | I10: =(RöslerManuel!$H$8) -> 6 | J10: =(RöslerManuel!$H$9) -> 30 | K10: =(RöslerManuel!$H$11) -> 10 | L10: =(RöslerManuel!$H$12) -> 0 | M10: =(RöslerManuel!$H$13) -> 10 | N10: =(RöslerManuel!$H$14) -> 7 | O10: =(RöslerManuel!$H$15) -> 9 | P10: =(RöslerManuel!$H$16) -> 10 | Q10: =(RöslerManuel!$H$17) -> 0 | R10: =(RöslerManuel!$H$18) -> 10 | S10: =(RöslerManuel!$H$19) -> 56 | T10: =(RöslerManuel!$H$21) -> 12.6 | U10: =(RöslerManuel!$H$22) -> 0 | V10: =(RöslerManuel!$H$23) -> 0 | W10: =(RöslerManuel!$H$24) -> 0 | X10: =(RöslerManuel!$H$25) -> 13 | Y10: =(RöslerManuel!$H$26) -> 14 | Z10: =(RöslerManuel!$H$27) -> 15 | AA10: =(RöslerManuel!$H$28) -> 10 | AB10: =(RöslerManuel!$H$29) -> 11 | AC10: =(RöslerManuel!$H$30) -> 10 | AD10: =(RöslerManuel!$H$36) -> 10 | AE10: =(RöslerManuel!$H$37) -> 146.6 | AF10: =(RöslerManuel!$H$51) -> 20.5 | AG10: =(RöslerManuel!$H$52) -> 253.1 | AH10: =(RöslerManuel!$B$75) -> 106.5 | AI10: =(RöslerManuel!$B$76) -> Ja | AJ10: =(RöslerManuel!$B$77) -> 186 | AK10: =(RöslerManuel!$B$78) -> Ja | AL10: =(RöslerManuel!$B$79) -> Ja
A11: Feyh, Miguel | B11: =(FeyhMiguel!$H$1) -> 2005 | C11: =(FeyhMiguel!$H$2) -> 15 | D11: =(FeyhMiguel!$B$2) -> Frankfurt Flyers | E11: =(FeyhMiguel!$H$4) -> 10 | F11: =(FeyhMiguel!$H$5) -> 2 | G11: =(FeyhMiguel!$H$6) -> 6 | H11: =(FeyhMiguel!$H$7) -> 2 | I11: =(FeyhMiguel!$H$8) -> 2 | J11: =(FeyhMiguel!$H$9) -> 22 | K11: =(FeyhMiguel!$H$11) -> 10 | L11: =(FeyhMiguel!$H$12) -> 6 | M11: =(FeyhMiguel!$H$13) -> 4 | N11: =(FeyhMiguel!$H$14) -> 10 | O11: =(FeyhMiguel!$H$15) -> 10 | P11: =(FeyhMiguel!$H$16) -> 10 | Q11: =(FeyhMiguel!$H$17) -> 2 | R11: =(FeyhMiguel!$H$18) -> 2 | S11: =(FeyhMiguel!$H$19) -> 54 | T11: =(FeyhMiguel!$H$21) -> 9.4 | U11: =(FeyhMiguel!$H$22) -> 9 | V11: =(FeyhMiguel!$H$23) -> 8 | W11: =(FeyhMiguel!$H$24) -> 0 | X11: =(FeyhMiguel!$H$25) -> 11 | Y11: =(FeyhMiguel!$H$26) -> 9 | Z11: =(FeyhMiguel!$H$27) -> 8 | AA11: =(FeyhMiguel!$H$28) -> 8 | AB11: =(FeyhMiguel!$H$29) -> 0 | AC11: =(FeyhMiguel!$H$30) -> 0 | AD11: =(FeyhMiguel!$H$36) -> 9 | AE11: =(FeyhMiguel!$H$37) -> 104.4 | AF11: =(FeyhMiguel!$H$51) -> 25.5 | AG11: =(FeyhMiguel!$H$52) -> 205.9 | AH11: =(FeyhMiguel!$B$75) -> 101.5 | AI11: =(FeyhMiguel!$B$76) -> Ja | AJ11: =(FeyhMiguel!$B$77) -> 162 | AK11: =(FeyhMiguel!$B$78) -> Ja | AL11: =(FeyhMiguel!$B$79) -> Ja
A12: Schuldt, Matthias | B12: =(SchuldtMatthias!$H$1) -> 2000 | C12: =(SchuldtMatthias!$H$2) -> 20 | D12: =(SchuldtMatthias!$B$2) -> Frankfurt Flyers | E12: =(SchuldtMatthias!$H$4) -> 10 | F12: =(SchuldtMatthias!$H$5) -> 2 | G12: =(SchuldtMatthias!$H$6) -> 6 | H12: =(SchuldtMatthias!$H$7) -> 6 | I12: =(SchuldtMatthias!$H$8) -> 6 | J12: =(SchuldtMatthias!$H$9) -> 30 | K12: =(SchuldtMatthias!$H$11) -> 8 | L12: =(SchuldtMatthias!$H$12) -> 2 | M12: =(SchuldtMatthias!$H$13) -> 10 | N12: =(SchuldtMatthias!$H$14) -> 10 | O12: =(SchuldtMatthias!$H$15) -> 9 | P12: =(SchuldtMatthias!$H$16) -> 10 | Q12: =(SchuldtMatthias!$H$17) -> 0 | R12: =(SchuldtMatthias!$H$18) -> 4 | S12: =(SchuldtMatthias!$H$19) -> 53 | T12: =(SchuldtMatthias!$H$21) -> 0 | U12: =(SchuldtMatthias!$H$22) -> 0 | V12: =(SchuldtMatthias!$H$23) -> 0 | W12: =(SchuldtMatthias!$H$24) -> 0 | X12: =(SchuldtMatthias!$H$25) -> 0 | Y12: =(SchuldtMatthias!$H$26) -> 0 | Z12: =(SchuldtMatthias!$H$27) -> 0 | AA12: =(SchuldtMatthias!$H$28) -> 0 | AB12: =(SchuldtMatthias!$H$29) -> 0 | AC12: =(SchuldtMatthias!$H$30) -> 0 | AD12: =(SchuldtMatthias!$H$36) -> 0 | AE12: =(SchuldtMatthias!$H$37) -> 0 | AF12: =(SchuldtMatthias!$H$51) -> 23 | AG12: =(SchuldtMatthias!$H$52) -> 106 | AH12: =(SchuldtMatthias!$B$75) -> 106 | AI12: =(SchuldtMatthias!$B$76) -> Ja | AJ12: =(SchuldtMatthias!$B$77) -> 198 | AK12: =(SchuldtMatthias!$B$78) -> Nein | AL12: =(SchuldtMatthias!$B$79) -> Nein
A13: Best, Moritz | B13: =(BestMoritz!$H$1) -> 2000 | C13: =(BestMoritz!$H$2) -> 20 | D13: =(BestMoritz!$B$2) -> MTV Bad Kreuznach | E13: =(BestMoritz!$H$4) -> 6 | F13: =(BestMoritz!$H$5) -> 6 | G13: =(BestMoritz!$H$6) -> 10 | H13: =(BestMoritz!$H$7) -> 6 | I13: =(BestMoritz!$H$8) -> 2 | J13: =(BestMoritz!$H$9) -> 30 | K13: =(BestMoritz!$H$11) -> 7 | L13: =(BestMoritz!$H$12) -> 2 | M13: =(BestMoritz!$H$13) -> 2 | N13: =(BestMoritz!$H$14) -> 10 | O13: =(BestMoritz!$H$15) -> 8 | P13: =(BestMoritz!$H$16) -> 10 | Q13: =(BestMoritz!$H$17) -> 0 | R13: =(BestMoritz!$H$18) -> 8 | S13: =(BestMoritz!$H$19) -> 47 | T13: =(BestMoritz!$H$21) -> -3.25 | U13: =(BestMoritz!$H$22) -> 0 | V13: =(BestMoritz!$H$23) -> 0 | W13: =(BestMoritz!$H$24) -> 0 | X13: =(BestMoritz!$H$25) -> 16 | Y13: =(BestMoritz!$H$26) -> 14 | Z13: =(BestMoritz!$H$27) -> 15 | AA13: =(BestMoritz!$H$28) -> 14 | AB13: =(BestMoritz!$H$29) -> 0 | AC13: =(BestMoritz!$H$30) -> 0 | AD13: =(BestMoritz!$H$36) -> 13 | AE13: =(BestMoritz!$H$37) -> 120.75 | AF13: =(BestMoritz!$H$51) -> 14 | AG13: =(BestMoritz!$H$52) -> 211.75 | AH13: =(BestMoritz!$B$75) -> 91 | AI13: =(BestMoritz!$B$76) -> Nein | AJ13: =(BestMoritz!$B$77) -> 198 | AK13: =(BestMoritz!$B$78) -> Ja | AL13: =(BestMoritz!$B$79) -> Nein
A14: Braun, Janis-Luca | B14: =(BraunJanisLuca!$H$1) -> 2007 | C14: =(BraunJanisLuca!$H$2) -> 13 | D14: =(BraunJanisLuca!$B$2) -> SV Ostfildern | E14: =(BraunJanisLuca!$H$4) -> 10 | F14: =(BraunJanisLuca!$H$5) -> 10 | G14: =(BraunJanisLuca!$H$6) -> 4 | H14: =(BraunJanisLuca!$H$7) -> 10 | I14: =(BraunJanisLuca!$H$8) -> 10 | J14: =(BraunJanisLuca!$H$9) -> 44 | K14: =(BraunJanisLuca!$H$11) -> 0 | L14: =(BraunJanisLuca!$H$12) -> 0 | M14: =(BraunJanisLuca!$H$13) -> 2 | N14: =(BraunJanisLuca!$H$14) -> 3 | O14: =(BraunJanisLuca!$H$15) -> 8 | P14: =(BraunJanisLuca!$H$16) -> 10 | Q14: =(BraunJanisLuca!$H$17) -> 0 | R14: =(BraunJanisLuca!$H$18) -> 2 | S14: =(BraunJanisLuca!$H$19) -> 25 | T14: =(BraunJanisLuca!$H$21) -> 1.05 | U14: =(BraunJanisLuca!$H$22) -> 3 | V14: =(BraunJanisLuca!$H$23) -> 5 | W14: =(BraunJanisLuca!$H$24) -> 0 | X14: =(BraunJanisLuca!$H$25) -> 6 | Y14: =(BraunJanisLuca!$H$26) -> 6 | Z14: =(BraunJanisLuca!$H$27) -> 5 | AA14: =(BraunJanisLuca!$H$28) -> 9 | AB14: =(BraunJanisLuca!$H$29) -> 0 | AC14: =(BraunJanisLuca!$H$30) -> 0 | AD14: =(BraunJanisLuca!$H$36) -> 7 | AE14: =(BraunJanisLuca!$H$37) -> 60.05 | AF14: =(BraunJanisLuca!$H$51) -> 21 | AG14: =(BraunJanisLuca!$H$52) -> 150.05 | AH14: =(BraunJanisLuca!$B$75) -> 90 | AI14: =(BraunJanisLuca!$B$76) -> Nein | AJ14: =(BraunJanisLuca!$B$77) -> 144 | AK14: =(BraunJanisLuca!$B$78) -> Ja | AL14: =(BraunJanisLuca!$B$79) -> Nein
A15: Hofmann, Simon | B15: =(HofmannSimon!$H$1) -> 2003 | C15: =(HofmannSimon!$H$2) -> 17 | D15: =(HofmannSimon!$B$2) -> TB Ruit | E15: =(HofmannSimon!$H$4) -> 10 | F15: =(HofmannSimon!$H$5) -> 6 | G15: =(HofmannSimon!$H$6) -> 8 | H15: =(HofmannSimon!$H$7) -> 2 | I15: =(HofmannSimon!$H$8) -> 2 | J15: =(HofmannSimon!$H$9) -> 28 | K15: =(HofmannSimon!$H$11) -> 6 | L15: =(HofmannSimon!$H$12) -> 2 | M15: =(HofmannSimon!$H$13) -> 4 | N15: =(HofmannSimon!$H$14) -> 8 | O15: =(HofmannSimon!$H$15) -> 8 | P15: =(HofmannSimon!$H$16) -> 10 | Q15: =(HofmannSimon!$H$17) -> 0 | R15: =(HofmannSimon!$H$18) -> 0 | S15: =(HofmannSimon!$H$19) -> 38 | T15: =(HofmannSimon!$H$21) -> 3 | U15: =(HofmannSimon!$H$22) -> 0 | V15: =(HofmannSimon!$H$23) -> 0 | W15: =(HofmannSimon!$H$24) -> 0 | X15: =(HofmannSimon!$H$25) -> 11 | Y15: =(HofmannSimon!$H$26) -> 16 | Z15: =(HofmannSimon!$H$27) -> 9 | AA15: =(HofmannSimon!$H$28) -> 12 | AB15: =(HofmannSimon!$H$29) -> 0 | AC15: =(HofmannSimon!$H$30) -> 0 | AD15: =(HofmannSimon!$H$36) -> 9 | AE15: =(HofmannSimon!$H$37) -> 102 | AF15: =(HofmannSimon!$H$51) -> 14 | AG15: =(HofmannSimon!$H$52) -> 182 | AH15: =(HofmannSimon!$B$75) -> 80 | AI15: =(HofmannSimon!$B$76) -> Nein | AJ15: =(HofmannSimon!$B$77) -> 186 | AK15: =(HofmannSimon!$B$78) -> Nein | AL15: =(HofmannSimon!$B$79) -> Nein
A16: Eschke, Ryan | B16: =(EschkeRyan!$H$1) -> 2007 | C16: =(EschkeRyan!$H$2) -> 13 | D16: =(EschkeRyan!$B$2) -> TB Ruit | E16: =(EschkeRyan!$H$4) -> 6 | F16: =(EschkeRyan!$H$5) -> 2 | G16: =(EschkeRyan!$H$6) -> 0 | H16: =(EschkeRyan!$H$7) -> 6 | I16: =(EschkeRyan!$H$8) -> 0 | J16: =(EschkeRyan!$H$9) -> 14 | K16: =(EschkeRyan!$H$11) -> 0 | L16: =(EschkeRyan!$H$12) -> 0 | M16: =(EschkeRyan!$H$13) -> 10 | N16: =(EschkeRyan!$H$14) -> 5 | O16: =(EschkeRyan!$H$15) -> 7 | P16: =(EschkeRyan!$H$16) -> 8 | Q16: =(EschkeRyan!$H$17) -> 0 | R16: =(EschkeRyan!$H$18) -> 7 | S16: =(EschkeRyan!$H$19) -> 37 | T16: =(EschkeRyan!$H$21) -> -8.8 | U16: =(EschkeRyan!$H$22) -> 8 | V16: =(EschkeRyan!$H$23) -> 8 | W16: =(EschkeRyan!$H$24) -> 0 | X16: =(EschkeRyan!$H$25) -> 9 | Y16: =(EschkeRyan!$H$26) -> 9 | Z16: =(EschkeRyan!$H$27) -> 9 | AA16: =(EschkeRyan!$H$28) -> 8 | AB16: =(EschkeRyan!$H$29) -> 0 | AC16: =(EschkeRyan!$H$30) -> 0 | AD16: =(EschkeRyan!$H$36) -> 8 | AE16: =(EschkeRyan!$H$37) -> 71.2 | AF16: =(EschkeRyan!$H$51) -> 17.5 | AG16: =(EschkeRyan!$H$52) -> 139.7 | AH16: =(EschkeRyan!$B$75) -> 68.5 | AI16: =(EschkeRyan!$B$76) -> Nein | AJ16: =(EschkeRyan!$B$77) -> 144 | AK16: =(EschkeRyan!$B$78) -> Nein | AL16: =(EschkeRyan!$B$79) -> Nein
A17: Brandt, Dominic | B17: =(BrandtDominic!$H$1) -> 2001 | C17: =(BrandtDominic!$H$2) -> 19 | D17: =(BrandtDominic!$B$2) -> SC Cottbus | E17: =(BrandtDominic!$H$4) -> 0 | F17: =(BrandtDominic!$H$5) -> 6 | G17: =(BrandtDominic!$H$6) -> 10 | H17: =(BrandtDominic!$H$7) -> 6 | I17: =(BrandtDominic!$H$8) -> 6 | J17: =(BrandtDominic!$H$9) -> 28 | K17: =(BrandtDominic!$H$11) -> 10 | L17: =(BrandtDominic!$H$12) -> 2 | M17: =(BrandtDominic!$H$13) -> 0 | N17: =(BrandtDominic!$H$14) -> 10 | O17: =(BrandtDominic!$H$15) -> 0 | P17: =(BrandtDominic!$H$16) -> 10 | Q17: =(BrandtDominic!$H$17) -> 7 | R17: =(BrandtDominic!$H$18) -> 0 | S17: =(BrandtDominic!$H$19) -> 39 | T17: =(BrandtDominic!$H$21) -> -6.6 | U17: =(BrandtDominic!$H$22) -> 0 | V17: =(BrandtDominic!$H$23) -> 0 | W17: =(BrandtDominic!$H$24) -> 0 | X17: =(BrandtDominic!$H$25) -> 14 | Y17: =(BrandtDominic!$H$26) -> 0 | Z17: =(BrandtDominic!$H$27) -> 0 | AA17: =(BrandtDominic!$H$28) -> 0 | AB17: =(BrandtDominic!$H$29) -> 0 | AC17: =(BrandtDominic!$H$30) -> 0 | AD17: =(BrandtDominic!$H$36) -> 0 | AE17: =(BrandtDominic!$H$37) -> 41.4 | AF17: =(BrandtDominic!$H$51) -> 0 | AG17: =(BrandtDominic!$H$52) -> 108.4 | AH17: =(BrandtDominic!$B$75) -> 67 | AI17: =(BrandtDominic!$B$76) -> Nein | AJ17: =(BrandtDominic!$B$77) -> 198 | AK17: =(BrandtDominic!$B$78) -> Nein | AL17: =(BrandtDominic!$B$79) -> Nein

Sheet Auswertung_W
A1: Name | B1: Jg | C1: AK | D1: Verein | E1: FD | F1: BM | G1: BBW | H1: QSL | I1: QSR | J1: Punktzahl Beweglichkeit | K1: KLZ | L1: BEH | M1: FLG | N1: RV | O1: PS | P1: HAST | Q1: SW | R1: Bleep | S1: Punktzahl Kraft/Kondition | T1: SSH | U1: TBN 1 | V1: TBN 2 | W1: TBN 3 | X1: TN 1 | Y1: TN 2 | Z1: TN 3 | AA1: TN 4 | AB1: TN 5 | AC1: TN 6 | AD1: TV | AE1: Punktzahl Trampolin | AF1: Punktzahl BKÜ | AG1: Gesamtpunkte | AH1: Summe Kraft, Beweglichkeit, BKÜ | AI1: Mindestwert Kondi erfüllt? | AJ1: Mindestwert gesamt | AK1: Gesamtwert erfüllt? | AL1: Alles erfüllt?
A2: Braaf, Luisa | B2: =(BraafLuisa!$H$1) -> 2004 | C2: =(BraafLuisa!$H$2) -> 16 | D2: =(BraafLuisa!$B$2) -> TV Blecher | E2: =(BraafLuisa!$H$4) -> 10 | F2: =(BraafLuisa!$H$5) -> 10 | G2: =(BraafLuisa!$H$6) -> 8 | H2: =(BraafLuisa!$H$7) -> 10 | I2: =(BraafLuisa!$H$8) -> 10 | J2: =(BraafLuisa!$H$9) -> 48 | K2: =(BraafLuisa!$H$11) -> 6 | L2: =(BraafLuisa!$H$12) -> 4 | M2: =(BraafLuisa!$H$13) -> 10 | N2: =(BraafLuisa!$H$14) -> 10 | O2: =(BraafLuisa!$H$15) -> 10 | P2: =(BraafLuisa!$H$16) -> 10 | Q2: =(BraafLuisa!$H$17) -> 2 | R2: =(BraafLuisa!$H$18) -> 10 | S2: =(BraafLuisa!$H$19) -> 62 | T2: =(BraafLuisa!$H$21) -> 2.8 | U2: =(BraafLuisa!$H$22) -> 6 | V2: =(BraafLuisa!$H$23) -> 8 | W2: =(BraafLuisa!$H$24) -> 0 | X2: =(BraafLuisa!$H$25) -> 7 | Y2: =(BraafLuisa!$H$26) -> 8 | Z2: =(BraafLuisa!$H$27) -> 11 | AA2: =(BraafLuisa!$H$28) -> 9 | AB2: =(BraafLuisa!$H$29) -> 0 | AC2: =(BraafLuisa!$H$30) -> 0 | AD2: =(BraafLuisa!$H$36) -> 9 | AE2: =(BraafLuisa!$H$37) -> 95.8 | AF2: =(BraafLuisa!$H$51) -> 28.5 | AG2: =(BraafLuisa!$H$52) -> 234.3 | AH2: =(BraafLuisa!$B$75) -> 138.5 | AI2: =(BraafLuisa!$B$76) -> Ja | AJ2: =(BraafLuisa!$B$77) -> 159 | AK2: =(BraafLuisa!$B$78) -> Ja | AL2: =(BraafLuisa!$B$79) -> Ja
A3: Morgenstern, Luna | B3: =(MorgensternLuna!$H$1) -> 2008 | C3: =(MorgensternLuna!$H$2) -> 12 | D3: =(MorgensternLuna!$B$2) -> TV Blecher | E3: =(MorgensternLuna!$H$4) -> 10 | F3: =(MorgensternLuna!$H$5) -> 6 | G3: =(MorgensternLuna!$H$6) -> 4 | H3: =(MorgensternLuna!$H$7) -> 10 | I3: =(MorgensternLuna!$H$8) -> 10 | J3: =(MorgensternLuna!$H$9) -> 40 | K3: =(MorgensternLuna!$H$11) -> 10 | L3: =(MorgensternLuna!$H$12) -> 10 | M3: =(MorgensternLuna!$H$13) -> 0 | N3: =(MorgensternLuna!$H$14) -> 10 | O3: =(MorgensternLuna!$H$15) -> 6 | P3: =(MorgensternLuna!$H$16) -> 10 | Q3: =(MorgensternLuna!$H$17) -> 5 | R3: =(MorgensternLuna!$H$18) -> 9 | S3: =(MorgensternLuna!$H$19) -> 60 | T3: =(MorgensternLuna!$H$21) -> -3.95 | U3: =(MorgensternLuna!$H$22) -> 5 | V3: =(MorgensternLuna!$H$23) -> 2 | W3: =(MorgensternLuna!$H$24) -> 1 | X3: =(MorgensternLuna!$H$25) -> 6 | Y3: =(MorgensternLuna!$H$26) -> 4 | Z3: =(MorgensternLuna!$H$27) -> 1 | AA3: =(MorgensternLuna!$H$28) -> 0 | AB3: =(MorgensternLuna!$H$29) -> 0 | AC3: =(MorgensternLuna!$H$30) -> 0 | AD3: =(MorgensternLuna!$H$36) -> -1 | AE3: =(MorgensternLuna!$H$37) -> 34.05 | AF3: =(MorgensternLuna!$H$51) -> 21.5 | AG3: =(MorgensternLuna!$H$52) -> 155.55 | AH3: =(MorgensternLuna!$B$75) -> 121.5 | AI3: =(MorgensternLuna!$B$76) -> Ja | AJ3: =(MorgensternLuna!$B$77) -> 129 | AK3: =(MorgensternLuna!$B$78) -> Ja | AL3: =(MorgensternLuna!$B$79) -> Ja
A4: Baumann, Isabel | B4: =(BaumannIsabel!$H$1) -> 2001 | C4: =(BaumannIsabel!$H$2) -> 19 | D4: =(BaumannIsabel!$B$2) -> SC Cottbus | E4: =(BaumannIsabel!$H$4) -> 10 | F4: =(BaumannIsabel!$H$5) -> 10 | G4: =(BaumannIsabel!$H$6) -> 8 | H4: =(BaumannIsabel!$H$7) -> 10 | I4: =(BaumannIsabel!$H$8) -> 10 | J4: =(BaumannIsabel!$H$9) -> 48 | K4: =(BaumannIsabel!$H$11) -> 1 | L4: =(BaumannIsabel!$H$12) -> 0 | M4: =(BaumannIsabel!$H$13) -> 10 | N4: =(BaumannIsabel!$H$14) -> 10 | O4: =(BaumannIsabel!$H$15) -> 6 | P4: =(BaumannIsabel!$H$16) -> 10 | Q4: =(BaumannIsabel!$H$17) -> 0 | R4: =(BaumannIsabel!$H$18) -> 7 | S4: =(BaumannIsabel!$H$19) -> 44 | T4: =(BaumannIsabel!$H$21) -> 7.95 | U4: =(BaumannIsabel!$H$22) -> 0 | V4: =(BaumannIsabel!$H$23) -> 0 | W4: =(BaumannIsabel!$H$24) -> 0 | X4: =(BaumannIsabel!$H$25) -> 12 | Y4: =(BaumannIsabel!$H$26) -> 13 | Z4: =(BaumannIsabel!$H$27) -> 0 | AA4: =(BaumannIsabel!$H$28) -> 0 | AB4: =(BaumannIsabel!$H$29) -> 0 | AC4: =(BaumannIsabel!$H$30) -> 0 | AD4: =(BaumannIsabel!$H$36) -> 11 | AE4: =(BaumannIsabel!$H$37) -> 84.95 | AF4: =(BaumannIsabel!$H$51) -> 23.5 | AG4: =(BaumannIsabel!$H$52) -> 200.45 | AH4: =(BaumannIsabel!$B$75) -> 115.5 | AI4: =(BaumannIsabel!$B$76) -> Ja | AJ4: =(BaumannIsabel!$B$77) -> 178 | AK4: =(BaumannIsabel!$B$78) -> Ja | AL4: =(BaumannIsabel!$B$79) -> Ja
A5: Volska, Nikola | B5: =(VolskaNikola!$H$1) -> 2008 | C5: =(VolskaNikola!$H$2) -> 12 | D5: =(VolskaNikola!$B$2) -> TGJ Salzgitter | E5: =(VolskaNikola!$H$4) -> 10 | F5: =(VolskaNikola!$H$5) -> 10 | G5: =(VolskaNikola!$H$6) -> 10 | H5: =(VolskaNikola!$H$7) -> 10 | I5: =(VolskaNikola!$H$8) -> 10 | J5: =(VolskaNikola!$H$9) -> 50 | K5: =(VolskaNikola!$H$11) -> 1 | L5: =(VolskaNikola!$H$12) -> 7 | M5: =(VolskaNikola!$H$13) -> 6 | N5: =(VolskaNikola!$H$14) -> 10 | O5: =(VolskaNikola!$H$15) -> 8 | P5: =(VolskaNikola!$H$16) -> 6 | Q5: =(VolskaNikola!$H$17) -> 0 | R5: =(VolskaNikola!$H$18) -> 7 | S5: =(VolskaNikola!$H$19) -> 45 | T5: =(VolskaNikola!$H$21) -> 6.45 | U5: =(VolskaNikola!$H$22) -> 0 | V5: =(VolskaNikola!$H$23) -> 9 | W5: =(VolskaNikola!$H$24) -> 4 | X5: =(VolskaNikola!$H$25) -> 6 | Y5: =(VolskaNikola!$H$26) -> 8 | Z5: =(VolskaNikola!$H$27) -> 7 | AA5: =(VolskaNikola!$H$28) -> 0 | AB5: =(VolskaNikola!$H$29) -> 0 | AC5: =(VolskaNikola!$H$30) -> 0 | AD5: =(VolskaNikola!$H$36) -> 0 | AE5: =(VolskaNikola!$H$37) -> 61.45 | AF5: =(VolskaNikola!$H$51) -> 13.5 | AG5: =(VolskaNikola!$H$52) -> 169.95 | AH5: =(VolskaNikola!$B$75) -> 108.5 | AI5: =(VolskaNikola!$B$76) -> Ja | AJ5: =(VolskaNikola!$B$77) -> 129 | AK5: =(VolskaNikola!$B$78) -> Ja | AL5: =(VolskaNikola!$B$79) -> Ja
A6: Schneider, Fiona | B6: =(SchneiderFiona!$H$1) -> 2004 | C6: =(SchneiderFiona!$H$2) -> 16 | D6: =(SchneiderFiona!$B$2) -> TV Blecher | E6: =(SchneiderFiona!$H$4) -> 10 | F6: =(SchneiderFiona!$H$5) -> 6 | G6: =(SchneiderFiona!$H$6) -> 10 | H6: =(SchneiderFiona!$H$7) -> 10 | I6: =(SchneiderFiona!$H$8) -> 10 | J6: =(SchneiderFiona!$H$9) -> 46 | K6: =(SchneiderFiona!$H$11) -> 1 | L6: =(SchneiderFiona!$H$12) -> 2 | M6: =(SchneiderFiona!$H$13) -> 0 | N6: =(SchneiderFiona!$H$14) -> 10 | O6: =(SchneiderFiona!$H$15) -> 6 | P6: =(SchneiderFiona!$H$16) -> 10 | Q6: =(SchneiderFiona!$H$17) -> 0 | R6: =(SchneiderFiona!$H$18) -> 7 | S6: =(SchneiderFiona!$H$19) -> 36 | T6: =(SchneiderFiona!$H$21) -> -1.9 | U6: =(SchneiderFiona!$H$22) -> 6 | V6: =(SchneiderFiona!$H$23) -> 8 | W6: =(SchneiderFiona!$H$24) -> 0 | X6: =(SchneiderFiona!$H$25) -> 7 | Y6: =(SchneiderFiona!$H$26) -> 0 | Z6: =(SchneiderFiona!$H$27) -> 0 | AA6: =(SchneiderFiona!$H$28) -> 0 | AB6: =(SchneiderFiona!$H$29) -> 0 | AC6: =(SchneiderFiona!$H$30) -> 0 | AD6: =(SchneiderFiona!$H$36) -> 8 | AE6: =(SchneiderFiona!$H$37) -> 60.1 | AF6: =(SchneiderFiona!$H$51) -> 22.5 | AG6: =(SchneiderFiona!$H$52) -> 164.6 | AH6: =(SchneiderFiona!$B$75) -> 104.5 | AI6: =(SchneiderFiona!$B$76) -> Ja | AJ6: =(SchneiderFiona!$B$77) -> 159 | AK6: =(SchneiderFiona!$B$78) -> Ja | AL6: =(SchneiderFiona!$B$79) -> Ja
A7: Wöll, Bettina | B7: =(WöllBettina!$H$1) -> 2006 | C7: =(WöllBettina!$H$2) -> 14 | D7: =(WöllBettina!$B$2) -> Munich-Airriders | E7: =(WöllBettina!$H$4) -> 10 | F7: =(WöllBettina!$H$5) -> 10 | G7: =(WöllBettina!$H$6) -> 6 | H7: =(WöllBettina!$H$7) -> 10 | I7: =(WöllBettina!$H$8) -> 10 | J7: =(WöllBettina!$H$9) -> 46 | K7: =(WöllBettina!$H$11) -> 1 | L7: =(WöllBettina!$H$12) -> 1 | M7: =(WöllBettina!$H$13) -> 4 | N7: =(WöllBettina!$H$14) -> 10 | O7: =(WöllBettina!$H$15) -> 7 | P7: =(WöllBettina!$H$16) -> 6 | Q7: =(WöllBettina!$H$17) -> 0 | R7: =(WöllBettina!$H$18) -> 5 | S7: =(WöllBettina!$H$19) -> 34 | T7: =(WöllBettina!$H$21) -> 2.6 | U7: =(WöllBettina!$H$22) -> 5 | V7: =(WöllBettina!$H$23) -> 7 | W7: =(WöllBettina!$H$24) -> 0 | X7: =(WöllBettina!$H$25) -> 4 | Y7: =(WöllBettina!$H$26) -> 9 | Z7: =(WöllBettina!$H$27) -> 7 | AA7: =(WöllBettina!$H$28) -> 8 | AB7: =(WöllBettina!$H$29) -> 0 | AC7: =(WöllBettina!$H$30) -> 0 | AD7: =(WöllBettina!$H$36) -> 7 | AE7: =(WöllBettina!$H$37) -> 73.6 | AF7: =(WöllBettina!$H$51) -> 21.5 | AG7: =(WöllBettina!$H$52) -> 175.1 | AH7: =(WöllBettina!$B$75) -> 101.5 | AI7: =(WöllBettina!$B$76) -> Ja | AJ7: =(WöllBettina!$B$77) -> 143 | AK7: =(WöllBettina!$B$78) -> Ja | AL7: =(WöllBettina!$B$79) -> Ja
A8: Möller, Maya | B8: =(MöllerMaya!$H$1) -> 2007 | C8: =(MöllerMaya!$H$2) -> 13 | D8: =(MöllerMaya!$B$2) -> TG Dietzenbach | E8: =(MöllerMaya!$H$4) -> 10 | F8: =(MöllerMaya!$H$5) -> 10 | G8: =(MöllerMaya!$H$6) -> 4 | H8: =(MöllerMaya!$H$7) -> 10 | I8: =(MöllerMaya!$H$8) -> 10 | J8: =(MöllerMaya!$H$9) -> 44 | K8: =(MöllerMaya!$H$11) -> 0 | L8: =(MöllerMaya!$H$12) -> 0 | M8: =(MöllerMaya!$H$13) -> 4 | N8: =(MöllerMaya!$H$14) -> 2 | O8: =(MöllerMaya!$H$15) -> 8 | P8: =(MöllerMaya!$H$16) -> 10 | Q8: =(MöllerMaya!$H$17) -> 5 | R8: =(MöllerMaya!$H$18) -> 6 | S8: =(MöllerMaya!$H$19) -> 35 | T8: =(MöllerMaya!$H$21) -> 5.45 | U8: =(MöllerMaya!$H$22) -> 5 | V8: =(MöllerMaya!$H$23) -> 3 | W8: =(MöllerMaya!$H$24) -> 0 | X8: =(MöllerMaya!$H$25) -> 9 | Y8: =(MöllerMaya!$H$26) -> 11 | Z8: =(MöllerMaya!$H$27) -> 8 | AA8: =(MöllerMaya!$H$28) -> 4 | AB8: =(MöllerMaya!$H$29) -> 0 | AC8: =(MöllerMaya!$H$30) -> 0 | AD8: =(MöllerMaya!$H$36) -> 7 | AE8: =(MöllerMaya!$H$37) -> 71.45 | AF8: =(MöllerMaya!$H$51) -> 18 | AG8: =(MöllerMaya!$H$52) -> 168.45 | AH8: =(MöllerMaya!$B$75) -> 97 | AI8: =(MöllerMaya!$B$76) -> Ja | AJ8: =(MöllerMaya!$B$77) -> 143 | AK8: =(MöllerMaya!$B$78) -> Ja | AL8: =(MöllerMaya!$B$79) -> Ja
A9: Staiber, Selina | B9: =(StaiberSelina!$H$1) -> 2001 | C9: =(StaiberSelina!$H$2) -> 19 | D9: =(StaiberSelina!$B$2) -> MTV Stuttgart | E9: =(StaiberSelina!$H$4) -> 10 | F9: =(StaiberSelina!$H$5) -> 10 | G9: =(StaiberSelina!$H$6) -> 8 | H9: =(StaiberSelina!$H$7) -> 10 | I9: =(StaiberSelina!$H$8) -> 10 | J9: =(StaiberSelina!$H$9) -> 48 | K9: =(StaiberSelina!$H$11) -> 2 | L9: =(StaiberSelina!$H$12) -> 6 | M9: =(StaiberSelina!$H$13) -> 0 | N9: =(StaiberSelina!$H$14) -> 10 | O9: =(StaiberSelina!$H$15) -> 7 | P9: =(StaiberSelina!$H$16) -> 10 | Q9: =(StaiberSelina!$H$17) -> 0 | R9: =(StaiberSelina!$H$18) -> 4 | S9: =(StaiberSelina!$H$19) -> 39 | T9: =(StaiberSelina!$H$21) -> -5.25 | U9: =(StaiberSelina!$H$22) -> 0 | V9: =(StaiberSelina!$H$23) -> 0 | W9: =(StaiberSelina!$H$24) -> 0 | X9: =(StaiberSelina!$H$25) -> 10 | Y9: =(StaiberSelina!$H$26) -> 0 | Z9: =(StaiberSelina!$H$27) -> 0 | AA9: =(StaiberSelina!$H$28) -> 0 | AB9: =(StaiberSelina!$H$29) -> 0 | AC9: =(StaiberSelina!$H$30) -> 0 | AD9: =(StaiberSelina!$H$36) -> 11 | AE9: =(StaiberSelina!$H$37) -> 51.75 | AF9: =(StaiberSelina!$H$51) -> 19 | AG9: =(StaiberSelina!$H$52) -> 157.75 | AH9: =(StaiberSelina!$B$75) -> 106 | AI9: =(StaiberSelina!$B$76) -> Ja | AJ9: =(StaiberSelina!$B$77) -> 178 | AK9: =(StaiberSelina!$B$78) -> Nein | AL9: =(StaiberSelina!$B$79) -> Nein
A10: Amedick, Carlotta | B10: =(AmedickCarlotta!$H$1) -> 2000 | C10: =(AmedickCarlotta!$H$2) -> 20 | D10: =(AmedickCarlotta!$B$2) -> TSV Ganderkesee | E10: =(AmedickCarlotta!$H$4) -> 10 | F10: =(AmedickCarlotta!$H$5) -> 10 | G10: =(AmedickCarlotta!$H$6) -> 6 | H10: =(AmedickCarlotta!$H$7) -> 10 | I10: =(AmedickCarlotta!$H$8) -> 10 | J10: =(AmedickCarlotta!$H$9) -> 46 | K10: =(AmedickCarlotta!$H$11) -> 2 | L10: =(AmedickCarlotta!$H$12) -> 0 | M10: =(AmedickCarlotta!$H$13) -> 2 | N10: =(AmedickCarlotta!$H$14) -> 10 | O10: =(AmedickCarlotta!$H$15) -> 0 | P10: =(AmedickCarlotta!$H$16) -> 10 | Q10: =(AmedickCarlotta!$H$17) -> 0 | R10: =(AmedickCarlotta!$H$18) -> 7 | S10: =(AmedickCarlotta!$H$19) -> 31 | T10: =(AmedickCarlotta!$H$21) -> 0 | U10: =(AmedickCarlotta!$H$22) -> 0 | V10: =(AmedickCarlotta!$H$23) -> 0 | W10: =(AmedickCarlotta!$H$24) -> 0 | X10: =(AmedickCarlotta!$H$25) -> 0 | Y10: =(AmedickCarlotta!$H$26) -> 0 | Z10: =(AmedickCarlotta!$H$27) -> 0 | AA10: =(AmedickCarlotta!$H$28) -> 0 | AB10: =(AmedickCarlotta!$H$29) -> 0 | AC10: =(AmedickCarlotta!$H$30) -> 0 | AD10: =(AmedickCarlotta!$H$36) -> 0 | AE10: =(AmedickCarlotta!$H$37) -> 0 | AF10: =(AmedickCarlotta!$H$51) -> 23.5 | AG10: =(AmedickCarlotta!$H$52) -> 100.5 | AH10: =(AmedickCarlotta!$B$75) -> 100.5 | AI10: =(AmedickCarlotta!$B$76) -> Ja | AJ10: =(AmedickCarlotta!$B$77) -> 178 | AK10: =(AmedickCarlotta!$B$78) -> Nein | AL10: =(AmedickCarlotta!$B$79) -> Nein
A11: Langner, Sabrina | B11: =(LangnerSabrina!$H$1) -> 2004 | C11: =(LangnerSabrina!$H$2) -> 16 | D11: =(LangnerSabrina!$B$2) -> TSV Ganderkesee | E11: =(LangnerSabrina!$H$4) -> 10 | F11: =(LangnerSabrina!$H$5) -> 10 | G11: =(LangnerSabrina!$H$6) -> 6 | H11: =(LangnerSabrina!$H$7) -> 10 | I11: =(LangnerSabrina!$H$8) -> 10 | J11: =(LangnerSabrina!$H$9) -> 46 | K11: =(LangnerSabrina!$H$11) -> 0 | L11: =(LangnerSabrina!$H$12) -> 0 | M11: =(LangnerSabrina!$H$13) -> 4 | N11: =(LangnerSabrina!$H$14) -> 10 | O11: =(LangnerSabrina!$H$15) -> 7 | P11: =(LangnerSabrina!$H$16) -> 10 | Q11: =(LangnerSabrina!$H$17) -> 0 | R11: =(LangnerSabrina!$H$18) -> 5 | S11: =(LangnerSabrina!$H$19) -> 36 | T11: =(LangnerSabrina!$H$21) -> -2.7 | U11: =(LangnerSabrina!$H$22) -> 6 | V11: =(LangnerSabrina!$H$23) -> 0 | W11: =(LangnerSabrina!$H$24) -> 0 | X11: =(LangnerSabrina!$H$25) -> 7 | Y11: =(LangnerSabrina!$H$26) -> 9 | Z11: =(LangnerSabrina!$H$27) -> 0 | AA11: =(LangnerSabrina!$H$28) -> 0 | AB11: =(LangnerSabrina!$H$29) -> 0 | AC11: =(LangnerSabrina!$H$30) -> 0 | AD11: =(LangnerSabrina!$H$36) -> 7 | AE11: =(LangnerSabrina!$H$37) -> 57.3 | AF11: =(LangnerSabrina!$H$51) -> 18.5 | AG11: =(LangnerSabrina!$H$52) -> 157.8 | AH11: =(LangnerSabrina!$B$75) -> 100.5 | AI11: =(LangnerSabrina!$B$76) -> Ja | AJ11: =(LangnerSabrina!$B$77) -> 159 | AK11: =(LangnerSabrina!$B$78) -> Nein | AL11: =(LangnerSabrina!$B$79) -> Nein
A12: Imle, Vanessa | B12: =(ImleVanessa!$H$1) -> 2004 | C12: =(ImleVanessa!$H$2) -> 16 | D12: =(ImleVanessa!$B$2) -> MTV Stuttgart | E12: =(ImleVanessa!$H$4) -> 10 | F12: =(ImleVanessa!$H$5) -> 6 | G12: =(ImleVanessa!$H$6) -> 6 | H12: =(ImleVanessa!$H$7) -> 10 | I12: =(ImleVanessa!$H$8) -> 10 | J12: =(ImleVanessa!$H$9) -> 42 | K12: =(ImleVanessa!$H$11) -> 0 | L12: =(ImleVanessa!$H$12) -> 0 | M12: =(ImleVanessa!$H$13) -> 0 | N12: =(ImleVanessa!$H$14) -> 10 | O12: =(ImleVanessa!$H$15) -> 8 | P12: =(ImleVanessa!$H$16) -> 0 | Q12: =(ImleVanessa!$H$17) -> 0 | R12: =(ImleVanessa!$H$18) -> 8 | S12: =(ImleVanessa!$H$19) -> 26 | T12: =(ImleVanessa!$H$21) -> -1.9 | U12: =(ImleVanessa!$H$22) -> 0 | V12: =(ImleVanessa!$H$23) -> 0 | W12: =(ImleVanessa!$H$24) -> 0 | X12: =(ImleVanessa!$H$25) -> 13 | Y12: =(ImleVanessa!$H$26) -> 9 | Z12: =(ImleVanessa!$H$27) -> 8 | AA12: =(ImleVanessa!$H$28) -> 7 | AB12: =(ImleVanessa!$H$29) -> 0 | AC12: =(ImleVanessa!$H$30) -> 0 | AD12: =(ImleVanessa!$H$36) -> 9 | AE12: =(ImleVanessa!$H$37) -> 81.1 | AF12: =(ImleVanessa!$H$51) -> 26.5 | AG12: =(ImleVanessa!$H$52) -> 175.6 | AH12: =(ImleVanessa!$B$75) -> 94.5 | AI12: =(ImleVanessa!$B$76) -> Nein | AJ12: =(ImleVanessa!$B$77) -> 159 | AK12: =(ImleVanessa!$B$78) -> Ja | AL12: =(ImleVanessa!$B$79) -> Nein
A13: Schuldt, Christine | B13: =(SchuldtChristine!$H$1) -> 2002 | C13: =(SchuldtChristine!$H$2) -> 18 | D13: =(SchuldtChristine!$B$2) -> Frankfurt Flyers | E13: =(SchuldtChristine!$H$4) -> 10 | F13: =(SchuldtChristine!$H$5) -> 10 | G13: =(SchuldtChristine!$H$6) -> 6 | H13: =(SchuldtChristine!$H$7) -> 10 | I13: =(SchuldtChristine!$H$8) -> 10 | J13: =(SchuldtChristine!$H$9) -> 46 | K13: =(SchuldtChristine!$H$11) -> 0 | L13: =(SchuldtChristine!$H$12) -> 0 | M13: =(SchuldtChristine!$H$13) -> 2 | N13: =(SchuldtChristine!$H$14) -> 8 | O13: =(SchuldtChristine!$H$15) -> 7 | P13: =(SchuldtChristine!$H$16) -> 10 | Q13: =(SchuldtChristine!$H$17) -> 0 | R13: =(SchuldtChristine!$H$18) -> 4 | S13: =(SchuldtChristine!$H$19) -> 31 | T13: =(SchuldtChristine!$H$21) -> 3.8 | U13: =(SchuldtChristine!$H$22) -> 0 | V13: =(SchuldtChristine!$H$23) -> 0 | W13: =(SchuldtChristine!$H$24) -> 0 | X13: =(SchuldtChristine!$H$25) -> 11 | Y13: =(SchuldtChristine!$H$26) -> 11 | Z13: =(SchuldtChristine!$H$27) -> 8 | AA13: =(SchuldtChristine!$H$28) -> 8 | AB13: =(SchuldtChristine!$H$29) -> 8 | AC13: =(SchuldtChristine!$H$30) -> 0 | AD13: =(SchuldtChristine!$H$36) -> 10 | AE13: =(SchuldtChristine!$H$37) -> 95.8 | AF13: =(SchuldtChristine!$H$51) -> 10 | AG13: =(SchuldtChristine!$H$52) -> 182.8 | AH13: =(SchuldtChristine!$B$75) -> 87 | AI13: =(SchuldtChristine!$B$76) -> Nein | AJ13: =(SchuldtChristine!$B$77) -> 169 | AK13: =(SchuldtChristine!$B$78) -> Ja | AL13: =(SchuldtChristine!$B$79) -> Nein
A14: Stöhr, Gabriela | B14: =(StöhrGabriela!$H$1) -> 2002 | C14: =(StöhrGabriela!$H$2) -> 18 | D14: =(StöhrGabriela!$B$2) -> Munich-Airrders | E14: =(StöhrGabriela!$H$4) -> 10 | F14: =(StöhrGabriela!$H$5) -> 10 | G14: =(StöhrGabriela!$H$6) -> 10 | H14: =(StöhrGabriela!$H$7) -> 10 | I14: =(StöhrGabriela!$H$8) -> 10 | J14: =(StöhrGabriela!$H$9) -> 50 | K14: =(StöhrGabriela!$H$11) -> 3 | L14: =(StöhrGabriela!$H$12) -> 1 | M14: =(StöhrGabriela!$H$13) -> 4 | N14: =(StöhrGabriela!$H$14) -> 7 | O14: =(StöhrGabriela!$H$15) -> 0 | P14: =(StöhrGabriela!$H$16) -> 10 | Q14: =(StöhrGabriela!$H$17) -> 0 | R14: =(StöhrGabriela!$H$18) -> 5 | S14: =(StöhrGabriela!$H$19) -> 30 | T14: =(StöhrGabriela!$H$21) -> 0 | U14: =(StöhrGabriela!$H$22) -> 0 | V14: =(StöhrGabriela!$H$23) -> 0 | W14: =(StöhrGabriela!$H$24) -> 0 | X14: =(StöhrGabriela!$H$25) -> 0 | Y14: =(StöhrGabriela!$H$26) -> 0 | Z14: =(StöhrGabriela!$H$27) -> 0 | AA14: =(StöhrGabriela!$H$28) -> 0 | AB14: =(StöhrGabriela!$H$29) -> 0 | AC14: =(StöhrGabriela!$H$30) -> 0 | AD14: =(StöhrGabriela!$H$36) -> 0 | AE14: =(StöhrGabriela!$H$37) -> 0 | AF14: =(StöhrGabriela!$H$51) -> 7 | AG14: =(StöhrGabriela!$H$52) -> 87 | AH14: =(StöhrGabriela!$B$75) -> 87 | AI14: =(StöhrGabriela!$B$76) -> Nein | AJ14: =(StöhrGabriela!$B$77) -> 169 | AK14: =(StöhrGabriela!$B$78) -> Nein | AL14: =(StöhrGabriela!$B$79) -> Nein
A15: Kola, Sheridan | B15: =(KolaSheridan!$H$1) -> 2005 | C15: =(KolaSheridan!$H$2) -> 15 | D15: =(KolaSheridan!$B$2) -> MTV Peine | E15: =(KolaSheridan!$H$4) -> 10 | F15: =(KolaSheridan!$H$5) -> 10 | G15: =(KolaSheridan!$H$6) -> 6 | H15: =(KolaSheridan!$H$7) -> 10 | I15: =(KolaSheridan!$H$8) -> 10 | J15: =(KolaSheridan!$H$9) -> 46 | K15: =(KolaSheridan!$H$11) -> 0 | L15: =(KolaSheridan!$H$12) -> 0 | M15: =(KolaSheridan!$H$13) -> 2 | N15: =(KolaSheridan!$H$14) -> 3 | O15: =(KolaSheridan!$H$15) -> 6 | P15: =(KolaSheridan!$H$16) -> 10 | Q15: =(KolaSheridan!$H$17) -> 0 | R15: =(KolaSheridan!$H$18) -> 2 | S15: =(KolaSheridan!$H$19) -> 23 | T15: =(KolaSheridan!$H$21) -> 0 | U15: =(KolaSheridan!$H$22) -> 0 | V15: =(KolaSheridan!$H$23) -> 0 | W15: =(KolaSheridan!$H$24) -> 0 | X15: =(KolaSheridan!$H$25) -> 0 | Y15: =(KolaSheridan!$H$26) -> 0 | Z15: =(KolaSheridan!$H$27) -> 0 | AA15: =(KolaSheridan!$H$28) -> 0 | AB15: =(KolaSheridan!$H$29) -> 0 | AC15: =(KolaSheridan!$H$30) -> 0 | AD15: =(KolaSheridan!$H$36) -> 0 | AE15: =(KolaSheridan!$H$37) -> 0 | AF15: =(KolaSheridan!$H$51) -> 12.5 | AG15: =(KolaSheridan!$H$52) -> 81.5 | AH15: =(KolaSheridan!$B$75) -> 81.5 | AI15: =(KolaSheridan!$B$76) -> Nein | AJ15: =(KolaSheridan!$B$77) -> 159 | AK15: =(KolaSheridan!$B$78) -> Nein | AL15: =(KolaSheridan!$B$79) -> Nein
A16: Radfelder-Henning, Mirja | B16: =(RadfelderHenningMirja!$H$1) -> 2005 | C16: =(RadfelderHenningMirja!$H$2) -> 15 | D16: =(RadfelderHenningMirja!$B$2) -> OSC Bremerhafen | E16: =(RadfelderHenningMirja!$H$4) -> 10 | F16: =(RadfelderHenningMirja!$H$5) -> 10 | G16: =(RadfelderHenningMirja!$H$6) -> 8 | H16: =(RadfelderHenningMirja!$H$7) -> 6 | I16: =(RadfelderHenningMirja!$H$8) -> 10 | J16: =(RadfelderHenningMirja!$H$9) -> 44 | K16: =(RadfelderHenningMirja!$H$11) -> 0 | L16: =(RadfelderHenningMirja!$H$12) -> 2 | M16: =(RadfelderHenningMirja!$H$13) -> 0 | N16: =(RadfelderHenningMirja!$H$14) -> 0 | O16: =(RadfelderHenningMirja!$H$15) -> 7 | P16: =(RadfelderHenningMirja!$H$16) -> 0 | Q16: =(RadfelderHenningMirja!$H$17) -> 0 | R16: =(RadfelderHenningMirja!$H$18) -> 5 | S16: =(RadfelderHenningMirja!$H$19) -> 14 | T16: =(RadfelderHenningMirja!$H$21) -> -5.4 | U16: =(RadfelderHenningMirja!$H$22) -> 6 | V16: =(RadfelderHenningMirja!$H$23) -> 0 | W16: =(RadfelderHenningMirja!$H$24) -> 0 | X16: =(RadfelderHenningMirja!$H$25) -> 9 | Y16: =(RadfelderHenningMirja!$H$26) -> 9 | Z16: =(RadfelderHenningMirja!$H$27) -> 0 | AA16: =(RadfelderHenningMirja!$H$28) -> 0 | AB16: =(RadfelderHenningMirja!$H$29) -> 0 | AC16: =(RadfelderHenningMirja!$H$30) -> 0 | AD16: =(RadfelderHenningMirja!$H$36) -> 7 | AE16: =(RadfelderHenningMirja!$H$37) -> 56.6 | AF16: =(RadfelderHenningMirja!$H$51) -> 20.5 | AG16: =(RadfelderHenningMirja!$H$52) -> 135.1 | AH16: =(RadfelderHenningMirja!$B$75) -> 78.5 | AI16: =(RadfelderHenningMirja!$B$76) -> Nein | AJ16: =(RadfelderHenningMirja!$B$77) -> 159 | AK16: =(RadfelderHenningMirja!$B$78) -> Nein | AL16: =(RadfelderHenningMirja!$B$79) -> Nein
A17: Ronsiek-Niederbröker, Hannah | B17: =(RonsiekNiederbrökerHannah!$H$1) -> 2006 | C17: =(RonsiekNiederbrökerHannah!$H$2) -> 14 | D17: =(RonsiekNiederbrökerHannah!$B$2) -> SC Melle | E17: =(RonsiekNiederbrökerHannah!$H$4) -> 10 | F17: =(RonsiekNiederbrökerHannah!$H$5) -> 6 | G17: =(RonsiekNiederbrökerHannah!$H$6) -> 8 | H17: =(RonsiekNiederbrökerHannah!$H$7) -> 10 | I17: =(RonsiekNiederbrökerHannah!$H$8) -> 10 | J17: =(RonsiekNiederbrökerHannah!$H$9) -> 44 | K17: =(RonsiekNiederbrökerHannah!$H$11) -> 0 | L17: =(RonsiekNiederbrökerHannah!$H$12) -> 0 | M17: =(RonsiekNiederbrökerHannah!$H$13) -> 4 | N17: =(RonsiekNiederbrökerHannah!$H$14) -> 4 | O17: =(RonsiekNiederbrökerHannah!$H$15) -> 0 | P17: =(RonsiekNiederbrökerHannah!$H$16) -> 4 | Q17: =(RonsiekNiederbrökerHannah!$H$17) -> 0 | R17: =(RonsiekNiederbrökerHannah!$H$18) -> 9 | S17: =(RonsiekNiederbrökerHannah!$H$19) -> 21 | T17: =(RonsiekNiederbrökerHannah!$H$21) -> 4.55 | U17: =(RonsiekNiederbrökerHannah!$H$22) -> 5 | V17: =(RonsiekNiederbrökerHannah!$H$23) -> 8 | W17: =(RonsiekNiederbrökerHannah!$H$24) -> 0 | X17: =(RonsiekNiederbrökerHannah!$H$25) -> 9 | Y17: =(RonsiekNiederbrökerHannah!$H$26) -> 11 | Z17: =(RonsiekNiederbrökerHannah!$H$27) -> 6 | AA17: =(RonsiekNiederbrökerHannah!$H$28) -> 6 | AB17: =(RonsiekNiederbrökerHannah!$H$29) -> 0 | AC17: =(RonsiekNiederbrökerHannah!$H$30) -> 0 | AD17: =(RonsiekNiederbrökerHannah!$H$36) -> 7 | AE17: =(RonsiekNiederbrökerHannah!$H$37) -> 78.55 | AF17: =(RonsiekNiederbrökerHannah!$H$51) -> 9 | AG17: =(RonsiekNiederbrökerHannah!$H$52) -> 152.55 | AH17: =(RonsiekNiederbrökerHannah!$B$75) -> 74 | AI17: =(RonsiekNiederbrökerHannah!$B$76) -> Nein | AJ17: =(RonsiekNiederbrökerHannah!$B$77) -> 143 | AK17: =(RonsiekNiederbrökerHannah!$B$78) -> Ja | AL17: =(RonsiekNiederbrökerHannah!$B$79) -> Nein
A18: Pape, Nina | B18: =(PapeNina!$H$1) -> 2003 | C18: =(PapeNina!$H$2) -> 17 | D18: =(PapeNina!$B$2) -> FC Reislingen | E18: =(PapeNina!$H$4) -> 10 | F18: =(PapeNina!$H$5) -> 6 | G18: =(PapeNina!$H$6) -> 4 | H18: =(PapeNina!$H$7) -> 10 | I18: =(PapeNina!$H$8) -> 10 | J18: =(PapeNina!$H$9) -> 40 | K18: =(PapeNina!$H$11) -> 0 | L18: =(PapeNina!$H$12) -> 0 | M18: =(PapeNina!$H$13) -> 0 | N18: =(PapeNina!$H$14) -> 7 | O18: =(PapeNina!$H$15) -> 2 | P18: =(PapeNina!$H$16) -> 10 | Q18: =(PapeNina!$H$17) -> 0 | R18: =(PapeNina!$H$18) -> 5 | S18: =(PapeNina!$H$19) -> 24 | T18: =(PapeNina!$H$21) -> -4.3 | U18: =(PapeNina!$H$22) -> 0 | V18: =(PapeNina!$H$23) -> 0 | W18: =(PapeNina!$H$24) -> 0 | X18: =(PapeNina!$H$25) -> 9 | Y18: =(PapeNina!$H$26) -> 0 | Z18: =(PapeNina!$H$27) -> 0 | AA18: =(PapeNina!$H$28) -> 0 | AB18: =(PapeNina!$H$29) -> 0 | AC18: =(PapeNina!$H$30) -> 0 | AD18: =(PapeNina!$H$36) -> 0 | AE18: =(PapeNina!$H$37) -> 35.7 | AF18: =(PapeNina!$H$51) -> 7 | AG18: =(PapeNina!$H$52) -> 106.7 | AH18: =(PapeNina!$B$75) -> 71 | AI18: =(PapeNina!$B$76) -> Nein | AJ18: =(PapeNina!$B$77) -> 169 | AK18: =(PapeNina!$B$78) -> Nein | AL18: =(PapeNina!$B$79) -> Nein
A19: Henseleit, Nele | B19: =(HenseleitNele!$H$1) -> 2002 | C19: =(HenseleitNele!$H$2) -> 18 | D19: =(HenseleitNele!$B$2) -> Geestemünder TV | E19: =(HenseleitNele!$H$4) -> 6 | F19: =(HenseleitNele!$H$5) -> 10 | G19: =(HenseleitNele!$H$6) -> 6 | H19: =(HenseleitNele!$H$7) -> 10 | I19: =(HenseleitNele!$H$8) -> 6 | J19: =(HenseleitNele!$H$9) -> 38 | K19: =(HenseleitNele!$H$11) -> 0 | L19: =(HenseleitNele!$H$12) -> 0 | M19: =(HenseleitNele!$H$13) -> 10 | N19: =(HenseleitNele!$H$14) -> 2 | O19: =(HenseleitNele!$H$15) -> 4 | P19: =(HenseleitNele!$H$16) -> 0 | Q19: =(HenseleitNele!$H$17) -> 0 | R19: =(HenseleitNele!$H$18) -> 3 | S19: =(HenseleitNele!$H$19) -> 19 | T19: =(HenseleitNele!$H$21) -> -7.3 | U19: =(HenseleitNele!$H$22) -> 0 | V19: =(HenseleitNele!$H$23) -> 0 | W19: =(HenseleitNele!$H$24) -> 0 | X19: =(HenseleitNele!$H$25) -> 11 | Y19: =(HenseleitNele!$H$26) -> 0 | Z19: =(HenseleitNele!$H$27) -> 0 | AA19: =(HenseleitNele!$H$28) -> 0 | AB19: =(HenseleitNele!$H$29) -> 0 | AC19: =(HenseleitNele!$H$30) -> 0 | AD19: =(HenseleitNele!$H$36) -> 0 | AE19: =(HenseleitNele!$H$37) -> 35.7 | AF19: =(HenseleitNele!$H$51) -> 3 | AG19: =(HenseleitNele!$H$52) -> 95.7 | AH19: =(HenseleitNele!$B$75) -> 60 | AI19: =(HenseleitNele!$B$76) -> Nein | AJ19: =(HenseleitNele!$B$77) -> 169 | AK19: =(HenseleitNele!$B$78) -> Nein | AL19: =(HenseleitNele!$B$79) -> Nein
A20: Zimmerhackel, Jana | B20: =(ZimmerhackelJana!$H$1) -> 2003 | C20: =(ZimmerhackelJana!$H$2) -> 17 | D20: =(ZimmerhackelJana!$B$2) -> MTV Stuttgart | E20: =(ZimmerhackelJana!$H$4) -> 0 | F20: =(ZimmerhackelJana!$H$5) -> 6 | G20: =(ZimmerhackelJana!$H$6) -> 10 | H20: =(ZimmerhackelJana!$H$7) -> 10 | I20: =(ZimmerhackelJana!$H$8) -> 10 | J20: =(ZimmerhackelJana!$H$9) -> 36 | K20: =(ZimmerhackelJana!$H$11) -> 0 | L20: =(ZimmerhackelJana!$H$12) -> 4 | M20: =(ZimmerhackelJana!$H$13) -> 6 | N20: =(ZimmerhackelJana!$H$14) -> 10 | O20: =(ZimmerhackelJana!$H$15) -> 0 | P20: =(ZimmerhackelJana!$H$16) -> 2 | Q20: =(ZimmerhackelJana!$H$17) -> 0 | R20: =(ZimmerhackelJana!$H$18) -> 0 | S20: =(ZimmerhackelJana!$H$19) -> 22 | T20: =(ZimmerhackelJana!$H$21) -> 0 | U20: =(ZimmerhackelJana!$H$22) -> 0 | V20: =(ZimmerhackelJana!$H$23) -> 0 | W20: =(ZimmerhackelJana!$H$24) -> 0 | X20: =(ZimmerhackelJana!$H$25) -> 0 | Y20: =(ZimmerhackelJana!$H$26) -> 0 | Z20: =(ZimmerhackelJana!$H$27) -> 0 | AA20: =(ZimmerhackelJana!$H$28) -> 0 | AB20: =(ZimmerhackelJana!$H$29) -> 0 | AC20: =(ZimmerhackelJana!$H$30) -> 0 | AD20: =(ZimmerhackelJana!$H$36) -> 0 | AE20: =(ZimmerhackelJana!$H$37) -> 0 | AF20: =(ZimmerhackelJana!$H$51) -> 0 | AG20: =(ZimmerhackelJana!$H$52) -> 58 | AH20: =(ZimmerhackelJana!$B$75) -> 58 | AI20: =(ZimmerhackelJana!$B$76) -> Nein | AJ20: =(ZimmerhackelJana!$B$77) -> 169 | AK20: =(ZimmerhackelJana!$B$78) -> Nein | AL20: =(ZimmerhackelJana!$B$79) -> Nein
A21: Lauhöfer, Saskia | B21: =(LauhöferSaskia!$H$1) -> 2003 | C21: =(LauhöferSaskia!$H$2) -> 17 | D21: =(LauhöferSaskia!$B$2) -> Frankfurt Flyers | E21: =(LauhöferSaskia!$H$4) -> 0 | F21: =(LauhöferSaskia!$H$5) -> 0 | G21: =(LauhöferSaskia!$H$6) -> 0 | H21: =(LauhöferSaskia!$H$7) -> 10 | I21: =(LauhöferSaskia!$H$8) -> 0 | J21: =(LauhöferSaskia!$H$9) -> 10 | K21: =(LauhöferSaskia!$H$11) -> 0 | L21: =(LauhöferSaskia!$H$12) -> 0 | M21: =(LauhöferSaskia!$H$13) -> 0 | N21: =(LauhöferSaskia!$H$14) -> 0 | O21: =(LauhöferSaskia!$H$15) -> 5 | P21: =(LauhöferSaskia!$H$16) -> 0 | Q21: =(LauhöferSaskia!$H$17) -> 0 | R21: =(LauhöferSaskia!$H$18) -> 3 | S21: =(LauhöferSaskia!$H$19) -> 8 | T21: =(LauhöferSaskia!$H$21) -> 0 | U21: =(LauhöferSaskia!$H$22) -> 0 | V21: =(LauhöferSaskia!$H$23) -> 0 | W21: =(LauhöferSaskia!$H$24) -> 0 | X21: =(LauhöferSaskia!$H$25) -> 0 | Y21: =(LauhöferSaskia!$H$26) -> 0 | Z21: =(LauhöferSaskia!$H$27) -> 0 | AA21: =(LauhöferSaskia!$H$28) -> 0 | AB21: =(LauhöferSaskia!$H$29) -> 0 | AC21: =(LauhöferSaskia!$H$30) -> 0 | AD21: =(LauhöferSaskia!$H$36) -> 0 | AE21: =(LauhöferSaskia!$H$37) -> 0 | AF21: =(LauhöferSaskia!$H$51) -> 9 | AG21: =(LauhöferSaskia!$H$52) -> 27 | AH21: =(LauhöferSaskia!$B$75) -> 27 | AI21: =(LauhöferSaskia!$B$76) -> Nein | AJ21: =(LauhöferSaskia!$B$77) -> 169 | AK21: =(LauhöferSaskia!$B$78) -> Nein | AL21: =(LauhöferSaskia!$B$79) -> Nein

Sheet BraunJanisLuca
A1: Name | B1: Braun, Janis-Luca | F1: männlich | G1: Jahrgang | H1: 2007
A2: Verein | B2: SV Ostfildern | G2: AK | H2: =2020-H1 -> 13
A3: Übung | F3: Wert | G3: Berechnung | H3: Punkte
A4: Fußdehnung | F4: 10 | G4: Bild | H4: =F4 -> 10
A5: Briefmarke mit Armrumpfwinkel | F5: 10 | G5: Bild | H5: =F5 -> 10
A6: Bückbeweglichkeit | F6: 14 | G6: Tabelle | H6: =IF(F6="",0,VLOOKUP(F6,Punktetabellen!A10:B15,2,1)) -> 4
A7: Querspagat links | F7: 0 | G7: Tabelle | H7: =IF(F7="",0,VLOOKUP(F7,Punktetabellen!A3:B6,2,0)) -> 10
A8: Querspagat rechts | F8: 0 | G8: Tabelle | H8: =IF(F8="",0,VLOOKUP(F8,Punktetabellen!A3:B6,2,0)) -> 10
A9: Gesamtpunktzahl Beweglichkeit | H9: =SUM(H4:H8) -> 44
A10: Übung | F10: Wert | G10: Berechnung | H10: Punktzahl
A11: Klimmzug | F11: 4 | G11: Tabelle | H11: =IF(F11="",0,IF(H2<12,VLOOKUP(F11,Punktetabellen!D4:F14,3,1),VLOOKUP(F11,Punktetabellen!E4:F14,2,1))) -> 0
A12: Beinheben | F12: 0 | G12: Tabelle | H12: =IF(H2=9,VLOOKUP(F12,Punktetabellen!D19:F29,3,1),VLOOKUP(F12,Punktetabellen!E19:F29,2,1)) -> 0
A13: Flieger | F13: 80 | G13: Tabelle | H13: =IF(H2=9,VLOOKUP(F13,Punktetabellen!H4:K9,4,1),IF(H2<12,VLOOKUP(F13,Punktetabellen!I4:K9,3,1),VLOOKUP(F13,Punktetabellen!J4:K9,2,1))) -> 2
A14: Rollenverbindung | F14: 15 | G14: Tabelle | H14: =IF(H2=9,VLOOKUP(F14,Punktetabellen!H14:K24,4,1),IF(H2<12,VLOOKUP(F14,Punktetabellen!I14:K24,3,1),VLOOKUP(F14,Punktetabellen!J14:K24,2,1))) -> 3
A15: Prellsprünge | F15: 36 | G15: Tabelle | H15: =IF(H2=9,VLOOKUP(F15,Punktetabellen!M4:Q14,5,1),IF(H2<12,VLOOKUP(F15,Punktetabellen!N4:Q14,4,1),IF(H2<14,VLOOKUP(F15,Punktetabellen!O4:Q14,3,1),VLOOKUP(F15,Punktetabellen!P4:Q14,2,1)))) -> 8
A16: Handstandstehen | F16: 30 | G16: Tabelle | H16: =IF(F16="",0,IF(H2<10,VLOOKUP(F16,Punktetabellen!D34:F40,3,1),VLOOKUP(F16,Punktetabellen!E34:F40,2,1))) -> 10
A17: Schweizer, Wiener | C17: =IF(H2<12,"",IF(AND(H2>13,H2<17),"Schweizer: ","Wiener: ")) -> Wiener: | E17: =IF(H2<12,"",IF(AND(H2>13,H2<17),"Wiener: ","Schweizer: ")) -> Schweizer: | G17: Tabelle | H17: =IF(H2<12,VLOOKUP(F17,Punktetabellen!A20:B25,2,1),((MIN(5,1*D17)*2)+MIN(MAX(0,5-(1*D17)),(1*F17)))) -> 0
A18: Bleep-Test | F18: L6 S10 | G18: Tabelle | H18: =IF(F18="",0,VLOOKUP(F18,INDIRECT(C55),2,0)) -> 2
A19: Gesamtpunktzahl Kraft/Kondition | H19: =SUM(H11:H18) -> 25
A20: Übung | D20: Max / Soll | E20: Max. Abzug | F20: Abzug / Ist | G20: Berechnung | H20: Punkte
A21: Standsprunghöhe | D21: =IF(F1="männlich",VLOOKUP(H2,Standsprünge!A3:C15,3,0),VLOOKUP(H2,Standsprünge!A3:B15,2,0)) -> 15.3 | F21: 15.405 | G21: (Ist - Soll) x 10 | H21: =IF(F21="",0,(F21-D21)*10) -> 1.05
A22: =IF(H2>16,"entfällt","TBN") -> TBN | C22: 7/4 rw c zum Rücken, 1/2 Schraube ein | D22: =IF(C22="","",VLOOKUP(C22,INDIRECT($C$62),2,0)) -> 9 | E22: =IF(C22="","",VLOOKUP(C22,INDIRECT($C$62),3,0)) -> 6 | F22: 6 | G22: =IF(H2>16,"entfällt","Wert - Abzug") -> Wert - Abzug | H22: =IF(A22="entfällt",0,IF(F22="",0,D22-F22)) -> 3
A23: =IF(H2>16,"entfällt","TBN") -> TBN | C23: 7/4 vw b zum Rücken, platt, Arme angelegt | D23: =IF(C23="","",VLOOKUP(C23,INDIRECT($C$62),2,0)) -> 9 | E23: =IF(C23="","",VLOOKUP(C23,INDIRECT($C$62),3,0)) -> 6 | F23: 4 | G23: =IF(H2>16,"entfällt","Wert - Abzug") -> Wert - Abzug | H23: =IF(A23="entfällt",0,IF(F23="",0,D23-F23)) -> 5
A24: =IF(H2>12,"entfällt","TBN") -> entfällt | D24: =IF(C24="","",VLOOKUP(C24,INDIRECT($C$62),2,0)) ->  | E24: =IF(C24="","",VLOOKUP(C24,INDIRECT($C$62),3,0)) ->  | G24: =IF(H2>16,"entfällt","Wert - Abzug") -> Wert - Abzug | H24: 0
A25: TN | B25: =IF(C25="","",VLOOKUP(C25,INDIRECT($C$65),2,0)) -> 800< | C25: Doppelsalto rw b | D25: =IF(C25="","",VLOOKUP(C25,INDIRECT($C$65),3,0)) -> 12 | E25: =IF(C25="","",VLOOKUP(C25,INDIRECT($C$65),4,0)) -> 6 | F25: 6 | G25: Wert - Abzug | H25: 6
A26: TN | B26: 811° | C26: 1/2 ein 1/2 aus c | D26: 12 | E26: 6 | F26: 6 | G26: Wert - Abzug | H26: 6
A27: TN | B27: 801° | C27: Fliffis c | D27: 11 | E27: 6 | F27: 6 | G27: Wert - Abzug | H27: 5
A28: =IF(H2>12,"TN","entfällt") -> TN | B28: 801< | C28: Fliffis b | D28: 13 | E28: 6 | F28: 4 | G28: =IF(H2>12,"Wert - Abzug","entfällt") -> Wert - Abzug | H28: 9
A29: =IF(H2>16,"TN","entfällt") -> entfällt | G29: =IF(H2>16,"Wert - Abzug","entfällt") -> entfällt | H29: 0
A30: =IF(H2>16,"TN","entfällt") -> entfällt | G30: =IF(H2>16,"Wert - Abzug","entfällt") -> entfällt | H30: =IF(A30="entfällt",0,IF(F30="",0,D30-F30)) -> 0
A31: =IF($H$2>11,"Verbindung Sprung 1","entfällt") -> Verbindung Sprung 1 | C31: =IF(A31<>"entfällt",VLOOKUP(1,INDIRECT($C$73),2,0),"") -> 40/ | D31: =IF(A31<>"entfällt",VLOOKUP(1,INDIRECT($C$73),3,0),"") -> 6 | E31: =IF(A31<>"entfällt",VLOOKUP(1,INDIRECT($C$73),4,0),"") -> 3 | F31: 1 | G31: =IF(H2>12,"Wert - Abzug","entfällt") -> Wert - Abzug | H31: =IF(A31="entfällt",0,IF(F31="",0,D31-F31)) -> 5
A32: =IF($H$2>11,"Verbindung Sprung 2","entfällt") -> Verbindung Sprung 2 | C32: =IF(A32<>"entfällt",VLOOKUP(2,INDIRECT($C$73),2,0),"") -> 41/ | D32: =IF(A32<>"entfällt",VLOOKUP(2,INDIRECT($C$73),3,0),"") -> 6 | E32: =IF(A32<>"entfällt",VLOOKUP(2,INDIRECT($C$73),4,0),"") -> 3 | F32: 3 | G32: =IF(H2>12,"Wert - Abzug","entfällt") -> Wert - Abzug | H32: =IF(A32="entfällt",0,IF(F32="",0,D32-F32)) -> 3
A33: =IF($H$2>11,"Verbindung Sprung 3","entfällt") -> Verbindung Sprung 3 | C33: =IF(A33<>"entfällt",VLOOKUP(3,INDIRECT($C$73),2,0),"") -> 42/ | D33: =IF(A33<>"entfällt",VLOOKUP(3,INDIRECT($C$73),3,0),"") -> 7 | E33: =IF(A33<>"entfällt",VLOOKUP(3,INDIRECT($C$73),4,0),"") -> 3 | F33: 3 | G33: =IF(H2>12,"Wert - Abzug","entfällt") -> Wert - Abzug | H33: 4
A34: =IF($H$2>11,"Verbindung Sprung 4","entfällt") -> Verbindung Sprung 4 | C34: =IF(A34<>"entfällt",VLOOKUP(4,INDIRECT($C$73),2,0),"") -> 40° | D34: =IF(A34<>"entfällt",VLOOKUP(4,INDIRECT($C$73),3,0),"") -> 5 | E34: =IF(A34<>"entfällt",VLOOKUP(4,INDIRECT($C$73),4,0),"") -> 3 | F34: 2 | G34: =IF(H2>12,"Wert - Abzug","entfällt") -> Wert - Abzug | H34: 3
A35: =IF($H$2>11,"Verbindung Sprung 5","entfällt") -> Verbindung Sprung 5 | C35: =IF(A35<>"entfällt",VLOOKUP(5,INDIRECT($C$73),2,0),"") -> 41° | D35: =IF(A35<>"entfällt",VLOOKUP(5,INDIRECT($C$73),3,0),"") -> 6 | E35: =IF(A35<>"entfällt",VLOOKUP(5,INDIRECT($C$73),4,0),"") -> 3 | F35: 3 | G35: =IF(H2>12,"Wert - Abzug","entfällt") -> Wert - Abzug | H35: 3
A36: =IF($H$2>11,"Verbindung Sprung 6","entfällt") -> Verbindung Sprung 6 | C36: =IF(A36<>"entfällt",VLOOKUP(6,INDIRECT($C$73),2,0),"") -> 800° | D36: =IF(A36<>"entfällt",VLOOKUP(6,INDIRECT($C$73),3,0),"") -> 10 | E36: =IF(A36<>"entfällt",VLOOKUP(6,INDIRECT($C$73),4,0),"") -> 3 | F36: 3 | G36: =IF(H2>12,"Wert - Abzug","entfällt") -> Wert - Abzug | H36: =IF(A36="entfällt",0,IF(F36="",0,D36-F36)) -> 7
A37: Gesamtpunktzahl Trampolin | H37: =SUM(H21:H36) -> 60.05
A38: Element | E38: Wert | F38: Abzug | G38: Berechnung | H38: Punkte
A39: =VLOOKUP(1,INDIRECT($C$70),2,0) -> Salto vorwärts mit Anlauf | E39: =VLOOKUP(1,INDIRECT($C$70),3,0) -> 3 | F39: 0.5 | G39: Wert - Abzug | H39: =IF(E39=" ","",IF(F39="",0,E39-F39)) -> 2.5
A40: =VLOOKUP(2,INDIRECT($C$70),2,0) -> Handstand, 1/1 Drehung, Abrollen | E40: =VLOOKUP(2,INDIRECT($C$70),3,0) -> 3 | F40: 0 | G40: Wert - Abzug | H40: =IF(E40=" ","",IF(F40="",0,E40-F40)) -> 3
A41: =VLOOKUP(3,INDIRECT($C$70),2,0) -> Strecksprung 1/2 Drehung | E41: =VLOOKUP(3,INDIRECT($C$70),3,0) -> 1.5 | F41: 0 | G41: Wert - Abzug | H41: 1.5
A42: =VLOOKUP(4,INDIRECT($C$70),2,0) -> Vorspreizen, Handstandhüpfer, Abrollen Grätschsitz | E42: =VLOOKUP(4,INDIRECT($C$70),3,0) -> 1.5 | F42: 0 | G42: Wert - Abzug | H42: 1.5
A43: =VLOOKUP(5,INDIRECT($C$70),2,0) -> Briefmarke, Rückgrätschen --> Bauchlage | E43: =VLOOKUP(5,INDIRECT($C$70),3,0) -> 3 | F43: 1.5 | G43: Wert - Abzug | H43: 1.5
A44: =VLOOKUP(6,INDIRECT($C$70),2,0) -> Kniestand, Abdrücken gebückt --> Handstand, abrollen | E44: =VLOOKUP(6,INDIRECT($C$70),3,0) -> 3 | F44: 0 | G44: Wert - Abzug | H44: 3
A45: =VLOOKUP(7,INDIRECT($C$70),2,0) -> Vorspreizen, Standwaage --> abrollen, einbeinig rechts auf | E45: =VLOOKUP(7,INDIRECT($C$70),3,0) -> 3.5 | F45: 2 | G45: Wert - Abzug | H45: 1.5
A46: =VLOOKUP(8,INDIRECT($C$70),2,0) -> Vorspreizen, Standwaage --> abrollen, einbeinig links auf | E46: =VLOOKUP(8,INDIRECT($C$70),3,0) -> 3.5 | F46: 2.5 | G46: Wert - Abzug | H46: 1
A47: =VLOOKUP(9,INDIRECT($C$70),2,0) -> Rolle rückwärts durch Handstand | E47: =VLOOKUP(9,INDIRECT($C$70),3,0) -> 3 | F47: 1.5 | G47: =IF(H2>16,"","Wert - Abzug") -> Wert - Abzug | H47: 1.5
A48: =VLOOKUP(10,INDIRECT($C$70),2,0) -> Strecksprung 1/2 Drehung | E48: =VLOOKUP(10,INDIRECT($C$70),3,0) -> 1 | F48: 0 | G48: =IF(H2>16,"","Wert - Abzug") -> Wert - Abzug | H48: 1
A49: =VLOOKUP(11,INDIRECT($C$70),2,0) -> Sprungrolle mit Anlauf | E49: =VLOOKUP(11,INDIRECT($C$70),3,0) -> 2 | F49: 0 | G49: =IF(H2>13,"","Wert - Abzug") -> Wert - Abzug | H49: 2
A50: =VLOOKUP(12,INDIRECT($C$70),2,0) -> Strecksprung 1/1 Drehung | E50: =VLOOKUP(12,INDIRECT($C$70),3,0) -> 2 | F50: 1 | G50: =IF(OR(H2=9,H2=12,H2=13),"Wert - Abzug","") -> Wert - Abzug | H50: 1
A51: Gesamtpunktzahl Bodenkomplexübung | H51: =SUM(H39:H50) -> 21
A52: Gesamtpunktzahl | H52: =SUM(H9,H19,H37,H51) -> 150.05
B55: Shuttles | C55: ="Shuttles_"&F1&IF(H2=9,"_9",IF(H2<12,"_10_11",IF(H2<14,"_12_13",IF(H2<17,"_14_16","_17")))) -> Shuttles_männlich_12_13
C56: ="Shuttles_"&F1&IF(H2=9,"_9",IF(H2<12,"_10_11",IF(H2<14,"_12_13",IF(H2<17,"_14_16","_17"))))&"[Shuttle]" -> Shuttles_männlich_12_13[Shuttle]
C57: ="Shuttles_"&F1&IF(H2=9,"_9",IF(H2<12,"_10_11",IF(H2<14,"_12_13",IF(H2<17,"_14_16","_17"))))&"[Punkte]" -> Shuttles_männlich_12_13[Punkte]
B59: G_TBN TN BKÜ | C59: =IF(H2<13,"beide",F1) -> männlich
B60: AK | C60: =IF(OR(H2=9,H2=12),H2,IF(H2<12,"10_11",IF(H2<15,"13_14",IF(H2<17,"15_16",IF(H2<19,"17_18",19))))) -> 13_14
B62: TBN | C62: ="TBN_"&C59&"_"&C60 -> TBN_männlich_13_14
C63: =C62&"[Beschreibung]" -> TBN_männlich_13_14[Beschreibung]
B65: TN | C65: ="TN_"&C59&"_"&C60 -> TN_männlich_13_14
C66: =C65&"[Beschreibung]" -> TN_männlich_13_14[Beschreibung]
B68: TV | C68: ="TV_"&F1&"_"&C60 -> TV_männlich_13_14
B70: BKÜ | C70: ="BKÜ"&IF(H2=9,"_9",IF(H2<12,"_10_11",IF(H2<14,"_12_13",IF(H2<17,"_14_16","_17")))) -> BKÜ_12_13
B72: G_TV | C72: =IF(H2<17,"beide",F1) -> beide
B73: TV | C73: ="TV_"&C72&"_"&C60 -> TV_beide_13_14
B75: =SUM(H19,H9,H51) -> 90 | C75: Vergleichspunktzahl aus Kraft, Beweglichkeit, Grundlagenausdauer, Bodenübung
B76: =IF(B75>95,"Ja","Nein") -> Nein | C76: Vergleichspunktzahl erfüllt?
B77: =IF(F1="Weiblich",VLOOKUP(H2,Punktetabellen!$D$43:$F$49,3,1),VLOOKUP(H2,Punktetabellen!$D$43:$F$49,2,1)) -> 144 | C77: Mindest-Gesamtwert
B78: =IF(H52>=B77,"Ja","Nein") -> Ja | C78: Gesamtwert erfüllt?
B79: =IF(AND(B76="Ja",B78="Ja"),"Ja","Nein") -> Nein | C79: Alles erfüllt?

Sheet MorgensternLuna
A1: Name | B1: Morgenstern, Luna | F1: weiblich | G1: Jahrgang | H1: 2008
A2: Verein | B2: TV Blecher | G2: AK | H2: =2020-H1 -> 12
A3: Übung | F3: Wert | G3: Berechnung | H3: Punkte
A4: Fußdehnung | F4: 10 | G4: Bild | H4: =F4 -> 10
A5: Briefmarke mit Armrumpfwinkel | F5: 6 | G5: Bild | H5: =F5 -> 6
A6: Bückbeweglichkeit | F6: 14 | G6: Tabelle | H6: =IF(F6="",0,VLOOKUP(F6,Punktetabellen!A10:B15,2,1)) -> 4
A7: Querspagat links | F7: 0 | G7: Tabelle | H7: =IF(F7="",0,VLOOKUP(F7,Punktetabellen!A3:B6,2,0)) -> 10
A8: Querspagat rechts | F8: 0 | G8: Tabelle | H8: =IF(F8="",0,VLOOKUP(F8,Punktetabellen!A3:B6,2,0)) -> 10
A9: Gesamtpunktzahl Beweglichkeit | H9: =SUM(H4:H8) -> 40
A10: Übung | F10: Wert | G10: Berechnung | H10: Punktzahl
A11: Klimmzug | F11: 15 | G11: Tabelle | H11: =IF(F11="",0,IF(H2<12,VLOOKUP(F11,Punktetabellen!D4:F14,3,1),VLOOKUP(F11,Punktetabellen!E4:F14,2,1))) -> 10
A12: Beinheben | F12: 15 | G12: Tabelle | H12: =IF(H2=9,VLOOKUP(F12,Punktetabellen!D19:F29,3,1),VLOOKUP(F12,Punktetabellen!E19:F29,2,1)) -> 10
A13: Flieger | F13: 30 | G13: Tabelle | H13: =IF(H2=9,VLOOKUP(F13,Punktetabellen!H4:K9,4,1),IF(H2<12,VLOOKUP(F13,Punktetabellen!I4:K9,3,1),VLOOKUP(F13,Punktetabellen!J4:K9,2,1))) -> 0
A14: Rollenverbindung | F14: 29 | G14: Tabelle | H14: =IF(H2=9,VLOOKUP(F14,Punktetabellen!H14:K24,4,1),IF(H2<12,VLOOKUP(F14,Punktetabellen!I14:K24,3,1),VLOOKUP(F14,Punktetabellen!J14:K24,2,1))) -> 10
A15: Prellsprünge | F15: 33 | G15: Tabelle | H15: =IF(H2=9,VLOOKUP(F15,Punktetabellen!M4:Q14,5,1),IF(H2<12,VLOOKUP(F15,Punktetabellen!N4:Q14,4,1),IF(H2<14,VLOOKUP(F15,Punktetabellen!O4:Q14,3,1),VLOOKUP(F15,Punktetabellen!P4:Q14,2,1)))) -> 6
A16: Handstandstehen | F16: 30 | G16: Tabelle | H16: =IF(F16="",0,IF(H2<10,VLOOKUP(F16,Punktetabellen!D34:F40,3,1),VLOOKUP(F16,Punktetabellen!E34:F40,2,1))) -> 10
A17: Schweizer, Wiener | C17: =IF(H2<12,"",IF(AND(H2>13,H2<17),"Schweizer: ","Wiener: ")) -> Wiener: | D17: 0 | E17: =IF(H2<12,"",IF(AND(H2>13,H2<17),"Wiener: ","Schweizer: ")) -> Schweizer: | F17: 5 | G17: Tabelle | H17: =IF(H2<12,VLOOKUP(F17,Punktetabellen!A20:B25,2,1),((MIN(5,1*D17)*2)+MIN(MAX(0,5-(1*D17)),(1*F17)))) -> 5
A18: Bleep-Test | F18: L8 S11 | G18: Tabelle | H18: =IF(F18="",0,VLOOKUP(F18,INDIRECT(C55),2,0)) -> 9
A19: Gesamtpunktzahl Kraft/Kondition | H19: =SUM(H11:H18) -> 60
A20: Übung | D20: Max / Soll | E20: Max. Abzug | F20: Abzug / Ist | G20: Berechnung | H20: Punkte
A21: Standsprunghöhe | D21: =IF(F1="männlich",VLOOKUP(H2,Standsprünge!A3:C15,3,0),VLOOKUP(H2,Standsprünge!A3:B15,2,0)) -> 14.5 | F21: 14.105 | G21: (Ist - Soll) x 10 | H21: =IF(F21="",0,(F21-D21)*10) -> -3.95
A22: =IF(H2>16,"entfällt","TBN") -> TBN | C22: 5/4 rw b Rücken (1x) | D22: =IF(C22="","",VLOOKUP(C22,INDIRECT($C$62),2,0)) -> 7 | E22: =IF(C22="","",VLOOKUP(C22,INDIRECT($C$62),3,0)) -> 6 | F22: 2 | G22: =IF(H2>16,"entfällt","Wert - Abzug") -> Wert - Abzug | H22: =IF(A22="entfällt",0,IF(F22="",0,D22-F22)) -> 5
A23: =IF(H2>16,"entfällt","TBN") -> TBN | C23: Rücken, 2/1 Schraube Rücken (1x) | D23: =IF(C23="","",VLOOKUP(C23,INDIRECT($C$62),2,0)) -> 4 | E23: =IF(C23="","",VLOOKUP(C23,INDIRECT($C$62),3,0)) -> 2 | F23: 2 | G23: =IF(H2>16,"entfällt","Wert - Abzug") -> Wert - Abzug | H23: =IF(A23="entfällt",0,IF(F23="",0,D23-F23)) -> 2
A24: =IF(H2>12,"entfällt","TBN") -> TBN | C24: Rücken, Salto vw c Rücken (5x) | D24: =IF(C24="","",VLOOKUP(C24,INDIRECT($C$62),2,0)) -> 5 | E24: =IF(C24="","",VLOOKUP(C24,INDIRECT($C$62),3,0)) -> 4 | F24: 4 | G24: =IF(H2>16,"entfällt","Wert - Abzug") -> Wert - Abzug | H24: 1
A25: TN | B25: =IF(C25="","",VLOOKUP(C25,INDIRECT($C$65),2,0)) -> 800° | C25: Doppelsalto rw c | D25: =IF(C25="","",VLOOKUP(C25,INDIRECT($C$65),3,0)) -> 10 | E25: =IF(C25="","",VLOOKUP(C25,INDIRECT($C$65),4,0)) -> 6 | F25: 4 | G25: Wert - Abzug | H25: 6
A26: TN | B26: 700°R | C26: 7/4 vw c zum Rücken | D26: 8 | E26: 6 | F26: 4 | G26: Wert - Abzug | H26: 4
A27: TN | B27: 42/ | C27: Schraubensalto | D27: 7 | E27: 6 | F27: 6 | G27: Wert - Abzug | H27: 1
A28: =IF(H2>12,"TN","entfällt") -> entfällt | G28: =IF(H2>12,"Wert - Abzug","entfällt") -> entfällt | H28: 0
A29: =IF(H2>16,"TN","entfällt") -> entfällt | G29: =IF(H2>16,"Wert - Abzug","entfällt") -> entfällt | H29: 0
A30: =IF(H2>16,"TN","entfällt") -> entfällt | G30: =IF(H2>16,"Wert - Abzug","entfällt") -> entfällt | H30: =IF(A30="entfällt",0,IF(F30="",0,D30-F30)) -> 0
A31: =IF($H$2>11,"Verbindung Sprung 1","entfällt") -> Verbindung Sprung 1 | C31: =IF(A31<>"entfällt",VLOOKUP(1,INDIRECT($C$73),2,0),"") -> 40° | D31: =IF(A31<>"entfällt",VLOOKUP(1,INDIRECT($C$73),3,0),"") -> 5 | E31: =IF(A31<>"entfällt",VLOOKUP(1,INDIRECT($C$73),4,0),"") -> 3 | F31: 1 | G31: =IF(H2>12,"Wert - Abzug","entfällt") -> entfällt | H31: =IF(A31="entfällt",0,IF(F31="",0,D31-F31)) -> 4
A32: =IF($H$2>11,"Verbindung Sprung 2","entfällt") -> Verbindung Sprung 2 | C32: =IF(A32<>"entfällt",VLOOKUP(2,INDIRECT($C$73),2,0),"") -> 41° | D32: =IF(A32<>"entfällt",VLOOKUP(2,INDIRECT($C$73),3,0),"") -> 6 | E32: =IF(A32<>"entfällt",VLOOKUP(2,INDIRECT($C$73),4,0),"") -> 3 | F32: 2 | G32: =IF(H2>12,"Wert - Abzug","entfällt") -> entfällt | H32: =IF(A32="entfällt",0,IF(F32="",0,D32-F32)) -> 4
A33: =IF($H$2>11,"Verbindung Sprung 3","entfällt") -> Verbindung Sprung 3 | C33: =IF(A33<>"entfällt",VLOOKUP(3,INDIRECT($C$73),2,0),"") -> 40< | D33: =IF(A33<>"entfällt",VLOOKUP(3,INDIRECT($C$73),3,0),"") -> 6 | E33: =IF(A33<>"entfällt",VLOOKUP(3,INDIRECT($C$73),4,0),"") -> 3 | F33: 2 | G33: =IF(H2>12,"Wert - Abzug","entfällt") -> entfällt | H33: 4
A34: =IF($H$2>11,"Verbindung Sprung 4","entfällt") -> Verbindung Sprung 4 | C34: =IF(A34<>"entfällt",VLOOKUP(4,INDIRECT($C$73),2,0),"") -> 41< | D34: =IF(A34<>"entfällt",VLOOKUP(4,INDIRECT($C$73),3,0),"") -> 6 | E34: =IF(A34<>"entfällt",VLOOKUP(4,INDIRECT($C$73),4,0),"") -> 3 | F34: 2 | G34: =IF(H2>12,"Wert - Abzug","entfällt") -> entfällt | H34: 4
A35: =IF($H$2>11,"Verbindung Sprung 5","entfällt") -> Verbindung Sprung 5 | C35: =IF(A35<>"entfällt",VLOOKUP(5,INDIRECT($C$73),2,0),"") -> 40/ | D35: =IF(A35<>"entfällt",VLOOKUP(5,INDIRECT($C$73),3,0),"") -> 6 | E35: =IF(A35<>"entfällt",VLOOKUP(5,INDIRECT($C$73),4,0),"") -> 3 | F35: 2 | G35: =IF(H2>12,"Wert - Abzug","entfällt") -> entfällt | H35: 4
A36: =IF($H$2>11,"Verbindung Sprung 6","entfällt") -> Verbindung Sprung 6 | C36: =IF(A36<>"entfällt",VLOOKUP(6,INDIRECT($C$73),2,0),"") -> 02/ | D36: =IF(A36<>"entfällt",VLOOKUP(6,INDIRECT($C$73),3,0),"") -> 2 | E36: =IF(A36<>"entfällt",VLOOKUP(6,INDIRECT($C$73),4,0),"") -> 3 | F36: 3 | G36: =IF(H2>12,"Wert - Abzug","entfällt") -> entfällt | H36: =IF(A36="entfällt",0,IF(F36="",0,D36-F36)) -> -1
A37: Gesamtpunktzahl Trampolin | H37: =SUM(H21:H36) -> 34.05
A38: Element | E38: Wert | F38: Abzug | G38: Berechnung | H38: Punkte
A39: =VLOOKUP(1,INDIRECT($C$70),2,0) -> Salto vorwärts mit Anlauf | E39: =VLOOKUP(1,INDIRECT($C$70),3,0) -> 3 | F39: 0 | G39: Wert - Abzug | H39: =IF(E39=" ","",IF(F39="",0,E39-F39)) -> 3
A40: =VLOOKUP(2,INDIRECT($C$70),2,0) -> Handstand, 1/1 Drehung, Abrollen | E40: =VLOOKUP(2,INDIRECT($C$70),3,0) -> 3 | F40: 0 | G40: Wert - Abzug | H40: =IF(E40=" ","",IF(F40="",0,E40-F40)) -> 3
A41: =VLOOKUP(3,INDIRECT($C$70),2,0) -> Strecksprung 1/2 Drehung | E41: =VLOOKUP(3,INDIRECT($C$70),3,0) -> 1.5 | F41: 0 | G41: Wert - Abzug | H41: 1.5
A42: =VLOOKUP(4,INDIRECT($C$70),2,0) -> Vorspreizen, Handstandhüpfer, Abrollen Grätschsitz | E42: =VLOOKUP(4,INDIRECT($C$70),3,0) -> 1.5 | F42: 0 | G42: Wert - Abzug | H42: 1.5
A43: =VLOOKUP(5,INDIRECT($C$70),2,0) -> Briefmarke, Rückgrätschen --> Bauchlage | E43: =VLOOKUP(5,INDIRECT($C$70),3,0) -> 3 | F43: 0.5 | G43: Wert - Abzug | H43: 2.5
A44: =VLOOKUP(6,INDIRECT($C$70),2,0) -> Kniestand, Abdrücken gebückt --> Handstand, abrollen | E44: =VLOOKUP(6,INDIRECT($C$70),3,0) -> 3 | F44: 1.5 | G44: Wert - Abzug | H44: 1.5
A45: =VLOOKUP(7,INDIRECT($C$70),2,0) -> Vorspreizen, Standwaage --> abrollen, einbeinig rechts auf | E45: =VLOOKUP(7,INDIRECT($C$70),3,0) -> 3.5 | F45: 1.5 | G45: Wert - Abzug | H45: 2
A46: =VLOOKUP(8,INDIRECT($C$70),2,0) -> Vorspreizen, Standwaage --> abrollen, einbeinig links auf | E46: =VLOOKUP(8,INDIRECT($C$70),3,0) -> 3.5 | F46: 2 | G46: Wert - Abzug | H46: 1.5
A47: =VLOOKUP(9,INDIRECT($C$70),2,0) -> Rolle rückwärts durch Handstand | E47: =VLOOKUP(9,INDIRECT($C$70),3,0) -> 3 | F47: 2 | G47: =IF(H2>16,"","Wert - Abzug") -> Wert - Abzug | H47: 1
A48: =VLOOKUP(10,INDIRECT($C$70),2,0) -> Strecksprung 1/2 Drehung | E48: =VLOOKUP(10,INDIRECT($C$70),3,0) -> 1 | F48: 0 | G48: =IF(H2>16,"","Wert - Abzug") -> Wert - Abzug | H48: 1
A49: =VLOOKUP(11,INDIRECT($C$70),2,0) -> Sprungrolle mit Anlauf | E49: =VLOOKUP(11,INDIRECT($C$70),3,0) -> 2 | F49: 0 | G49: =IF(H2>13,"","Wert - Abzug") -> Wert - Abzug | H49: 2
A50: =VLOOKUP(12,INDIRECT($C$70),2,0) -> Strecksprung 1/1 Drehung | E50: =VLOOKUP(12,INDIRECT($C$70),3,0) -> 2 | F50: 1 | G50: =IF(OR(H2=9,H2=12,H2=13),"Wert - Abzug","") -> Wert - Abzug | H50: 1
A51: Gesamtpunktzahl Bodenkomplexübung | H51: =SUM(H39:H50) -> 21.5
A52: Gesamtpunktzahl | H52: =SUM(H9,H19,H37,H51) -> 155.55
B55: Shuttles | C55: ="Shuttles_"&F1&IF(H2=9,"_9",IF(H2<12,"_10_11",IF(H2<14,"_12_13",IF(H2<17,"_14_16","_17")))) -> Shuttles_weiblich_12_13
C56: ="Shuttles_"&F1&IF(H2=9,"_9",IF(H2<12,"_10_11",IF(H2<14,"_12_13",IF(H2<17,"_14_16","_17"))))&"[Shuttle]" -> Shuttles_weiblich_12_13[Shuttle]
C57: ="Shuttles_"&F1&IF(H2=9,"_9",IF(H2<12,"_10_11",IF(H2<14,"_12_13",IF(H2<17,"_14_16","_17"))))&"[Punkte]" -> Shuttles_weiblich_12_13[Punkte]
B59: G_TBN TN BKÜ | C59: =IF(H2<13,"beide",F1) -> beide
B60: AK | C60: =IF(OR(H2=9,H2=12),H2,IF(H2<12,"10_11",IF(H2<15,"13_14",IF(H2<17,"15_16",IF(H2<19,"17_18",19))))) -> 12
B62: TBN | C62: ="TBN_"&C59&"_"&C60 -> TBN_beide_12
C63: =C62&"[Beschreibung]" -> TBN_beide_12[Beschreibung]
B65: TN | C65: ="TN_"&C59&"_"&C60 -> TN_beide_12
C66: =C65&"[Beschreibung]" -> TN_beide_12[Beschreibung]
B68: TV | C68: ="TV_"&F1&"_"&C60 -> TV_weiblich_12
B70: BKÜ | C70: ="BKÜ"&IF(H2=9,"_9",IF(H2<12,"_10_11",IF(H2<14,"_12_13",IF(H2<17,"_14_16","_17")))) -> BKÜ_12_13
B72: G_TV | C72: =IF(H2<17,"beide",F1) -> beide
B73: TV | C73: ="TV_"&C72&"_"&C60 -> TV_beide_12
B75: =SUM(H19,H9,H51) -> 121.5 | C75: Vergleichspunktzahl aus Kraft, Beweglichkeit, Grundlagenausdauer, Bodenübung
B76: =IF(B75>95,"Ja","Nein") -> Ja | C76: Vergleichspunktzahl erfüllt?
B77: =IF(F1="Weiblich",VLOOKUP(H2,Punktetabellen!$D$43:$F$49,3,1),VLOOKUP(H2,Punktetabellen!$D$43:$F$49,2,1)) -> 129 | C77: Mindest-Gesamtwert
B78: =IF(H52>=B77,"Ja","Nein") -> Ja | C78: Gesamtwert erfüllt?
B79: =IF(AND(B76="Ja",B78="Ja"),"Ja","Nein") -> Ja | C79: Alles erfüllt?

Sheet SchneiderFiona
A1: Name | B1: Schneider, Fiona | F1: weiblich | G1: Jahrgang | H1: 2004
A2: Verein | B2: TV Blecher | G2: AK | H2: =2020-H1 -> 16
A3: Übung | F3: Wert | G3: Berechnung | H3: Punkte
A4: Fußdehnung | F4: 10 | G4: Bild | H4: =F4 -> 10
A5: Briefmarke mit Armrumpfwinkel | F5: 6 | G5: Bild | H5: =F5 -> 6
A6: Bückbeweglichkeit | F6: 22 | G6: Tabelle | H6: =IF(F6="",0,VLOOKUP(F6,Punktetabellen!A10:B15,2,1)) -> 10
A7: Querspagat links | F7: 0 | G7: Tabelle | H7: =IF(F7="",0,VLOOKUP(F7,Punktetabellen!A3:B6,2,0)) -> 10
A8: Querspagat rechts | F8: 0 | G8: Tabelle | H8: =IF(F8="",0,VLOOKUP(F8,Punktetabellen!A3:B6,2,0)) -> 10
A9: Gesamtpunktzahl Beweglichkeit | H9: =SUM(H4:H8) -> 46
A10: Übung | F10: Wert | G10: Berechnung | H10: Punktzahl
A11: Klimmzug | F11: 6 | G11: Tabelle | H11: =IF(F11="",0,IF(H2<12,VLOOKUP(F11,Punktetabellen!D4:F14,3,1),VLOOKUP(F11,Punktetabellen!E4:F14,2,1))) -> 1
A12: Beinheben | F12: 6 | G12: Tabelle | H12: =IF(H2=9,VLOOKUP(F12,Punktetabellen!D19:F29,3,1),VLOOKUP(F12,Punktetabellen!E19:F29,2,1)) -> 2
A13: Flieger | F13: 65 | G13: Tabelle | H13: =IF(H2=9,VLOOKUP(F13,Punktetabellen!H4:K9,4,1),IF(H2<12,VLOOKUP(F13,Punktetabellen!I4:K9,3,1),VLOOKUP(F13,Punktetabellen!J4:K9,2,1))) -> 0
A14: Rollenverbindung | F14: 29 | G14: Tabelle | H14: =IF(H2=9,VLOOKUP(F14,Punktetabellen!H14:K24,4,1),IF(H2<12,VLOOKUP(F14,Punktetabellen!I14:K24,3,1),VLOOKUP(F14,Punktetabellen!J14:K24,2,1))) -> 10
A15: Prellsprünge | F15: 6 | G15: Tabelle | H15: =IF(H2=9,VLOOKUP(F15,Punktetabellen!M4:Q14,5,1),IF(H2<12,VLOOKUP(F15,Punktetabellen!N4:Q14,4,1),IF(H2<14,VLOOKUP(F15,Punktetabellen!O4:Q14,3,1),VLOOKUP(F15,Punktetabellen!P4:Q14,2,1)))) -> 6
A16: Handstandstehen | F16: 30 | G16: Tabelle | H16: =IF(F16="",0,IF(H2<10,VLOOKUP(F16,Punktetabellen!D34:F40,3,1),VLOOKUP(F16,Punktetabellen!E34:F40,2,1))) -> 10
A17: Schweizer, Wiener | C17: =IF(H2<12,"",IF(AND(H2>13,H2<17),"Schweizer: ","Wiener: ")) -> Schweizer: | D17: 0 | E17: =IF(H2<12,"",IF(AND(H2>13,H2<17),"Wiener: ","Schweizer: ")) -> Wiener: | F17: 0 | G17: Tabelle | H17: =IF(H2<12,VLOOKUP(F17,Punktetabellen!A20:B25,2,1),((MIN(5,1*D17)*2)+MIN(MAX(0,5-(1*D17)),(1*F17)))) -> 0
A18: Bleep-Test | F18: L8 S5 | G18: Tabelle | H18: =IF(F18="",0,VLOOKUP(F18,INDIRECT(C55),2,0)) -> 7
A19: Gesamtpunktzahl Kraft/Kondition | H19: =SUM(H11:H18) -> 36
A20: Übung | D20: Max / Soll | E20: Max. Abzug | F20: Abzug / Ist | G20: Berechnung | H20: Punkte
A21: Standsprunghöhe | D21: =IF(F1="männlich",VLOOKUP(H2,Standsprünge!A3:C15,3,0),VLOOKUP(H2,Standsprünge!A3:B15,2,0)) -> 16.3 | F21: 16.11 | G21: (Ist - Soll) x 10 | H21: =IF(F21="",0,(F21-D21)*10) -> -1.9
A22: =IF(H2>16,"entfällt","TBN") -> TBN | C22: 7/4 Salto vw c zum Rücken, 1/1 aus | D22: =IF(C22="","",VLOOKUP(C22,INDIRECT($C$62),2,0)) -> 10 | E22: =IF(C22="","",VLOOKUP(C22,INDIRECT($C$62),3,0)) -> 6 | F22: 4 | G22: =IF(H2>16,"entfällt","Wert - Abzug") -> Wert - Abzug | H22: =IF(A22="entfällt",0,IF(F22="",0,D22-F22)) -> 6
A23: =IF(H2>16,"entfällt","TBN") -> TBN | C23: 7/4 Salto vw b zum Rücken, 1/1 aus | D23: =IF(C23="","",VLOOKUP(C23,INDIRECT($C$62),2,0)) -> 10 | E23: =IF(C23="","",VLOOKUP(C23,INDIRECT($C$62),3,0)) -> 6 | F23: 2 | G23: =IF(H2>16,"entfällt","Wert - Abzug") -> Wert - Abzug | H23: =IF(A23="entfällt",0,IF(F23="",0,D23-F23)) -> 8
A24: =IF(H2>12,"entfällt","TBN") -> entfällt | D24: =IF(C24="","",VLOOKUP(C24,INDIRECT($C$62),2,0)) ->  | E24: =IF(C24="","",VLOOKUP(C24,INDIRECT($C$62),3,0)) ->  | G24: =IF(H2>16,"entfällt","Wert - Abzug") -> Wert - Abzug | H24: 0
A25: TN | B25: =IF(C25="","",VLOOKUP(C25,INDIRECT($C$65),2,0)) -> 803° | C25: Fliffisrudi c | D25: =IF(C25="","",VLOOKUP(C25,INDIRECT($C$65),3,0)) -> 13 | E25: =IF(C25="","",VLOOKUP(C25,INDIRECT($C$65),4,0)) -> 6 | F25: 6 | G25: Wert - Abzug | H25: 7
A26: TN | G26: Wert - Abzug | H26: 0
A27: TN | G27: Wert - Abzug | H27: 0
A28: =IF(H2>12,"TN","entfällt") -> TN | G28: =IF(H2>12,"Wert - Abzug","entfällt") -> Wert - Abzug | H28: 0
A29: =IF(H2>16,"TN","entfällt") -> entfällt | G29: =IF(H2>16,"Wert - Abzug","entfällt") -> entfällt | H29: 0
A30: =IF(H2>16,"TN","entfällt") -> entfällt | G30: =IF(H2>16,"Wert - Abzug","entfällt") -> entfällt | H30: =IF(A30="entfällt",0,IF(F30="",0,D30-F30)) -> 0
A31: =IF($H$2>11,"Verbindung Sprung 1","entfällt") -> Verbindung Sprung 1 | C31: =IF(A31<>"entfällt",VLOOKUP(1,INDIRECT($C$73),2,0),"") -> 801< | D31: =IF(A31<>"entfällt",VLOOKUP(1,INDIRECT($C$73),3,0),"") -> 13 | E31: =IF(A31<>"entfällt",VLOOKUP(1,INDIRECT($C$73),4,0),"") -> 3 | F31: 2 | G31: =IF(H2>12,"Wert - Abzug","entfällt") -> Wert - Abzug | H31: =IF(A31="entfällt",0,IF(F31="",0,D31-F31)) -> 11
A32: =IF($H$2>11,"Verbindung Sprung 2","entfällt") -> Verbindung Sprung 2 | C32: =IF(A32<>"entfällt",VLOOKUP(2,INDIRECT($C$73),2,0),"") -> 40< | D32: =IF(A32<>"entfällt",VLOOKUP(2,INDIRECT($C$73),3,0),"") -> 6 | E32: =IF(A32<>"entfällt",VLOOKUP(2,INDIRECT($C$73),4,0),"") -> 3 | F32: 1 | G32: =IF(H2>12,"Wert - Abzug","entfällt") -> Wert - Abzug | H32: =IF(A32="entfällt",0,IF(F32="",0,D32-F32)) -> 5
A33: =IF($H$2>11,"Verbindung Sprung 3","entfällt") -> Verbindung Sprung 3 | C33: =IF(A33<>"entfällt",VLOOKUP(3,INDIRECT($C$73),2,0),"") -> 801° | D33: =IF(A33<>"entfällt",VLOOKUP(3,INDIRECT($C$73),3,0),"") -> 11 | E33: =IF(A33<>"entfällt",VLOOKUP(3,INDIRECT($C$73),4,0),"") -> 3 | F33: 2 | G33: =IF(H2>12,"Wert - Abzug","entfällt") -> Wert - Abzug | H33: 9
A34: =IF($H$2>11,"Verbindung Sprung 4","entfällt") -> Verbindung Sprung 4 | C34: =IF(A34<>"entfällt",VLOOKUP(4,INDIRECT($C$73),2,0),"") -> 40/ | D34: =IF(A34<>"entfällt",VLOOKUP(4,INDIRECT($C$73),3,0),"") -> 6 | E34: =IF(A34<>"entfällt",VLOOKUP(4,INDIRECT($C$73),4,0),"") -> 3 | F34: 2 | G34: =IF(H2>12,"Wert - Abzug","entfällt") -> Wert - Abzug | H34: 4
A35: =IF($H$2>11,"Verbindung Sprung 5","entfällt") -> Verbindung Sprung 5 | C35: =IF(A35<>"entfällt",VLOOKUP(5,INDIRECT($C$73),2,0),"") -> 41/ | D35: =IF(A35<>"entfällt",VLOOKUP(5,INDIRECT($C$73),3,0),"") -> 6 | E35: =IF(A35<>"entfällt",VLOOKUP(5,INDIRECT($C$73),4,0),"") -> 3 | F35: 2 | G35: =IF(H2>12,"Wert - Abzug","entfällt") -> Wert - Abzug | H35: 4
A36: =IF($H$2>11,"Verbindung Sprung 6","entfällt") -> Verbindung Sprung 6 | C36: =IF(A36<>"entfällt",VLOOKUP(6,INDIRECT($C$73),2,0),"") -> 800° | D36: =IF(A36<>"entfällt",VLOOKUP(6,INDIRECT($C$73),3,0),"") -> 10 | E36: =IF(A36<>"entfällt",VLOOKUP(6,INDIRECT($C$73),4,0),"") -> 3 | F36: 2 | G36: =IF(H2>12,"Wert - Abzug","entfällt") -> Wert - Abzug | H36: =IF(A36="entfällt",0,IF(F36="",0,D36-F36)) -> 8
A37: Gesamtpunktzahl Trampolin | H37: =SUM(H21:H36) -> 60.1
A38: Element | E38: Wert | F38: Abzug | G38: Berechnung | H38: Punkte
A39: =VLOOKUP(1,INDIRECT($C$70),2,0) -> Flugrolle mit Überstrecken mit Anlauf | E39: =VLOOKUP(1,INDIRECT($C$70),3,0) -> 3 | F39: 0 | G39: Wert - Abzug | H39: =IF(E39=" ","",IF(F39="",0,E39-F39)) -> 3
A40: =VLOOKUP(2,INDIRECT($C$70),2,0) -> --> Strecksprung, Salto vorwärts gehockt | E40: =VLOOKUP(2,INDIRECT($C$70),3,0) -> 4.5 | F40: 1 | G40: Wert - Abzug | H40: =IF(E40=" ","",IF(F40="",0,E40-F40)) -> 3.5
A41: =VLOOKUP(3,INDIRECT($C$70),2,0) -> Vorspreizen, Handstand mit 1/1 Drehung, abrollen | E41: =VLOOKUP(3,INDIRECT($C$70),3,0) -> 3 | F41: 0.5 | G41: Wert - Abzug | H41: 2.5
A42: =VLOOKUP(4,INDIRECT($C$70),2,0) -> --> Aufstehen mit gestreckten Beinen | E42: =VLOOKUP(4,INDIRECT($C$70),3,0) -> 3 | F42: 0 | G42: Wert - Abzug | H42: 3
A43: =VLOOKUP(5,INDIRECT($C$70),2,0) -> Vorspreizen, Bestellschritt, Strecksprung 3/2 Drehung | E43: =VLOOKUP(5,INDIRECT($C$70),3,0) -> 3 | F43: 2 | G43: Wert - Abzug | H43: 1
A44: =VLOOKUP(6,INDIRECT($C$70),2,0) -> Salto rückwärts gehockt | E44: =VLOOKUP(6,INDIRECT($C$70),3,0) -> 3 | F44: 1 | G44: Wert - Abzug | H44: 2
A45: =VLOOKUP(7,INDIRECT($C$70),2,0) -> Handstützüberschlag | E45: =VLOOKUP(7,INDIRECT($C$70),3,0) -> 3 | F45: 0.5 | G45: Wert - Abzug | H45: 2.5
A46: =VLOOKUP(8,INDIRECT($C$70),2,0) -> --> Ansprung Schrittstellung, Handstand mit zwei Hüpfern | E46: =VLOOKUP(8,INDIRECT($C$70),3,0) -> 3 | F46: 1 | G46: Wert - Abzug | H46: 2
A47: =VLOOKUP(9,INDIRECT($C$70),2,0) -> Abrollen --> Strecksprung 1/2 Drehung | E47: =VLOOKUP(9,INDIRECT($C$70),3,0) -> 1.5 | F47: 0 | G47: =IF(H2>16,"","Wert - Abzug") -> Wert - Abzug | H47: 1.5
A48: =VLOOKUP(10,INDIRECT($C$70),2,0) -> Salto vorwärts gebückt mit Anlauf | E48: =VLOOKUP(10,INDIRECT($C$70),3,0) -> 3 | F48: 1.5 | G48: =IF(H2>16,"","Wert - Abzug") -> Wert - Abzug | H48: 1.5
A49: =VLOOKUP(11,INDIRECT($C$70),2,0) ->  | E49: =VLOOKUP(11,INDIRECT($C$70),3,0) ->  | G49: =IF(H2>13,"","Wert - Abzug") -> 
A50: =VLOOKUP(12,INDIRECT($C$70),2,0) ->  | E50: =VLOOKUP(12,INDIRECT($C$70),3,0) ->  | G50: =IF(OR(H2=9,H2=12,H2=13),"Wert - Abzug","") -> 
A51: Gesamtpunktzahl Bodenkomplexübung | H51: =SUM(H39:H50) -> 22.5
A52: Gesamtpunktzahl | H52: =SUM(H9,H19,H37,H51) -> 164.6
B55: Shuttles | C55: ="Shuttles_"&F1&IF(H2=9,"_9",IF(H2<12,"_10_11",IF(H2<14,"_12_13",IF(H2<17,"_14_16","_17")))) -> Shuttles_weiblich_14_16
C56: ="Shuttles_"&F1&IF(H2=9,"_9",IF(H2<12,"_10_11",IF(H2<14,"_12_13",IF(H2<17,"_14_16","_17"))))&"[Shuttle]" -> Shuttles_weiblich_14_16[Shuttle]
C57: ="Shuttles_"&F1&IF(H2=9,"_9",IF(H2<12,"_10_11",IF(H2<14,"_12_13",IF(H2<17,"_14_16","_17"))))&"[Punkte]" -> Shuttles_weiblich_14_16[Punkte]
B59: G_TBN TN BKÜ | C59: =IF(H2<13,"beide",F1) -> weiblich
B60: AK | C60: =IF(OR(H2=9,H2=12),H2,IF(H2<12,"10_11",IF(H2<15,"13_14",IF(H2<17,"15_16",IF(H2<19,"17_18",19))))) -> 15_16
B62: TBN | C62: ="TBN_"&C59&"_"&C60 -> TBN_weiblich_15_16
C63: =C62&"[Beschreibung]" -> TBN_weiblich_15_16[Beschreibung]
B65: TN | C65: ="TN_"&C59&"_"&C60 -> TN_weiblich_15_16
C66: =C65&"[Beschreibung]" -> TN_weiblich_15_16[Beschreibung]
B68: TV | C68: ="TV_"&F1&"_"&C60 -> TV_weiblich_15_16
B70: BKÜ | C70: ="BKÜ"&IF(H2=9,"_9",IF(H2<12,"_10_11",IF(H2<14,"_12_13",IF(H2<17,"_14_16","_17")))) -> BKÜ_14_16
B72: G_TV | C72: =IF(H2<17,"beide",F1) -> beide
B73: TV | C73: ="TV_"&C72&"_"&C60 -> TV_beide_15_16
B75: =SUM(H19,H9,H51) -> 104.5 | C75: Vergleichspunktzahl aus Kraft, Beweglichkeit, Grundlagenausdauer, Bodenübung
B76: =IF(B75>95,"Ja","Nein") -> Ja | C76: Vergleichspunktzahl erfüllt?
B77: =IF(F1="Weiblich",VLOOKUP(H2,Punktetabellen!$D$43:$F$49,3,1),VLOOKUP(H2,Punktetabellen!$D$43:$F$49,2,1)) -> 159 | C77: Mindest-Gesamtwert
B78: =IF(H52>=B77,"Ja","Nein") -> Ja | C78: Gesamtwert erfüllt?
B79: =IF(AND(B76="Ja",B78="Ja"),"Ja","Nein") -> Ja | C79: Alles erfüllt?

Sheet MöllerMaya
A1: Name | B1: Möller, Maya | F1: weiblich | G1: Jahrgang | H1: 2007
A2: Verein | B2: TG Dietzenbach | G2: AK | H2: =2020-H1 -> 13
A3: Übung | F3: Wert | G3: Berechnung | H3: Punkte
A4: Fußdehnung | F4: 10 | G4: Bild | H4: =F4 -> 10
A5: Briefmarke mit Armrumpfwinkel | F5: 10 | G5: Bild | H5: =F5 -> 10
A6: Bückbeweglichkeit | F6: 14 | G6: Tabelle | H6: =IF(F6="",0,VLOOKUP(F6,Punktetabellen!A10:B15,2,1)) -> 4
A7: Querspagat links | F7: 0 | G7: Tabelle | H7: =IF(F7="",0,VLOOKUP(F7,Punktetabellen!A3:B6,2,0)) -> 10
A8: Querspagat rechts | F8: 0 | G8: Tabelle | H8: =IF(F8="",0,VLOOKUP(F8,Punktetabellen!A3:B6,2,0)) -> 10
A9: Gesamtpunktzahl Beweglichkeit | H9: =SUM(H4:H8) -> 44
A10: Übung | F10: Wert | G10: Berechnung | H10: Punktzahl
A11: Klimmzug | F11: 5 | G11: Tabelle | H11: =IF(F11="",0,IF(H2<12,VLOOKUP(F11,Punktetabellen!D4:F14,3,1),VLOOKUP(F11,Punktetabellen!E4:F14,2,1))) -> 0
A12: Beinheben | F12: 0 | G12: Tabelle | H12: =IF(H2=9,VLOOKUP(F12,Punktetabellen!D19:F29,3,1),VLOOKUP(F12,Punktetabellen!E19:F29,2,1)) -> 0
A13: Flieger | F13: 90 | G13: Tabelle | H13: =IF(H2=9,VLOOKUP(F13,Punktetabellen!H4:K9,4,1),IF(H2<12,VLOOKUP(F13,Punktetabellen!I4:K9,3,1),VLOOKUP(F13,Punktetabellen!J4:K9,2,1))) -> 4
A14: Rollenverbindung | F14: 14 | G14: Tabelle | H14: =IF(H2=9,VLOOKUP(F14,Punktetabellen!H14:K24,4,1),IF(H2<12,VLOOKUP(F14,Punktetabellen!I14:K24,3,1),VLOOKUP(F14,Punktetabellen!J14:K24,2,1))) -> 2
A15: Prellsprünge | F15: 36 | G15: Tabelle | H15: =IF(H2=9,VLOOKUP(F15,Punktetabellen!M4:Q14,5,1),IF(H2<12,VLOOKUP(F15,Punktetabellen!N4:Q14,4,1),IF(H2<14,VLOOKUP(F15,Punktetabellen!O4:Q14,3,1),VLOOKUP(F15,Punktetabellen!P4:Q14,2,1)))) -> 8
A16: Handstandstehen | F16: 30 | G16: Tabelle | H16: =IF(F16="",0,IF(H2<10,VLOOKUP(F16,Punktetabellen!D34:F40,3,1),VLOOKUP(F16,Punktetabellen!E34:F40,2,1))) -> 10
A17: Schweizer, Wiener | C17: =IF(H2<12,"",IF(AND(H2>13,H2<17),"Schweizer: ","Wiener: ")) -> Wiener: | E17: =IF(H2<12,"",IF(AND(H2>13,H2<17),"Wiener: ","Schweizer: ")) -> Schweizer: | F17: 5 | G17: Tabelle | H17: =IF(H2<12,VLOOKUP(F17,Punktetabellen!A20:B25,2,1),((MIN(5,1*D17)*2)+MIN(MAX(0,5-(1*D17)),(1*F17)))) -> 5
A18: Bleep-Test | F18: L7 S5 | G18: Tabelle | H18: =IF(F18="",0,VLOOKUP(F18,INDIRECT(C55),2,0)) -> 6
A19: Gesamtpunktzahl Kraft/Kondition | H19: =SUM(H11:H18) -> 35
A20: Übung | D20: Max / Soll | E20: Max. Abzug | F20: Abzug / Ist | G20: Berechnung | H20: Punkte
A21: Standsprunghöhe | D21: =IF(F1="männlich",VLOOKUP(H2,Standsprünge!A3:C15,3,0),VLOOKUP(H2,Standsprünge!A3:B15,2,0)) -> 15.2 | F21: 15.745 | G21: (Ist - Soll) x 10 | H21: =IF(F21="",0,(F21-D21)*10) -> 5.45
A22: =IF(H2>16,"entfällt","TBN") -> TBN | C22: 7/4 vw b zum Rücken, platt, Arme angelegt | D22: =IF(C22="","",VLOOKUP(C22,INDIRECT($C$62),2,0)) -> 9 | E22: =IF(C22="","",VLOOKUP(C22,INDIRECT($C$62),3,0)) -> 6 | F22: 4 | G22: =IF(H2>16,"entfällt","Wert - Abzug") -> Wert - Abzug | H22: =IF(A22="entfällt",0,IF(F22="",0,D22-F22)) -> 5
A23: =IF(H2>16,"entfällt","TBN") -> TBN | C23: 7/4 rw c zum Rücken, 1/2 Schraube ein | D23: =IF(C23="","",VLOOKUP(C23,INDIRECT($C$62),2,0)) -> 9 | E23: =IF(C23="","",VLOOKUP(C23,INDIRECT($C$62),3,0)) -> 6 | F23: 6 | G23: =IF(H2>16,"entfällt","Wert - Abzug") -> Wert - Abzug | H23: =IF(A23="entfällt",0,IF(F23="",0,D23-F23)) -> 3
A24: =IF(H2>12,"entfällt","TBN") -> entfällt | D24: =IF(C24="","",VLOOKUP(C24,INDIRECT($C$62),2,0)) ->  | E24: =IF(C24="","",VLOOKUP(C24,INDIRECT($C$62),3,0)) ->  | G24: =IF(H2>16,"entfällt","Wert - Abzug") -> Wert - Abzug | H24: 0
A25: TN | B25: =IF(C25="","",VLOOKUP(C25,INDIRECT($C$65),2,0)) -> 801° | C25: Fliffis c | D25: =IF(C25="","",VLOOKUP(C25,INDIRECT($C$65),3,0)) -> 11 | E25: =IF(C25="","",VLOOKUP(C25,INDIRECT($C$65),4,0)) -> 6 | F25: 2 | G25: Wert - Abzug | H25: 9
A26: TN | B26: 801< | C26: Fliffis b | D26: 13 | E26: 6 | F26: 2 | G26: Wert - Abzug | H26: 11
A27: TN | B27: 800< | C27: Doppelsalto rw b | D27: 12 | E27: 6 | F27: 4 | G27: Wert - Abzug | H27: 8
A28: =IF(H2>12,"TN","entfällt") -> TN | B28: 43/ | C28: Rudolf | D28: 8 | E28: 6 | F28: 4 | G28: =IF(H2>12,"Wert - Abzug","entfällt") -> Wert - Abzug | H28: 4
A29: =IF(H2>16,"TN","entfällt") -> entfällt | G29: =IF(H2>16,"Wert - Abzug","entfällt") -> entfällt | H29: 0
A30: =IF(H2>16,"TN","entfällt") -> entfällt | G30: =IF(H2>16,"Wert - Abzug","entfällt") -> entfällt | H30: =IF(A30="entfällt",0,IF(F30="",0,D30-F30)) -> 0
A31: =IF($H$2>11,"Verbindung Sprung 1","entfällt") -> Verbindung Sprung 1 | C31: =IF(A31<>"entfällt",VLOOKUP(1,INDIRECT($C$73),2,0),"") -> 40/ | D31: =IF(A31<>"entfällt",VLOOKUP(1,INDIRECT($C$73),3,0),"") -> 6 | E31: =IF(A31<>"entfällt",VLOOKUP(1,INDIRECT($C$73),4,0),"") -> 3 | F31: 1 | G31: =IF(H2>12,"Wert - Abzug","entfällt") -> Wert - Abzug | H31: =IF(A31="entfällt",0,IF(F31="",0,D31-F31)) -> 5
A32: =IF($H$2>11,"Verbindung Sprung 2","entfällt") -> Verbindung Sprung 2 | C32: =IF(A32<>"entfällt",VLOOKUP(2,INDIRECT($C$73),2,0),"") -> 41/ | D32: =IF(A32<>"entfällt",VLOOKUP(2,INDIRECT($C$73),3,0),"") -> 6 | E32: =IF(A32<>"entfällt",VLOOKUP(2,INDIRECT($C$73),4,0),"") -> 3 | F32: 2 | G32: =IF(H2>12,"Wert - Abzug","entfällt") -> Wert - Abzug | H32: =IF(A32="entfällt",0,IF(F32="",0,D32-F32)) -> 4
A33: =IF($H$2>11,"Verbindung Sprung 3","entfällt") -> Verbindung Sprung 3 | C33: =IF(A33<>"entfällt",VLOOKUP(3,INDIRECT($C$73),2,0),"") -> 42/ | D33: =IF(A33<>"entfällt",VLOOKUP(3,INDIRECT($C$73),3,0),"") -> 7 | E33: =IF(A33<>"entfällt",VLOOKUP(3,INDIRECT($C$73),4,0),"") -> 3 | F33: 3 | G33: =IF(H2>12,"Wert - Abzug","entfällt") -> Wert - Abzug | H33: 4
A34: =IF($H$2>11,"Verbindung Sprung 4","entfällt") -> Verbindung Sprung 4 | C34: =IF(A34<>"entfällt",VLOOKUP(4,INDIRECT($C$73),2,0),"") -> 40° | D34: =IF(A34<>"entfällt",VLOOKUP(4,INDIRECT($C$73),3,0),"") -> 5 | E34: =IF(A34<>"entfällt",VLOOKUP(4,INDIRECT($C$73),4,0),"") -> 3 | F34: 3 | G34: =IF(H2>12,"Wert - Abzug","entfällt") -> Wert - Abzug | H34: 2
A35: =IF($H$2>11,"Verbindung Sprung 5","entfällt") -> Verbindung Sprung 5 | C35: =IF(A35<>"entfällt",VLOOKUP(5,INDIRECT($C$73),2,0),"") -> 41° | D35: =IF(A35<>"entfällt",VLOOKUP(5,INDIRECT($C$73),3,0),"") -> 6 | E35: =IF(A35<>"entfällt",VLOOKUP(5,INDIRECT($C$73),4,0),"") -> 3 | F35: 2 | G35: =IF(H2>12,"Wert - Abzug","entfällt") -> Wert - Abzug | H35: 4
A36: =IF($H$2>11,"Verbindung Sprung 6","entfällt") -> Verbindung Sprung 6 | C36: =IF(A36<>"entfällt",VLOOKUP(6,INDIRECT($C$73),2,0),"") -> 800° | D36: =IF(A36<>"entfällt",VLOOKUP(6,INDIRECT($C$73),3,0),"") -> 10 | E36: =IF(A36<>"entfällt",VLOOKUP(6,INDIRECT($C$73),4,0),"") -> 3 | F36: 3 | G36: =IF(H2>12,"Wert - Abzug","entfällt") -> Wert - Abzug | H36: =IF(A36="entfällt",0,IF(F36="",0,D36-F36)) -> 7
A37: Gesamtpunktzahl Trampolin | H37: =SUM(H21:H36) -> 71.45
A38: Element | E38: Wert | F38: Abzug | G38: Berechnung | H38: Punkte
A39: =VLOOKUP(1,INDIRECT($C$70),2,0) -> Salto vorwärts mit Anlauf | E39: =VLOOKUP(1,INDIRECT($C$70),3,0) -> 3 | F39: 1 | G39: Wert - Abzug | H39: =IF(E39=" ","",IF(F39="",0,E39-F39)) -> 2
A40: =VLOOKUP(2,INDIRECT($C$70),2,0) -> Handstand, 1/1 Drehung, Abrollen | E40: =VLOOKUP(2,INDIRECT($C$70),3,0) -> 3 | F40: 0 | G40: Wert - Abzug | H40: =IF(E40=" ","",IF(F40="",0,E40-F40)) -> 3
A41: =VLOOKUP(3,INDIRECT($C$70),2,0) -> Strecksprung 1/2 Drehung | E41: =VLOOKUP(3,INDIRECT($C$70),3,0) -> 1.5 | F41: 0 | G41: Wert - Abzug | H41: 1.5
A42: =VLOOKUP(4,INDIRECT($C$70),2,0) -> Vorspreizen, Handstandhüpfer, Abrollen Grätschsitz | E42: =VLOOKUP(4,INDIRECT($C$70),3,0) -> 1.5 | F42: 0 | G42: Wert - Abzug | H42: 1.5
A43: =VLOOKUP(5,INDIRECT($C$70),2,0) -> Briefmarke, Rückgrätschen --> Bauchlage | E43: =VLOOKUP(5,INDIRECT($C$70),3,0) -> 3 | F43: 1.5 | G43: Wert - Abzug | H43: 1.5
A44: =VLOOKUP(6,INDIRECT($C$70),2,0) -> Kniestand, Abdrücken gebückt --> Handstand, abrollen | E44: =VLOOKUP(6,INDIRECT($C$70),3,0) -> 3 | F44: 1 | G44: Wert - Abzug | H44: 2
A45: =VLOOKUP(7,INDIRECT($C$70),2,0) -> Vorspreizen, Standwaage --> abrollen, einbeinig rechts auf | E45: =VLOOKUP(7,INDIRECT($C$70),3,0) -> 3.5 | F45: 2.5 | G45: Wert - Abzug | H45: 1
A46: =VLOOKUP(8,INDIRECT($C$70),2,0) -> Vorspreizen, Standwaage --> abrollen, einbeinig links auf | E46: =VLOOKUP(8,INDIRECT($C$70),3,0) -> 3.5 | F46: 2.5 | G46: Wert - Abzug | H46: 1
A47: =VLOOKUP(9,INDIRECT($C$70),2,0) -> Rolle rückwärts durch Handstand | E47: =VLOOKUP(9,INDIRECT($C$70),3,0) -> 3 | G47: =IF(H2>16,"","Wert - Abzug") -> Wert - Abzug | H47: 0
A48: =VLOOKUP(10,INDIRECT($C$70),2,0) -> Strecksprung 1/2 Drehung | E48: =VLOOKUP(10,INDIRECT($C$70),3,0) -> 1 | F48: 0 | G48: =IF(H2>16,"","Wert - Abzug") -> Wert - Abzug | H48: 1
A49: =VLOOKUP(11,INDIRECT($C$70),2,0) -> Sprungrolle mit Anlauf | E49: =VLOOKUP(11,INDIRECT($C$70),3,0) -> 2 | F49: 0 | G49: =IF(H2>13,"","Wert - Abzug") -> Wert - Abzug | H49: 2
A50: =VLOOKUP(12,INDIRECT($C$70),2,0) -> Strecksprung 1/1 Drehung | E50: =VLOOKUP(12,INDIRECT($C$70),3,0) -> 2 | F50: 0.5 | G50: =IF(OR(H2=9,H2=12,H2=13),"Wert - Abzug","") -> Wert - Abzug | H50: 1.5
A51: Gesamtpunktzahl Bodenkomplexübung | H51: =SUM(H39:H50) -> 18
A52: Gesamtpunktzahl | H52: =SUM(H9,H19,H37,H51) -> 168.45
B55: Shuttles | C55: ="Shuttles_"&F1&IF(H2=9,"_9",IF(H2<12,"_10_11",IF(H2<14,"_12_13",IF(H2<17,"_14_16","_17")))) -> Shuttles_weiblich_12_13
C56: ="Shuttles_"&F1&IF(H2=9,"_9",IF(H2<12,"_10_11",IF(H2<14,"_12_13",IF(H2<17,"_14_16","_17"))))&"[Shuttle]" -> Shuttles_weiblich_12_13[Shuttle]
C57: ="Shuttles_"&F1&IF(H2=9,"_9",IF(H2<12,"_10_11",IF(H2<14,"_12_13",IF(H2<17,"_14_16","_17"))))&"[Punkte]" -> Shuttles_weiblich_12_13[Punkte]
B59: G_TBN TN BKÜ | C59: =IF(H2<13,"beide",F1) -> weiblich
B60: AK | C60: =IF(OR(H2=9,H2=12),H2,IF(H2<12,"10_11",IF(H2<15,"13_14",IF(H2<17,"15_16",IF(H2<19,"17_18",19))))) -> 13_14
B62: TBN | C62: ="TBN_"&C59&"_"&C60 -> TBN_weiblich_13_14
C63: =C62&"[Beschreibung]" -> TBN_weiblich_13_14[Beschreibung]
B65: TN | C65: ="TN_"&C59&"_"&C60 -> TN_weiblich_13_14
C66: =C65&"[Beschreibung]" -> TN_weiblich_13_14[Beschreibung]
B68: TV | C68: ="TV_"&F1&"_"&C60 -> TV_weiblich_13_14
B70: BKÜ | C70: ="BKÜ"&IF(H2=9,"_9",IF(H2<12,"_10_11",IF(H2<14,"_12_13",IF(H2<17,"_14_16","_17")))) -> BKÜ_12_13
B72: G_TV | C72: =IF(H2<17,"beide",F1) -> beide
B73: TV | C73: ="TV_"&C72&"_"&C60 -> TV_beide_13_14
B75: =SUM(H19,H9,H51) -> 97 | C75: Vergleichspunktzahl aus Kraft, Beweglichkeit, Grundlagenausdauer, Bodenübung
B76: =IF(B75>95,"Ja","Nein") -> Ja | C76: Vergleichspunktzahl erfüllt?
B77: =IF(F1="Weiblich",VLOOKUP(H2,Punktetabellen!$D$43:$F$49,3,1),VLOOKUP(H2,Punktetabellen!$D$43:$F$49,2,1)) -> 143 | C77: Mindest-Gesamtwert
B78: =IF(H52>=B77,"Ja","Nein") -> Ja | C78: Gesamtwert erfüllt?
B79: =IF(AND(B76="Ja",B78="Ja"),"Ja","Nein") -> Ja | C79: Alles erfüllt?

Sheet FeyhMiguel
A1: Name | B1: Feyh, Miguel | F1: männlich | G1: Jahrgang | H1: 2005
A2: Verein | B2: Frankfurt Flyers | G2: AK | H2: =2020-H1 -> 15
A3: Übung | F3: Wert | G3: Berechnung | H3: Punkte
A4: Fußdehnung | F4: 10 | G4: Bild | H4: =F4 -> 10
A5: Briefmarke mit Armrumpfwinkel | F5: 2 | G5: Bild | H5: =F5 -> 2
A6: Bückbeweglichkeit | F6: 17 | G6: Tabelle | H6: =IF(F6="",0,VLOOKUP(F6,Punktetabellen!A10:B15,2,1)) -> 6
A7: Querspagat links | F7: <10 cm | G7: Tabelle | H7: =IF(F7="",0,VLOOKUP(F7,Punktetabellen!A3:B6,2,0)) -> 2
A8: Querspagat rechts | F8: <10 cm | G8: Tabelle | H8: =IF(F8="",0,VLOOKUP(F8,Punktetabellen!A3:B6,2,0)) -> 2
A9: Gesamtpunktzahl Beweglichkeit | H9: =SUM(H4:H8) -> 22
A10: Übung | F10: Wert | G10: Berechnung | H10: Punktzahl
A11: Klimmzug | F11: 15 | G11: Tabelle | H11: =IF(F11="",0,IF(H2<12,VLOOKUP(F11,Punktetabellen!D4:F14,3,1),VLOOKUP(F11,Punktetabellen!E4:F14,2,1))) -> 10
A12: Beinheben | F12: 11 | G12: Tabelle | H12: =IF(H2=9,VLOOKUP(F12,Punktetabellen!D19:F29,3,1),VLOOKUP(F12,Punktetabellen!E19:F29,2,1)) -> 6
A13: Flieger | F13: 90 | G13: Tabelle | H13: =IF(H2=9,VLOOKUP(F13,Punktetabellen!H4:K9,4,1),IF(H2<12,VLOOKUP(F13,Punktetabellen!I4:K9,3,1),VLOOKUP(F13,Punktetabellen!J4:K9,2,1))) -> 4
A14: Rollenverbindung | F14: 29 | G14: Tabelle | H14: =IF(H2=9,VLOOKUP(F14,Punktetabellen!H14:K24,4,1),IF(H2<12,VLOOKUP(F14,Punktetabellen!I14:K24,3,1),VLOOKUP(F14,Punktetabellen!J14:K24,2,1))) -> 10
A15: Prellsprünge | F15: 10 | G15: Tabelle | H15: =IF(H2=9,VLOOKUP(F15,Punktetabellen!M4:Q14,5,1),IF(H2<12,VLOOKUP(F15,Punktetabellen!N4:Q14,4,1),IF(H2<14,VLOOKUP(F15,Punktetabellen!O4:Q14,3,1),VLOOKUP(F15,Punktetabellen!P4:Q14,2,1)))) -> 10
A16: Handstandstehen | F16: 30 | G16: Tabelle | H16: =IF(F16="",0,IF(H2<10,VLOOKUP(F16,Punktetabellen!D34:F40,3,1),VLOOKUP(F16,Punktetabellen!E34:F40,2,1))) -> 10
A17: Schweizer, Wiener | C17: =IF(H2<12,"",IF(AND(H2>13,H2<17),"Schweizer: ","Wiener: ")) -> Schweizer: | D17: 1 | E17: =IF(H2<12,"",IF(AND(H2>13,H2<17),"Wiener: ","Schweizer: ")) -> Wiener: | F17: 0 | G17: Tabelle | H17: =IF(H2<12,VLOOKUP(F17,Punktetabellen!A20:B25,2,1),((MIN(5,1*D17)*2)+MIN(MAX(0,5-(1*D17)),(1*F17)))) -> 2
A18: Bleep-Test | F18: L7 S10 | G18: Tabelle | H18: =IF(F18="",0,VLOOKUP(F18,INDIRECT(C55),2,0)) -> 2
A19: Gesamtpunktzahl Kraft/Kondition | H19: =SUM(H11:H18) -> 54
A20: Übung | D20: Max / Soll | E20: Max. Abzug | F20: Abzug / Ist | G20: Berechnung | H20: Punkte
A21: Standsprunghöhe | D21: =IF(F1="männlich",VLOOKUP(H2,Standsprünge!A3:C15,3,0),VLOOKUP(H2,Standsprünge!A3:B15,2,0)) -> 16.3 | F21: 17.24 | G21: (Ist - Soll) x 10 | H21: =IF(F21="",0,(F21-D21)*10) -> 9.4
A22: =IF(H2>16,"entfällt","TBN") -> TBN | C22: 7/4 Salto rw c, 1/1 ein 1/2 aus | D22: =IF(C22="","",VLOOKUP(C22,INDIRECT($C$62),2,0)) -> 11 | E22: =IF(C22="","",VLOOKUP(C22,INDIRECT($C$62),3,0)) -> 6 | F22: 2 | G22: =IF(H2>16,"entfällt","Wert - Abzug") -> Wert - Abzug | H22: =IF(A22="entfällt",0,IF(F22="",0,D22-F22)) -> 9
A23: =IF(H2>16,"entfällt","TBN") -> TBN | C23: 7/4 Salto vw b zum Rücken, 1/1 aus | D23: =IF(C23="","",VLOOKUP(C23,INDIRECT($C$62),2,0)) -> 10 | E23: =IF(C23="","",VLOOKUP(C23,INDIRECT($C$62),3,0)) -> 6 | F23: 2 | G23: =IF(H2>16,"entfällt","Wert - Abzug") -> Wert - Abzug | H23: =IF(A23="entfällt",0,IF(F23="",0,D23-F23)) -> 8
A24: =IF(H2>12,"entfällt","TBN") -> entfällt | D24: =IF(C24="","",VLOOKUP(C24,INDIRECT($C$62),2,0)) ->  | E24: =IF(C24="","",VLOOKUP(C24,INDIRECT($C$62),3,0)) ->  | G24: =IF(H2>16,"entfällt","Wert - Abzug") -> Wert - Abzug | H24: 0
A25: TN | B25: =IF(C25="","",VLOOKUP(C25,INDIRECT($C$65),2,0)) -> 821< | C25: 1/1 ein 1/2 aus b | D25: =IF(C25="","",VLOOKUP(C25,INDIRECT($C$65),3,0)) -> 15 | E25: =IF(C25="","",VLOOKUP(C25,INDIRECT($C$65),4,0)) -> 6 | F25: 4 | G25: Wert - Abzug | H25: 11
A26: TN | B26: 803< | C26: Fliffisrudi b | D26: 15 | E26: 6 | F26: 6 | G26: Wert - Abzug | H26: 9
A27: TN | B27: 822° | C27: 1/1 ein 1/1 aus c | D27: 14 | E27: 6 | F27: 6 | G27: Wert - Abzug | H27: 8
A28: =IF(H2>12,"TN","entfällt") -> TN | B28: 811< | C28: 1/2 ein 1/2 aus b | D28: 14 | E28: 6 | F28: 6 | G28: =IF(H2>12,"Wert - Abzug","entfällt") -> Wert - Abzug | H28: 8
A29: =IF(H2>16,"TN","entfällt") -> entfällt | G29: =IF(H2>16,"Wert - Abzug","entfällt") -> entfällt | H29: 0
A30: =IF(H2>16,"TN","entfällt") -> entfällt | G30: =IF(H2>16,"Wert - Abzug","entfällt") -> entfällt | H30: =IF(A30="entfällt",0,IF(F30="",0,D30-F30)) -> 0
A31: =IF($H$2>11,"Verbindung Sprung 1","entfällt") -> Verbindung Sprung 1 | C31: =IF(A31<>"entfällt",VLOOKUP(1,INDIRECT($C$73),2,0),"") -> 801< | D31: =IF(A31<>"entfällt",VLOOKUP(1,INDIRECT($C$73),3,0),"") -> 13 | E31: =IF(A31<>"entfällt",VLOOKUP(1,INDIRECT($C$73),4,0),"") -> 3 | F31: 2 | G31: =IF(H2>12,"Wert - Abzug","entfällt") -> Wert - Abzug | H31: =IF(A31="entfällt",0,IF(F31="",0,D31-F31)) -> 11
A32: =IF($H$2>11,"Verbindung Sprung 2","entfällt") -> Verbindung Sprung 2 | C32: =IF(A32<>"entfällt",VLOOKUP(2,INDIRECT($C$73),2,0),"") -> 40< | D32: =IF(A32<>"entfällt",VLOOKUP(2,INDIRECT($C$73),3,0),"") -> 6 | E32: =IF(A32<>"entfällt",VLOOKUP(2,INDIRECT($C$73),4,0),"") -> 3 | F32: 2 | G32: =IF(H2>12,"Wert - Abzug","entfällt") -> Wert - Abzug | H32: =IF(A32="entfällt",0,IF(F32="",0,D32-F32)) -> 4
A33: =IF($H$2>11,"Verbindung Sprung 3","entfällt") -> Verbindung Sprung 3 | C33: =IF(A33<>"entfällt",VLOOKUP(3,INDIRECT($C$73),2,0),"") -> 801° | D33: =IF(A33<>"entfällt",VLOOKUP(3,INDIRECT($C$73),3,0),"") -> 11 | E33: =IF(A33<>"entfällt",VLOOKUP(3,INDIRECT($C$73),4,0),"") -> 3 | F33: 1 | G33: =IF(H2>12,"Wert - Abzug","entfällt") -> Wert - Abzug | H33: 10
A34: =IF($H$2>11,"Verbindung Sprung 4","entfällt") -> Verbindung Sprung 4 | C34: =IF(A34<>"entfällt",VLOOKUP(4,INDIRECT($C$73),2,0),"") -> 40/ | D34: =IF(A34<>"entfällt",VLOOKUP(4,INDIRECT($C$73),3,0),"") -> 6 | E34: =IF(A34<>"entfällt",VLOOKUP(4,INDIRECT($C$73),4,0),"") -> 3 | F34: 2 | G34: =IF(H2>12,"Wert - Abzug","entfällt") -> Wert - Abzug | H34: 4
A35: =IF($H$2>11,"Verbindung Sprung 5","entfällt") -> Verbindung Sprung 5 | C35: =IF(A35<>"entfällt",VLOOKUP(5,INDIRECT($C$73),2,0),"") -> 41/ | D35: =IF(A35<>"entfällt",VLOOKUP(5,INDIRECT($C$73),3,0),"") -> 6 | E35: =IF(A35<>"entfällt",VLOOKUP(5,INDIRECT($C$73),4,0),"") -> 3 | F35: 2 | G35: =IF(H2>12,"Wert - Abzug","entfällt") -> Wert - Abzug | H35: 4
A36: =IF($H$2>11,"Verbindung Sprung 6","entfällt") -> Verbindung Sprung 6 | C36: =IF(A36<>"entfällt",VLOOKUP(6,INDIRECT($C$73),2,0),"") -> 800° | D36: =IF(A36<>"entfällt",VLOOKUP(6,INDIRECT($C$73),3,0),"") -> 10 | E36: =IF(A36<>"entfällt",VLOOKUP(6,INDIRECT($C$73),4,0),"") -> 3 | F36: 1 | G36: =IF(H2>12,"Wert - Abzug","entfällt") -> Wert - Abzug | H36: =IF(A36="entfällt",0,IF(F36="",0,D36-F36)) -> 9
A37: Gesamtpunktzahl Trampolin | H37: =SUM(H21:H36) -> 104.4
A38: Element | E38: Wert | F38: Abzug | G38: Berechnung | H38: Punkte
A39: =VLOOKUP(1,INDIRECT($C$70),2,0) -> Flugrolle mit Überstrecken mit Anlauf | E39: =VLOOKUP(1,INDIRECT($C$70),3,0) -> 3 | F39: 1.5 | G39: Wert - Abzug | H39: =IF(E39=" ","",IF(F39="",0,E39-F39)) -> 1.5
A40: =VLOOKUP(2,INDIRECT($C$70),2,0) -> --> Strecksprung, Salto vorwärts gehockt | E40: =VLOOKUP(2,INDIRECT($C$70),3,0) -> 4.5 | F40: 0.5 | G40: Wert - Abzug | H40: =IF(E40=" ","",IF(F40="",0,E40-F40)) -> 4
A41: =VLOOKUP(3,INDIRECT($C$70),2,0) -> Vorspreizen, Handstand mit 1/1 Drehung, abrollen | E41: =VLOOKUP(3,INDIRECT($C$70),3,0) -> 3 | F41: 0 | G41: Wert - Abzug | H41: 3
A42: =VLOOKUP(4,INDIRECT($C$70),2,0) -> --> Aufstehen mit gestreckten Beinen | E42: =VLOOKUP(4,INDIRECT($C$70),3,0) -> 3 | F42: 0 | G42: Wert - Abzug | H42: 3
A43: =VLOOKUP(5,INDIRECT($C$70),2,0) -> Vorspreizen, Bestellschritt, Strecksprung 3/2 Drehung | E43: =VLOOKUP(5,INDIRECT($C$70),3,0) -> 3 | F43: 0.5 | G43: Wert - Abzug | H43: 2.5
A44: =VLOOKUP(6,INDIRECT($C$70),2,0) -> Salto rückwärts gehockt | E44: =VLOOKUP(6,INDIRECT($C$70),3,0) -> 3 | F44: 0.5 | G44: Wert - Abzug | H44: 2.5
A45: =VLOOKUP(7,INDIRECT($C$70),2,0) -> Handstützüberschlag | E45: =VLOOKUP(7,INDIRECT($C$70),3,0) -> 3 | F45: 0.5 | G45: Wert - Abzug | H45: 2.5
A46: =VLOOKUP(8,INDIRECT($C$70),2,0) -> --> Ansprung Schrittstellung, Handstand mit zwei Hüpfern | E46: =VLOOKUP(8,INDIRECT($C$70),3,0) -> 3 | F46: 0 | G46: Wert - Abzug | H46: 3
A47: =VLOOKUP(9,INDIRECT($C$70),2,0) -> Abrollen --> Strecksprung 1/2 Drehung | E47: =VLOOKUP(9,INDIRECT($C$70),3,0) -> 1.5 | F47: 1 | G47: =IF(H2>16,"","Wert - Abzug") -> Wert - Abzug | H47: 0.5
A48: =VLOOKUP(10,INDIRECT($C$70),2,0) -> Salto vorwärts gebückt mit Anlauf | E48: =VLOOKUP(10,INDIRECT($C$70),3,0) -> 3 | F48: 0 | G48: =IF(H2>16,"","Wert - Abzug") -> Wert - Abzug | H48: 3
A49: =VLOOKUP(11,INDIRECT($C$70),2,0) ->  | E49: =VLOOKUP(11,INDIRECT($C$70),3,0) ->  | G49: =IF(H2>13,"","Wert - Abzug") -> 
A50: =VLOOKUP(12,INDIRECT($C$70),2,0) ->  | E50: =VLOOKUP(12,INDIRECT($C$70),3,0) ->  | G50: =IF(OR(H2=9,H2=12,H2=13),"Wert - Abzug","") -> 
A51: Gesamtpunktzahl Bodenkomplexübung | H51: =SUM(H39:H50) -> 25.5
A52: Gesamtpunktzahl | H52: =SUM(H9,H19,H37,H51) -> 205.9
B55: Shuttles | C55: ="Shuttles_"&F1&IF(H2=9,"_9",IF(H2<12,"_10_11",IF(H2<14,"_12_13",IF(H2<17,"_14_16","_17")))) -> Shuttles_männlich_14_16
C56: ="Shuttles_"&F1&IF(H2=9,"_9",IF(H2<12,"_10_11",IF(H2<14,"_12_13",IF(H2<17,"_14_16","_17"))))&"[Shuttle]" -> Shuttles_männlich_14_16[Shuttle]
C57: ="Shuttles_"&F1&IF(H2=9,"_9",IF(H2<12,"_10_11",IF(H2<14,"_12_13",IF(H2<17,"_14_16","_17"))))&"[Punkte]" -> Shuttles_männlich_14_16[Punkte]
B59: G_TBN TN BKÜ | C59: =IF(H2<13,"beide",F1) -> männlich
B60: AK | C60: =IF(OR(H2=9,H2=12),H2,IF(H2<12,"10_11",IF(H2<15,"13_14",IF(H2<17,"15_16",IF(H2<19,"17_18",19))))) -> 15_16
B62: TBN | C62: ="TBN_"&C59&"_"&C60 -> TBN_männlich_15_16
C63: =C62&"[Beschreibung]" -> TBN_männlich_15_16[Beschreibung]
B65: TN | C65: ="TN_"&C59&"_"&C60 -> TN_männlich_15_16
C66: =C65&"[Beschreibung]" -> TN_männlich_15_16[Beschreibung]
B68: TV | C68: ="TV_"&F1&"_"&C60 -> TV_männlich_15_16
B70: BKÜ | C70: ="BKÜ"&IF(H2=9,"_9",IF(H2<12,"_10_11",IF(H2<14,"_12_13",IF(H2<17,"_14_16","_17")))) -> BKÜ_14_16
B72: G_TV | C72: =IF(H2<17,"beide",F1) -> beide
B73: TV | C73: ="TV_"&C72&"_"&C60 -> TV_beide_15_16
B75: =SUM(H19,H9,H51) -> 101.5 | C75: Vergleichspunktzahl aus Kraft, Beweglichkeit, Grundlagenausdauer, Bodenübung
B76: =IF(B75>95,"Ja","Nein") -> Ja | C76: Vergleichspunktzahl erfüllt?
B77: =IF(F1="Weiblich",VLOOKUP(H2,Punktetabellen!$D$43:$F$49,3,1),VLOOKUP(H2,Punktetabellen!$D$43:$F$49,2,1)) -> 162 | C77: Mindest-Gesamtwert
B78: =IF(H52>=B77,"Ja","Nein") -> Ja | C78: Gesamtwert erfüllt?
B79: =IF(AND(B76="Ja",B78="Ja"),"Ja","Nein") -> Ja | C79: Alles erfüllt?

Sheet LauhöferSaskia
A1: Name | B1: Lauhöfer, Saskia | F1: weiblich | G1: Jahrgang | H1: 2003
A2: Verein | B2: Frankfurt Flyers | G2: AK | H2: =2020-H1 -> 17
A3: Übung | F3: Wert | G3: Berechnung | H3: Punkte
A4: Fußdehnung | G4: Bild | H4: =F4 -> 0
A5: Briefmarke mit Armrumpfwinkel | G5: Bild | H5: =F5 -> 0
A6: Bückbeweglichkeit | G6: Tabelle | H6: =IF(F6="",0,VLOOKUP(F6,Punktetabellen!A10:B15,2,1)) -> 0
A7: Querspagat links | F7: 0 | G7: Tabelle | H7: =IF(F7="",0,VLOOKUP(F7,Punktetabellen!A3:B6,2,0)) -> 10
A8: Querspagat rechts | F8: 10 cm oder mehr | G8: Tabelle | H8: =IF(F8="",0,VLOOKUP(F8,Punktetabellen!A3:B6,2,0)) -> 0
A9: Gesamtpunktzahl Beweglichkeit | H9: =SUM(H4:H8) -> 10
A10: Übung | F10: Wert | G10: Berechnung | H10: Punktzahl
A11: Klimmzug | G11: Tabelle | H11: =IF(F11="",0,IF(H2<12,VLOOKUP(F11,Punktetabellen!D4:F14,3,1),VLOOKUP(F11,Punktetabellen!E4:F14,2,1))) -> 0
A12: Beinheben | G12: Tabelle | H12: =IF(H2=9,VLOOKUP(F12,Punktetabellen!D19:F29,3,1),VLOOKUP(F12,Punktetabellen!E19:F29,2,1)) -> 0
A13: Flieger | G13: Tabelle | H13: =IF(H2=9,VLOOKUP(F13,Punktetabellen!H4:K9,4,1),IF(H2<12,VLOOKUP(F13,Punktetabellen!I4:K9,3,1),VLOOKUP(F13,Punktetabellen!J4:K9,2,1))) -> 0
A14: Rollenverbindung | G14: Tabelle | H14: =IF(H2=9,VLOOKUP(F14,Punktetabellen!H14:K24,4,1),IF(H2<12,VLOOKUP(F14,Punktetabellen!I14:K24,3,1),VLOOKUP(F14,Punktetabellen!J14:K24,2,1))) -> 0
A15: Prellsprünge | F15: 5 | G15: Tabelle | H15: =IF(H2=9,VLOOKUP(F15,Punktetabellen!M4:Q14,5,1),IF(H2<12,VLOOKUP(F15,Punktetabellen!N4:Q14,4,1),IF(H2<14,VLOOKUP(F15,Punktetabellen!O4:Q14,3,1),VLOOKUP(F15,Punktetabellen!P4:Q14,2,1)))) -> 5
A16: Handstandstehen | G16: Tabelle | H16: =IF(F16="",0,IF(H2<10,VLOOKUP(F16,Punktetabellen!D34:F40,3,1),VLOOKUP(F16,Punktetabellen!E34:F40,2,1))) -> 0
A17: Schweizer, Wiener | C17: =IF(H2<12,"",IF(AND(H2>13,H2<17),"Schweizer: ","Wiener: ")) -> Wiener: | E17: =IF(H2<12,"",IF(AND(H2>13,H2<17),"Wiener: ","Schweizer: ")) -> Schweizer: | G17: Tabelle | H17: =IF(H2<12,VLOOKUP(F17,Punktetabellen!A20:B25,2,1),((MIN(5,1*D17)*2)+MIN(MAX(0,5-(1*D17)),(1*F17)))) -> 0
A18: Bleep-Test | F18: L7 S5 | G18: Tabelle | H18: =IF(F18="",0,VLOOKUP(F18,INDIRECT(C55),2,0)) -> 3
A19: Gesamtpunktzahl Kraft/Kondition | H19: =SUM(H11:H18) -> 8
A20: Übung | D20: Max / Soll | E20: Max. Abzug | F20: Abzug / Ist | G20: Berechnung | H20: Punkte
A21: Standsprunghöhe | D21: =IF(F1="männlich",VLOOKUP(H2,Standsprünge!A3:C15,3,0),VLOOKUP(H2,Standsprünge!A3:B15,2,0)) -> 16.3 | G21: (Ist - Soll) x 10 | H21: =IF(F21="",0,(F21-D21)*10) -> 0
A22: =IF(H2>16,"entfällt","TBN") -> entfällt | D22: =IF(C22="","",VLOOKUP(C22,INDIRECT($C$62),2,0)) ->  | E22: =IF(C22="","",VLOOKUP(C22,INDIRECT($C$62),3,0)) ->  | G22: =IF(H2>16,"entfällt","Wert - Abzug") -> entfällt | H22: =IF(A22="entfällt",0,IF(F22="",0,D22-F22)) -> 0
A23: =IF(H2>16,"entfällt","TBN") -> entfällt | D23: =IF(C23="","",VLOOKUP(C23,INDIRECT($C$62),2,0)) ->  | E23: =IF(C23="","",VLOOKUP(C23,INDIRECT($C$62),3,0)) ->  | G23: =IF(H2>16,"entfällt","Wert - Abzug") -> entfällt | H23: =IF(A23="entfällt",0,IF(F23="",0,D23-F23)) -> 0
A24: =IF(H2>12,"entfällt","TBN") -> entfällt | D24: =IF(C24="","",VLOOKUP(C24,INDIRECT($C$62),2,0)) ->  | E24: =IF(C24="","",VLOOKUP(C24,INDIRECT($C$62),3,0)) ->  | G24: =IF(H2>16,"entfällt","Wert - Abzug") -> entfällt | H24: 0
A25: TN | B25: =IF(C25="","",VLOOKUP(C25,INDIRECT($C$65),2,0)) ->  | D25: =IF(C25="","",VLOOKUP(C25,INDIRECT($C$65),3,0)) ->  | E25: =IF(C25="","",VLOOKUP(C25,INDIRECT($C$65),4,0)) ->  | G25: Wert - Abzug | H25: 0
A26: TN | G26: Wert - Abzug | H26: 0
A27: TN | G27: Wert - Abzug | H27: 0
A28: =IF(H2>12,"TN","entfällt") -> TN | G28: =IF(H2>12,"Wert - Abzug","entfällt") -> Wert - Abzug | H28: 0
A29: =IF(H2>16,"TN","entfällt") -> TN | G29: =IF(H2>16,"Wert - Abzug","entfällt") -> Wert - Abzug | H29: 0
A30: =IF(H2>16,"TN","entfällt") -> TN | G30: =IF(H2>16,"Wert - Abzug","entfällt") -> Wert - Abzug | H30: =IF(A30="entfällt",0,IF(F30="",0,D30-F30)) -> 0
A31: =IF($H$2>11,"Verbindung Sprung 1","entfällt") -> Verbindung Sprung 1 | C31: =IF(A31<>"entfällt",VLOOKUP(1,INDIRECT($C$73),2,0),"") -> 803< | D31: =IF(A31<>"entfällt",VLOOKUP(1,INDIRECT($C$73),3,0),"") -> 15 | E31: =IF(A31<>"entfällt",VLOOKUP(1,INDIRECT($C$73),4,0),"") -> 3 | G31: =IF(H2>12,"Wert - Abzug","entfällt") -> Wert - Abzug | H31: =IF(A31="entfällt",0,IF(F31="",0,D31-F31)) -> 0
A32: =IF($H$2>11,"Verbindung Sprung 2","entfällt") -> Verbindung Sprung 2 | C32: =IF(A32<>"entfällt",VLOOKUP(2,INDIRECT($C$73),2,0),"") -> 40< | D32: =IF(A32<>"entfällt",VLOOKUP(2,INDIRECT($C$73),3,0),"") -> 6 | E32: =IF(A32<>"entfällt",VLOOKUP(2,INDIRECT($C$73),4,0),"") -> 3 | G32: =IF(H2>12,"Wert - Abzug","entfällt") -> Wert - Abzug | H32: =IF(A32="entfällt",0,IF(F32="",0,D32-F32)) -> 0
A33: =IF($H$2>11,"Verbindung Sprung 3","entfällt") -> Verbindung Sprung 3 | C33: =IF(A33<>"entfällt",VLOOKUP(3,INDIRECT($C$73),2,0),"") -> 801< | D33: =IF(A33<>"entfällt",VLOOKUP(3,INDIRECT($C$73),3,0),"") -> 13 | E33: =IF(A33<>"entfällt",VLOOKUP(3,INDIRECT($C$73),4,0),"") -> 3 | G33: =IF(H2>12,"Wert - Abzug","entfällt") -> Wert - Abzug | H33: 0
A34: =IF($H$2>11,"Verbindung Sprung 4","entfällt") -> Verbindung Sprung 4 | C34: =IF(A34<>"entfällt",VLOOKUP(4,INDIRECT($C$73),2,0),"") -> 40/ | D34: =IF(A34<>"entfällt",VLOOKUP(4,INDIRECT($C$73),3,0),"") -> 6 | E34: =IF(A34<>"entfällt",VLOOKUP(4,INDIRECT($C$73),4,0),"") -> 3 | G34: =IF(H2>12,"Wert - Abzug","entfällt") -> Wert - Abzug | H34: 0
A35: =IF($H$2>11,"Verbindung Sprung 5","entfällt") -> Verbindung Sprung 5 | C35: =IF(A35<>"entfällt",VLOOKUP(5,INDIRECT($C$73),2,0),"") -> 41/ | D35: =IF(A35<>"entfällt",VLOOKUP(5,INDIRECT($C$73),3,0),"") -> 6 | E35: =IF(A35<>"entfällt",VLOOKUP(5,INDIRECT($C$73),4,0),"") -> 3 | G35: =IF(H2>12,"Wert - Abzug","entfällt") -> Wert - Abzug | H35: 0
A36: =IF($H$2>11,"Verbindung Sprung 6","entfällt") -> Verbindung Sprung 6 | C36: =IF(A36<>"entfällt",VLOOKUP(6,INDIRECT($C$73),2,0),"") -> 811° | D36: =IF(A36<>"entfällt",VLOOKUP(6,INDIRECT($C$73),3,0),"") -> 12 | E36: =IF(A36<>"entfällt",VLOOKUP(6,INDIRECT($C$73),4,0),"") -> 3 | G36: =IF(H2>12,"Wert - Abzug","entfällt") -> Wert - Abzug | H36: =IF(A36="entfällt",0,IF(F36="",0,D36-F36)) -> 0
A37: Gesamtpunktzahl Trampolin | H37: =SUM(H21:H36) -> 0
A38: Element | E38: Wert | F38: Abzug | G38: Berechnung | H38: Punkte
A39: =VLOOKUP(1,INDIRECT($C$70),2,0) -> Salto vorwärts gehockt aus dem Stand | E39: =VLOOKUP(1,INDIRECT($C$70),3,0) -> 5 | F39: 3 | G39: Wert - Abzug | H39: =IF(E39=" ","",IF(F39="",0,E39-F39)) -> 2
A40: =VLOOKUP(2,INDIRECT($C$70),2,0) -> Vorspreizen, Bestellschritt, Strecksprung 3/2 Drehung | E40: =VLOOKUP(2,INDIRECT($C$70),3,0) -> 3 | G40: Wert - Abzug | H40: =IF(E40=" ","",IF(F40="",0,E40-F40)) -> 0
A41: =VLOOKUP(3,INDIRECT($C$70),2,0) -> Rolle rückwärts durch Handstand mit 1/2 Drehung | E41: =VLOOKUP(3,INDIRECT($C$70),3,0) -> 4 | G41: Wert - Abzug | H41: 0
A42: =VLOOKUP(4,INDIRECT($C$70),2,0) -> --> Strecksprung --> Salto vorwärts gehockt | E42: =VLOOKUP(4,INDIRECT($C$70),3,0) -> 4 | F42: 2 | G42: Wert - Abzug | H42: 2
A43: =VLOOKUP(5,INDIRECT($C$70),2,0) -> Wiener, 1/2 Drehung, absenken zum Stand | E43: =VLOOKUP(5,INDIRECT($C$70),3,0) -> 4 | G43: Wert - Abzug | H43: 0
A44: =VLOOKUP(6,INDIRECT($C$70),2,0) -> Handstand mit zwei Hüpfern, abrollen | E44: =VLOOKUP(6,INDIRECT($C$70),3,0) -> 2 | F44: 0 | G44: Wert - Abzug | H44: 2
A45: =VLOOKUP(7,INDIRECT($C$70),2,0) -> --> aufstehen mit gestreckten Beinen | E45: =VLOOKUP(7,INDIRECT($C$70),3,0) -> 3 | F45: 0 | G45: Wert - Abzug | H45: 3
A46: =VLOOKUP(8,INDIRECT($C$70),2,0) -> Salto rückwärts gebückt | E46: =VLOOKUP(8,INDIRECT($C$70),3,0) -> 5 | G46: Wert - Abzug | H46: 0
A47: =VLOOKUP(9,INDIRECT($C$70),2,0) ->  | E47: =VLOOKUP(9,INDIRECT($C$70),3,0) ->  | G47: =IF(H2>16,"","Wert - Abzug") -> 
A48: =VLOOKUP(10,INDIRECT($C$70),2,0) ->  | E48: =VLOOKUP(10,INDIRECT($C$70),3,0) ->  | G48: =IF(H2>16,"","Wert - Abzug") -> 
A49: =VLOOKUP(11,INDIRECT($C$70),2,0) ->  | E49: =VLOOKUP(11,INDIRECT($C$70),3,0) ->  | G49: =IF(H2>13,"","Wert - Abzug") -> 
A50: =VLOOKUP(12,INDIRECT($C$70),2,0) ->  | E50: =VLOOKUP(12,INDIRECT($C$70),3,0) ->  | G50: =IF(OR(H2=9,H2=12,H2=13),"Wert - Abzug","") -> 
A51: Gesamtpunktzahl Bodenkomplexübung | H51: =SUM(H39:H50) -> 9
A52: Gesamtpunktzahl | H52: =SUM(H9,H19,H37,H51) -> 27
B55: Shuttles | C55: ="Shuttles_"&F1&IF(H2=9,"_9",IF(H2<12,"_10_11",IF(H2<14,"_12_13",IF(H2<17,"_14_16","_17")))) -> Shuttles_weiblich_17
C56: ="Shuttles_"&F1&IF(H2=9,"_9",IF(H2<12,"_10_11",IF(H2<14,"_12_13",IF(H2<17,"_14_16","_17"))))&"[Shuttle]" -> Shuttles_weiblich_17[Shuttle]
C57: ="Shuttles_"&F1&IF(H2=9,"_9",IF(H2<12,"_10_11",IF(H2<14,"_12_13",IF(H2<17,"_14_16","_17"))))&"[Punkte]" -> Shuttles_weiblich_17[Punkte]
B59: G_TBN TN BKÜ | C59: =IF(H2<13,"beide",F1) -> weiblich
B60: AK | C60: =IF(OR(H2=9,H2=12),H2,IF(H2<12,"10_11",IF(H2<15,"13_14",IF(H2<17,"15_16",IF(H2<19,"17_18",19))))) -> 17_18
B62: TBN | C62: ="TBN_"&C59&"_"&C60 -> TBN_weiblich_17_18
C63: =C62&"[Beschreibung]" -> TBN_weiblich_17_18[Beschreibung]
B65: TN | C65: ="TN_"&C59&"_"&C60 -> TN_weiblich_17_18
C66: =C65&"[Beschreibung]" -> TN_weiblich_17_18[Beschreibung]
B68: TV | C68: ="TV_"&F1&"_"&C60 -> TV_weiblich_17_18
B70: BKÜ | C70: ="BKÜ"&IF(H2=9,"_9",IF(H2<12,"_10_11",IF(H2<14,"_12_13",IF(H2<17,"_14_16","_17")))) -> BKÜ_17
B72: G_TV | C72: =IF(H2<17,"beide",F1) -> weiblich
B73: TV | C73: ="TV_"&C72&"_"&C60 -> TV_weiblich_17_18
B75: =SUM(H19,H9,H51) -> 27 | C75: Vergleichspunktzahl aus Kraft, Beweglichkeit, Grundlagenausdauer, Bodenübung
B76: =IF(B75>95,"Ja","Nein") -> Nein | C76: Vergleichspunktzahl erfüllt?
B77: =IF(F1="Weiblich",VLOOKUP(H2,Punktetabellen!$D$43:$F$49,3,1),VLOOKUP(H2,Punktetabellen!$D$43:$F$49,2,1)) -> 169 | C77: Mindest-Gesamtwert
B78: =IF(H52>=B77,"Ja","Nein") -> Nein | C78: Gesamtwert erfüllt?
B79: =IF(AND(B76="Ja",B78="Ja"),"Ja","Nein") -> Nein | C79: Alles erfüllt?

Sheet MeinertPaul
A1: Name | B1: Meinert, Paul | F1: männlich | G1: Jahrgang | H1: 2004
A2: Verein | B2: TV Blecher | G2: AK | H2: =2020-H1 -> 16
A3: Übung | F3: Wert | G3: Berechnung | H3: Punkte
A4: Fußdehnung | F4: 6 | G4: Bild | H4: =F4 -> 6
A5: Briefmarke mit Armrumpfwinkel | F5: 6 | G5: Bild | H5: =F5 -> 6
A6: Bückbeweglichkeit | F6: 20 | G6: Tabelle | H6: =IF(F6="",0,VLOOKUP(F6,Punktetabellen!A10:B15,2,1)) -> 10
A7: Querspagat links | F7: <5 cm | G7: Tabelle | H7: =IF(F7="",0,VLOOKUP(F7,Punktetabellen!A3:B6,2,0)) -> 6
A8: Querspagat rechts | F8: <5 cm | G8: Tabelle | H8: =IF(F8="",0,VLOOKUP(F8,Punktetabellen!A3:B6,2,0)) -> 6
A9: Gesamtpunktzahl Beweglichkeit | H9: =SUM(H4:H8) -> 34
A10: Übung | F10: Wert | G10: Berechnung | H10: Punktzahl
A11: Klimmzug | F11: 15 | G11: Tabelle | H11: =IF(F11="",0,IF(H2<12,VLOOKUP(F11,Punktetabellen!D4:F14,3,1),VLOOKUP(F11,Punktetabellen!E4:F14,2,1))) -> 10
A12: Beinheben | F12: 5 | G12: Tabelle | H12: =IF(H2=9,VLOOKUP(F12,Punktetabellen!D19:F29,3,1),VLOOKUP(F12,Punktetabellen!E19:F29,2,1)) -> 2
A13: Flieger | F13: 90 | G13: Tabelle | H13: =IF(H2=9,VLOOKUP(F13,Punktetabellen!H4:K9,4,1),IF(H2<12,VLOOKUP(F13,Punktetabellen!I4:K9,3,1),VLOOKUP(F13,Punktetabellen!J4:K9,2,1))) -> 4
A14: Rollenverbindung | F14: 29 | G14: Tabelle | H14: =IF(H2=9,VLOOKUP(F14,Punktetabellen!H14:K24,4,1),IF(H2<12,VLOOKUP(F14,Punktetabellen!I14:K24,3,1),VLOOKUP(F14,Punktetabellen!J14:K24,2,1))) -> 10
A15: Prellsprünge | F15: 10 | G15: Tabelle | H15: =IF(H2=9,VLOOKUP(F15,Punktetabellen!M4:Q14,5,1),IF(H2<12,VLOOKUP(F15,Punktetabellen!N4:Q14,4,1),IF(H2<14,VLOOKUP(F15,Punktetabellen!O4:Q14,3,1),VLOOKUP(F15,Punktetabellen!P4:Q14,2,1)))) -> 10
A16: Handstandstehen | F16: 30 | G16: Tabelle | H16: =IF(F16="",0,IF(H2<10,VLOOKUP(F16,Punktetabellen!D34:F40,3,1),VLOOKUP(F16,Punktetabellen!E34:F40,2,1))) -> 10
A17: Schweizer, Wiener | C17: =IF(H2<12,"",IF(AND(H2>13,H2<17),"Schweizer: ","Wiener: ")) -> Schweizer: | D17: 0 | E17: =IF(H2<12,"",IF(AND(H2>13,H2<17),"Wiener: ","Schweizer: ")) -> Wiener: | F17: 0 | G17: Tabelle | H17: =IF(H2<12,VLOOKUP(F17,Punktetabellen!A20:B25,2,1),((MIN(5,1*D17)*2)+MIN(MAX(0,5-(1*D17)),(1*F17)))) -> 0
A18: Bleep-Test | F18: L10 S11 | G18: Tabelle | H18: =IF(F18="",0,VLOOKUP(F18,INDIRECT(C55),2,0)) -> 8
A19: Gesamtpunktzahl Kraft/Kondition | H19: =SUM(H11:H18) -> 54
A20: Übung | D20: Max / Soll | E20: Max. Abzug | F20: Abzug / Ist | G20: Berechnung | H20: Punkte
A21: Standsprunghöhe | D21: =IF(F1="männlich",VLOOKUP(H2,Standsprünge!A3:C15,3,0),VLOOKUP(H2,Standsprünge!A3:B15,2,0)) -> 16.8 | F21: 17.14 | G21: (Ist - Soll) x 10 | H21: =IF(F21="",0,(F21-D21)*10) -> 3.4
A22: =IF(H2>16,"entfällt","TBN") -> TBN | D22: =IF(C22="","",VLOOKUP(C22,INDIRECT($C$62),2,0)) ->  | E22: =IF(C22="","",VLOOKUP(C22,INDIRECT($C$62),3,0)) ->  | G22: =IF(H2>16,"entfällt","Wert - Abzug") -> Wert - Abzug | H22: =IF(A22="entfällt",0,IF(F22="",0,D22-F22)) -> 0
A23: =IF(H2>16,"entfällt","TBN") -> TBN | D23: =IF(C23="","",VLOOKUP(C23,INDIRECT($C$62),2,0)) ->  | E23: =IF(C23="","",VLOOKUP(C23,INDIRECT($C$62),3,0)) ->  | G23: =IF(H2>16,"entfällt","Wert - Abzug") -> Wert - Abzug | H23: =IF(A23="entfällt",0,IF(F23="",0,D23-F23)) -> 0
A24: =IF(H2>12,"entfällt","TBN") -> entfällt | D24: =IF(C24="","",VLOOKUP(C24,INDIRECT($C$62),2,0)) ->  | E24: =IF(C24="","",VLOOKUP(C24,INDIRECT($C$62),3,0)) ->  | G24: =IF(H2>16,"entfällt","Wert - Abzug") -> Wert - Abzug | H24: 0
A25: TN | B25: =IF(C25="","",VLOOKUP(C25,INDIRECT($C$65),2,0)) -> 803< | C25: Fliffisrudi b | D25: =IF(C25="","",VLOOKUP(C25,INDIRECT($C$65),3,0)) -> 15 | E25: =IF(C25="","",VLOOKUP(C25,INDIRECT($C$65),4,0)) -> 6 | F25: 4 | G25: Wert - Abzug | H25: 11
A26: TN | G26: Wert - Abzug | H26: 0
A27: TN | G27: Wert - Abzug | H27: 0
A28: =IF(H2>12,"TN","entfällt") -> TN | G28: =IF(H2>12,"Wert - Abzug","entfällt") -> Wert - Abzug | H28: 0
A29: =IF(H2>16,"TN","entfällt") -> entfällt | G29: =IF(H2>16,"Wert - Abzug","entfällt") -> entfällt | H29: 0
A30: =IF(H2>16,"TN","entfällt") -> entfällt | G30: =IF(H2>16,"Wert - Abzug","entfällt") -> entfällt | H30: =IF(A30="entfällt",0,IF(F30="",0,D30-F30)) -> 0
A31: =IF($H$2>11,"Verbindung Sprung 1","entfällt") -> Verbindung Sprung 1 | C31: =IF(A31<>"entfällt",VLOOKUP(1,INDIRECT($C$73),2,0),"") -> 801< | D31: =IF(A31<>"entfällt",VLOOKUP(1,INDIRECT($C$73),3,0),"") -> 13 | E31: =IF(A31<>"entfällt",VLOOKUP(1,INDIRECT($C$73),4,0),"") -> 3 | F31: 2 | G31: =IF(H2>12,"Wert - Abzug","entfällt") -> Wert - Abzug | H31: =IF(A31="entfällt",0,IF(F31="",0,D31-F31)) -> 11
A32: =IF($H$2>11,"Verbindung Sprung 2","entfällt") -> Verbindung Sprung 2 | C32: =IF(A32<>"entfällt",VLOOKUP(2,INDIRECT($C$73),2,0),"") -> 40< | D32: =IF(A32<>"entfällt",VLOOKUP(2,INDIRECT($C$73),3,0),"") -> 6 | E32: =IF(A32<>"entfällt",VLOOKUP(2,INDIRECT($C$73),4,0),"") -> 3 | F32: 1 | G32: =IF(H2>12,"Wert - Abzug","entfällt") -> Wert - Abzug | H32: =IF(A32="entfällt",0,IF(F32="",0,D32-F32)) -> 5
A33: =IF($H$2>11,"Verbindung Sprung 3","entfällt") -> Verbindung Sprung 3 | C33: =IF(A33<>"entfällt",VLOOKUP(3,INDIRECT($C$73),2,0),"") -> 801° | D33: =IF(A33<>"entfällt",VLOOKUP(3,INDIRECT($C$73),3,0),"") -> 11 | E33: =IF(A33<>"entfällt",VLOOKUP(3,INDIRECT($C$73),4,0),"") -> 3 | F33: 2 | G33: =IF(H2>12,"Wert - Abzug","entfällt") -> Wert - Abzug | H33: 9
A34: =IF($H$2>11,"Verbindung Sprung 4","entfällt") -> Verbindung Sprung 4 | C34: =IF(A34<>"entfällt",VLOOKUP(4,INDIRECT($C$73),2,0),"") -> 40/ | D34: =IF(A34<>"entfällt",VLOOKUP(4,INDIRECT($C$73),3,0),"") -> 6 | E34: =IF(A34<>"entfällt",VLOOKUP(4,INDIRECT($C$73),4,0),"") -> 3 | F34: 1 | G34: =IF(H2>12,"Wert - Abzug","entfällt") -> Wert - Abzug | H34: 5
A35: =IF($H$2>11,"Verbindung Sprung 5","entfällt") -> Verbindung Sprung 5 | C35: =IF(A35<>"entfällt",VLOOKUP(5,INDIRECT($C$73),2,0),"") -> 41/ | D35: =IF(A35<>"entfällt",VLOOKUP(5,INDIRECT($C$73),3,0),"") -> 6 | E35: =IF(A35<>"entfällt",VLOOKUP(5,INDIRECT($C$73),4,0),"") -> 3 | F35: 2 | G35: =IF(H2>12,"Wert - Abzug","entfällt") -> Wert - Abzug | H35: 4
A36: =IF($H$2>11,"Verbindung Sprung 6","entfällt") -> Verbindung Sprung 6 | C36: =IF(A36<>"entfällt",VLOOKUP(6,INDIRECT($C$73),2,0),"") -> 800° | D36: =IF(A36<>"entfällt",VLOOKUP(6,INDIRECT($C$73),3,0),"") -> 10 | E36: =IF(A36<>"entfällt",VLOOKUP(6,INDIRECT($C$73),4,0),"") -> 3 | F36: 2 | G36: =IF(H2>12,"Wert - Abzug","entfällt") -> Wert - Abzug | H36: =IF(A36="entfällt",0,IF(F36="",0,D36-F36)) -> 8
A37: Gesamtpunktzahl Trampolin | H37: =SUM(H21:H36) -> 56.4
A38: Element | E38: Wert | F38: Abzug | G38: Berechnung | H38: Punkte
A39: =VLOOKUP(1,INDIRECT($C$70),2,0) -> Flugrolle mit Überstrecken mit Anlauf | E39: =VLOOKUP(1,INDIRECT($C$70),3,0) -> 3 | F39: 0 | G39: Wert - Abzug | H39: =IF(E39=" ","",IF(F39="",0,E39-F39)) -> 3
A40: =VLOOKUP(2,INDIRECT($C$70),2,0) -> --> Strecksprung, Salto vorwärts gehockt | E40: =VLOOKUP(2,INDIRECT($C$70),3,0) -> 4.5 | F40: 0 | G40: Wert - Abzug | H40: =IF(E40=" ","",IF(F40="",0,E40-F40)) -> 4.5
A41: =VLOOKUP(3,INDIRECT($C$70),2,0) -> Vorspreizen, Handstand mit 1/1 Drehung, abrollen | E41: =VLOOKUP(3,INDIRECT($C$70),3,0) -> 3 | F41: 0.5 | G41: Wert - Abzug | H41: 2.5
A42: =VLOOKUP(4,INDIRECT($C$70),2,0) -> --> Aufstehen mit gestreckten Beinen | E42: =VLOOKUP(4,INDIRECT($C$70),3,0) -> 3 | F42: 0.5 | G42: Wert - Abzug | H42: 2.5
A43: =VLOOKUP(5,INDIRECT($C$70),2,0) -> Vorspreizen, Bestellschritt, Strecksprung 3/2 Drehung | E43: =VLOOKUP(5,INDIRECT($C$70),3,0) -> 3 | G43: Wert - Abzug | H43: 0
A44: =VLOOKUP(6,INDIRECT($C$70),2,0) -> Salto rückwärts gehockt | E44: =VLOOKUP(6,INDIRECT($C$70),3,0) -> 3 | F44: 1.5 | G44: Wert - Abzug | H44: 1.5
A45: =VLOOKUP(7,INDIRECT($C$70),2,0) -> Handstützüberschlag | E45: =VLOOKUP(7,INDIRECT($C$70),3,0) -> 3 | F45: 1 | G45: Wert - Abzug | H45: 2
A46: =VLOOKUP(8,INDIRECT($C$70),2,0) -> --> Ansprung Schrittstellung, Handstand mit zwei Hüpfern | E46: =VLOOKUP(8,INDIRECT($C$70),3,0) -> 3 | F46: 1 | G46: Wert - Abzug | H46: 2
A47: =VLOOKUP(9,INDIRECT($C$70),2,0) -> Abrollen --> Strecksprung 1/2 Drehung | E47: =VLOOKUP(9,INDIRECT($C$70),3,0) -> 1.5 | F47: 0 | G47: =IF(H2>16,"","Wert - Abzug") -> Wert - Abzug | H47: 1.5
A48: =VLOOKUP(10,INDIRECT($C$70),2,0) -> Salto vorwärts gebückt mit Anlauf | E48: =VLOOKUP(10,INDIRECT($C$70),3,0) -> 3 | F48: 1 | G48: =IF(H2>16,"","Wert - Abzug") -> Wert - Abzug | H48: 2
A49: =VLOOKUP(11,INDIRECT($C$70),2,0) ->  | E49: =VLOOKUP(11,INDIRECT($C$70),3,0) ->  | G49: =IF(H2>13,"","Wert - Abzug") -> 
A50: =VLOOKUP(12,INDIRECT($C$70),2,0) ->  | E50: =VLOOKUP(12,INDIRECT($C$70),3,0) ->  | G50: =IF(OR(H2=9,H2=12,H2=13),"Wert - Abzug","") -> 
A51: Gesamtpunktzahl Bodenkomplexübung | H51: =SUM(H39:H50) -> 21.5
A52: Gesamtpunktzahl | H52: =SUM(H9,H19,H37,H51) -> 165.9
B55: Shuttles | C55: ="Shuttles_"&F1&IF(H2=9,"_9",IF(H2<12,"_10_11",IF(H2<14,"_12_13",IF(H2<17,"_14_16","_17")))) -> Shuttles_männlich_14_16
C56: ="Shuttles_"&F1&IF(H2=9,"_9",IF(H2<12,"_10_11",IF(H2<14,"_12_13",IF(H2<17,"_14_16","_17"))))&"[Shuttle]" -> Shuttles_männlich_14_16[Shuttle]
C57: ="Shuttles_"&F1&IF(H2=9,"_9",IF(H2<12,"_10_11",IF(H2<14,"_12_13",IF(H2<17,"_14_16","_17"))))&"[Punkte]" -> Shuttles_männlich_14_16[Punkte]
B59: G_TBN TN BKÜ | C59: =IF(H2<13,"beide",F1) -> männlich
B60: AK | C60: =IF(OR(H2=9,H2=12),H2,IF(H2<12,"10_11",IF(H2<15,"13_14",IF(H2<17,"15_16",IF(H2<19,"17_18",19))))) -> 15_16
B62: TBN | C62: ="TBN_"&C59&"_"&C60 -> TBN_männlich_15_16
C63: =C62&"[Beschreibung]" -> TBN_männlich_15_16[Beschreibung]
B65: TN | C65: ="TN_"&C59&"_"&C60 -> TN_männlich_15_16
C66: =C65&"[Beschreibung]" -> TN_männlich_15_16[Beschreibung]
B68: TV | C68: ="TV_"&F1&"_"&C60 -> TV_männlich_15_16
B70: BKÜ | C70: ="BKÜ"&IF(H2=9,"_9",IF(H2<12,"_10_11",IF(H2<14,"_12_13",IF(H2<17,"_14_16","_17")))) -> BKÜ_14_16
B72: G_TV | C72: =IF(H2<17,"beide",F1) -> beide
B73: TV | C73: ="TV_"&C72&"_"&C60 -> TV_beide_15_16
B75: =SUM(H19,H9,H51) -> 109.5 | C75: Vergleichspunktzahl aus Kraft, Beweglichkeit, Grundlagenausdauer, Bodenübung
B76: =IF(B75>95,"Ja","Nein") -> Ja | C76: Vergleichspunktzahl erfüllt?
B77: =IF(F1="Weiblich",VLOOKUP(H2,Punktetabellen!$D$43:$F$49,3,1),VLOOKUP(H2,Punktetabellen!$D$43:$F$49,2,1)) -> 162 | C77: Mindest-Gesamtwert
B78: =IF(H52>=B77,"Ja","Nein") -> Ja | C78: Gesamtwert erfüllt?
B79: =IF(AND(B76="Ja",B78="Ja"),"Ja","Nein") -> Ja | C79: Alles erfüllt?

Sheet RischValentin
A1: Name | B1: Risch, Valentin | F1: männlich | G1: Jahrgang | H1: 2005
A2: Verein | B2: SG Frankfurt-Nied | G2: AK | H2: =2020-H1 -> 15
A3: Übung | F3: Wert | G3: Berechnung | H3: Punkte
A4: Fußdehnung | F4: 10 | G4: Bild | H4: =F4 -> 10
A5: Briefmarke mit Armrumpfwinkel | F5: 10 | G5: Bild | H5: =F5 -> 10
A6: Bückbeweglichkeit | F6: 24 | G6: Tabelle | H6: =IF(F6="",0,VLOOKUP(F6,Punktetabellen!A10:B15,2,1)) -> 10
A7: Querspagat links | F7: 0 | G7: Tabelle | H7: =IF(F7="",0,VLOOKUP(F7,Punktetabellen!A3:B6,2,0)) -> 10
A8: Querspagat rechts | F8: <5 cm | G8: Tabelle | H8: =IF(F8="",0,VLOOKUP(F8,Punktetabellen!A3:B6,2,0)) -> 6
A9: Gesamtpunktzahl Beweglichkeit | H9: =SUM(H4:H8) -> 46
A10: Übung | F10: Wert | G10: Berechnung | H10: Punktzahl
A11: Klimmzug | F11: 10 | G11: Tabelle | H11: =IF(F11="",0,IF(H2<12,VLOOKUP(F11,Punktetabellen!D4:F14,3,1),VLOOKUP(F11,Punktetabellen!E4:F14,2,1))) -> 5
A12: Beinheben | F12: 11 | G12: Tabelle | H12: =IF(H2=9,VLOOKUP(F12,Punktetabellen!D19:F29,3,1),VLOOKUP(F12,Punktetabellen!E19:F29,2,1)) -> 6
A13: Flieger | F13: 45 | G13: Tabelle | H13: =IF(H2=9,VLOOKUP(F13,Punktetabellen!H4:K9,4,1),IF(H2<12,VLOOKUP(F13,Punktetabellen!I4:K9,3,1),VLOOKUP(F13,Punktetabellen!J4:K9,2,1))) -> 0
A14: Rollenverbindung | F14: 24 | G14: Tabelle | H14: =IF(H2=9,VLOOKUP(F14,Punktetabellen!H14:K24,4,1),IF(H2<12,VLOOKUP(F14,Punktetabellen!I14:K24,3,1),VLOOKUP(F14,Punktetabellen!J14:K24,2,1))) -> 7
A15: Prellsprünge | F15: 10 | G15: Tabelle | H15: =IF(H2=9,VLOOKUP(F15,Punktetabellen!M4:Q14,5,1),IF(H2<12,VLOOKUP(F15,Punktetabellen!N4:Q14,4,1),IF(H2<14,VLOOKUP(F15,Punktetabellen!O4:Q14,3,1),VLOOKUP(F15,Punktetabellen!P4:Q14,2,1)))) -> 10
A16: Handstandstehen | F16: 30 | G16: Tabelle | H16: =IF(F16="",0,IF(H2<10,VLOOKUP(F16,Punktetabellen!D34:F40,3,1),VLOOKUP(F16,Punktetabellen!E34:F40,2,1))) -> 10
A17: Schweizer, Wiener | C17: =IF(H2<12,"",IF(AND(H2>13,H2<17),"Schweizer: ","Wiener: ")) -> Schweizer: | D17: 0 | E17: =IF(H2<12,"",IF(AND(H2>13,H2<17),"Wiener: ","Schweizer: ")) -> Wiener: | F17: 0 | G17: Tabelle | H17: =IF(H2<12,VLOOKUP(F17,Punktetabellen!A20:B25,2,1),((MIN(5,1*D17)*2)+MIN(MAX(0,5-(1*D17)),(1*F17)))) -> 0
A18: Bleep-Test | F18: L7 S10 | G18: Tabelle | H18: =IF(F18="",0,VLOOKUP(F18,INDIRECT(C55),2,0)) -> 2
A19: Gesamtpunktzahl Kraft/Kondition | H19: =SUM(H11:H18) -> 40
A20: Übung | D20: Max / Soll | E20: Max. Abzug | F20: Abzug / Ist | G20: Berechnung | H20: Punkte
A21: Standsprunghöhe | D21: =IF(F1="männlich",VLOOKUP(H2,Standsprünge!A3:C15,3,0),VLOOKUP(H2,Standsprünge!A3:B15,2,0)) -> 16.3 | F21: 16.615 | G21: (Ist - Soll) x 10 | H21: =IF(F21="",0,(F21-D21)*10) -> 3.15
A22: =IF(H2>16,"entfällt","TBN") -> TBN | C22: 7/4 Salto rw c, 1/1 ein 1/2 aus | D22: =IF(C22="","",VLOOKUP(C22,INDIRECT($C$62),2,0)) -> 11 | E22: =IF(C22="","",VLOOKUP(C22,INDIRECT($C$62),3,0)) -> 6 | F22: 2 | G22: =IF(H2>16,"entfällt","Wert - Abzug") -> Wert - Abzug | H22: =IF(A22="entfällt",0,IF(F22="",0,D22-F22)) -> 9
A23: =IF(H2>16,"entfällt","TBN") -> TBN | C23: 7/4 Salto rw b, 1/1 ein 1/2 aus | D23: =IF(C23="","",VLOOKUP(C23,INDIRECT($C$62),2,0)) -> 12 | E23: =IF(C23="","",VLOOKUP(C23,INDIRECT($C$62),3,0)) -> 6 | F23: 2 | G23: =IF(H2>16,"entfällt","Wert - Abzug") -> Wert - Abzug | H23: =IF(A23="entfällt",0,IF(F23="",0,D23-F23)) -> 10
A24: =IF(H2>12,"entfällt","TBN") -> entfällt | D24: =IF(C24="","",VLOOKUP(C24,INDIRECT($C$62),2,0)) ->  | E24: =IF(C24="","",VLOOKUP(C24,INDIRECT($C$62),3,0)) ->  | G24: =IF(H2>16,"entfällt","Wert - Abzug") -> Wert - Abzug | H24: 0
A25: TN | B25: =IF(C25="","",VLOOKUP(C25,INDIRECT($C$65),2,0)) -> 803< | C25: Fliffisrudi b | D25: =IF(C25="","",VLOOKUP(C25,INDIRECT($C$65),3,0)) -> 15 | E25: =IF(C25="","",VLOOKUP(C25,INDIRECT($C$65),4,0)) -> 6 | F25: 4 | G25: Wert - Abzug | H25: 11
A26: TN | B26: 12001° | C26: Triffis c | D26: 17 | E26: 6 | F26: 4 | G26: Wert - Abzug | H26: 13
A27: TN | B27: 821< | C27: 1/1 ein 1/2 aus b | D27: 15 | E27: 6 | F27: 4 | G27: Wert - Abzug | H27: 11
A28: =IF(H2>12,"TN","entfällt") -> TN | B28: 822° | C28: 1/1 ein 1/1 aus c | D28: 14 | E28: 6 | F28: 2 | G28: =IF(H2>12,"Wert - Abzug","entfällt") -> Wert - Abzug | H28: 12
A29: =IF(H2>16,"TN","entfällt") -> entfällt | G29: =IF(H2>16,"Wert - Abzug","entfällt") -> entfällt | H29: 0
A30: =IF(H2>16,"TN","entfällt") -> entfällt | G30: =IF(H2>16,"Wert - Abzug","entfällt") -> entfällt | H30: =IF(A30="entfällt",0,IF(F30="",0,D30-F30)) -> 0
A31: =IF($H$2>11,"Verbindung Sprung 1","entfällt") -> Verbindung Sprung 1 | C31: =IF(A31<>"entfällt",VLOOKUP(1,INDIRECT($C$73),2,0),"") -> 801< | D31: =IF(A31<>"entfällt",VLOOKUP(1,INDIRECT($C$73),3,0),"") -> 13 | E31: =IF(A31<>"entfällt",VLOOKUP(1,INDIRECT($C$73),4,0),"") -> 3 | F31: 1 | G31: =IF(H2>12,"Wert - Abzug","entfällt") -> Wert - Abzug | H31: =IF(A31="entfällt",0,IF(F31="",0,D31-F31)) -> 12
A32: =IF($H$2>11,"Verbindung Sprung 2","entfällt") -> Verbindung Sprung 2 | C32: =IF(A32<>"entfällt",VLOOKUP(2,INDIRECT($C$73),2,0),"") -> 40< | D32: =IF(A32<>"entfällt",VLOOKUP(2,INDIRECT($C$73),3,0),"") -> 6 | E32: =IF(A32<>"entfällt",VLOOKUP(2,INDIRECT($C$73),4,0),"") -> 3 | F32: 2 | G32: =IF(H2>12,"Wert - Abzug","entfällt") -> Wert - Abzug | H32: =IF(A32="entfällt",0,IF(F32="",0,D32-F32)) -> 4
A33: =IF($H$2>11,"Verbindung Sprung 3","entfällt") -> Verbindung Sprung 3 | C33: =IF(A33<>"entfällt",VLOOKUP(3,INDIRECT($C$73),2,0),"") -> 801° | D33: =IF(A33<>"entfällt",VLOOKUP(3,INDIRECT($C$73),3,0),"") -> 11 | E33: =IF(A33<>"entfällt",VLOOKUP(3,INDIRECT($C$73),4,0),"") -> 3 | F33: 2 | G33: =IF(H2>12,"Wert - Abzug","entfällt") -> Wert - Abzug | H33: 9
A34: =IF($H$2>11,"Verbindung Sprung 4","entfällt") -> Verbindung Sprung 4 | C34: =IF(A34<>"entfällt",VLOOKUP(4,INDIRECT($C$73),2,0),"") -> 40/ | D34: =IF(A34<>"entfällt",VLOOKUP(4,INDIRECT($C$73),3,0),"") -> 6 | E34: =IF(A34<>"entfällt",VLOOKUP(4,INDIRECT($C$73),4,0),"") -> 3 | F34: 2 | G34: =IF(H2>12,"Wert - Abzug","entfällt") -> Wert - Abzug | H34: 4
A35: =IF($H$2>11,"Verbindung Sprung 5","entfällt") -> Verbindung Sprung 5 | C35: =IF(A35<>"entfällt",VLOOKUP(5,INDIRECT($C$73),2,0),"") -> 41/ | D35: =IF(A35<>"entfällt",VLOOKUP(5,INDIRECT($C$73),3,0),"") -> 6 | E35: =IF(A35<>"entfällt",VLOOKUP(5,INDIRECT($C$73),4,0),"") -> 3 | F35: 1 | G35: =IF(H2>12,"Wert - Abzug","entfällt") -> Wert - Abzug | H35: 5
A36: =IF($H$2>11,"Verbindung Sprung 6","entfällt") -> Verbindung Sprung 6 | C36: =IF(A36<>"entfällt",VLOOKUP(6,INDIRECT($C$73),2,0),"") -> 800° | D36: =IF(A36<>"entfällt",VLOOKUP(6,INDIRECT($C$73),3,0),"") -> 10 | E36: =IF(A36<>"entfällt",VLOOKUP(6,INDIRECT($C$73),4,0),"") -> 3 | F36: 1 | G36: =IF(H2>12,"Wert - Abzug","entfällt") -> Wert - Abzug | H36: =IF(A36="entfällt",0,IF(F36="",0,D36-F36)) -> 9
A37: Gesamtpunktzahl Trampolin | H37: =SUM(H21:H36) -> 112.15
A38: Element | E38: Wert | F38: Abzug | G38: Berechnung | H38: Punkte
A39: =VLOOKUP(1,INDIRECT($C$70),2,0) -> Flugrolle mit Überstrecken mit Anlauf | E39: =VLOOKUP(1,INDIRECT($C$70),3,0) -> 3 | F39: 0 | G39: Wert - Abzug | H39: =IF(E39=" ","",IF(F39="",0,E39-F39)) -> 3
A40: =VLOOKUP(2,INDIRECT($C$70),2,0) -> --> Strecksprung, Salto vorwärts gehockt | E40: =VLOOKUP(2,INDIRECT($C$70),3,0) -> 4.5 | F40: 0 | G40: Wert - Abzug | H40: =IF(E40=" ","",IF(F40="",0,E40-F40)) -> 4.5
A41: =VLOOKUP(3,INDIRECT($C$70),2,0) -> Vorspreizen, Handstand mit 1/1 Drehung, abrollen | E41: =VLOOKUP(3,INDIRECT($C$70),3,0) -> 3 | F41: 1 | G41: Wert - Abzug | H41: 2
A42: =VLOOKUP(4,INDIRECT($C$70),2,0) -> --> Aufstehen mit gestreckten Beinen | E42: =VLOOKUP(4,INDIRECT($C$70),3,0) -> 3 | F42: 0 | G42: Wert - Abzug | H42: 3
A43: =VLOOKUP(5,INDIRECT($C$70),2,0) -> Vorspreizen, Bestellschritt, Strecksprung 3/2 Drehung | E43: =VLOOKUP(5,INDIRECT($C$70),3,0) -> 3 | F43: 2.5 | G43: Wert - Abzug | H43: 0.5
A44: =VLOOKUP(6,INDIRECT($C$70),2,0) -> Salto rückwärts gehockt | E44: =VLOOKUP(6,INDIRECT($C$70),3,0) -> 3 | F44: 0.5 | G44: Wert - Abzug | H44: 2.5
A45: =VLOOKUP(7,INDIRECT($C$70),2,0) -> Handstützüberschlag | E45: =VLOOKUP(7,INDIRECT($C$70),3,0) -> 3 | F45: 2 | G45: Wert - Abzug | H45: 1
A46: =VLOOKUP(8,INDIRECT($C$70),2,0) -> --> Ansprung Schrittstellung, Handstand mit zwei Hüpfern | E46: =VLOOKUP(8,INDIRECT($C$70),3,0) -> 3 | F46: 0 | G46: Wert - Abzug | H46: 3
A47: =VLOOKUP(9,INDIRECT($C$70),2,0) -> Abrollen --> Strecksprung 1/2 Drehung | E47: =VLOOKUP(9,INDIRECT($C$70),3,0) -> 1.5 | F47: 0.5 | G47: =IF(H2>16,"","Wert - Abzug") -> Wert - Abzug | H47: 1
A48: =VLOOKUP(10,INDIRECT($C$70),2,0) -> Salto vorwärts gebückt mit Anlauf | E48: =VLOOKUP(10,INDIRECT($C$70),3,0) -> 3 | F48: 0 | G48: =IF(H2>16,"","Wert - Abzug") -> Wert - Abzug | H48: 3
A49: =VLOOKUP(11,INDIRECT($C$70),2,0) ->  | E49: =VLOOKUP(11,INDIRECT($C$70),3,0) ->  | G49: =IF(H2>13,"","Wert - Abzug") -> 
A50: =VLOOKUP(12,INDIRECT($C$70),2,0) ->  | E50: =VLOOKUP(12,INDIRECT($C$70),3,0) ->  | G50: =IF(OR(H2=9,H2=12,H2=13),"Wert - Abzug","") -> 
A51: Gesamtpunktzahl Bodenkomplexübung | H51: =SUM(H39:H50) -> 23.5
A52: Gesamtpunktzahl | H52: =SUM(H9,H19,H37,H51) -> 221.65
B55: Shuttles | C55: ="Shuttles_"&F1&IF(H2=9,"_9",IF(H2<12,"_10_11",IF(H2<14,"_12_13",IF(H2<17,"_14_16","_17")))) -> Shuttles_männlich_14_16
C56: ="Shuttles_"&F1&IF(H2=9,"_9",IF(H2<12,"_10_11",IF(H2<14,"_12_13",IF(H2<17,"_14_16","_17"))))&"[Shuttle]" -> Shuttles_männlich_14_16[Shuttle]
C57: ="Shuttles_"&F1&IF(H2=9,"_9",IF(H2<12,"_10_11",IF(H2<14,"_12_13",IF(H2<17,"_14_16","_17"))))&"[Punkte]" -> Shuttles_männlich_14_16[Punkte]
B59: G_TBN TN BKÜ | C59: =IF(H2<13,"beide",F1) -> männlich
B60: AK | C60: =IF(OR(H2=9,H2=12),H2,IF(H2<12,"10_11",IF(H2<15,"13_14",IF(H2<17,"15_16",IF(H2<19,"17_18",19))))) -> 15_16
B62: TBN | C62: ="TBN_"&C59&"_"&C60 -> TBN_männlich_15_16
C63: =C62&"[Beschreibung]" -> TBN_männlich_15_16[Beschreibung]
B65: TN | C65: ="TN_"&C59&"_"&C60 -> TN_männlich_15_16
C66: =C65&"[Beschreibung]" -> TN_männlich_15_16[Beschreibung]
B68: TV | C68: ="TV_"&F1&"_"&C60 -> TV_männlich_15_16
B70: BKÜ | C70: ="BKÜ"&IF(H2=9,"_9",IF(H2<12,"_10_11",IF(H2<14,"_12_13",IF(H2<17,"_14_16","_17")))) -> BKÜ_14_16
B72: G_TV | C72: =IF(H2<17,"beide",F1) -> beide
B73: TV | C73: ="TV_"&C72&"_"&C60 -> TV_beide_15_16
B75: =SUM(H19,H9,H51) -> 109.5 | C75: Vergleichspunktzahl aus Kraft, Beweglichkeit, Grundlagenausdauer, Bodenübung
B76: =IF(B75>95,"Ja","Nein") -> Ja | C76: Vergleichspunktzahl erfüllt?
B77: =IF(F1="Weiblich",VLOOKUP(H2,Punktetabellen!$D$43:$F$49,3,1),VLOOKUP(H2,Punktetabellen!$D$43:$F$49,2,1)) -> 162 | C77: Mindest-Gesamtwert
B78: =IF(H52>=B77,"Ja","Nein") -> Ja | C78: Gesamtwert erfüllt?
B79: =IF(AND(B76="Ja",B78="Ja"),"Ja","Nein") -> Ja | C79: Alles erfüllt?

Sheet StöhrGabriela
A1: Name | B1: Stöhr, Gabriela | F1: weiblich | G1: Jahrgang | H1: 2002
A2: Verein | B2: Munich-Airrders | G2: AK | H2: =2020-H1 -> 18
A3: Übung | F3: Wert | G3: Berechnung | H3: Punkte
A4: Fußdehnung | F4: 10 | G4: Bild | H4: =F4 -> 10
A5: Briefmarke mit Armrumpfwinkel | F5: 10 | G5: Bild | H5: =F5 -> 10
A6: Bückbeweglichkeit | F6: 23 | G6: Tabelle | H6: =IF(F6="",0,VLOOKUP(F6,Punktetabellen!A10:B15,2,1)) -> 10
A7: Querspagat links | F7: 0 | G7: Tabelle | H7: =IF(F7="",0,VLOOKUP(F7,Punktetabellen!A3:B6,2,0)) -> 10
A8: Querspagat rechts | F8: 0 | G8: Tabelle | H8: =IF(F8="",0,VLOOKUP(F8,Punktetabellen!A3:B6,2,0)) -> 10
A9: Gesamtpunktzahl Beweglichkeit | H9: =SUM(H4:H8) -> 50
A10: Übung | F10: Wert | G10: Berechnung | H10: Punktzahl
A11: Klimmzug | F11: 8 | G11: Tabelle | H11: =IF(F11="",0,IF(H2<12,VLOOKUP(F11,Punktetabellen!D4:F14,3,1),VLOOKUP(F11,Punktetabellen!E4:F14,2,1))) -> 3
A12: Beinheben | F12: 3 | G12: Tabelle | H12: =IF(H2=9,VLOOKUP(F12,Punktetabellen!D19:F29,3,1),VLOOKUP(F12,Punktetabellen!E19:F29,2,1)) -> 1
A13: Flieger | F13: 90 | G13: Tabelle | H13: =IF(H2=9,VLOOKUP(F13,Punktetabellen!H4:K9,4,1),IF(H2<12,VLOOKUP(F13,Punktetabellen!I4:K9,3,1),VLOOKUP(F13,Punktetabellen!J4:K9,2,1))) -> 4
A14: Rollenverbindung | F14: 23 | G14: Tabelle | H14: =IF(H2=9,VLOOKUP(F14,Punktetabellen!H14:K24,4,1),IF(H2<12,VLOOKUP(F14,Punktetabellen!I14:K24,3,1),VLOOKUP(F14,Punktetabellen!J14:K24,2,1))) -> 7
A15: Prellsprünge | G15: Tabelle | H15: =IF(H2=9,VLOOKUP(F15,Punktetabellen!M4:Q14,5,1),IF(H2<12,VLOOKUP(F15,Punktetabellen!N4:Q14,4,1),IF(H2<14,VLOOKUP(F15,Punktetabellen!O4:Q14,3,1),VLOOKUP(F15,Punktetabellen!P4:Q14,2,1)))) -> 0
A16: Handstandstehen | F16: 30 | G16: Tabelle | H16: =IF(F16="",0,IF(H2<10,VLOOKUP(F16,Punktetabellen!D34:F40,3,1),VLOOKUP(F16,Punktetabellen!E34:F40,2,1))) -> 10
A17: Schweizer, Wiener | C17: =IF(H2<12,"",IF(AND(H2>13,H2<17),"Schweizer: ","Wiener: ")) -> Wiener: | D17: 0 | E17: =IF(H2<12,"",IF(AND(H2>13,H2<17),"Wiener: ","Schweizer: ")) -> Schweizer: | F17: 0 | G17: Tabelle | H17: =IF(H2<12,VLOOKUP(F17,Punktetabellen!A20:B25,2,1),((MIN(5,1*D17)*2)+MIN(MAX(0,5-(1*D17)),(1*F17)))) -> 0
A18: Bleep-Test | F18: L8 S5 | G18: Tabelle | H18: =IF(F18="",0,VLOOKUP(F18,INDIRECT(C55),2,0)) -> 5
A19: Gesamtpunktzahl Kraft/Kondition | H19: =SUM(H11:H18) -> 30
A20: Übung | D20: Max / Soll | E20: Max. Abzug | F20: Abzug / Ist | G20: Berechnung | H20: Punkte
A21: Standsprunghöhe | D21: =IF(F1="männlich",VLOOKUP(H2,Standsprünge!A3:C15,3,0),VLOOKUP(H2,Standsprünge!A3:B15,2,0)) -> 16.4 | G21: (Ist - Soll) x 10 | H21: =IF(F21="",0,(F21-D21)*10) -> 0
A22: =IF(H2>16,"entfällt","TBN") -> entfällt | D22: =IF(C22="","",VLOOKUP(C22,INDIRECT($C$62),2,0)) ->  | E22: =IF(C22="","",VLOOKUP(C22,INDIRECT($C$62),3,0)) ->  | G22: =IF(H2>16,"entfällt","Wert - Abzug") -> entfällt | H22: =IF(A22="entfällt",0,IF(F22="",0,D22-F22)) -> 0
A23: =IF(H2>16,"entfällt","TBN") -> entfällt | D23: =IF(C23="","",VLOOKUP(C23,INDIRECT($C$62),2,0)) ->  | E23: =IF(C23="","",VLOOKUP(C23,INDIRECT($C$62),3,0)) ->  | G23: =IF(H2>16,"entfällt","Wert - Abzug") -> entfällt | H23: =IF(A23="entfällt",0,IF(F23="",0,D23-F23)) -> 0
A24: =IF(H2>12,"entfällt","TBN") -> entfällt | D24: =IF(C24="","",VLOOKUP(C24,INDIRECT($C$62),2,0)) ->  | E24: =IF(C24="","",VLOOKUP(C24,INDIRECT($C$62),3,0)) ->  | G24: =IF(H2>16,"entfällt","Wert - Abzug") -> entfällt | H24: 0
A25: TN | B25: =IF(C25="","",VLOOKUP(C25,INDIRECT($C$65),2,0)) ->  | D25: =IF(C25="","",VLOOKUP(C25,INDIRECT($C$65),3,0)) ->  | E25: =IF(C25="","",VLOOKUP(C25,INDIRECT($C$65),4,0)) ->  | G25: Wert - Abzug | H25: 0
A26: TN | G26: Wert - Abzug | H26: 0
A27: TN | G27: Wert - Abzug | H27: 0
A28: =IF(H2>12,"TN","entfällt") -> TN | G28: =IF(H2>12,"Wert - Abzug","entfällt") -> Wert - Abzug | H28: 0
A29: =IF(H2>16,"TN","entfällt") -> TN | G29: =IF(H2>16,"Wert - Abzug","entfällt") -> Wert - Abzug | H29: 0
A30: =IF(H2>16,"TN","entfällt") -> TN | G30: =IF(H2>16,"Wert - Abzug","entfällt") -> Wert - Abzug | H30: =IF(A30="entfällt",0,IF(F30="",0,D30-F30)) -> 0
A31: =IF($H$2>11,"Verbindung Sprung 1","entfällt") -> Verbindung Sprung 1 | C31: =IF(A31<>"entfällt",VLOOKUP(1,INDIRECT($C$73),2,0),"") -> 803< | D31: =IF(A31<>"entfällt",VLOOKUP(1,INDIRECT($C$73),3,0),"") -> 15 | E31: =IF(A31<>"entfällt",VLOOKUP(1,INDIRECT($C$73),4,0),"") -> 3 | G31: =IF(H2>12,"Wert - Abzug","entfällt") -> Wert - Abzug | H31: =IF(A31="entfällt",0,IF(F31="",0,D31-F31)) -> 0
A32: =IF($H$2>11,"Verbindung Sprung 2","entfällt") -> Verbindung Sprung 2 | C32: =IF(A32<>"entfällt",VLOOKUP(2,INDIRECT($C$73),2,0),"") -> 40< | D32: =IF(A32<>"entfällt",VLOOKUP(2,INDIRECT($C$73),3,0),"") -> 6 | E32: =IF(A32<>"entfällt",VLOOKUP(2,INDIRECT($C$73),4,0),"") -> 3 | G32: =IF(H2>12,"Wert - Abzug","entfällt") -> Wert - Abzug | H32: =IF(A32="entfällt",0,IF(F32="",0,D32-F32)) -> 0
A33: =IF($H$2>11,"Verbindung Sprung 3","entfällt") -> Verbindung Sprung 3 | C33: =IF(A33<>"entfällt",VLOOKUP(3,INDIRECT($C$73),2,0),"") -> 801< | D33: =IF(A33<>"entfällt",VLOOKUP(3,INDIRECT($C$73),3,0),"") -> 13 | E33: =IF(A33<>"entfällt",VLOOKUP(3,INDIRECT($C$73),4,0),"") -> 3 | G33: =IF(H2>12,"Wert - Abzug","entfällt") -> Wert - Abzug | H33: 0
A34: =IF($H$2>11,"Verbindung Sprung 4","entfällt") -> Verbindung Sprung 4 | C34: =IF(A34<>"entfällt",VLOOKUP(4,INDIRECT($C$73),2,0),"") -> 40/ | D34: =IF(A34<>"entfällt",VLOOKUP(4,INDIRECT($C$73),3,0),"") -> 6 | E34: =IF(A34<>"entfällt",VLOOKUP(4,INDIRECT($C$73),4,0),"") -> 3 | G34: =IF(H2>12,"Wert - Abzug","entfällt") -> Wert - Abzug | H34: 0
A35: =IF($H$2>11,"Verbindung Sprung 5","entfällt") -> Verbindung Sprung 5 | C35: =IF(A35<>"entfällt",VLOOKUP(5,INDIRECT($C$73),2,0),"") -> 41/ | D35: =IF(A35<>"entfällt",VLOOKUP(5,INDIRECT($C$73),3,0),"") -> 6 | E35: =IF(A35<>"entfällt",VLOOKUP(5,INDIRECT($C$73),4,0),"") -> 3 | G35: =IF(H2>12,"Wert - Abzug","entfällt") -> Wert - Abzug | H35: 0
A36: =IF($H$2>11,"Verbindung Sprung 6","entfällt") -> Verbindung Sprung 6 | C36: =IF(A36<>"entfällt",VLOOKUP(6,INDIRECT($C$73),2,0),"") -> 811° | D36: =IF(A36<>"entfällt",VLOOKUP(6,INDIRECT($C$73),3,0),"") -> 12 | E36: =IF(A36<>"entfällt",VLOOKUP(6,INDIRECT($C$73),4,0),"") -> 3 | G36: =IF(H2>12,"Wert - Abzug","entfällt") -> Wert - Abzug | H36: =IF(A36="entfällt",0,IF(F36="",0,D36-F36)) -> 0
A37: Gesamtpunktzahl Trampolin | H37: =SUM(H21:H36) -> 0
A38: Element | E38: Wert | F38: Abzug | G38: Berechnung | H38: Punkte
A39: =VLOOKUP(1,INDIRECT($C$70),2,0) -> Salto vorwärts gehockt aus dem Stand | E39: =VLOOKUP(1,INDIRECT($C$70),3,0) -> 5 | G39: Wert - Abzug | H39: =IF(E39=" ","",IF(F39="",0,E39-F39)) -> 0
A40: =VLOOKUP(2,INDIRECT($C$70),2,0) -> Vorspreizen, Bestellschritt, Strecksprung 3/2 Drehung | E40: =VLOOKUP(2,INDIRECT($C$70),3,0) -> 3 | G40: Wert - Abzug | H40: =IF(E40=" ","",IF(F40="",0,E40-F40)) -> 0
A41: =VLOOKUP(3,INDIRECT($C$70),2,0) -> Rolle rückwärts durch Handstand mit 1/2 Drehung | E41: =VLOOKUP(3,INDIRECT($C$70),3,0) -> 4 | F41: 2 | G41: Wert - Abzug | H41: 2
A42: =VLOOKUP(4,INDIRECT($C$70),2,0) -> --> Strecksprung --> Salto vorwärts gehockt | E42: =VLOOKUP(4,INDIRECT($C$70),3,0) -> 4 | G42: Wert - Abzug | H42: 0
A43: =VLOOKUP(5,INDIRECT($C$70),2,0) -> Wiener, 1/2 Drehung, absenken zum Stand | E43: =VLOOKUP(5,INDIRECT($C$70),3,0) -> 4 | G43: Wert - Abzug | H43: 0
A44: =VLOOKUP(6,INDIRECT($C$70),2,0) -> Handstand mit zwei Hüpfern, abrollen | E44: =VLOOKUP(6,INDIRECT($C$70),3,0) -> 2 | F44: 0 | G44: Wert - Abzug | H44: 2
A45: =VLOOKUP(7,INDIRECT($C$70),2,0) -> --> aufstehen mit gestreckten Beinen | E45: =VLOOKUP(7,INDIRECT($C$70),3,0) -> 3 | F45: 0 | G45: Wert - Abzug | H45: 3
A46: =VLOOKUP(8,INDIRECT($C$70),2,0) -> Salto rückwärts gebückt | E46: =VLOOKUP(8,INDIRECT($C$70),3,0) -> 5 | G46: Wert - Abzug | H46: 0
A47: =VLOOKUP(9,INDIRECT($C$70),2,0) ->  | E47: =VLOOKUP(9,INDIRECT($C$70),3,0) ->  | G47: =IF(H2>16,"","Wert - Abzug") -> 
A48: =VLOOKUP(10,INDIRECT($C$70),2,0) ->  | E48: =VLOOKUP(10,INDIRECT($C$70),3,0) ->  | G48: =IF(H2>16,"","Wert - Abzug") -> 
A49: =VLOOKUP(11,INDIRECT($C$70),2,0) ->  | E49: =VLOOKUP(11,INDIRECT($C$70),3,0) ->  | G49: =IF(H2>13,"","Wert - Abzug") -> 
A50: =VLOOKUP(12,INDIRECT($C$70),2,0) ->  | E50: =VLOOKUP(12,INDIRECT($C$70),3,0) ->  | G50: =IF(OR(H2=9,H2=12,H2=13),"Wert - Abzug","") -> 
A51: Gesamtpunktzahl Bodenkomplexübung | H51: =SUM(H39:H50) -> 7
A52: Gesamtpunktzahl | H52: =SUM(H9,H19,H37,H51) -> 87
B55: Shuttles | C55: ="Shuttles_"&F1&IF(H2=9,"_9",IF(H2<12,"_10_11",IF(H2<14,"_12_13",IF(H2<17,"_14_16","_17")))) -> Shuttles_weiblich_17
C56: ="Shuttles_"&F1&IF(H2=9,"_9",IF(H2<12,"_10_11",IF(H2<14,"_12_13",IF(H2<17,"_14_16","_17"))))&"[Shuttle]" -> Shuttles_weiblich_17[Shuttle]
C57: ="Shuttles_"&F1&IF(H2=9,"_9",IF(H2<12,"_10_11",IF(H2<14,"_12_13",IF(H2<17,"_14_16","_17"))))&"[Punkte]" -> Shuttles_weiblich_17[Punkte]
B59: G_TBN TN BKÜ | C59: =IF(H2<13,"beide",F1) -> weiblich
B60: AK | C60: =IF(OR(H2=9,H2=12),H2,IF(H2<12,"10_11",IF(H2<15,"13_14",IF(H2<17,"15_16",IF(H2<19,"17_18",19))))) -> 17_18
B62: TBN | C62: ="TBN_"&C59&"_"&C60 -> TBN_weiblich_17_18
C63: =C62&"[Beschreibung]" -> TBN_weiblich_17_18[Beschreibung]
B65: TN | C65: ="TN_"&C59&"_"&C60 -> TN_weiblich_17_18
C66: =C65&"[Beschreibung]" -> TN_weiblich_17_18[Beschreibung]
B68: TV | C68: ="TV_"&F1&"_"&C60 -> TV_weiblich_17_18
B70: BKÜ | C70: ="BKÜ"&IF(H2=9,"_9",IF(H2<12,"_10_11",IF(H2<14,"_12_13",IF(H2<17,"_14_16","_17")))) -> BKÜ_17
B72: G_TV | C72: =IF(H2<17,"beide",F1) -> weiblich
B73: TV | C73: ="TV_"&C72&"_"&C60 -> TV_weiblich_17_18
B75: =SUM(H19,H9,H51) -> 87 | C75: Vergleichspunktzahl aus Kraft, Beweglichkeit, Grundlagenausdauer, Bodenübung
B76: =IF(B75>95,"Ja","Nein") -> Nein | C76: Vergleichspunktzahl erfüllt?
B77: =IF(F1="Weiblich",VLOOKUP(H2,Punktetabellen!$D$43:$F$49,3,1),VLOOKUP(H2,Punktetabellen!$D$43:$F$49,2,1)) -> 169 | C77: Mindest-Gesamtwert
B78: =IF(H52>=B77,"Ja","Nein") -> Nein | C78: Gesamtwert erfüllt?
B79: =IF(AND(B76="Ja",B78="Ja"),"Ja","Nein") -> Nein | C79: Alles erfüllt?

Sheet BraafLuisa
A1: Name | B1: Braaf, Luisa | F1: weiblich | G1: Jahrgang | H1: 2004
A2: Verein | B2: TV Blecher | G2: AK | H2: =2020-H1 -> 16
A3: Übung | F3: Wert | G3: Berechnung | H3: Punkte
A4: Fußdehnung | F4: 10 | G4: Bild | H4: =F4 -> 10
A5: Briefmarke mit Armrumpfwinkel | F5: 10 | G5: Bild | H5: =F5 -> 10
A6: Bückbeweglichkeit | F6: 18 | G6: Tabelle | H6: =IF(F6="",0,VLOOKUP(F6,Punktetabellen!A10:B15,2,1)) -> 8
A7: Querspagat links | F7: 0 | G7: Tabelle | H7: =IF(F7="",0,VLOOKUP(F7,Punktetabellen!A3:B6,2,0)) -> 10
A8: Querspagat rechts | F8: 0 | G8: Tabelle | H8: =IF(F8="",0,VLOOKUP(F8,Punktetabellen!A3:B6,2,0)) -> 10
A9: Gesamtpunktzahl Beweglichkeit | H9: =SUM(H4:H8) -> 48
A10: Übung | F10: Wert | G10: Berechnung | H10: Punktzahl
A11: Klimmzug | F11: 11 | G11: Tabelle | H11: =IF(F11="",0,IF(H2<12,VLOOKUP(F11,Punktetabellen!D4:F14,3,1),VLOOKUP(F11,Punktetabellen!E4:F14,2,1))) -> 6
A12: Beinheben | F12: 8 | G12: Tabelle | H12: =IF(H2=9,VLOOKUP(F12,Punktetabellen!D19:F29,3,1),VLOOKUP(F12,Punktetabellen!E19:F29,2,1)) -> 4
A13: Flieger | F13: 120 | G13: Tabelle | H13: =IF(H2=9,VLOOKUP(F13,Punktetabellen!H4:K9,4,1),IF(H2<12,VLOOKUP(F13,Punktetabellen!I4:K9,3,1),VLOOKUP(F13,Punktetabellen!J4:K9,2,1))) -> 10
A14: Rollenverbindung | F14: 29 | G14: Tabelle | H14: =IF(H2=9,VLOOKUP(F14,Punktetabellen!H14:K24,4,1),IF(H2<12,VLOOKUP(F14,Punktetabellen!I14:K24,3,1),VLOOKUP(F14,Punktetabellen!J14:K24,2,1))) -> 10
A15: Prellsprünge | F15: 10 | G15: Tabelle | H15: =IF(H2=9,VLOOKUP(F15,Punktetabellen!M4:Q14,5,1),IF(H2<12,VLOOKUP(F15,Punktetabellen!N4:Q14,4,1),IF(H2<14,VLOOKUP(F15,Punktetabellen!O4:Q14,3,1),VLOOKUP(F15,Punktetabellen!P4:Q14,2,1)))) -> 10
A16: Handstandstehen | F16: 30 | G16: Tabelle | H16: =IF(F16="",0,IF(H2<10,VLOOKUP(F16,Punktetabellen!D34:F40,3,1),VLOOKUP(F16,Punktetabellen!E34:F40,2,1))) -> 10
A17: Schweizer, Wiener | C17: =IF(H2<12,"",IF(AND(H2>13,H2<17),"Schweizer: ","Wiener: ")) -> Schweizer: | D17: 0 | E17: =IF(H2<12,"",IF(AND(H2>13,H2<17),"Wiener: ","Schweizer: ")) -> Wiener: | F17: 2 | G17: Tabelle | H17: =IF(H2<12,VLOOKUP(F17,Punktetabellen!A20:B25,2,1),((MIN(5,1*D17)*2)+MIN(MAX(0,5-(1*D17)),(1*F17)))) -> 2
A18: Bleep-Test | F18: L9 S11 | G18: Tabelle | H18: =IF(F18="",0,VLOOKUP(F18,INDIRECT(C55),2,0)) -> 10
A19: Gesamtpunktzahl Kraft/Kondition | H19: =SUM(H11:H18) -> 62
A20: Übung | D20: Max / Soll | E20: Max. Abzug | F20: Abzug / Ist | G20: Berechnung | H20: Punkte
A21: Standsprunghöhe | D21: =IF(F1="männlich",VLOOKUP(H2,Standsprünge!A3:C15,3,0),VLOOKUP(H2,Standsprünge!A3:B15,2,0)) -> 16.3 | F21: 16.58 | G21: (Ist - Soll) x 10 | H21: =IF(F21="",0,(F21-D21)*10) -> 2.8
A22: =IF(H2>16,"entfällt","TBN") -> TBN | C22: 7/4 Salto vw c zum Rücken, 1/1 aus | D22: =IF(C22="","",VLOOKUP(C22,INDIRECT($C$62),2,0)) -> 10 | E22: =IF(C22="","",VLOOKUP(C22,INDIRECT($C$62),3,0)) -> 6 | F22: 4 | G22: =IF(H2>16,"entfällt","Wert - Abzug") -> Wert - Abzug | H22: =IF(A22="entfällt",0,IF(F22="",0,D22-F22)) -> 6
A23: =IF(H2>16,"entfällt","TBN") -> TBN | C23: 7/4 Salto vw b zum Rücken, 1/1 aus | D23: =IF(C23="","",VLOOKUP(C23,INDIRECT($C$62),2,0)) -> 10 | E23: =IF(C23="","",VLOOKUP(C23,INDIRECT($C$62),3,0)) -> 6 | F23: 2 | G23: =IF(H2>16,"entfällt","Wert - Abzug") -> Wert - Abzug | H23: =IF(A23="entfällt",0,IF(F23="",0,D23-F23)) -> 8
A24: =IF(H2>12,"entfällt","TBN") -> entfällt | D24: =IF(C24="","",VLOOKUP(C24,INDIRECT($C$62),2,0)) ->  | E24: =IF(C24="","",VLOOKUP(C24,INDIRECT($C$62),3,0)) ->  | G24: =IF(H2>16,"entfällt","Wert - Abzug") -> Wert - Abzug | H24: 0
A25: TN | B25: =IF(C25="","",VLOOKUP(C25,INDIRECT($C$65),2,0)) -> 821° | C25: 1/1 ein 1/2 aus c | D25: =IF(C25="","",VLOOKUP(C25,INDIRECT($C$65),3,0)) -> 13 | E25: =IF(C25="","",VLOOKUP(C25,INDIRECT($C$65),4,0)) -> 6 | F25: 6 | G25: Wert - Abzug | H25: 7
A26: TN | B26: 811< | C26: 1/2 ein 1/2 aus b | D26: 14 | E26: 6 | F26: 6 | G26: Wert - Abzug | H26: 8
A27: TN | B27: 803< | C27: Fliffisrudi b | D27: 15 | E27: 6 | F27: 4 | G27: Wert - Abzug | H27: 11
A28: =IF(H2>12,"TN","entfällt") -> TN | B28: 803° | C28: Fliffisrudi c | D28: 13 | E28: 6 | F28: 4 | G28: =IF(H2>12,"Wert - Abzug","entfällt") -> Wert - Abzug | H28: 9
A29: =IF(H2>16,"TN","entfällt") -> entfällt | G29: =IF(H2>16,"Wert - Abzug","entfällt") -> entfällt | H29: 0
A30: =IF(H2>16,"TN","entfällt") -> entfällt | G30: =IF(H2>16,"Wert - Abzug","entfällt") -> entfällt | H30: =IF(A30="entfällt",0,IF(F30="",0,D30-F30)) -> 0
A31: =IF($H$2>11,"Verbindung Sprung 1","entfällt") -> Verbindung Sprung 1 | C31: =IF(A31<>"entfällt",VLOOKUP(1,INDIRECT($C$73),2,0),"") -> 801< | D31: =IF(A31<>"entfällt",VLOOKUP(1,INDIRECT($C$73),3,0),"") -> 13 | E31: =IF(A31<>"entfällt",VLOOKUP(1,INDIRECT($C$73),4,0),"") -> 3 | F31: 2 | G31: =IF(H2>12,"Wert - Abzug","entfällt") -> Wert - Abzug | H31: =IF(A31="entfällt",0,IF(F31="",0,D31-F31)) -> 11
A32: =IF($H$2>11,"Verbindung Sprung 2","entfällt") -> Verbindung Sprung 2 | C32: =IF(A32<>"entfällt",VLOOKUP(2,INDIRECT($C$73),2,0),"") -> 40< | D32: =IF(A32<>"entfällt",VLOOKUP(2,INDIRECT($C$73),3,0),"") -> 6 | E32: =IF(A32<>"entfällt",VLOOKUP(2,INDIRECT($C$73),4,0),"") -> 3 | F32: 1 | G32: =IF(H2>12,"Wert - Abzug","entfällt") -> Wert - Abzug | H32: =IF(A32="entfällt",0,IF(F32="",0,D32-F32)) -> 5
A33: =IF($H$2>11,"Verbindung Sprung 3","entfällt") -> Verbindung Sprung 3 | C33: =IF(A33<>"entfällt",VLOOKUP(3,INDIRECT($C$73),2,0),"") -> 801° | D33: =IF(A33<>"entfällt",VLOOKUP(3,INDIRECT($C$73),3,0),"") -> 11 | E33: =IF(A33<>"entfällt",VLOOKUP(3,INDIRECT($C$73),4,0),"") -> 3 | F33: 1 | G33: =IF(H2>12,"Wert - Abzug","entfällt") -> Wert - Abzug | H33: 10
A34: =IF($H$2>11,"Verbindung Sprung 4","entfällt") -> Verbindung Sprung 4 | C34: =IF(A34<>"entfällt",VLOOKUP(4,INDIRECT($C$73),2,0),"") -> 40/ | D34: =IF(A34<>"entfällt",VLOOKUP(4,INDIRECT($C$73),3,0),"") -> 6 | E34: =IF(A34<>"entfällt",VLOOKUP(4,INDIRECT($C$73),4,0),"") -> 3 | F34: 2 | G34: =IF(H2>12,"Wert - Abzug","entfällt") -> Wert - Abzug | H34: 4
A35: =IF($H$2>11,"Verbindung Sprung 5","entfällt") -> Verbindung Sprung 5 | C35: =IF(A35<>"entfällt",VLOOKUP(5,INDIRECT($C$73),2,0),"") -> 41/ | D35: =IF(A35<>"entfällt",VLOOKUP(5,INDIRECT($C$73),3,0),"") -> 6 | E35: =IF(A35<>"entfällt",VLOOKUP(5,INDIRECT($C$73),4,0),"") -> 3 | F35: 1 | G35: =IF(H2>12,"Wert - Abzug","entfällt") -> Wert - Abzug | H35: 5
A36: =IF($H$2>11,"Verbindung Sprung 6","entfällt") -> Verbindung Sprung 6 | C36: =IF(A36<>"entfällt",VLOOKUP(6,INDIRECT($C$73),2,0),"") -> 800° | D36: =IF(A36<>"entfällt",VLOOKUP(6,INDIRECT($C$73),3,0),"") -> 10 | E36: =IF(A36<>"entfällt",VLOOKUP(6,INDIRECT($C$73),4,0),"") -> 3 | F36: 1 | G36: =IF(H2>12,"Wert - Abzug","entfällt") -> Wert - Abzug | H36: =IF(A36="entfällt",0,IF(F36="",0,D36-F36)) -> 9
A37: Gesamtpunktzahl Trampolin | H37: =SUM(H21:H36) -> 95.8
A38: Element | E38: Wert | F38: Abzug | G38: Berechnung | H38: Punkte
A39: =VLOOKUP(1,INDIRECT($C$70),2,0) -> Flugrolle mit Überstrecken mit Anlauf | E39: =VLOOKUP(1,INDIRECT($C$70),3,0) -> 3 | F39: 0 | G39: Wert - Abzug | H39: =IF(E39=" ","",IF(F39="",0,E39-F39)) -> 3
A40: =VLOOKUP(2,INDIRECT($C$70),2,0) -> --> Strecksprung, Salto vorwärts gehockt | E40: =VLOOKUP(2,INDIRECT($C$70),3,0) -> 4.5 | F40: 0 | G40: Wert - Abzug | H40: =IF(E40=" ","",IF(F40="",0,E40-F40)) -> 4.5
A41: =VLOOKUP(3,INDIRECT($C$70),2,0) -> Vorspreizen, Handstand mit 1/1 Drehung, abrollen | E41: =VLOOKUP(3,INDIRECT($C$70),3,0) -> 3 | F41: 0 | G41: Wert - Abzug | H41: 3
A42: =VLOOKUP(4,INDIRECT($C$70),2,0) -> --> Aufstehen mit gestreckten Beinen | E42: =VLOOKUP(4,INDIRECT($C$70),3,0) -> 3 | F42: 0 | G42: Wert - Abzug | H42: 3
A43: =VLOOKUP(5,INDIRECT($C$70),2,0) -> Vorspreizen, Bestellschritt, Strecksprung 3/2 Drehung | E43: =VLOOKUP(5,INDIRECT($C$70),3,0) -> 3 | F43: 1 | G43: Wert - Abzug | H43: 2
A44: =VLOOKUP(6,INDIRECT($C$70),2,0) -> Salto rückwärts gehockt | E44: =VLOOKUP(6,INDIRECT($C$70),3,0) -> 3 | F44: 0.5 | G44: Wert - Abzug | H44: 2.5
A45: =VLOOKUP(7,INDIRECT($C$70),2,0) -> Handstützüberschlag | E45: =VLOOKUP(7,INDIRECT($C$70),3,0) -> 3 | F45: 0 | G45: Wert - Abzug | H45: 3
A46: =VLOOKUP(8,INDIRECT($C$70),2,0) -> --> Ansprung Schrittstellung, Handstand mit zwei Hüpfern | E46: =VLOOKUP(8,INDIRECT($C$70),3,0) -> 3 | F46: 0 | G46: Wert - Abzug | H46: 3
A47: =VLOOKUP(9,INDIRECT($C$70),2,0) -> Abrollen --> Strecksprung 1/2 Drehung | E47: =VLOOKUP(9,INDIRECT($C$70),3,0) -> 1.5 | F47: 0 | G47: =IF(H2>16,"","Wert - Abzug") -> Wert - Abzug | H47: 1.5
A48: =VLOOKUP(10,INDIRECT($C$70),2,0) -> Salto vorwärts gebückt mit Anlauf | E48: =VLOOKUP(10,INDIRECT($C$70),3,0) -> 3 | F48: 0 | G48: =IF(H2>16,"","Wert - Abzug") -> Wert - Abzug | H48: 3
A49: =VLOOKUP(11,INDIRECT($C$70),2,0) ->  | E49: =VLOOKUP(11,INDIRECT($C$70),3,0) ->  | G49: =IF(H2>13,"","Wert - Abzug") -> 
A50: =VLOOKUP(12,INDIRECT($C$70),2,0) ->  | E50: =VLOOKUP(12,INDIRECT($C$70),3,0) ->  | G50: =IF(OR(H2=9,H2=12,H2=13),"Wert - Abzug","") -> 
A51: Gesamtpunktzahl Bodenkomplexübung | H51: =SUM(H39:H50) -> 28.5
A52: Gesamtpunktzahl | H52: =SUM(H9,H19,H37,H51) -> 234.3
B55: Shuttles | C55: ="Shuttles_"&F1&IF(H2=9,"_9",IF(H2<12,"_10_11",IF(H2<14,"_12_13",IF(H2<17,"_14_16","_17")))) -> Shuttles_weiblich_14_16
C56: ="Shuttles_"&F1&IF(H2=9,"_9",IF(H2<12,"_10_11",IF(H2<14,"_12_13",IF(H2<17,"_14_16","_17"))))&"[Shuttle]" -> Shuttles_weiblich_14_16[Shuttle]
C57: ="Shuttles_"&F1&IF(H2=9,"_9",IF(H2<12,"_10_11",IF(H2<14,"_12_13",IF(H2<17,"_14_16","_17"))))&"[Punkte]" -> Shuttles_weiblich_14_16[Punkte]
B59: G_TBN TN BKÜ | C59: =IF(H2<13,"beide",F1) -> weiblich
B60: AK | C60: =IF(OR(H2=9,H2=12),H2,IF(H2<12,"10_11",IF(H2<15,"13_14",IF(H2<17,"15_16",IF(H2<19,"17_18",19))))) -> 15_16
B62: TBN | C62: ="TBN_"&C59&"_"&C60 -> TBN_weiblich_15_16
C63: =C62&"[Beschreibung]" -> TBN_weiblich_15_16[Beschreibung]
B65: TN | C65: ="TN_"&C59&"_"&C60 -> TN_weiblich_15_16
C66: =C65&"[Beschreibung]" -> TN_weiblich_15_16[Beschreibung]
B68: TV | C68: ="TV_"&F1&"_"&C60 -> TV_weiblich_15_16
B70: BKÜ | C70: ="BKÜ"&IF(H2=9,"_9",IF(H2<12,"_10_11",IF(H2<14,"_12_13",IF(H2<17,"_14_16","_17")))) -> BKÜ_14_16
B72: G_TV | C72: =IF(H2<17,"beide",F1) -> beide
B73: TV | C73: ="TV_"&C72&"_"&C60 -> TV_beide_15_16
B75: =SUM(H19,H9,H51) -> 138.5 | C75: Vergleichspunktzahl aus Kraft, Beweglichkeit, Grundlagenausdauer, Bodenübung
B76: =IF(B75>95,"Ja","Nein") -> Ja | C76: Vergleichspunktzahl erfüllt?
B77: =IF(F1="Weiblich",VLOOKUP(H2,Punktetabellen!$D$43:$F$49,3,1),VLOOKUP(H2,Punktetabellen!$D$43:$F$49,2,1)) -> 159 | C77: Mindest-Gesamtwert
B78: =IF(H52>=B77,"Ja","Nein") -> Ja | C78: Gesamtwert erfüllt?
B79: =IF(AND(B76="Ja",B78="Ja"),"Ja","Nein") -> Ja | C79: Alles erfüllt?

Sheet ThomsonAdrian
A1: Name | B1: Thomson, Adrian | F1: männlich | G1: Jahrgang | H1: 2006
A2: Verein | B2: TG Münster | G2: AK | H2: =2020-H1 -> 14
A3: Übung | F3: Wert | G3: Berechnung | H3: Punkte
A4: Fußdehnung | F4: 10 | G4: Bild | H4: =F4 -> 10
A5: Briefmarke mit Armrumpfwinkel | F5: 6 | G5: Bild | H5: =F5 -> 6
A6: Bückbeweglichkeit | F6: 20 | G6: Tabelle | H6: =IF(F6="",0,VLOOKUP(F6,Punktetabellen!A10:B15,2,1)) -> 10
A7: Querspagat links | F7: <5 cm | G7: Tabelle | H7: =IF(F7="",0,VLOOKUP(F7,Punktetabellen!A3:B6,2,0)) -> 6
A8: Querspagat rechts | F8: <5 cm | G8: Tabelle | H8: =IF(F8="",0,VLOOKUP(F8,Punktetabellen!A3:B6,2,0)) -> 6
A9: Gesamtpunktzahl Beweglichkeit | H9: =SUM(H4:H8) -> 38
A10: Übung | F10: Wert | G10: Berechnung | H10: Punktzahl
A11: Klimmzug | F11: 12 | G11: Tabelle | H11: =IF(F11="",0,IF(H2<12,VLOOKUP(F11,Punktetabellen!D4:F14,3,1),VLOOKUP(F11,Punktetabellen!E4:F14,2,1))) -> 7
A12: Beinheben | F12: 8 | G12: Tabelle | H12: =IF(H2=9,VLOOKUP(F12,Punktetabellen!D19:F29,3,1),VLOOKUP(F12,Punktetabellen!E19:F29,2,1)) -> 4
A13: Flieger | F13: 80 | G13: Tabelle | H13: =IF(H2=9,VLOOKUP(F13,Punktetabellen!H4:K9,4,1),IF(H2<12,VLOOKUP(F13,Punktetabellen!I4:K9,3,1),VLOOKUP(F13,Punktetabellen!J4:K9,2,1))) -> 2
A14: Rollenverbindung | F14: 29 | G14: Tabelle | H14: =IF(H2=9,VLOOKUP(F14,Punktetabellen!H14:K24,4,1),IF(H2<12,VLOOKUP(F14,Punktetabellen!I14:K24,3,1),VLOOKUP(F14,Punktetabellen!J14:K24,2,1))) -> 10
A15: Prellsprünge | F15: 10 | G15: Tabelle | H15: =IF(H2=9,VLOOKUP(F15,Punktetabellen!M4:Q14,5,1),IF(H2<12,VLOOKUP(F15,Punktetabellen!N4:Q14,4,1),IF(H2<14,VLOOKUP(F15,Punktetabellen!O4:Q14,3,1),VLOOKUP(F15,Punktetabellen!P4:Q14,2,1)))) -> 10
A16: Handstandstehen | F16: 30 | G16: Tabelle | H16: =IF(F16="",0,IF(H2<10,VLOOKUP(F16,Punktetabellen!D34:F40,3,1),VLOOKUP(F16,Punktetabellen!E34:F40,2,1))) -> 10
A17: Schweizer, Wiener | C17: =IF(H2<12,"",IF(AND(H2>13,H2<17),"Schweizer: ","Wiener: ")) -> Schweizer: | E17: =IF(H2<12,"",IF(AND(H2>13,H2<17),"Wiener: ","Schweizer: ")) -> Wiener: | F17: 1 | G17: Tabelle | H17: =IF(H2<12,VLOOKUP(F17,Punktetabellen!A20:B25,2,1),((MIN(5,1*D17)*2)+MIN(MAX(0,5-(1*D17)),(1*F17)))) -> 1
A18: Bleep-Test | F18: L10 S11 | G18: Tabelle | H18: =IF(F18="",0,VLOOKUP(F18,INDIRECT(C55),2,0)) -> 8
A19: Gesamtpunktzahl Kraft/Kondition | H19: =SUM(H11:H18) -> 52
A20: Übung | D20: Max / Soll | E20: Max. Abzug | F20: Abzug / Ist | G20: Berechnung | H20: Punkte
A21: Standsprunghöhe | D21: =IF(F1="männlich",VLOOKUP(H2,Standsprünge!A3:C15,3,0),VLOOKUP(H2,Standsprünge!A3:B15,2,0)) -> 15.8 | F21: 15.94 | G21: (Ist - Soll) x 10 | H21: =IF(F21="",0,(F21-D21)*10) -> 1.4
A22: =IF(H2>16,"entfällt","TBN") -> TBN | C22: 7/4 vw b zum Rücken, platt, Arme angelegt | D22: =IF(C22="","",VLOOKUP(C22,INDIRECT($C$62),2,0)) -> 9 | E22: =IF(C22="","",VLOOKUP(C22,INDIRECT($C$62),3,0)) -> 6 | F22: 4 | G22: =IF(H2>16,"entfällt","Wert - Abzug") -> Wert - Abzug | H22: =IF(A22="entfällt",0,IF(F22="",0,D22-F22)) -> 5
A23: =IF(H2>16,"entfällt","TBN") -> TBN | C23: 2/1 Salto vw c aus der Rückenlage | D23: =IF(C23="","",VLOOKUP(C23,INDIRECT($C$62),2,0)) -> 10 | E23: =IF(C23="","",VLOOKUP(C23,INDIRECT($C$62),3,0)) -> 6 | F23: 2 | G23: =IF(H2>16,"entfällt","Wert - Abzug") -> Wert - Abzug | H23: =IF(A23="entfällt",0,IF(F23="",0,D23-F23)) -> 8
A24: =IF(H2>12,"entfällt","TBN") -> entfällt | D24: =IF(C24="","",VLOOKUP(C24,INDIRECT($C$62),2,0)) ->  | E24: =IF(C24="","",VLOOKUP(C24,INDIRECT($C$62),3,0)) ->  | G24: =IF(H2>16,"entfällt","Wert - Abzug") -> Wert - Abzug | H24: 0
A25: TN | B25: =IF(C25="","",VLOOKUP(C25,INDIRECT($C$65),2,0)) -> 801< | C25: Fliffis b | D25: =IF(C25="","",VLOOKUP(C25,INDIRECT($C$65),3,0)) -> 13 | E25: =IF(C25="","",VLOOKUP(C25,INDIRECT($C$65),4,0)) -> 6 | F25: 4 | G25: Wert - Abzug | H25: 9
A26: TN | B26: 801° | C26: Fliffis c | D26: 11 | E26: 6 | F26: 4 | G26: Wert - Abzug | H26: 7
A27: TN | B27: 811° | C27: 1/2 ein 1/2 aus c | D27: 12 | E27: 6 | F27: 4 | G27: Wert - Abzug | H27: 8
A28: =IF(H2>12,"TN","entfällt") -> TN | B28: 800< | C28: Doppelsalto rw b | D28: 12 | E28: 6 | F28: 4 | G28: =IF(H2>12,"Wert - Abzug","entfällt") -> Wert - Abzug | H28: 8
A29: =IF(H2>16,"TN","entfällt") -> entfällt | G29: =IF(H2>16,"Wert - Abzug","entfällt") -> entfällt | H29: 0
A30: =IF(H2>16,"TN","entfällt") -> entfällt | G30: =IF(H2>16,"Wert - Abzug","entfällt") -> entfällt | H30: =IF(A30="entfällt",0,IF(F30="",0,D30-F30)) -> 0
A31: =IF($H$2>11,"Verbindung Sprung 1","entfällt") -> Verbindung Sprung 1 | C31: =IF(A31<>"entfällt",VLOOKUP(1,INDIRECT($C$73),2,0),"") -> 40/ | D31: =IF(A31<>"entfällt",VLOOKUP(1,INDIRECT($C$73),3,0),"") -> 6 | E31: =IF(A31<>"entfällt",VLOOKUP(1,INDIRECT($C$73),4,0),"") -> 3 | F31: 1 | G31: =IF(H2>12,"Wert - Abzug","entfällt") -> Wert - Abzug | H31: =IF(A31="entfällt",0,IF(F31="",0,D31-F31)) -> 5
A32: =IF($H$2>11,"Verbindung Sprung 2","entfällt") -> Verbindung Sprung 2 | C32: =IF(A32<>"entfällt",VLOOKUP(2,INDIRECT($C$73),2,0),"") -> 41/ | D32: =IF(A32<>"entfällt",VLOOKUP(2,INDIRECT($C$73),3,0),"") -> 6 | E32: =IF(A32<>"entfällt",VLOOKUP(2,INDIRECT($C$73),4,0),"") -> 3 | F32: 2 | G32: =IF(H2>12,"Wert - Abzug","entfällt") -> Wert - Abzug | H32: =IF(A32="entfällt",0,IF(F32="",0,D32-F32)) -> 4
A33: =IF($H$2>11,"Verbindung Sprung 3","entfällt") -> Verbindung Sprung 3 | C33: =IF(A33<>"entfällt",VLOOKUP(3,INDIRECT($C$73),2,0),"") -> 42/ | D33: =IF(A33<>"entfällt",VLOOKUP(3,INDIRECT($C$73),3,0),"") -> 7 | E33: =IF(A33<>"entfällt",VLOOKUP(3,INDIRECT($C$73),4,0),"") -> 3 | F33: 3 | G33: =IF(H2>12,"Wert - Abzug","entfällt") -> Wert - Abzug | H33: 4
A34: =IF($H$2>11,"Verbindung Sprung 4","entfällt") -> Verbindung Sprung 4 | C34: =IF(A34<>"entfällt",VLOOKUP(4,INDIRECT($C$73),2,0),"") -> 40° | D34: =IF(A34<>"entfällt",VLOOKUP(4,INDIRECT($C$73),3,0),"") -> 5 | E34: =IF(A34<>"entfällt",VLOOKUP(4,INDIRECT($C$73),4,0),"") -> 3 | F34: 2 | G34: =IF(H2>12,"Wert - Abzug","entfällt") -> Wert - Abzug | H34: 3
A35: =IF($H$2>11,"Verbindung Sprung 5","entfällt") -> Verbindung Sprung 5 | C35: =IF(A35<>"entfällt",VLOOKUP(5,INDIRECT($C$73),2,0),"") -> 41° | D35: =IF(A35<>"entfällt",VLOOKUP(5,INDIRECT($C$73),3,0),"") -> 6 | E35: =IF(A35<>"entfällt",VLOOKUP(5,INDIRECT($C$73),4,0),"") -> 3 | F35: 2 | G35: =IF(H2>12,"Wert - Abzug","entfällt") -> Wert - Abzug | H35: 4
A36: =IF($H$2>11,"Verbindung Sprung 6","entfällt") -> Verbindung Sprung 6 | C36: =IF(A36<>"entfällt",VLOOKUP(6,INDIRECT($C$73),2,0),"") -> 800° | D36: =IF(A36<>"entfällt",VLOOKUP(6,INDIRECT($C$73),3,0),"") -> 10 | E36: =IF(A36<>"entfällt",VLOOKUP(6,INDIRECT($C$73),4,0),"") -> 3 | F36: 2 | G36: =IF(H2>12,"Wert - Abzug","entfällt") -> Wert - Abzug | H36: =IF(A36="entfällt",0,IF(F36="",0,D36-F36)) -> 8
A37: Gesamtpunktzahl Trampolin | H37: =SUM(H21:H36) -> 74.4
A38: Element | E38: Wert | F38: Abzug | G38: Berechnung | H38: Punkte
A39: =VLOOKUP(1,INDIRECT($C$70),2,0) -> Flugrolle mit Überstrecken mit Anlauf | E39: =VLOOKUP(1,INDIRECT($C$70),3,0) -> 3 | F39: 0 | G39: Wert - Abzug | H39: =IF(E39=" ","",IF(F39="",0,E39-F39)) -> 3
A40: =VLOOKUP(2,INDIRECT($C$70),2,0) -> --> Strecksprung, Salto vorwärts gehockt | E40: =VLOOKUP(2,INDIRECT($C$70),3,0) -> 4.5 | F40: 1 | G40: Wert - Abzug | H40: =IF(E40=" ","",IF(F40="",0,E40-F40)) -> 3.5
A41: =VLOOKUP(3,INDIRECT($C$70),2,0) -> Vorspreizen, Handstand mit 1/1 Drehung, abrollen | E41: =VLOOKUP(3,INDIRECT($C$70),3,0) -> 3 | F41: 1 | G41: Wert - Abzug | H41: 2
A42: =VLOOKUP(4,INDIRECT($C$70),2,0) -> --> Aufstehen mit gestreckten Beinen | E42: =VLOOKUP(4,INDIRECT($C$70),3,0) -> 3 | F42: 0 | G42: Wert - Abzug | H42: 3
A43: =VLOOKUP(5,INDIRECT($C$70),2,0) -> Vorspreizen, Bestellschritt, Strecksprung 3/2 Drehung | E43: =VLOOKUP(5,INDIRECT($C$70),3,0) -> 3 | F43: 1 | G43: Wert - Abzug | H43: 2
A44: =VLOOKUP(6,INDIRECT($C$70),2,0) -> Salto rückwärts gehockt | E44: =VLOOKUP(6,INDIRECT($C$70),3,0) -> 3 | F44: 1 | G44: Wert - Abzug | H44: 2
A45: =VLOOKUP(7,INDIRECT($C$70),2,0) -> Handstützüberschlag | E45: =VLOOKUP(7,INDIRECT($C$70),3,0) -> 3 | F45: 1.5 | G45: Wert - Abzug | H45: 1.5
A46: =VLOOKUP(8,INDIRECT($C$70),2,0) -> --> Ansprung Schrittstellung, Handstand mit zwei Hüpfern | E46: =VLOOKUP(8,INDIRECT($C$70),3,0) -> 3 | F46: 1 | G46: Wert - Abzug | H46: 2
A47: =VLOOKUP(9,INDIRECT($C$70),2,0) -> Abrollen --> Strecksprung 1/2 Drehung | E47: =VLOOKUP(9,INDIRECT($C$70),3,0) -> 1.5 | F47: 0 | G47: =IF(H2>16,"","Wert - Abzug") -> Wert - Abzug | H47: 1.5
A48: =VLOOKUP(10,INDIRECT($C$70),2,0) -> Salto vorwärts gebückt mit Anlauf | E48: =VLOOKUP(10,INDIRECT($C$70),3,0) -> 3 | F48: 0 | G48: =IF(H2>16,"","Wert - Abzug") -> Wert - Abzug | H48: 3
A49: =VLOOKUP(11,INDIRECT($C$70),2,0) ->  | E49: =VLOOKUP(11,INDIRECT($C$70),3,0) ->  | G49: =IF(H2>13,"","Wert - Abzug") -> 
A50: =VLOOKUP(12,INDIRECT($C$70),2,0) ->  | E50: =VLOOKUP(12,INDIRECT($C$70),3,0) ->  | G50: =IF(OR(H2=9,H2=12,H2=13),"Wert - Abzug","") -> 
A51: Gesamtpunktzahl Bodenkomplexübung | H51: =SUM(H39:H50) -> 23.5
A52: Gesamtpunktzahl | H52: =SUM(H9,H19,H37,H51) -> 187.9
B55: Shuttles | C55: ="Shuttles_"&F1&IF(H2=9,"_9",IF(H2<12,"_10_11",IF(H2<14,"_12_13",IF(H2<17,"_14_16","_17")))) -> Shuttles_männlich_14_16
C56: ="Shuttles_"&F1&IF(H2=9,"_9",IF(H2<12,"_10_11",IF(H2<14,"_12_13",IF(H2<17,"_14_16","_17"))))&"[Shuttle]" -> Shuttles_männlich_14_16[Shuttle]
C57: ="Shuttles_"&F1&IF(H2=9,"_9",IF(H2<12,"_10_11",IF(H2<14,"_12_13",IF(H2<17,"_14_16","_17"))))&"[Punkte]" -> Shuttles_männlich_14_16[Punkte]
B59: G_TBN TN BKÜ | C59: =IF(H2<13,"beide",F1) -> männlich
B60: AK | C60: =IF(OR(H2=9,H2=12),H2,IF(H2<12,"10_11",IF(H2<15,"13_14",IF(H2<17,"15_16",IF(H2<19,"17_18",19))))) -> 13_14
B62: TBN | C62: ="TBN_"&C59&"_"&C60 -> TBN_männlich_13_14
C63: =C62&"[Beschreibung]" -> TBN_männlich_13_14[Beschreibung]
B65: TN | C65: ="TN_"&C59&"_"&C60 -> TN_männlich_13_14
C66: =C65&"[Beschreibung]" -> TN_männlich_13_14[Beschreibung]
B68: TV | C68: ="TV_"&F1&"_"&C60 -> TV_männlich_13_14
B70: BKÜ | C70: ="BKÜ"&IF(H2=9,"_9",IF(H2<12,"_10_11",IF(H2<14,"_12_13",IF(H2<17,"_14_16","_17")))) -> BKÜ_14_16
B72: G_TV | C72: =IF(H2<17,"beide",F1) -> beide
B73: TV | C73: ="TV_"&C72&"_"&C60 -> TV_beide_13_14
B75: =SUM(H19,H9,H51) -> 113.5 | C75: Vergleichspunktzahl aus Kraft, Beweglichkeit, Grundlagenausdauer, Bodenübung
B76: =IF(B75>95,"Ja","Nein") -> Ja | C76: Vergleichspunktzahl erfüllt?
B77: =IF(F1="Weiblich",VLOOKUP(H2,Punktetabellen!$D$43:$F$49,3,1),VLOOKUP(H2,Punktetabellen!$D$43:$F$49,2,1)) -> 144 | C77: Mindest-Gesamtwert
B78: =IF(H52>=B77,"Ja","Nein") -> Ja | C78: Gesamtwert erfüllt?
B79: =IF(AND(B76="Ja",B78="Ja"),"Ja","Nein") -> Ja | C79: Alles erfüllt?

Sheet HofmannSimon
A1: Name | B1: Hofmann, Simon | F1: männlich | G1: Jahrgang | H1: 2003
A2: Verein | B2: TB Ruit | G2: AK | H2: =2020-H1 -> 17
A3: Übung | F3: Wert | G3: Berechnung | H3: Punkte
A4: Fußdehnung | F4: 10 | G4: Bild | H4: =F4 -> 10
A5: Briefmarke mit Armrumpfwinkel | F5: 6 | G5: Bild | H5: =F5 -> 6
A6: Bückbeweglichkeit | F6: 19 | G6: Tabelle | H6: =IF(F6="",0,VLOOKUP(F6,Punktetabellen!A10:B15,2,1)) -> 8
A7: Querspagat links | F7: <10 cm | G7: Tabelle | H7: =IF(F7="",0,VLOOKUP(F7,Punktetabellen!A3:B6,2,0)) -> 2
A8: Querspagat rechts | F8: <10 cm | G8: Tabelle | H8: =IF(F8="",0,VLOOKUP(F8,Punktetabellen!A3:B6,2,0)) -> 2
A9: Gesamtpunktzahl Beweglichkeit | H9: =SUM(H4:H8) -> 28
A10: Übung | F10: Wert | G10: Berechnung | H10: Punktzahl
A11: Klimmzug | F11: 11 | G11: Tabelle | H11: =IF(F11="",0,IF(H2<12,VLOOKUP(F11,Punktetabellen!D4:F14,3,1),VLOOKUP(F11,Punktetabellen!E4:F14,2,1))) -> 6
A12: Beinheben | F12: 5 | G12: Tabelle | H12: =IF(H2=9,VLOOKUP(F12,Punktetabellen!D19:F29,3,1),VLOOKUP(F12,Punktetabellen!E19:F29,2,1)) -> 2
A13: Flieger | F13: 95 | G13: Tabelle | H13: =IF(H2=9,VLOOKUP(F13,Punktetabellen!H4:K9,4,1),IF(H2<12,VLOOKUP(F13,Punktetabellen!I4:K9,3,1),VLOOKUP(F13,Punktetabellen!J4:K9,2,1))) -> 4
A14: Rollenverbindung | F14: 26 | G14: Tabelle | H14: =IF(H2=9,VLOOKUP(F14,Punktetabellen!H14:K24,4,1),IF(H2<12,VLOOKUP(F14,Punktetabellen!I14:K24,3,1),VLOOKUP(F14,Punktetabellen!J14:K24,2,1))) -> 8
A15: Prellsprünge | F15: 8 | G15: Tabelle | H15: =IF(H2=9,VLOOKUP(F15,Punktetabellen!M4:Q14,5,1),IF(H2<12,VLOOKUP(F15,Punktetabellen!N4:Q14,4,1),IF(H2<14,VLOOKUP(F15,Punktetabellen!O4:Q14,3,1),VLOOKUP(F15,Punktetabellen!P4:Q14,2,1)))) -> 8
A16: Handstandstehen | F16: 30 | G16: Tabelle | H16: =IF(F16="",0,IF(H2<10,VLOOKUP(F16,Punktetabellen!D34:F40,3,1),VLOOKUP(F16,Punktetabellen!E34:F40,2,1))) -> 10
A17: Schweizer, Wiener | C17: =IF(H2<12,"",IF(AND(H2>13,H2<17),"Schweizer: ","Wiener: ")) -> Wiener: | D17: 0 | E17: =IF(H2<12,"",IF(AND(H2>13,H2<17),"Wiener: ","Schweizer: ")) -> Schweizer: | F17: 0 | G17: Tabelle | H17: =IF(H2<12,VLOOKUP(F17,Punktetabellen!A20:B25,2,1),((MIN(5,1*D17)*2)+MIN(MAX(0,5-(1*D17)),(1*F17)))) -> 0
A18: Bleep-Test | G18: Tabelle | H18: =IF(F18="",0,VLOOKUP(F18,INDIRECT(C55),2,0)) -> 0
A19: Gesamtpunktzahl Kraft/Kondition | H19: =SUM(H11:H18) -> 38
A20: Übung | D20: Max / Soll | E20: Max. Abzug | F20: Abzug / Ist | G20: Berechnung | H20: Punkte
A21: Standsprunghöhe | D21: =IF(F1="männlich",VLOOKUP(H2,Standsprünge!A3:C15,3,0),VLOOKUP(H2,Standsprünge!A3:B15,2,0)) -> 17.3 | F21: 17.6 | G21: (Ist - Soll) x 10 | H21: =IF(F21="",0,(F21-D21)*10) -> 3
A22: =IF(H2>16,"entfällt","TBN") -> entfällt | D22: =IF(C22="","",VLOOKUP(C22,INDIRECT($C$62),2,0)) ->  | E22: =IF(C22="","",VLOOKUP(C22,INDIRECT($C$62),3,0)) ->  | G22: =IF(H2>16,"entfällt","Wert - Abzug") -> entfällt | H22: =IF(A22="entfällt",0,IF(F22="",0,D22-F22)) -> 0
A23: =IF(H2>16,"entfällt","TBN") -> entfällt | D23: =IF(C23="","",VLOOKUP(C23,INDIRECT($C$62),2,0)) ->  | E23: =IF(C23="","",VLOOKUP(C23,INDIRECT($C$62),3,0)) ->  | G23: =IF(H2>16,"entfällt","Wert - Abzug") -> entfällt | H23: =IF(A23="entfällt",0,IF(F23="",0,D23-F23)) -> 0
A24: =IF(H2>12,"entfällt","TBN") -> entfällt | D24: =IF(C24="","",VLOOKUP(C24,INDIRECT($C$62),2,0)) ->  | E24: =IF(C24="","",VLOOKUP(C24,INDIRECT($C$62),3,0)) ->  | G24: =IF(H2>16,"entfällt","Wert - Abzug") -> entfällt | H24: 0
A25: TN | B25: =IF(C25="","",VLOOKUP(C25,INDIRECT($C$65),2,0)) -> 12001° | C25: Triffis c | D25: =IF(C25="","",VLOOKUP(C25,INDIRECT($C$65),3,0)) -> 17 | E25: =IF(C25="","",VLOOKUP(C25,INDIRECT($C$65),4,0)) -> 6 | F25: 6 | G25: Wert - Abzug | H25: 11
A26: TN | B26: 12001< | C26: Triffis b | D26: 20 | E26: 6 | F26: 4 | G26: Wert - Abzug | H26: 16
A27: TN | B27: 821< | C27: 1/1 ein 1/2 aus b | D27: 15 | E27: 6 | F27: 6 | G27: Wert - Abzug | H27: 9
A28: =IF(H2>12,"TN","entfällt") -> TN | B28: 831< | C28: 3/2 ein 1/2 aus b | D28: 16 | E28: 6 | F28: 4 | G28: =IF(H2>12,"Wert - Abzug","entfällt") -> Wert - Abzug | H28: 12
A29: =IF(H2>16,"TN","entfällt") -> TN | G29: =IF(H2>16,"Wert - Abzug","entfällt") -> Wert - Abzug | H29: 0
A30: =IF(H2>16,"TN","entfällt") -> TN | G30: =IF(H2>16,"Wert - Abzug","entfällt") -> Wert - Abzug | H30: =IF(A30="entfällt",0,IF(F30="",0,D30-F30)) -> 0
A31: =IF($H$2>11,"Verbindung Sprung 1","entfällt") -> Verbindung Sprung 1 | C31: =IF(A31<>"entfällt",VLOOKUP(1,INDIRECT($C$73),2,0),"") -> 803< | D31: =IF(A31<>"entfällt",VLOOKUP(1,INDIRECT($C$73),3,0),"") -> 15 | E31: =IF(A31<>"entfällt",VLOOKUP(1,INDIRECT($C$73),4,0),"") -> 3 | F31: 3 | G31: =IF(H2>12,"Wert - Abzug","entfällt") -> Wert - Abzug | H31: =IF(A31="entfällt",0,IF(F31="",0,D31-F31)) -> 12
A32: =IF($H$2>11,"Verbindung Sprung 2","entfällt") -> Verbindung Sprung 2 | C32: =IF(A32<>"entfällt",VLOOKUP(2,INDIRECT($C$73),2,0),"") -> 800° | D32: =IF(A32<>"entfällt",VLOOKUP(2,INDIRECT($C$73),3,0),"") -> 10 | E32: =IF(A32<>"entfällt",VLOOKUP(2,INDIRECT($C$73),4,0),"") -> 3 | F32: 2 | G32: =IF(H2>12,"Wert - Abzug","entfällt") -> Wert - Abzug | H32: =IF(A32="entfällt",0,IF(F32="",0,D32-F32)) -> 8
A33: =IF($H$2>11,"Verbindung Sprung 3","entfällt") -> Verbindung Sprung 3 | C33: =IF(A33<>"entfällt",VLOOKUP(3,INDIRECT($C$73),2,0),"") -> 801< | D33: =IF(A33<>"entfällt",VLOOKUP(3,INDIRECT($C$73),3,0),"") -> 13 | E33: =IF(A33<>"entfällt",VLOOKUP(3,INDIRECT($C$73),4,0),"") -> 3 | F33: 2 | G33: =IF(H2>12,"Wert - Abzug","entfällt") -> Wert - Abzug | H33: 11
A34: =IF($H$2>11,"Verbindung Sprung 4","entfällt") -> Verbindung Sprung 4 | C34: =IF(A34<>"entfällt",VLOOKUP(4,INDIRECT($C$73),2,0),"") -> 40/ | D34: =IF(A34<>"entfällt",VLOOKUP(4,INDIRECT($C$73),3,0),"") -> 6 | E34: =IF(A34<>"entfällt",VLOOKUP(4,INDIRECT($C$73),4,0),"") -> 3 | F34: 3 | G34: =IF(H2>12,"Wert - Abzug","entfällt") -> Wert - Abzug | H34: 3
A35: =IF($H$2>11,"Verbindung Sprung 5","entfällt") -> Verbindung Sprung 5 | C35: =IF(A35<>"entfällt",VLOOKUP(5,INDIRECT($C$73),2,0),"") -> 801° | D35: =IF(A35<>"entfällt",VLOOKUP(5,INDIRECT($C$73),3,0),"") -> 11 | E35: =IF(A35<>"entfällt",VLOOKUP(5,INDIRECT($C$73),4,0),"") -> 3 | F35: 3 | G35: =IF(H2>12,"Wert - Abzug","entfällt") -> Wert - Abzug | H35: 8
A36: =IF($H$2>11,"Verbindung Sprung 6","entfällt") -> Verbindung Sprung 6 | C36: =IF(A36<>"entfällt",VLOOKUP(6,INDIRECT($C$73),2,0),"") -> 811° | D36: =IF(A36<>"entfällt",VLOOKUP(6,INDIRECT($C$73),3,0),"") -> 12 | E36: =IF(A36<>"entfällt",VLOOKUP(6,INDIRECT($C$73),4,0),"") -> 3 | F36: 3 | G36: =IF(H2>12,"Wert - Abzug","entfällt") -> Wert - Abzug | H36: =IF(A36="entfällt",0,IF(F36="",0,D36-F36)) -> 9
A37: Gesamtpunktzahl Trampolin | H37: =SUM(H21:H36) -> 102
A38: Element | E38: Wert | F38: Abzug | G38: Berechnung | H38: Punkte
A39: =VLOOKUP(1,INDIRECT($C$70),2,0) -> Salto vorwärts gehockt aus dem Stand | E39: =VLOOKUP(1,INDIRECT($C$70),3,0) -> 5 | F39: 2 | G39: Wert - Abzug | H39: =IF(E39=" ","",IF(F39="",0,E39-F39)) -> 3
A40: =VLOOKUP(2,INDIRECT($C$70),2,0) -> Vorspreizen, Bestellschritt, Strecksprung 3/2 Drehung | E40: =VLOOKUP(2,INDIRECT($C$70),3,0) -> 3 | G40: Wert - Abzug | H40: =IF(E40=" ","",IF(F40="",0,E40-F40)) -> 0
A41: =VLOOKUP(3,INDIRECT($C$70),2,0) -> Rolle rückwärts durch Handstand mit 1/2 Drehung | E41: =VLOOKUP(3,INDIRECT($C$70),3,0) -> 4 | F41: 2 | G41: Wert - Abzug | H41: 2
A42: =VLOOKUP(4,INDIRECT($C$70),2,0) -> --> Strecksprung --> Salto vorwärts gehockt | E42: =VLOOKUP(4,INDIRECT($C$70),3,0) -> 4 | F42: 1 | G42: Wert - Abzug | H42: 3
A43: =VLOOKUP(5,INDIRECT($C$70),2,0) -> Wiener, 1/2 Drehung, absenken zum Stand | E43: =VLOOKUP(5,INDIRECT($C$70),3,0) -> 4 | G43: Wert - Abzug | H43: 0
A44: =VLOOKUP(6,INDIRECT($C$70),2,0) -> Handstand mit zwei Hüpfern, abrollen | E44: =VLOOKUP(6,INDIRECT($C$70),3,0) -> 2 | F44: 0 | G44: Wert - Abzug | H44: 2
A45: =VLOOKUP(7,INDIRECT($C$70),2,0) -> --> aufstehen mit gestreckten Beinen | E45: =VLOOKUP(7,INDIRECT($C$70),3,0) -> 3 | F45: 0 | G45: Wert - Abzug | H45: 3
A46: =VLOOKUP(8,INDIRECT($C$70),2,0) -> Salto rückwärts gebückt | E46: =VLOOKUP(8,INDIRECT($C$70),3,0) -> 5 | F46: 4 | G46: Wert - Abzug | H46: 1
A47: =VLOOKUP(9,INDIRECT($C$70),2,0) ->  | E47: =VLOOKUP(9,INDIRECT($C$70),3,0) ->  | G47: =IF(H2>16,"","Wert - Abzug") -> 
A48: =VLOOKUP(10,INDIRECT($C$70),2,0) ->  | E48: =VLOOKUP(10,INDIRECT($C$70),3,0) ->  | G48: =IF(H2>16,"","Wert - Abzug") -> 
A49: =VLOOKUP(11,INDIRECT($C$70),2,0) ->  | E49: =VLOOKUP(11,INDIRECT($C$70),3,0) ->  | G49: =IF(H2>13,"","Wert - Abzug") -> 
A50: =VLOOKUP(12,INDIRECT($C$70),2,0) ->  | E50: =VLOOKUP(12,INDIRECT($C$70),3,0) ->  | G50: =IF(OR(H2=9,H2=12,H2=13),"Wert - Abzug","") -> 
A51: Gesamtpunktzahl Bodenkomplexübung | H51: =SUM(H39:H50) -> 14
A52: Gesamtpunktzahl | H52: =SUM(H9,H19,H37,H51) -> 182
B55: Shuttles | C55: ="Shuttles_"&F1&IF(H2=9,"_9",IF(H2<12,"_10_11",IF(H2<14,"_12_13",IF(H2<17,"_14_16","_17")))) -> Shuttles_männlich_17
C56: ="Shuttles_"&F1&IF(H2=9,"_9",IF(H2<12,"_10_11",IF(H2<14,"_12_13",IF(H2<17,"_14_16","_17"))))&"[Shuttle]" -> Shuttles_männlich_17[Shuttle]
C57: ="Shuttles_"&F1&IF(H2=9,"_9",IF(H2<12,"_10_11",IF(H2<14,"_12_13",IF(H2<17,"_14_16","_17"))))&"[Punkte]" -> Shuttles_männlich_17[Punkte]
B59: G_TBN TN BKÜ | C59: =IF(H2<13,"beide",F1) -> männlich
B60: AK | C60: =IF(OR(H2=9,H2=12),H2,IF(H2<12,"10_11",IF(H2<15,"13_14",IF(H2<17,"15_16",IF(H2<19,"17_18",19))))) -> 17_18
B62: TBN | C62: ="TBN_"&C59&"_"&C60 -> TBN_männlich_17_18
C63: =C62&"[Beschreibung]" -> TBN_männlich_17_18[Beschreibung]
B65: TN | C65: ="TN_"&C59&"_"&C60 -> TN_männlich_17_18
C66: =C65&"[Beschreibung]" -> TN_männlich_17_18[Beschreibung]
B68: TV | C68: ="TV_"&F1&"_"&C60 -> TV_männlich_17_18
B70: BKÜ | C70: ="BKÜ"&IF(H2=9,"_9",IF(H2<12,"_10_11",IF(H2<14,"_12_13",IF(H2<17,"_14_16","_17")))) -> BKÜ_17
B72: G_TV | C72: =IF(H2<17,"beide",F1) -> männlich
B73: TV | C73: ="TV_"&C72&"_"&C60 -> TV_männlich_17_18
B75: =SUM(H19,H9,H51) -> 80 | C75: Vergleichspunktzahl aus Kraft, Beweglichkeit, Grundlagenausdauer, Bodenübung
B76: =IF(B75>95,"Ja","Nein") -> Nein | C76: Vergleichspunktzahl erfüllt?
B77: =IF(F1="Weiblich",VLOOKUP(H2,Punktetabellen!$D$43:$F$49,3,1),VLOOKUP(H2,Punktetabellen!$D$43:$F$49,2,1)) -> 186 | C77: Mindest-Gesamtwert
B78: =IF(H52>=B77,"Ja","Nein") -> Nein | C78: Gesamtwert erfüllt?
B79: =IF(AND(B76="Ja",B78="Ja"),"Ja","Nein") -> Nein | C79: Alles erfüllt?

Sheet WöllBettina
A1: Name | B1: Wöll, Bettina | F1: weiblich | G1: Jahrgang | H1: 2006
A2: Verein | B2: Munich-Airriders | G2: AK | H2: =2020-H1 -> 14
A3: Übung | F3: Wert | G3: Berechnung | H3: Punkte
A4: Fußdehnung | F4: 10 | G4: Bild | H4: =F4 -> 10
A5: Briefmarke mit Armrumpfwinkel | F5: 10 | G5: Bild | H5: =F5 -> 10
A6: Bückbeweglichkeit | F6: 17 | G6: Tabelle | H6: =IF(F6="",0,VLOOKUP(F6,Punktetabellen!A10:B15,2,1)) -> 6
A7: Querspagat links | F7: 0 | G7: Tabelle | H7: =IF(F7="",0,VLOOKUP(F7,Punktetabellen!A3:B6,2,0)) -> 10
A8: Querspagat rechts | F8: 0 | G8: Tabelle | H8: =IF(F8="",0,VLOOKUP(F8,Punktetabellen!A3:B6,2,0)) -> 10
A9: Gesamtpunktzahl Beweglichkeit | H9: =SUM(H4:H8) -> 46
A10: Übung | F10: Wert | G10: Berechnung | H10: Punktzahl
A11: Klimmzug | F11: 6 | G11: Tabelle | H11: =IF(F11="",0,IF(H2<12,VLOOKUP(F11,Punktetabellen!D4:F14,3,1),VLOOKUP(F11,Punktetabellen!E4:F14,2,1))) -> 1
A12: Beinheben | F12: 3 | G12: Tabelle | H12: =IF(H2=9,VLOOKUP(F12,Punktetabellen!D19:F29,3,1),VLOOKUP(F12,Punktetabellen!E19:F29,2,1)) -> 1
A13: Flieger | F13: 95 | G13: Tabelle | H13: =IF(H2=9,VLOOKUP(F13,Punktetabellen!H4:K9,4,1),IF(H2<12,VLOOKUP(F13,Punktetabellen!I4:K9,3,1),VLOOKUP(F13,Punktetabellen!J4:K9,2,1))) -> 4
A14: Rollenverbindung | F14: 29 | G14: Tabelle | H14: =IF(H2=9,VLOOKUP(F14,Punktetabellen!H14:K24,4,1),IF(H2<12,VLOOKUP(F14,Punktetabellen!I14:K24,3,1),VLOOKUP(F14,Punktetabellen!J14:K24,2,1))) -> 10
A15: Prellsprünge | F15: 7 | G15: Tabelle | H15: =IF(H2=9,VLOOKUP(F15,Punktetabellen!M4:Q14,5,1),IF(H2<12,VLOOKUP(F15,Punktetabellen!N4:Q14,4,1),IF(H2<14,VLOOKUP(F15,Punktetabellen!O4:Q14,3,1),VLOOKUP(F15,Punktetabellen!P4:Q14,2,1)))) -> 7
A16: Handstandstehen | F16: 21 | G16: Tabelle | H16: =IF(F16="",0,IF(H2<10,VLOOKUP(F16,Punktetabellen!D34:F40,3,1),VLOOKUP(F16,Punktetabellen!E34:F40,2,1))) -> 6
A17: Schweizer, Wiener | C17: =IF(H2<12,"",IF(AND(H2>13,H2<17),"Schweizer: ","Wiener: ")) -> Schweizer: | D17: 0 | E17: =IF(H2<12,"",IF(AND(H2>13,H2<17),"Wiener: ","Schweizer: ")) -> Wiener: | F17: 0 | G17: Tabelle | H17: =IF(H2<12,VLOOKUP(F17,Punktetabellen!A20:B25,2,1),((MIN(5,1*D17)*2)+MIN(MAX(0,5-(1*D17)),(1*F17)))) -> 0
A18: Bleep-Test | F18: L7 S5 | G18: Tabelle | H18: =IF(F18="",0,VLOOKUP(F18,INDIRECT(C55),2,0)) -> 5
A19: Gesamtpunktzahl Kraft/Kondition | H19: =SUM(H11:H18) -> 34
A20: Übung | D20: Max / Soll | E20: Max. Abzug | F20: Abzug / Ist | G20: Berechnung | H20: Punkte
A21: Standsprunghöhe | D21: =IF(F1="männlich",VLOOKUP(H2,Standsprünge!A3:C15,3,0),VLOOKUP(H2,Standsprünge!A3:B15,2,0)) -> 15.5 | F21: 15.76 | G21: (Ist - Soll) x 10 | H21: =IF(F21="",0,(F21-D21)*10) -> 2.6
A22: =IF(H2>16,"entfällt","TBN") -> TBN | C22: 7/4 vw b zum Rücken, platt, Arme angelegt | D22: =IF(C22="","",VLOOKUP(C22,INDIRECT($C$62),2,0)) -> 9 | E22: =IF(C22="","",VLOOKUP(C22,INDIRECT($C$62),3,0)) -> 6 | F22: 4 | G22: =IF(H2>16,"entfällt","Wert - Abzug") -> Wert - Abzug | H22: =IF(A22="entfällt",0,IF(F22="",0,D22-F22)) -> 5
A23: =IF(H2>16,"entfällt","TBN") -> TBN | C23: 7/4 rw c zum Rücken, 1/2 Schraube ein | D23: =IF(C23="","",VLOOKUP(C23,INDIRECT($C$62),2,0)) -> 9 | E23: =IF(C23="","",VLOOKUP(C23,INDIRECT($C$62),3,0)) -> 6 | F23: 2 | G23: =IF(H2>16,"entfällt","Wert - Abzug") -> Wert - Abzug | H23: =IF(A23="entfällt",0,IF(F23="",0,D23-F23)) -> 7
A24: =IF(H2>12,"entfällt","TBN") -> entfällt | D24: =IF(C24="","",VLOOKUP(C24,INDIRECT($C$62),2,0)) ->  | E24: =IF(C24="","",VLOOKUP(C24,INDIRECT($C$62),3,0)) ->  | G24: =IF(H2>16,"entfällt","Wert - Abzug") -> Wert - Abzug | H24: 0
A25: TN | B25: =IF(C25="","",VLOOKUP(C25,INDIRECT($C$65),2,0)) -> 43/ | C25: Rudolf | D25: =IF(C25="","",VLOOKUP(C25,INDIRECT($C$65),3,0)) -> 8 | E25: =IF(C25="","",VLOOKUP(C25,INDIRECT($C$65),4,0)) -> 6 | F25: 4 | G25: Wert - Abzug | H25: 4
A26: TN | B26: 801< | C26: Fliffis b | D26: 13 | E26: 6 | F26: 4 | G26: Wert - Abzug | H26: 9
A27: TN | B27: 801° | C27: Fliffis c | D27: 11 | E27: 6 | F27: 4 | G27: Wert - Abzug | H27: 7
A28: =IF(H2>12,"TN","entfällt") -> TN | B28: 800< | C28: Doppelsalto rw b | D28: 12 | E28: 6 | F28: 4 | G28: =IF(H2>12,"Wert - Abzug","entfällt") -> Wert - Abzug | H28: 8
A29: =IF(H2>16,"TN","entfällt") -> entfällt | G29: =IF(H2>16,"Wert - Abzug","entfällt") -> entfällt | H29: 0
A30: =IF(H2>16,"TN","entfällt") -> entfällt | G30: =IF(H2>16,"Wert - Abzug","entfällt") -> entfällt | H30: =IF(A30="entfällt",0,IF(F30="",0,D30-F30)) -> 0
A31: =IF($H$2>11,"Verbindung Sprung 1","entfällt") -> Verbindung Sprung 1 | C31: =IF(A31<>"entfällt",VLOOKUP(1,INDIRECT($C$73),2,0),"") -> 40/ | D31: =IF(A31<>"entfällt",VLOOKUP(1,INDIRECT($C$73),3,0),"") -> 6 | E31: =IF(A31<>"entfällt",VLOOKUP(1,INDIRECT($C$73),4,0),"") -> 3 | F31: 1 | G31: =IF(H2>12,"Wert - Abzug","entfällt") -> Wert - Abzug | H31: =IF(A31="entfällt",0,IF(F31="",0,D31-F31)) -> 5
A32: =IF($H$2>11,"Verbindung Sprung 2","entfällt") -> Verbindung Sprung 2 | C32: =IF(A32<>"entfällt",VLOOKUP(2,INDIRECT($C$73),2,0),"") -> 41/ | D32: =IF(A32<>"entfällt",VLOOKUP(2,INDIRECT($C$73),3,0),"") -> 6 | E32: =IF(A32<>"entfällt",VLOOKUP(2,INDIRECT($C$73),4,0),"") -> 3 | F32: 0 | G32: =IF(H2>12,"Wert - Abzug","entfällt") -> Wert - Abzug | H32: =IF(A32="entfällt",0,IF(F32="",0,D32-F32)) -> 6
A33: =IF($H$2>11,"Verbindung Sprung 3","entfällt") -> Verbindung Sprung 3 | C33: =IF(A33<>"entfällt",VLOOKUP(3,INDIRECT($C$73),2,0),"") -> 42/ | D33: =IF(A33<>"entfällt",VLOOKUP(3,INDIRECT($C$73),3,0),"") -> 7 | E33: =IF(A33<>"entfällt",VLOOKUP(3,INDIRECT($C$73),4,0),"") -> 3 | F33: 1 | G33: =IF(H2>12,"Wert - Abzug","entfällt") -> Wert - Abzug | H33: 6
A34: =IF($H$2>11,"Verbindung Sprung 4","entfällt") -> Verbindung Sprung 4 | C34: =IF(A34<>"entfällt",VLOOKUP(4,INDIRECT($C$73),2,0),"") -> 40° | D34: =IF(A34<>"entfällt",VLOOKUP(4,INDIRECT($C$73),3,0),"") -> 5 | E34: =IF(A34<>"entfällt",VLOOKUP(4,INDIRECT($C$73),4,0),"") -> 3 | F34: 2 | G34: =IF(H2>12,"Wert - Abzug","entfällt") -> Wert - Abzug | H34: 3
A35: =IF($H$2>11,"Verbindung Sprung 5","entfällt") -> Verbindung Sprung 5 | C35: =IF(A35<>"entfällt",VLOOKUP(5,INDIRECT($C$73),2,0),"") -> 41° | D35: =IF(A35<>"entfällt",VLOOKUP(5,INDIRECT($C$73),3,0),"") -> 6 | E35: =IF(A35<>"entfällt",VLOOKUP(5,INDIRECT($C$73),4,0),"") -> 3 | F35: 2 | G35: =IF(H2>12,"Wert - Abzug","entfällt") -> Wert - Abzug | H35: 4
A36: =IF($H$2>11,"Verbindung Sprung 6","entfällt") -> Verbindung Sprung 6 | C36: =IF(A36<>"entfällt",VLOOKUP(6,INDIRECT($C$73),2,0),"") -> 800° | D36: =IF(A36<>"entfällt",VLOOKUP(6,INDIRECT($C$73),3,0),"") -> 10 | E36: =IF(A36<>"entfällt",VLOOKUP(6,INDIRECT($C$73),4,0),"") -> 3 | F36: 3 | G36: =IF(H2>12,"Wert - Abzug","entfällt") -> Wert - Abzug | H36: =IF(A36="entfällt",0,IF(F36="",0,D36-F36)) -> 7
A37: Gesamtpunktzahl Trampolin | H37: =SUM(H21:H36) -> 73.6
A38: Element | E38: Wert | F38: Abzug | G38: Berechnung | H38: Punkte
A39: =VLOOKUP(1,INDIRECT($C$70),2,0) -> Flugrolle mit Überstrecken mit Anlauf | E39: =VLOOKUP(1,INDIRECT($C$70),3,0) -> 3 | F39: 0 | G39: Wert - Abzug | H39: =IF(E39=" ","",IF(F39="",0,E39-F39)) -> 3
A40: =VLOOKUP(2,INDIRECT($C$70),2,0) -> --> Strecksprung, Salto vorwärts gehockt | E40: =VLOOKUP(2,INDIRECT($C$70),3,0) -> 4.5 | F40: 0.5 | G40: Wert - Abzug | H40: =IF(E40=" ","",IF(F40="",0,E40-F40)) -> 4
A41: =VLOOKUP(3,INDIRECT($C$70),2,0) -> Vorspreizen, Handstand mit 1/1 Drehung, abrollen | E41: =VLOOKUP(3,INDIRECT($C$70),3,0) -> 3 | F41: 0.5 | G41: Wert - Abzug | H41: 2.5
A42: =VLOOKUP(4,INDIRECT($C$70),2,0) -> --> Aufstehen mit gestreckten Beinen | E42: =VLOOKUP(4,INDIRECT($C$70),3,0) -> 3 | F42: 0.5 | G42: Wert - Abzug | H42: 2.5
A43: =VLOOKUP(5,INDIRECT($C$70),2,0) -> Vorspreizen, Bestellschritt, Strecksprung 3/2 Drehung | E43: =VLOOKUP(5,INDIRECT($C$70),3,0) -> 3 | F43: 1 | G43: Wert - Abzug | H43: 2
A44: =VLOOKUP(6,INDIRECT($C$70),2,0) -> Salto rückwärts gehockt | E44: =VLOOKUP(6,INDIRECT($C$70),3,0) -> 3 | G44: Wert - Abzug | H44: 0
A45: =VLOOKUP(7,INDIRECT($C$70),2,0) -> Handstützüberschlag | E45: =VLOOKUP(7,INDIRECT($C$70),3,0) -> 3 | F45: 2 | G45: Wert - Abzug | H45: 1
A46: =VLOOKUP(8,INDIRECT($C$70),2,0) -> --> Ansprung Schrittstellung, Handstand mit zwei Hüpfern | E46: =VLOOKUP(8,INDIRECT($C$70),3,0) -> 3 | F46: 0.5 | G46: Wert - Abzug | H46: 2.5
A47: =VLOOKUP(9,INDIRECT($C$70),2,0) -> Abrollen --> Strecksprung 1/2 Drehung | E47: =VLOOKUP(9,INDIRECT($C$70),3,0) -> 1.5 | F47: 0 | G47: =IF(H2>16,"","Wert - Abzug") -> Wert - Abzug | H47: 1.5
A48: =VLOOKUP(10,INDIRECT($C$70),2,0) -> Salto vorwärts gebückt mit Anlauf | E48: =VLOOKUP(10,INDIRECT($C$70),3,0) -> 3 | F48: 0.5 | G48: =IF(H2>16,"","Wert - Abzug") -> Wert - Abzug | H48: 2.5
A49: =VLOOKUP(11,INDIRECT($C$70),2,0) ->  | E49: =VLOOKUP(11,INDIRECT($C$70),3,0) ->  | G49: =IF(H2>13,"","Wert - Abzug") -> 
A50: =VLOOKUP(12,INDIRECT($C$70),2,0) ->  | E50: =VLOOKUP(12,INDIRECT($C$70),3,0) ->  | G50: =IF(OR(H2=9,H2=12,H2=13),"Wert - Abzug","") -> 
A51: Gesamtpunktzahl Bodenkomplexübung | H51: =SUM(H39:H50) -> 21.5
A52: Gesamtpunktzahl | H52: =SUM(H9,H19,H37,H51) -> 175.1
B55: Shuttles | C55: ="Shuttles_"&F1&IF(H2=9,"_9",IF(H2<12,"_10_11",IF(H2<14,"_12_13",IF(H2<17,"_14_16","_17")))) -> Shuttles_weiblich_14_16
C56: ="Shuttles_"&F1&IF(H2=9,"_9",IF(H2<12,"_10_11",IF(H2<14,"_12_13",IF(H2<17,"_14_16","_17"))))&"[Shuttle]" -> Shuttles_weiblich_14_16[Shuttle]
C57: ="Shuttles_"&F1&IF(H2=9,"_9",IF(H2<12,"_10_11",IF(H2<14,"_12_13",IF(H2<17,"_14_16","_17"))))&"[Punkte]" -> Shuttles_weiblich_14_16[Punkte]
B59: G_TBN TN BKÜ | C59: =IF(H2<13,"beide",F1) -> weiblich
B60: AK | C60: =IF(OR(H2=9,H2=12),H2,IF(H2<12,"10_11",IF(H2<15,"13_14",IF(H2<17,"15_16",IF(H2<19,"17_18",19))))) -> 13_14
B62: TBN | C62: ="TBN_"&C59&"_"&C60 -> TBN_weiblich_13_14
C63: =C62&"[Beschreibung]" -> TBN_weiblich_13_14[Beschreibung]
B65: TN | C65: ="TN_"&C59&"_"&C60 -> TN_weiblich_13_14
C66: =C65&"[Beschreibung]" -> TN_weiblich_13_14[Beschreibung]
B68: TV | C68: ="TV_"&F1&"_"&C60 -> TV_weiblich_13_14
B70: BKÜ | C70: ="BKÜ"&IF(H2=9,"_9",IF(H2<12,"_10_11",IF(H2<14,"_12_13",IF(H2<17,"_14_16","_17")))) -> BKÜ_14_16
B72: G_TV | C72: =IF(H2<17,"beide",F1) -> beide
B73: TV | C73: ="TV_"&C72&"_"&C60 -> TV_beide_13_14
B75: =SUM(H19,H9,H51) -> 101.5 | C75: Vergleichspunktzahl aus Kraft, Beweglichkeit, Grundlagenausdauer, Bodenübung
B76: =IF(B75>95,"Ja","Nein") -> Ja | C76: Vergleichspunktzahl erfüllt?
B77: =IF(F1="Weiblich",VLOOKUP(H2,Punktetabellen!$D$43:$F$49,3,1),VLOOKUP(H2,Punktetabellen!$D$43:$F$49,2,1)) -> 143 | C77: Mindest-Gesamtwert
B78: =IF(H52>=B77,"Ja","Nein") -> Ja | C78: Gesamtwert erfüllt?
B79: =IF(AND(B76="Ja",B78="Ja"),"Ja","Nein") -> Ja | C79: Alles erfüllt?

Sheet WolfrumPhilipp
A1: Name | B1: Wolfrum, Philipp | F1: männlich | G1: Jahrgang | H1: 2007
A2: Verein | B2: Munich-Airriders | G2: AK | H2: =2020-H1 -> 13
A3: Übung | F3: Wert | G3: Berechnung | H3: Punkte
A4: Fußdehnung | F4: 10 | G4: Bild | H4: =F4 -> 10
A5: Briefmarke mit Armrumpfwinkel | F5: 10 | G5: Bild | H5: =F5 -> 10
A6: Bückbeweglichkeit | F6: 24 | G6: Tabelle | H6: =IF(F6="",0,VLOOKUP(F6,Punktetabellen!A10:B15,2,1)) -> 10
A7: Querspagat links | F7: 0 | G7: Tabelle | H7: =IF(F7="",0,VLOOKUP(F7,Punktetabellen!A3:B6,2,0)) -> 10
A8: Querspagat rechts | F8: 0 | G8: Tabelle | H8: =IF(F8="",0,VLOOKUP(F8,Punktetabellen!A3:B6,2,0)) -> 10
A9: Gesamtpunktzahl Beweglichkeit | H9: =SUM(H4:H8) -> 50
A10: Übung | F10: Wert | G10: Berechnung | H10: Punktzahl
A11: Klimmzug | F11: 15 | G11: Tabelle | H11: =IF(F11="",0,IF(H2<12,VLOOKUP(F11,Punktetabellen!D4:F14,3,1),VLOOKUP(F11,Punktetabellen!E4:F14,2,1))) -> 10
A12: Beinheben | F12: 4 | G12: Tabelle | H12: =IF(H2=9,VLOOKUP(F12,Punktetabellen!D19:F29,3,1),VLOOKUP(F12,Punktetabellen!E19:F29,2,1)) -> 1
A13: Flieger | F13: 110 | G13: Tabelle | H13: =IF(H2=9,VLOOKUP(F13,Punktetabellen!H4:K9,4,1),IF(H2<12,VLOOKUP(F13,Punktetabellen!I4:K9,3,1),VLOOKUP(F13,Punktetabellen!J4:K9,2,1))) -> 8
A14: Rollenverbindung | F14: 29 | G14: Tabelle | H14: =IF(H2=9,VLOOKUP(F14,Punktetabellen!H14:K24,4,1),IF(H2<12,VLOOKUP(F14,Punktetabellen!I14:K24,3,1),VLOOKUP(F14,Punktetabellen!J14:K24,2,1))) -> 10
A15: Prellsprünge | F15: 40 | G15: Tabelle | H15: =IF(H2=9,VLOOKUP(F15,Punktetabellen!M4:Q14,5,1),IF(H2<12,VLOOKUP(F15,Punktetabellen!N4:Q14,4,1),IF(H2<14,VLOOKUP(F15,Punktetabellen!O4:Q14,3,1),VLOOKUP(F15,Punktetabellen!P4:Q14,2,1)))) -> 10
A16: Handstandstehen | F16: 30 | G16: Tabelle | H16: =IF(F16="",0,IF(H2<10,VLOOKUP(F16,Punktetabellen!D34:F40,3,1),VLOOKUP(F16,Punktetabellen!E34:F40,2,1))) -> 10
A17: Schweizer, Wiener | C17: =IF(H2<12,"",IF(AND(H2>13,H2<17),"Schweizer: ","Wiener: ")) -> Wiener: | D17: 6 | E17: =IF(H2<12,"",IF(AND(H2>13,H2<17),"Wiener: ","Schweizer: ")) -> Schweizer: | G17: Tabelle | H17: =IF(H2<12,VLOOKUP(F17,Punktetabellen!A20:B25,2,1),((MIN(5,1*D17)*2)+MIN(MAX(0,5-(1*D17)),(1*F17)))) -> 10
A18: Bleep-Test | F18: L10 S11 | G18: Tabelle | H18: =IF(F18="",0,VLOOKUP(F18,INDIRECT(C55),2,0)) -> 10
A19: Gesamtpunktzahl Kraft/Kondition | H19: =SUM(H11:H18) -> 69
A20: Übung | D20: Max / Soll | E20: Max. Abzug | F20: Abzug / Ist | G20: Berechnung | H20: Punkte
A21: Standsprunghöhe | D21: =IF(F1="männlich",VLOOKUP(H2,Standsprünge!A3:C15,3,0),VLOOKUP(H2,Standsprünge!A3:B15,2,0)) -> 15.3 | F21: 16.06 | G21: (Ist - Soll) x 10 | H21: =IF(F21="",0,(F21-D21)*10) -> 7.6
A22: =IF(H2>16,"entfällt","TBN") -> TBN | C22: 2/1 Salto vw c aus der Rückenlage | D22: =IF(C22="","",VLOOKUP(C22,INDIRECT($C$62),2,0)) -> 10 | E22: =IF(C22="","",VLOOKUP(C22,INDIRECT($C$62),3,0)) -> 6 | F22: 2 | G22: =IF(H2>16,"entfällt","Wert - Abzug") -> Wert - Abzug | H22: =IF(A22="entfällt",0,IF(F22="",0,D22-F22)) -> 8
A23: =IF(H2>16,"entfällt","TBN") -> TBN | C23: 7/4 Salto vw c zum Rücken, 1/1 aus | D23: =IF(C23="","",VLOOKUP(C23,INDIRECT($C$62),2,0)) -> 10 | E23: =IF(C23="","",VLOOKUP(C23,INDIRECT($C$62),3,0)) -> 6 | F23: 0 | G23: =IF(H2>16,"entfällt","Wert - Abzug") -> Wert - Abzug | H23: =IF(A23="entfällt",0,IF(F23="",0,D23-F23)) -> 10
A24: =IF(H2>12,"entfällt","TBN") -> entfällt | D24: =IF(C24="","",VLOOKUP(C24,INDIRECT($C$62),2,0)) ->  | E24: =IF(C24="","",VLOOKUP(C24,INDIRECT($C$62),3,0)) ->  | G24: =IF(H2>16,"entfällt","Wert - Abzug") -> Wert - Abzug | H24: 0
A25: TN | B25: =IF(C25="","",VLOOKUP(C25,INDIRECT($C$65),2,0)) -> 801° | C25: Fliffis c | D25: =IF(C25="","",VLOOKUP(C25,INDIRECT($C$65),3,0)) -> 11 | E25: =IF(C25="","",VLOOKUP(C25,INDIRECT($C$65),4,0)) -> 6 | F25: 2 | G25: Wert - Abzug | H25: 9
A26: TN | B26: 801< | C26: Fliffis b | D26: 13 | E26: 6 | F26: 2 | G26: Wert - Abzug | H26: 11
A27: TN | B27: 811° | C27: 1/2 ein 1/2 aus c | D27: 12 | E27: 6 | F27: 4 | G27: Wert - Abzug | H27: 8
A28: =IF(H2>12,"TN","entfällt") -> TN | B28: 803° | C28: Fliffisrudi c | D28: 13 | E28: 6 | F28: 4 | G28: =IF(H2>12,"Wert - Abzug","entfällt") -> Wert - Abzug | H28: 9
A29: =IF(H2>16,"TN","entfällt") -> entfällt | G29: =IF(H2>16,"Wert - Abzug","entfällt") -> entfällt | H29: 0
A30: =IF(H2>16,"TN","entfällt") -> entfällt | G30: =IF(H2>16,"Wert - Abzug","entfällt") -> entfällt | H30: =IF(A30="entfällt",0,IF(F30="",0,D30-F30)) -> 0
A31: =IF($H$2>11,"Verbindung Sprung 1","entfällt") -> Verbindung Sprung 1 | C31: =IF(A31<>"entfällt",VLOOKUP(1,INDIRECT($C$73),2,0),"") -> 40/ | D31: =IF(A31<>"entfällt",VLOOKUP(1,INDIRECT($C$73),3,0),"") -> 6 | E31: =IF(A31<>"entfällt",VLOOKUP(1,INDIRECT($C$73),4,0),"") -> 3 | F31: 1 | G31: =IF(H2>12,"Wert - Abzug","entfällt") -> Wert - Abzug | H31: =IF(A31="entfällt",0,IF(F31="",0,D31-F31)) -> 5
A32: =IF($H$2>11,"Verbindung Sprung 2","entfällt") -> Verbindung Sprung 2 | C32: =IF(A32<>"entfällt",VLOOKUP(2,INDIRECT($C$73),2,0),"") -> 41/ | D32: =IF(A32<>"entfällt",VLOOKUP(2,INDIRECT($C$73),3,0),"") -> 6 | E32: =IF(A32<>"entfällt",VLOOKUP(2,INDIRECT($C$73),4,0),"") -> 3 | F32: 1 | G32: =IF(H2>12,"Wert - Abzug","entfällt") -> Wert - Abzug | H32: =IF(A32="entfällt",0,IF(F32="",0,D32-F32)) -> 5
A33: =IF($H$2>11,"Verbindung Sprung 3","entfällt") -> Verbindung Sprung 3 | C33: =IF(A33<>"entfällt",VLOOKUP(3,INDIRECT($C$73),2,0),"") -> 42/ | D33: =IF(A33<>"entfällt",VLOOKUP(3,INDIRECT($C$73),3,0),"") -> 7 | E33: =IF(A33<>"entfällt",VLOOKUP(3,INDIRECT($C$73),4,0),"") -> 3 | F33: 2 | G33: =IF(H2>12,"Wert - Abzug","entfällt") -> Wert - Abzug | H33: 5
A34: =IF($H$2>11,"Verbindung Sprung 4","entfällt") -> Verbindung Sprung 4 | C34: =IF(A34<>"entfällt",VLOOKUP(4,INDIRECT($C$73),2,0),"") -> 40° | D34: =IF(A34<>"entfällt",VLOOKUP(4,INDIRECT($C$73),3,0),"") -> 5 | E34: =IF(A34<>"entfällt",VLOOKUP(4,INDIRECT($C$73),4,0),"") -> 3 | F34: 1 | G34: =IF(H2>12,"Wert - Abzug","entfällt") -> Wert - Abzug | H34: 4
A35: =IF($H$2>11,"Verbindung Sprung 5","entfällt") -> Verbindung Sprung 5 | C35: =IF(A35<>"entfällt",VLOOKUP(5,INDIRECT($C$73),2,0),"") -> 41° | D35: =IF(A35<>"entfällt",VLOOKUP(5,INDIRECT($C$73),3,0),"") -> 6 | E35: =IF(A35<>"entfällt",VLOOKUP(5,INDIRECT($C$73),4,0),"") -> 3 | F35: 2 | G35: =IF(H2>12,"Wert - Abzug","entfällt") -> Wert - Abzug | H35: 4
A36: =IF($H$2>11,"Verbindung Sprung 6","entfällt") -> Verbindung Sprung 6 | C36: =IF(A36<>"entfällt",VLOOKUP(6,INDIRECT($C$73),2,0),"") -> 800° | D36: =IF(A36<>"entfällt",VLOOKUP(6,INDIRECT($C$73),3,0),"") -> 10 | E36: =IF(A36<>"entfällt",VLOOKUP(6,INDIRECT($C$73),4,0),"") -> 3 | F36: 3 | G36: =IF(H2>12,"Wert - Abzug","entfällt") -> Wert - Abzug | H36: =IF(A36="entfällt",0,IF(F36="",0,D36-F36)) -> 7
A37: Gesamtpunktzahl Trampolin | H37: =SUM(H21:H36) -> 92.6
A38: Element | E38: Wert | F38: Abzug | G38: Berechnung | H38: Punkte
A39: =VLOOKUP(1,INDIRECT($C$70),2,0) -> Salto vorwärts mit Anlauf | E39: =VLOOKUP(1,INDIRECT($C$70),3,0) -> 3 | F39: 0 | G39: Wert - Abzug | H39: =IF(E39=" ","",IF(F39="",0,E39-F39)) -> 3
A40: =VLOOKUP(2,INDIRECT($C$70),2,0) -> Handstand, 1/1 Drehung, Abrollen | E40: =VLOOKUP(2,INDIRECT($C$70),3,0) -> 3 | F40: 0.5 | G40: Wert - Abzug | H40: =IF(E40=" ","",IF(F40="",0,E40-F40)) -> 2.5
A41: =VLOOKUP(3,INDIRECT($C$70),2,0) -> Strecksprung 1/2 Drehung | E41: =VLOOKUP(3,INDIRECT($C$70),3,0) -> 1.5 | F41: 0 | G41: Wert - Abzug | H41: 1.5
A42: =VLOOKUP(4,INDIRECT($C$70),2,0) -> Vorspreizen, Handstandhüpfer, Abrollen Grätschsitz | E42: =VLOOKUP(4,INDIRECT($C$70),3,0) -> 1.5 | F42: 0.5 | G42: Wert - Abzug | H42: 1
A43: =VLOOKUP(5,INDIRECT($C$70),2,0) -> Briefmarke, Rückgrätschen --> Bauchlage | E43: =VLOOKUP(5,INDIRECT($C$70),3,0) -> 3 | F43: 0 | G43: Wert - Abzug | H43: 3
A44: =VLOOKUP(6,INDIRECT($C$70),2,0) -> Kniestand, Abdrücken gebückt --> Handstand, abrollen | E44: =VLOOKUP(6,INDIRECT($C$70),3,0) -> 3 | F44: 0 | G44: Wert - Abzug | H44: 3
A45: =VLOOKUP(7,INDIRECT($C$70),2,0) -> Vorspreizen, Standwaage --> abrollen, einbeinig rechts auf | E45: =VLOOKUP(7,INDIRECT($C$70),3,0) -> 3.5 | F45: 0 | G45: Wert - Abzug | H45: 3.5
A46: =VLOOKUP(8,INDIRECT($C$70),2,0) -> Vorspreizen, Standwaage --> abrollen, einbeinig links auf | E46: =VLOOKUP(8,INDIRECT($C$70),3,0) -> 3.5 | F46: 1 | G46: Wert - Abzug | H46: 2.5
A47: =VLOOKUP(9,INDIRECT($C$70),2,0) -> Rolle rückwärts durch Handstand | E47: =VLOOKUP(9,INDIRECT($C$70),3,0) -> 3 | F47: 0 | G47: =IF(H2>16,"","Wert - Abzug") -> Wert - Abzug | H47: 3
A48: =VLOOKUP(10,INDIRECT($C$70),2,0) -> Strecksprung 1/2 Drehung | E48: =VLOOKUP(10,INDIRECT($C$70),3,0) -> 1 | F48: 0 | G48: =IF(H2>16,"","Wert - Abzug") -> Wert - Abzug | H48: 1
A49: =VLOOKUP(11,INDIRECT($C$70),2,0) -> Sprungrolle mit Anlauf | E49: =VLOOKUP(11,INDIRECT($C$70),3,0) -> 2 | F49: 0 | G49: =IF(H2>13,"","Wert - Abzug") -> Wert - Abzug | H49: 2
A50: =VLOOKUP(12,INDIRECT($C$70),2,0) -> Strecksprung 1/1 Drehung | E50: =VLOOKUP(12,INDIRECT($C$70),3,0) -> 2 | F50: 0 | G50: =IF(OR(H2=9,H2=12,H2=13),"Wert - Abzug","") -> Wert - Abzug | H50: 2
A51: Gesamtpunktzahl Bodenkomplexübung | H51: =SUM(H39:H50) -> 28
A52: Gesamtpunktzahl | H52: =SUM(H9,H19,H37,H51) -> 239.6
B55: Shuttles | C55: ="Shuttles_"&F1&IF(H2=9,"_9",IF(H2<12,"_10_11",IF(H2<14,"_12_13",IF(H2<17,"_14_16","_17")))) -> Shuttles_männlich_12_13
C56: ="Shuttles_"&F1&IF(H2=9,"_9",IF(H2<12,"_10_11",IF(H2<14,"_12_13",IF(H2<17,"_14_16","_17"))))&"[Shuttle]" -> Shuttles_männlich_12_13[Shuttle]
C57: ="Shuttles_"&F1&IF(H2=9,"_9",IF(H2<12,"_10_11",IF(H2<14,"_12_13",IF(H2<17,"_14_16","_17"))))&"[Punkte]" -> Shuttles_männlich_12_13[Punkte]
B59: G_TBN TN BKÜ | C59: =IF(H2<13,"beide",F1) -> männlich
B60: AK | C60: =IF(OR(H2=9,H2=12),H2,IF(H2<12,"10_11",IF(H2<15,"13_14",IF(H2<17,"15_16",IF(H2<19,"17_18",19))))) -> 13_14
B62: TBN | C62: ="TBN_"&C59&"_"&C60 -> TBN_männlich_13_14
C63: =C62&"[Beschreibung]" -> TBN_männlich_13_14[Beschreibung]
B65: TN | C65: ="TN_"&C59&"_"&C60 -> TN_männlich_13_14
C66: =C65&"[Beschreibung]" -> TN_männlich_13_14[Beschreibung]
B68: TV | C68: ="TV_"&F1&"_"&C60 -> TV_männlich_13_14
B70: BKÜ | C70: ="BKÜ"&IF(H2=9,"_9",IF(H2<12,"_10_11",IF(H2<14,"_12_13",IF(H2<17,"_14_16","_17")))) -> BKÜ_12_13
B72: G_TV | C72: =IF(H2<17,"beide",F1) -> beide
B73: TV | C73: ="TV_"&C72&"_"&C60 -> TV_beide_13_14
B75: =SUM(H19,H9,H51) -> 147 | C75: Vergleichspunktzahl aus Kraft, Beweglichkeit, Grundlagenausdauer, Bodenübung
B76: =IF(B75>95,"Ja","Nein") -> Ja | C76: Vergleichspunktzahl erfüllt?
B77: =IF(F1="Weiblich",VLOOKUP(H2,Punktetabellen!$D$43:$F$49,3,1),VLOOKUP(H2,Punktetabellen!$D$43:$F$49,2,1)) -> 144 | C77: Mindest-Gesamtwert
B78: =IF(H52>=B77,"Ja","Nein") -> Ja | C78: Gesamtwert erfüllt?
B79: =IF(AND(B76="Ja",B78="Ja"),"Ja","Nein") -> Ja | C79: Alles erfüllt?

Sheet EschkeRyan
A1: Name | B1: Eschke, Ryan | F1: männlich | G1: Jahrgang | H1: 2007
A2: Verein | B2: TB Ruit | G2: AK | H2: =2020-H1 -> 13
A3: Übung | F3: Wert | G3: Berechnung | H3: Punkte
A4: Fußdehnung | F4: 6 | G4: Bild | H4: =F4 -> 6
A5: Briefmarke mit Armrumpfwinkel | F5: 2 | G5: Bild | H5: =F5 -> 2
A6: Bückbeweglichkeit | F6: 4 | G6: Tabelle | H6: =IF(F6="",0,VLOOKUP(F6,Punktetabellen!A10:B15,2,1)) -> 0
A7: Querspagat links | F7: <5 cm | G7: Tabelle | H7: =IF(F7="",0,VLOOKUP(F7,Punktetabellen!A3:B6,2,0)) -> 6
A8: Querspagat rechts | F8: 10 cm oder mehr | G8: Tabelle | H8: =IF(F8="",0,VLOOKUP(F8,Punktetabellen!A3:B6,2,0)) -> 0
A9: Gesamtpunktzahl Beweglichkeit | H9: =SUM(H4:H8) -> 14
A10: Übung | F10: Wert | G10: Berechnung | H10: Punktzahl
A11: Klimmzug | F11: 5 | G11: Tabelle | H11: =IF(F11="",0,IF(H2<12,VLOOKUP(F11,Punktetabellen!D4:F14,3,1),VLOOKUP(F11,Punktetabellen!E4:F14,2,1))) -> 0
A12: Beinheben | F12: 0 | G12: Tabelle | H12: =IF(H2=9,VLOOKUP(F12,Punktetabellen!D19:F29,3,1),VLOOKUP(F12,Punktetabellen!E19:F29,2,1)) -> 0
A13: Flieger | F13: 120 | G13: Tabelle | H13: =IF(H2=9,VLOOKUP(F13,Punktetabellen!H4:K9,4,1),IF(H2<12,VLOOKUP(F13,Punktetabellen!I4:K9,3,1),VLOOKUP(F13,Punktetabellen!J4:K9,2,1))) -> 10
A14: Rollenverbindung | F14: 19 | G14: Tabelle | H14: =IF(H2=9,VLOOKUP(F14,Punktetabellen!H14:K24,4,1),IF(H2<12,VLOOKUP(F14,Punktetabellen!I14:K24,3,1),VLOOKUP(F14,Punktetabellen!J14:K24,2,1))) -> 5
A15: Prellsprünge | F15: 34 | G15: Tabelle | H15: =IF(H2=9,VLOOKUP(F15,Punktetabellen!M4:Q14,5,1),IF(H2<12,VLOOKUP(F15,Punktetabellen!N4:Q14,4,1),IF(H2<14,VLOOKUP(F15,Punktetabellen!O4:Q14,3,1),VLOOKUP(F15,Punktetabellen!P4:Q14,2,1)))) -> 7
A16: Handstandstehen | F16: 29 | G16: Tabelle | H16: =IF(F16="",0,IF(H2<10,VLOOKUP(F16,Punktetabellen!D34:F40,3,1),VLOOKUP(F16,Punktetabellen!E34:F40,2,1))) -> 8
A17: Schweizer, Wiener | C17: =IF(H2<12,"",IF(AND(H2>13,H2<17),"Schweizer: ","Wiener: ")) -> Wiener: | D17: 0 | E17: =IF(H2<12,"",IF(AND(H2>13,H2<17),"Wiener: ","Schweizer: ")) -> Schweizer: | F17: 0 | G17: Tabelle | H17: =IF(H2<12,VLOOKUP(F17,Punktetabellen!A20:B25,2,1),((MIN(5,1*D17)*2)+MIN(MAX(0,5-(1*D17)),(1*F17)))) -> 0
A18: Bleep-Test | F18: L9 S5 | G18: Tabelle | H18: =IF(F18="",0,VLOOKUP(F18,INDIRECT(C55),2,0)) -> 7
A19: Gesamtpunktzahl Kraft/Kondition | H19: =SUM(H11:H18) -> 37
A20: Übung | D20: Max / Soll | E20: Max. Abzug | F20: Abzug / Ist | G20: Berechnung | H20: Punkte
A21: Standsprunghöhe | D21: =IF(F1="männlich",VLOOKUP(H2,Standsprünge!A3:C15,3,0),VLOOKUP(H2,Standsprünge!A3:B15,2,0)) -> 15.3 | F21: 14.42 | G21: (Ist - Soll) x 10 | H21: =IF(F21="",0,(F21-D21)*10) -> -8.8
A22: =IF(H2>16,"entfällt","TBN") -> TBN | C22: 7/4 Salto vw c zum Rücken, 1/1 aus | D22: =IF(C22="","",VLOOKUP(C22,INDIRECT($C$62),2,0)) -> 10 | E22: =IF(C22="","",VLOOKUP(C22,INDIRECT($C$62),3,0)) -> 6 | F22: 2 | G22: =IF(H2>16,"entfällt","Wert - Abzug") -> Wert - Abzug | H22: =IF(A22="entfällt",0,IF(F22="",0,D22-F22)) -> 8
A23: =IF(H2>16,"entfällt","TBN") -> TBN | C23: 2/1 Salto vw c aus der Rückenlage | D23: =IF(C23="","",VLOOKUP(C23,INDIRECT($C$62),2,0)) -> 10 | E23: =IF(C23="","",VLOOKUP(C23,INDIRECT($C$62),3,0)) -> 6 | F23: 2 | G23: =IF(H2>16,"entfällt","Wert - Abzug") -> Wert - Abzug | H23: =IF(A23="entfällt",0,IF(F23="",0,D23-F23)) -> 8
A24: =IF(H2>12,"entfällt","TBN") -> entfällt | D24: =IF(C24="","",VLOOKUP(C24,INDIRECT($C$62),2,0)) ->  | E24: =IF(C24="","",VLOOKUP(C24,INDIRECT($C$62),3,0)) ->  | G24: =IF(H2>16,"entfällt","Wert - Abzug") -> Wert - Abzug | H24: 0
A25: TN | B25: =IF(C25="","",VLOOKUP(C25,INDIRECT($C$65),2,0)) -> 801° | C25: Fliffis c | D25: =IF(C25="","",VLOOKUP(C25,INDIRECT($C$65),3,0)) -> 11 | E25: =IF(C25="","",VLOOKUP(C25,INDIRECT($C$65),4,0)) -> 6 | F25: 2 | G25: Wert - Abzug | H25: 9
A26: TN | B26: 801< | C26: Fliffis b | D26: 13 | E26: 6 | F26: 4 | G26: Wert - Abzug | H26: 9
A27: TN | B27: 803° | C27: Fliffisrudi c | D27: 13 | E27: 6 | F27: 4 | G27: Wert - Abzug | H27: 9
A28: =IF(H2>12,"TN","entfällt") -> TN | B28: 811° | C28: 1/2 ein 1/2 aus c | D28: 12 | E28: 6 | F28: 4 | G28: =IF(H2>12,"Wert - Abzug","entfällt") -> Wert - Abzug | H28: 8
A29: =IF(H2>16,"TN","entfällt") -> entfällt | G29: =IF(H2>16,"Wert - Abzug","entfällt") -> entfällt | H29: 0
A30: =IF(H2>16,"TN","entfällt") -> entfällt | G30: =IF(H2>16,"Wert - Abzug","entfällt") -> entfällt | H30: =IF(A30="entfällt",0,IF(F30="",0,D30-F30)) -> 0
A31: =IF($H$2>11,"Verbindung Sprung 1","entfällt") -> Verbindung Sprung 1 | C31: =IF(A31<>"entfällt",VLOOKUP(1,INDIRECT($C$73),2,0),"") -> 40/ | D31: =IF(A31<>"entfällt",VLOOKUP(1,INDIRECT($C$73),3,0),"") -> 6 | E31: =IF(A31<>"entfällt",VLOOKUP(1,INDIRECT($C$73),4,0),"") -> 3 | F31: 2 | G31: =IF(H2>12,"Wert - Abzug","entfällt") -> Wert - Abzug | H31: =IF(A31="entfällt",0,IF(F31="",0,D31-F31)) -> 4
A32: =IF($H$2>11,"Verbindung Sprung 2","entfällt") -> Verbindung Sprung 2 | C32: =IF(A32<>"entfällt",VLOOKUP(2,INDIRECT($C$73),2,0),"") -> 41/ | D32: =IF(A32<>"entfällt",VLOOKUP(2,INDIRECT($C$73),3,0),"") -> 6 | E32: =IF(A32<>"entfällt",VLOOKUP(2,INDIRECT($C$73),4,0),"") -> 3 | F32: 1 | G32: =IF(H2>12,"Wert - Abzug","entfällt") -> Wert - Abzug | H32: =IF(A32="entfällt",0,IF(F32="",0,D32-F32)) -> 5
A33: =IF($H$2>11,"Verbindung Sprung 3","entfällt") -> Verbindung Sprung 3 | C33: =IF(A33<>"entfällt",VLOOKUP(3,INDIRECT($C$73),2,0),"") -> 42/ | D33: =IF(A33<>"entfällt",VLOOKUP(3,INDIRECT($C$73),3,0),"") -> 7 | E33: =IF(A33<>"entfällt",VLOOKUP(3,INDIRECT($C$73),4,0),"") -> 3 | F33: 2 | G33: =IF(H2>12,"Wert - Abzug","entfällt") -> Wert - Abzug | H33: 5
A34: =IF($H$2>11,"Verbindung Sprung 4","entfällt") -> Verbindung Sprung 4 | C34: =IF(A34<>"entfällt",VLOOKUP(4,INDIRECT($C$73),2,0),"") -> 40° | D34: =IF(A34<>"entfällt",VLOOKUP(4,INDIRECT($C$73),3,0),"") -> 5 | E34: =IF(A34<>"entfällt",VLOOKUP(4,INDIRECT($C$73),4,0),"") -> 3 | F34: 2 | G34: =IF(H2>12,"Wert - Abzug","entfällt") -> Wert - Abzug | H34: 3
A35: =IF($H$2>11,"Verbindung Sprung 5","entfällt") -> Verbindung Sprung 5 | C35: =IF(A35<>"entfällt",VLOOKUP(5,INDIRECT($C$73),2,0),"") -> 41° | D35: =IF(A35<>"entfällt",VLOOKUP(5,INDIRECT($C$73),3,0),"") -> 6 | E35: =IF(A35<>"entfällt",VLOOKUP(5,INDIRECT($C$73),4,0),"") -> 3 | F35: 2 | G35: =IF(H2>12,"Wert - Abzug","entfällt") -> Wert - Abzug | H35: 4
A36: =IF($H$2>11,"Verbindung Sprung 6","entfällt") -> Verbindung Sprung 6 | C36: =IF(A36<>"entfällt",VLOOKUP(6,INDIRECT($C$73),2,0),"") -> 800° | D36: =IF(A36<>"entfällt",VLOOKUP(6,INDIRECT($C$73),3,0),"") -> 10 | E36: =IF(A36<>"entfällt",VLOOKUP(6,INDIRECT($C$73),4,0),"") -> 3 | F36: 2 | G36: =IF(H2>12,"Wert - Abzug","entfällt") -> Wert - Abzug | H36: =IF(A36="entfällt",0,IF(F36="",0,D36-F36)) -> 8
A37: Gesamtpunktzahl Trampolin | H37: =SUM(H21:H36) -> 71.2
A38: Element | E38: Wert | F38: Abzug | G38: Berechnung | H38: Punkte
A39: =VLOOKUP(1,INDIRECT($C$70),2,0) -> Salto vorwärts mit Anlauf | E39: =VLOOKUP(1,INDIRECT($C$70),3,0) -> 3 | F39: 0.5 | G39: Wert - Abzug | H39: =IF(E39=" ","",IF(F39="",0,E39-F39)) -> 2.5
A40: =VLOOKUP(2,INDIRECT($C$70),2,0) -> Handstand, 1/1 Drehung, Abrollen | E40: =VLOOKUP(2,INDIRECT($C$70),3,0) -> 3 | F40: 0.5 | G40: Wert - Abzug | H40: =IF(E40=" ","",IF(F40="",0,E40-F40)) -> 2.5
A41: =VLOOKUP(3,INDIRECT($C$70),2,0) -> Strecksprung 1/2 Drehung | E41: =VLOOKUP(3,INDIRECT($C$70),3,0) -> 1.5 | F41: 0 | G41: Wert - Abzug | H41: 1.5
A42: =VLOOKUP(4,INDIRECT($C$70),2,0) -> Vorspreizen, Handstandhüpfer, Abrollen Grätschsitz | E42: =VLOOKUP(4,INDIRECT($C$70),3,0) -> 1.5 | F42: 0.5 | G42: Wert - Abzug | H42: 1
A43: =VLOOKUP(5,INDIRECT($C$70),2,0) -> Briefmarke, Rückgrätschen --> Bauchlage | E43: =VLOOKUP(5,INDIRECT($C$70),3,0) -> 3 | G43: Wert - Abzug | H43: 0
A44: =VLOOKUP(6,INDIRECT($C$70),2,0) -> Kniestand, Abdrücken gebückt --> Handstand, abrollen | E44: =VLOOKUP(6,INDIRECT($C$70),3,0) -> 3 | F44: 1.5 | G44: Wert - Abzug | H44: 1.5
A45: =VLOOKUP(7,INDIRECT($C$70),2,0) -> Vorspreizen, Standwaage --> abrollen, einbeinig rechts auf | E45: =VLOOKUP(7,INDIRECT($C$70),3,0) -> 3.5 | F45: 2 | G45: Wert - Abzug | H45: 1.5
A46: =VLOOKUP(8,INDIRECT($C$70),2,0) -> Vorspreizen, Standwaage --> abrollen, einbeinig links auf | E46: =VLOOKUP(8,INDIRECT($C$70),3,0) -> 3.5 | F46: 2 | G46: Wert - Abzug | H46: 1.5
A47: =VLOOKUP(9,INDIRECT($C$70),2,0) -> Rolle rückwärts durch Handstand | E47: =VLOOKUP(9,INDIRECT($C$70),3,0) -> 3 | F47: 1 | G47: =IF(H2>16,"","Wert - Abzug") -> Wert - Abzug | H47: 2
A48: =VLOOKUP(10,INDIRECT($C$70),2,0) -> Strecksprung 1/2 Drehung | E48: =VLOOKUP(10,INDIRECT($C$70),3,0) -> 1 | F48: 0 | G48: =IF(H2>16,"","Wert - Abzug") -> Wert - Abzug | H48: 1
A49: =VLOOKUP(11,INDIRECT($C$70),2,0) -> Sprungrolle mit Anlauf | E49: =VLOOKUP(11,INDIRECT($C$70),3,0) -> 2 | F49: 0 | G49: =IF(H2>13,"","Wert - Abzug") -> Wert - Abzug | H49: 2
A50: =VLOOKUP(12,INDIRECT($C$70),2,0) -> Strecksprung 1/1 Drehung | E50: =VLOOKUP(12,INDIRECT($C$70),3,0) -> 2 | F50: 1.5 | G50: =IF(OR(H2=9,H2=12,H2=13),"Wert - Abzug","") -> Wert - Abzug | H50: 0.5
A51: Gesamtpunktzahl Bodenkomplexübung | H51: =SUM(H39:H50) -> 17.5
A52: Gesamtpunktzahl | H52: =SUM(H9,H19,H37,H51) -> 139.7
B55: Shuttles | C55: ="Shuttles_"&F1&IF(H2=9,"_9",IF(H2<12,"_10_11",IF(H2<14,"_12_13",IF(H2<17,"_14_16","_17")))) -> Shuttles_männlich_12_13
C56: ="Shuttles_"&F1&IF(H2=9,"_9",IF(H2<12,"_10_11",IF(H2<14,"_12_13",IF(H2<17,"_14_16","_17"))))&"[Shuttle]" -> Shuttles_männlich_12_13[Shuttle]
C57: ="Shuttles_"&F1&IF(H2=9,"_9",IF(H2<12,"_10_11",IF(H2<14,"_12_13",IF(H2<17,"_14_16","_17"))))&"[Punkte]" -> Shuttles_männlich_12_13[Punkte]
B59: G_TBN TN BKÜ | C59: =IF(H2<13,"beide",F1) -> männlich
B60: AK | C60: =IF(OR(H2=9,H2=12),H2,IF(H2<12,"10_11",IF(H2<15,"13_14",IF(H2<17,"15_16",IF(H2<19,"17_18",19))))) -> 13_14
B62: TBN | C62: ="TBN_"&C59&"_"&C60 -> TBN_männlich_13_14
C63: =C62&"[Beschreibung]" -> TBN_männlich_13_14[Beschreibung]
B65: TN | C65: ="TN_"&C59&"_"&C60 -> TN_männlich_13_14
C66: =C65&"[Beschreibung]" -> TN_männlich_13_14[Beschreibung]
B68: TV | C68: ="TV_"&F1&"_"&C60 -> TV_männlich_13_14
B70: BKÜ | C70: ="BKÜ"&IF(H2=9,"_9",IF(H2<12,"_10_11",IF(H2<14,"_12_13",IF(H2<17,"_14_16","_17")))) -> BKÜ_12_13
B72: G_TV | C72: =IF(H2<17,"beide",F1) -> beide
B73: TV | C73: ="TV_"&C72&"_"&C60 -> TV_beide_13_14
B75: =SUM(H19,H9,H51) -> 68.5 | C75: Vergleichspunktzahl aus Kraft, Beweglichkeit, Grundlagenausdauer, Bodenübung
B76: =IF(B75>95,"Ja","Nein") -> Nein | C76: Vergleichspunktzahl erfüllt?
B77: =IF(F1="Weiblich",VLOOKUP(H2,Punktetabellen!$D$43:$F$49,3,1),VLOOKUP(H2,Punktetabellen!$D$43:$F$49,2,1)) -> 144 | C77: Mindest-Gesamtwert
B78: =IF(H52>=B77,"Ja","Nein") -> Nein | C78: Gesamtwert erfüllt?
B79: =IF(AND(B76="Ja",B78="Ja"),"Ja","Nein") -> Nein | C79: Alles erfüllt?

Sheet HenseleitNele
A1: Name | B1: Henseleit, Nele | F1: weiblich | G1: Jahrgang | H1: 2002
A2: Verein | B2: Geestemünder TV | G2: AK | H2: =2020-H1 -> 18
A3: Übung | F3: Wert | G3: Berechnung | H3: Punkte
A4: Fußdehnung | F4: 6 | G4: Bild | H4: =F4 -> 6
A5: Briefmarke mit Armrumpfwinkel | F5: 10 | G5: Bild | H5: =F5 -> 10
A6: Bückbeweglichkeit | F6: 16 | G6: Tabelle | H6: =IF(F6="",0,VLOOKUP(F6,Punktetabellen!A10:B15,2,1)) -> 6
A7: Querspagat links | F7: 0 | G7: Tabelle | H7: =IF(F7="",0,VLOOKUP(F7,Punktetabellen!A3:B6,2,0)) -> 10
A8: Querspagat rechts | F8: <5 cm | G8: Tabelle | H8: =IF(F8="",0,VLOOKUP(F8,Punktetabellen!A3:B6,2,0)) -> 6
A9: Gesamtpunktzahl Beweglichkeit | H9: =SUM(H4:H8) -> 38
A10: Übung | F10: Wert | G10: Berechnung | H10: Punktzahl
A11: Klimmzug | F11: 0 | G11: Tabelle | H11: =IF(F11="",0,IF(H2<12,VLOOKUP(F11,Punktetabellen!D4:F14,3,1),VLOOKUP(F11,Punktetabellen!E4:F14,2,1))) -> 0
A12: Beinheben | F12: 0 | G12: Tabelle | H12: =IF(H2=9,VLOOKUP(F12,Punktetabellen!D19:F29,3,1),VLOOKUP(F12,Punktetabellen!E19:F29,2,1)) -> 0
A13: Flieger | F13: 120 | G13: Tabelle | H13: =IF(H2=9,VLOOKUP(F13,Punktetabellen!H4:K9,4,1),IF(H2<12,VLOOKUP(F13,Punktetabellen!I4:K9,3,1),VLOOKUP(F13,Punktetabellen!J4:K9,2,1))) -> 10
A14: Rollenverbindung | F14: 13 | G14: Tabelle | H14: =IF(H2=9,VLOOKUP(F14,Punktetabellen!H14:K24,4,1),IF(H2<12,VLOOKUP(F14,Punktetabellen!I14:K24,3,1),VLOOKUP(F14,Punktetabellen!J14:K24,2,1))) -> 2
A15: Prellsprünge | F15: 4 | G15: Tabelle | H15: =IF(H2=9,VLOOKUP(F15,Punktetabellen!M4:Q14,5,1),IF(H2<12,VLOOKUP(F15,Punktetabellen!N4:Q14,4,1),IF(H2<14,VLOOKUP(F15,Punktetabellen!O4:Q14,3,1),VLOOKUP(F15,Punktetabellen!P4:Q14,2,1)))) -> 4
A16: Handstandstehen | F16: 5 | G16: Tabelle | H16: =IF(F16="",0,IF(H2<10,VLOOKUP(F16,Punktetabellen!D34:F40,3,1),VLOOKUP(F16,Punktetabellen!E34:F40,2,1))) -> 0
A17: Schweizer, Wiener | C17: =IF(H2<12,"",IF(AND(H2>13,H2<17),"Schweizer: ","Wiener: ")) -> Wiener: | D17: 0 | E17: =IF(H2<12,"",IF(AND(H2>13,H2<17),"Wiener: ","Schweizer: ")) -> Schweizer: | F17: 0 | G17: Tabelle | H17: =IF(H2<12,VLOOKUP(F17,Punktetabellen!A20:B25,2,1),((MIN(5,1*D17)*2)+MIN(MAX(0,5-(1*D17)),(1*F17)))) -> 0
A18: Bleep-Test | F18: L7 S5 | G18: Tabelle | H18: =IF(F18="",0,VLOOKUP(F18,INDIRECT(C55),2,0)) -> 3
A19: Gesamtpunktzahl Kraft/Kondition | H19: =SUM(H11:H18) -> 19
A20: Übung | D20: Max / Soll | E20: Max. Abzug | F20: Abzug / Ist | G20: Berechnung | H20: Punkte
A21: Standsprunghöhe | D21: =IF(F1="männlich",VLOOKUP(H2,Standsprünge!A3:C15,3,0),VLOOKUP(H2,Standsprünge!A3:B15,2,0)) -> 16.4 | F21: 15.67 | G21: (Ist - Soll) x 10 | H21: =IF(F21="",0,(F21-D21)*10) -> -7.3
A22: =IF(H2>16,"entfällt","TBN") -> entfällt | D22: =IF(C22="","",VLOOKUP(C22,INDIRECT($C$62),2,0)) ->  | E22: =IF(C22="","",VLOOKUP(C22,INDIRECT($C$62),3,0)) ->  | G22: =IF(H2>16,"entfällt","Wert - Abzug") -> entfällt | H22: =IF(A22="entfällt",0,IF(F22="",0,D22-F22)) -> 0
A23: =IF(H2>16,"entfällt","TBN") -> entfällt | D23: =IF(C23="","",VLOOKUP(C23,INDIRECT($C$62),2,0)) ->  | E23: =IF(C23="","",VLOOKUP(C23,INDIRECT($C$62),3,0)) ->  | G23: =IF(H2>16,"entfällt","Wert - Abzug") -> entfällt | H23: =IF(A23="entfällt",0,IF(F23="",0,D23-F23)) -> 0
A24: =IF(H2>12,"entfällt","TBN") -> entfällt | D24: =IF(C24="","",VLOOKUP(C24,INDIRECT($C$62),2,0)) ->  | E24: =IF(C24="","",VLOOKUP(C24,INDIRECT($C$62),3,0)) ->  | G24: =IF(H2>16,"entfällt","Wert - Abzug") -> entfällt | H24: 0
A25: TN | B25: =IF(C25="","",VLOOKUP(C25,INDIRECT($C$65),2,0)) -> 803< | C25: Fliffisrudi b | D25: =IF(C25="","",VLOOKUP(C25,INDIRECT($C$65),3,0)) -> 15 | E25: =IF(C25="","",VLOOKUP(C25,INDIRECT($C$65),4,0)) -> 6 | F25: 4 | G25: Wert - Abzug | H25: 11
A26: TN | B26: 901° | C26: Fliffis c aus der Rückenlage | D26: 12 | E26: 6 | G26: Wert - Abzug | H26: 0
A27: TN | G27: Wert - Abzug | H27: 0
A28: =IF(H2>12,"TN","entfällt") -> TN | G28: =IF(H2>12,"Wert - Abzug","entfällt") -> Wert - Abzug | H28: 0
A29: =IF(H2>16,"TN","entfällt") -> TN | G29: =IF(H2>16,"Wert - Abzug","entfällt") -> Wert - Abzug | H29: 0
A30: =IF(H2>16,"TN","entfällt") -> TN | G30: =IF(H2>16,"Wert - Abzug","entfällt") -> Wert - Abzug | H30: =IF(A30="entfällt",0,IF(F30="",0,D30-F30)) -> 0
A31: =IF($H$2>11,"Verbindung Sprung 1","entfällt") -> Verbindung Sprung 1 | C31: =IF(A31<>"entfällt",VLOOKUP(1,INDIRECT($C$73),2,0),"") -> 803< | D31: =IF(A31<>"entfällt",VLOOKUP(1,INDIRECT($C$73),3,0),"") -> 15 | E31: =IF(A31<>"entfällt",VLOOKUP(1,INDIRECT($C$73),4,0),"") -> 3 | F31: 3 | G31: =IF(H2>12,"Wert - Abzug","entfällt") -> Wert - Abzug | H31: =IF(A31="entfällt",0,IF(F31="",0,D31-F31)) -> 12
A32: =IF($H$2>11,"Verbindung Sprung 2","entfällt") -> Verbindung Sprung 2 | C32: =IF(A32<>"entfällt",VLOOKUP(2,INDIRECT($C$73),2,0),"") -> 40< | D32: =IF(A32<>"entfällt",VLOOKUP(2,INDIRECT($C$73),3,0),"") -> 6 | E32: =IF(A32<>"entfällt",VLOOKUP(2,INDIRECT($C$73),4,0),"") -> 3 | F32: 2 | G32: =IF(H2>12,"Wert - Abzug","entfällt") -> Wert - Abzug | H32: =IF(A32="entfällt",0,IF(F32="",0,D32-F32)) -> 4
A33: =IF($H$2>11,"Verbindung Sprung 3","entfällt") -> Verbindung Sprung 3 | C33: =IF(A33<>"entfällt",VLOOKUP(3,INDIRECT($C$73),2,0),"") -> 801< | D33: =IF(A33<>"entfällt",VLOOKUP(3,INDIRECT($C$73),3,0),"") -> 13 | E33: =IF(A33<>"entfällt",VLOOKUP(3,INDIRECT($C$73),4,0),"") -> 3 | F33: 3 | G33: =IF(H2>12,"Wert - Abzug","entfällt") -> Wert - Abzug | H33: 10
A34: =IF($H$2>11,"Verbindung Sprung 4","entfällt") -> Verbindung Sprung 4 | C34: =IF(A34<>"entfällt",VLOOKUP(4,INDIRECT($C$73),2,0),"") -> 40/ | D34: =IF(A34<>"entfällt",VLOOKUP(4,INDIRECT($C$73),3,0),"") -> 6 | E34: =IF(A34<>"entfällt",VLOOKUP(4,INDIRECT($C$73),4,0),"") -> 3 | F34: 3 | G34: =IF(H2>12,"Wert - Abzug","entfällt") -> Wert - Abzug | H34: 3
A35: =IF($H$2>11,"Verbindung Sprung 5","entfällt") -> Verbindung Sprung 5 | C35: =IF(A35<>"entfällt",VLOOKUP(5,INDIRECT($C$73),2,0),"") -> 41/ | D35: =IF(A35<>"entfällt",VLOOKUP(5,INDIRECT($C$73),3,0),"") -> 6 | E35: =IF(A35<>"entfällt",VLOOKUP(5,INDIRECT($C$73),4,0),"") -> 3 | F35: 3 | G35: =IF(H2>12,"Wert - Abzug","entfällt") -> Wert - Abzug | H35: 3
A36: =IF($H$2>11,"Verbindung Sprung 6","entfällt") -> Verbindung Sprung 6 | C36: =IF(A36<>"entfällt",VLOOKUP(6,INDIRECT($C$73),2,0),"") -> 811° | D36: =IF(A36<>"entfällt",VLOOKUP(6,INDIRECT($C$73),3,0),"") -> 12 | E36: =IF(A36<>"entfällt",VLOOKUP(6,INDIRECT($C$73),4,0),"") -> 3 | G36: =IF(H2>12,"Wert - Abzug","entfällt") -> Wert - Abzug | H36: =IF(A36="entfällt",0,IF(F36="",0,D36-F36)) -> 0
A37: Gesamtpunktzahl Trampolin | H37: =SUM(H21:H36) -> 35.7
A38: Element | E38: Wert | F38: Abzug | G38: Berechnung | H38: Punkte
A39: =VLOOKUP(1,INDIRECT($C$70),2,0) -> Salto vorwärts gehockt aus dem Stand | E39: =VLOOKUP(1,INDIRECT($C$70),3,0) -> 5 | G39: Wert - Abzug | H39: =IF(E39=" ","",IF(F39="",0,E39-F39)) -> 0
A40: =VLOOKUP(2,INDIRECT($C$70),2,0) -> Vorspreizen, Bestellschritt, Strecksprung 3/2 Drehung | E40: =VLOOKUP(2,INDIRECT($C$70),3,0) -> 3 | G40: Wert - Abzug | H40: =IF(E40=" ","",IF(F40="",0,E40-F40)) -> 0
A41: =VLOOKUP(3,INDIRECT($C$70),2,0) -> Rolle rückwärts durch Handstand mit 1/2 Drehung | E41: =VLOOKUP(3,INDIRECT($C$70),3,0) -> 4 | G41: Wert - Abzug | H41: 0
A42: =VLOOKUP(4,INDIRECT($C$70),2,0) -> --> Strecksprung --> Salto vorwärts gehockt | E42: =VLOOKUP(4,INDIRECT($C$70),3,0) -> 4 | F42: 2 | G42: Wert - Abzug | H42: 2
A43: =VLOOKUP(5,INDIRECT($C$70),2,0) -> Wiener, 1/2 Drehung, absenken zum Stand | E43: =VLOOKUP(5,INDIRECT($C$70),3,0) -> 4 | G43: Wert - Abzug | H43: 0
A44: =VLOOKUP(6,INDIRECT($C$70),2,0) -> Handstand mit zwei Hüpfern, abrollen | E44: =VLOOKUP(6,INDIRECT($C$70),3,0) -> 2 | F44: 1 | G44: Wert - Abzug | H44: 1
A45: =VLOOKUP(7,INDIRECT($C$70),2,0) -> --> aufstehen mit gestreckten Beinen | E45: =VLOOKUP(7,INDIRECT($C$70),3,0) -> 3 | G45: Wert - Abzug | H45: 0
A46: =VLOOKUP(8,INDIRECT($C$70),2,0) -> Salto rückwärts gebückt | E46: =VLOOKUP(8,INDIRECT($C$70),3,0) -> 5 | G46: Wert - Abzug | H46: 0
A47: =VLOOKUP(9,INDIRECT($C$70),2,0) ->  | E47: =VLOOKUP(9,INDIRECT($C$70),3,0) ->  | G47: =IF(H2>16,"","Wert - Abzug") -> 
A48: =VLOOKUP(10,INDIRECT($C$70),2,0) ->  | E48: =VLOOKUP(10,INDIRECT($C$70),3,0) ->  | G48: =IF(H2>16,"","Wert - Abzug") -> 
A49: =VLOOKUP(11,INDIRECT($C$70),2,0) ->  | E49: =VLOOKUP(11,INDIRECT($C$70),3,0) ->  | G49: =IF(H2>13,"","Wert - Abzug") -> 
A50: =VLOOKUP(12,INDIRECT($C$70),2,0) ->  | E50: =VLOOKUP(12,INDIRECT($C$70),3,0) ->  | G50: =IF(OR(H2=9,H2=12,H2=13),"Wert - Abzug","") -> 
A51: Gesamtpunktzahl Bodenkomplexübung | H51: =SUM(H39:H50) -> 3
A52: Gesamtpunktzahl | H52: =SUM(H9,H19,H37,H51) -> 95.7
B55: Shuttles | C55: ="Shuttles_"&F1&IF(H2=9,"_9",IF(H2<12,"_10_11",IF(H2<14,"_12_13",IF(H2<17,"_14_16","_17")))) -> Shuttles_weiblich_17
C56: ="Shuttles_"&F1&IF(H2=9,"_9",IF(H2<12,"_10_11",IF(H2<14,"_12_13",IF(H2<17,"_14_16","_17"))))&"[Shuttle]" -> Shuttles_weiblich_17[Shuttle]
C57: ="Shuttles_"&F1&IF(H2=9,"_9",IF(H2<12,"_10_11",IF(H2<14,"_12_13",IF(H2<17,"_14_16","_17"))))&"[Punkte]" -> Shuttles_weiblich_17[Punkte]
B59: G_TBN TN BKÜ | C59: =IF(H2<13,"beide",F1) -> weiblich
B60: AK | C60: =IF(OR(H2=9,H2=12),H2,IF(H2<12,"10_11",IF(H2<15,"13_14",IF(H2<17,"15_16",IF(H2<19,"17_18",19))))) -> 17_18
B62: TBN | C62: ="TBN_"&C59&"_"&C60 -> TBN_weiblich_17_18
C63: =C62&"[Beschreibung]" -> TBN_weiblich_17_18[Beschreibung]
B65: TN | C65: ="TN_"&C59&"_"&C60 -> TN_weiblich_17_18
C66: =C65&"[Beschreibung]" -> TN_weiblich_17_18[Beschreibung]
B68: TV | C68: ="TV_"&F1&"_"&C60 -> TV_weiblich_17_18
B70: BKÜ | C70: ="BKÜ"&IF(H2=9,"_9",IF(H2<12,"_10_11",IF(H2<14,"_12_13",IF(H2<17,"_14_16","_17")))) -> BKÜ_17
B72: G_TV | C72: =IF(H2<17,"beide",F1) -> weiblich
B73: TV | C73: ="TV_"&C72&"_"&C60 -> TV_weiblich_17_18
B75: =SUM(H19,H9,H51) -> 60 | C75: Vergleichspunktzahl aus Kraft, Beweglichkeit, Grundlagenausdauer, Bodenübung
B76: =IF(B75>95,"Ja","Nein") -> Nein | C76: Vergleichspunktzahl erfüllt?
B77: =IF(F1="Weiblich",VLOOKUP(H2,Punktetabellen!$D$43:$F$49,3,1),VLOOKUP(H2,Punktetabellen!$D$43:$F$49,2,1)) -> 169 | C77: Mindest-Gesamtwert
B78: =IF(H52>=B77,"Ja","Nein") -> Nein | C78: Gesamtwert erfüllt?
B79: =IF(AND(B76="Ja",B78="Ja"),"Ja","Nein") -> Nein | C79: Alles erfüllt?

Sheet RadfelderHenningMirja
A1: Name | B1: Radfelder-Henning, Mirja | F1: weiblich | G1: Jahrgang | H1: 2005
A2: Verein | B2: OSC Bremerhafen | G2: AK | H2: =2020-H1 -> 15
A3: Übung | F3: Wert | G3: Berechnung | H3: Punkte
A4: Fußdehnung | F4: 10 | G4: Bild | H4: =F4 -> 10
A5: Briefmarke mit Armrumpfwinkel | F5: 10 | G5: Bild | H5: =F5 -> 10
A6: Bückbeweglichkeit | F6: 18 | G6: Tabelle | H6: =IF(F6="",0,VLOOKUP(F6,Punktetabellen!A10:B15,2,1)) -> 8
A7: Querspagat links | F7: <5 cm | G7: Tabelle | H7: =IF(F7="",0,VLOOKUP(F7,Punktetabellen!A3:B6,2,0)) -> 6
A8: Querspagat rechts | F8: 0 | G8: Tabelle | H8: =IF(F8="",0,VLOOKUP(F8,Punktetabellen!A3:B6,2,0)) -> 10
A9: Gesamtpunktzahl Beweglichkeit | H9: =SUM(H4:H8) -> 44
A10: Übung | F10: Wert | G10: Berechnung | H10: Punktzahl
A11: Klimmzug | F11: 1 | G11: Tabelle | H11: =IF(F11="",0,IF(H2<12,VLOOKUP(F11,Punktetabellen!D4:F14,3,1),VLOOKUP(F11,Punktetabellen!E4:F14,2,1))) -> 0
A12: Beinheben | F12: 5 | G12: Tabelle | H12: =IF(H2=9,VLOOKUP(F12,Punktetabellen!D19:F29,3,1),VLOOKUP(F12,Punktetabellen!E19:F29,2,1)) -> 2
A13: Flieger | F13: 75 | G13: Tabelle | H13: =IF(H2=9,VLOOKUP(F13,Punktetabellen!H4:K9,4,1),IF(H2<12,VLOOKUP(F13,Punktetabellen!I4:K9,3,1),VLOOKUP(F13,Punktetabellen!J4:K9,2,1))) -> 0
A14: Rollenverbindung | F14: 9 | G14: Tabelle | H14: =IF(H2=9,VLOOKUP(F14,Punktetabellen!H14:K24,4,1),IF(H2<12,VLOOKUP(F14,Punktetabellen!I14:K24,3,1),VLOOKUP(F14,Punktetabellen!J14:K24,2,1))) -> 0
A15: Prellsprünge | F15: 7 | G15: Tabelle | H15: =IF(H2=9,VLOOKUP(F15,Punktetabellen!M4:Q14,5,1),IF(H2<12,VLOOKUP(F15,Punktetabellen!N4:Q14,4,1),IF(H2<14,VLOOKUP(F15,Punktetabellen!O4:Q14,3,1),VLOOKUP(F15,Punktetabellen!P4:Q14,2,1)))) -> 7
A16: Handstandstehen | F16: 0 | G16: Tabelle | H16: =IF(F16="",0,IF(H2<10,VLOOKUP(F16,Punktetabellen!D34:F40,3,1),VLOOKUP(F16,Punktetabellen!E34:F40,2,1))) -> 0
A17: Schweizer, Wiener | C17: =IF(H2<12,"",IF(AND(H2>13,H2<17),"Schweizer: ","Wiener: ")) -> Schweizer: | D17: 0 | E17: =IF(H2<12,"",IF(AND(H2>13,H2<17),"Wiener: ","Schweizer: ")) -> Wiener: | F17: 0 | G17: Tabelle | H17: =IF(H2<12,VLOOKUP(F17,Punktetabellen!A20:B25,2,1),((MIN(5,1*D17)*2)+MIN(MAX(0,5-(1*D17)),(1*F17)))) -> 0
A18: Bleep-Test | F18: L7 S5 | G18: Tabelle | H18: =IF(F18="",0,VLOOKUP(F18,INDIRECT(C55),2,0)) -> 5
A19: Gesamtpunktzahl Kraft/Kondition | H19: =SUM(H11:H18) -> 14
A20: Übung | D20: Max / Soll | E20: Max. Abzug | F20: Abzug / Ist | G20: Berechnung | H20: Punkte
A21: Standsprunghöhe | D21: =IF(F1="männlich",VLOOKUP(H2,Standsprünge!A3:C15,3,0),VLOOKUP(H2,Standsprünge!A3:B15,2,0)) -> 16 | F21: 15.46 | G21: (Ist - Soll) x 10 | H21: =IF(F21="",0,(F21-D21)*10) -> -5.4
A22: =IF(H2>16,"entfällt","TBN") -> TBN | C22: 7/4 Salto vw c zum Rücken, 1/1 aus | D22: =IF(C22="","",VLOOKUP(C22,INDIRECT($C$62),2,0)) -> 10 | E22: =IF(C22="","",VLOOKUP(C22,INDIRECT($C$62),3,0)) -> 6 | F22: 4 | G22: =IF(H2>16,"entfällt","Wert - Abzug") -> Wert - Abzug | H22: =IF(A22="entfällt",0,IF(F22="",0,D22-F22)) -> 6
A23: =IF(H2>16,"entfällt","TBN") -> TBN | C23: 7/4 Salto vw b zum Rücken, 1/1 aus | D23: =IF(C23="","",VLOOKUP(C23,INDIRECT($C$62),2,0)) -> 10 | E23: =IF(C23="","",VLOOKUP(C23,INDIRECT($C$62),3,0)) -> 6 | G23: =IF(H2>16,"entfällt","Wert - Abzug") -> Wert - Abzug | H23: =IF(A23="entfällt",0,IF(F23="",0,D23-F23)) -> 0
A24: =IF(H2>12,"entfällt","TBN") -> entfällt | D24: =IF(C24="","",VLOOKUP(C24,INDIRECT($C$62),2,0)) ->  | E24: =IF(C24="","",VLOOKUP(C24,INDIRECT($C$62),3,0)) ->  | G24: =IF(H2>16,"entfällt","Wert - Abzug") -> Wert - Abzug | H24: 0
A25: TN | B25: =IF(C25="","",VLOOKUP(C25,INDIRECT($C$65),2,0)) -> 803° | C25: Fliffisrudi c | D25: =IF(C25="","",VLOOKUP(C25,INDIRECT($C$65),3,0)) -> 13 | E25: =IF(C25="","",VLOOKUP(C25,INDIRECT($C$65),4,0)) -> 6 | F25: 4 | G25: Wert - Abzug | H25: 9
A26: TN | B26: 803< | C26: Fliffisrudi b | D26: 15 | E26: 6 | F26: 6 | G26: Wert - Abzug | H26: 9
A27: TN | G27: Wert - Abzug | H27: 0
A28: =IF(H2>12,"TN","entfällt") -> TN | G28: =IF(H2>12,"Wert - Abzug","entfällt") -> Wert - Abzug | H28: 0
A29: =IF(H2>16,"TN","entfällt") -> entfällt | G29: =IF(H2>16,"Wert - Abzug","entfällt") -> entfällt | H29: 0
A30: =IF(H2>16,"TN","entfällt") -> entfällt | G30: =IF(H2>16,"Wert - Abzug","entfällt") -> entfällt | H30: =IF(A30="entfällt",0,IF(F30="",0,D30-F30)) -> 0
A31: =IF($H$2>11,"Verbindung Sprung 1","entfällt") -> Verbindung Sprung 1 | C31: =IF(A31<>"entfällt",VLOOKUP(1,INDIRECT($C$73),2,0),"") -> 801< | D31: =IF(A31<>"entfällt",VLOOKUP(1,INDIRECT($C$73),3,0),"") -> 13 | E31: =IF(A31<>"entfällt",VLOOKUP(1,INDIRECT($C$73),4,0),"") -> 3 | F31: 1 | G31: =IF(H2>12,"Wert - Abzug","entfällt") -> Wert - Abzug | H31: =IF(A31="entfällt",0,IF(F31="",0,D31-F31)) -> 12
A32: =IF($H$2>11,"Verbindung Sprung 2","entfällt") -> Verbindung Sprung 2 | C32: =IF(A32<>"entfällt",VLOOKUP(2,INDIRECT($C$73),2,0),"") -> 40< | D32: =IF(A32<>"entfällt",VLOOKUP(2,INDIRECT($C$73),3,0),"") -> 6 | E32: =IF(A32<>"entfällt",VLOOKUP(2,INDIRECT($C$73),4,0),"") -> 3 | F32: 2 | G32: =IF(H2>12,"Wert - Abzug","entfällt") -> Wert - Abzug | H32: =IF(A32="entfällt",0,IF(F32="",0,D32-F32)) -> 4
A33: =IF($H$2>11,"Verbindung Sprung 3","entfällt") -> Verbindung Sprung 3 | C33: =IF(A33<>"entfällt",VLOOKUP(3,INDIRECT($C$73),2,0),"") -> 801° | D33: =IF(A33<>"entfällt",VLOOKUP(3,INDIRECT($C$73),3,0),"") -> 11 | E33: =IF(A33<>"entfällt",VLOOKUP(3,INDIRECT($C$73),4,0),"") -> 3 | F33: 2 | G33: =IF(H2>12,"Wert - Abzug","entfällt") -> Wert - Abzug | H33: 9
A34: =IF($H$2>11,"Verbindung Sprung 4","entfällt") -> Verbindung Sprung 4 | C34: =IF(A34<>"entfällt",VLOOKUP(4,INDIRECT($C$73),2,0),"") -> 40/ | D34: =IF(A34<>"entfällt",VLOOKUP(4,INDIRECT($C$73),3,0),"") -> 6 | E34: =IF(A34<>"entfällt",VLOOKUP(4,INDIRECT($C$73),4,0),"") -> 3 | F34: 3 | G34: =IF(H2>12,"Wert - Abzug","entfällt") -> Wert - Abzug | H34: 3
A35: =IF($H$2>11,"Verbindung Sprung 5","entfällt") -> Verbindung Sprung 5 | C35: =IF(A35<>"entfällt",VLOOKUP(5,INDIRECT($C$73),2,0),"") -> 41/ | D35: =IF(A35<>"entfällt",VLOOKUP(5,INDIRECT($C$73),3,0),"") -> 6 | E35: =IF(A35<>"entfällt",VLOOKUP(5,INDIRECT($C$73),4,0),"") -> 3 | F35: 3 | G35: =IF(H2>12,"Wert - Abzug","entfällt") -> Wert - Abzug | H35: 3
A36: =IF($H$2>11,"Verbindung Sprung 6","entfällt") -> Verbindung Sprung 6 | C36: =IF(A36<>"entfällt",VLOOKUP(6,INDIRECT($C$73),2,0),"") -> 800° | D36: =IF(A36<>"entfällt",VLOOKUP(6,INDIRECT($C$73),3,0),"") -> 10 | E36: =IF(A36<>"entfällt",VLOOKUP(6,INDIRECT($C$73),4,0),"") -> 3 | F36: 3 | G36: =IF(H2>12,"Wert - Abzug","entfällt") -> Wert - Abzug | H36: =IF(A36="entfällt",0,IF(F36="",0,D36-F36)) -> 7
A37: Gesamtpunktzahl Trampolin | H37: =SUM(H21:H36) -> 56.6
A38: Element | E38: Wert | F38: Abzug | G38: Berechnung | H38: Punkte
A39: =VLOOKUP(1,INDIRECT($C$70),2,0) -> Flugrolle mit Überstrecken mit Anlauf | E39: =VLOOKUP(1,INDIRECT($C$70),3,0) -> 3 | F39: 0 | G39: Wert - Abzug | H39: =IF(E39=" ","",IF(F39="",0,E39-F39)) -> 3
A40: =VLOOKUP(2,INDIRECT($C$70),2,0) -> --> Strecksprung, Salto vorwärts gehockt | E40: =VLOOKUP(2,INDIRECT($C$70),3,0) -> 4.5 | F40: 1 | G40: Wert - Abzug | H40: =IF(E40=" ","",IF(F40="",0,E40-F40)) -> 3.5
A41: =VLOOKUP(3,INDIRECT($C$70),2,0) -> Vorspreizen, Handstand mit 1/1 Drehung, abrollen | E41: =VLOOKUP(3,INDIRECT($C$70),3,0) -> 3 | F41: 1 | G41: Wert - Abzug | H41: 2
A42: =VLOOKUP(4,INDIRECT($C$70),2,0) -> --> Aufstehen mit gestreckten Beinen | E42: =VLOOKUP(4,INDIRECT($C$70),3,0) -> 3 | F42: 0 | G42: Wert - Abzug | H42: 3
A43: =VLOOKUP(5,INDIRECT($C$70),2,0) -> Vorspreizen, Bestellschritt, Strecksprung 3/2 Drehung | E43: =VLOOKUP(5,INDIRECT($C$70),3,0) -> 3 | G43: Wert - Abzug | H43: 0
A44: =VLOOKUP(6,INDIRECT($C$70),2,0) -> Salto rückwärts gehockt | E44: =VLOOKUP(6,INDIRECT($C$70),3,0) -> 3 | F44: 0 | G44: Wert - Abzug | H44: 3
A45: =VLOOKUP(7,INDIRECT($C$70),2,0) -> Handstützüberschlag | E45: =VLOOKUP(7,INDIRECT($C$70),3,0) -> 3 | F45: 1 | G45: Wert - Abzug | H45: 2
A46: =VLOOKUP(8,INDIRECT($C$70),2,0) -> --> Ansprung Schrittstellung, Handstand mit zwei Hüpfern | E46: =VLOOKUP(8,INDIRECT($C$70),3,0) -> 3 | F46: 2 | G46: Wert - Abzug | H46: 1
A47: =VLOOKUP(9,INDIRECT($C$70),2,0) -> Abrollen --> Strecksprung 1/2 Drehung | E47: =VLOOKUP(9,INDIRECT($C$70),3,0) -> 1.5 | F47: 1 | G47: =IF(H2>16,"","Wert - Abzug") -> Wert - Abzug | H47: 0.5
A48: =VLOOKUP(10,INDIRECT($C$70),2,0) -> Salto vorwärts gebückt mit Anlauf | E48: =VLOOKUP(10,INDIRECT($C$70),3,0) -> 3 | F48: 0.5 | G48: =IF(H2>16,"","Wert - Abzug") -> Wert - Abzug | H48: 2.5
A49: =VLOOKUP(11,INDIRECT($C$70),2,0) ->  | E49: =VLOOKUP(11,INDIRECT($C$70),3,0) ->  | G49: =IF(H2>13,"","Wert - Abzug") -> 
A50: =VLOOKUP(12,INDIRECT($C$70),2,0) ->  | E50: =VLOOKUP(12,INDIRECT($C$70),3,0) ->  | G50: =IF(OR(H2=9,H2=12,H2=13),"Wert - Abzug","") -> 
A51: Gesamtpunktzahl Bodenkomplexübung | H51: =SUM(H39:H50) -> 20.5
A52: Gesamtpunktzahl | H52: =SUM(H9,H19,H37,H51) -> 135.1
B55: Shuttles | C55: ="Shuttles_"&F1&IF(H2=9,"_9",IF(H2<12,"_10_11",IF(H2<14,"_12_13",IF(H2<17,"_14_16","_17")))) -> Shuttles_weiblich_14_16
C56: ="Shuttles_"&F1&IF(H2=9,"_9",IF(H2<12,"_10_11",IF(H2<14,"_12_13",IF(H2<17,"_14_16","_17"))))&"[Shuttle]" -> Shuttles_weiblich_14_16[Shuttle]
C57: ="Shuttles_"&F1&IF(H2=9,"_9",IF(H2<12,"_10_11",IF(H2<14,"_12_13",IF(H2<17,"_14_16","_17"))))&"[Punkte]" -> Shuttles_weiblich_14_16[Punkte]
B59: G_TBN TN BKÜ | C59: =IF(H2<13,"beide",F1) -> weiblich
B60: AK | C60: =IF(OR(H2=9,H2=12),H2,IF(H2<12,"10_11",IF(H2<15,"13_14",IF(H2<17,"15_16",IF(H2<19,"17_18",19))))) -> 15_16
B62: TBN | C62: ="TBN_"&C59&"_"&C60 -> TBN_weiblich_15_16
C63: =C62&"[Beschreibung]" -> TBN_weiblich_15_16[Beschreibung]
B65: TN | C65: ="TN_"&C59&"_"&C60 -> TN_weiblich_15_16
C66: =C65&"[Beschreibung]" -> TN_weiblich_15_16[Beschreibung]
B68: TV | C68: ="TV_"&F1&"_"&C60 -> TV_weiblich_15_16
B70: BKÜ | C70: ="BKÜ"&IF(H2=9,"_9",IF(H2<12,"_10_11",IF(H2<14,"_12_13",IF(H2<17,"_14_16","_17")))) -> BKÜ_14_16
B72: G_TV | C72: =IF(H2<17,"beide",F1) -> beide
B73: TV | C73: ="TV_"&C72&"_"&C60 -> TV_beide_15_16
B75: =SUM(H19,H9,H51) -> 78.5 | C75: Vergleichspunktzahl aus Kraft, Beweglichkeit, Grundlagenausdauer, Bodenübung
B76: =IF(B75>95,"Ja","Nein") -> Nein | C76: Vergleichspunktzahl erfüllt?
B77: =IF(F1="Weiblich",VLOOKUP(H2,Punktetabellen!$D$43:$F$49,3,1),VLOOKUP(H2,Punktetabellen!$D$43:$F$49,2,1)) -> 159 | C77: Mindest-Gesamtwert
B78: =IF(H52>=B77,"Ja","Nein") -> Nein | C78: Gesamtwert erfüllt?
B79: =IF(AND(B76="Ja",B78="Ja"),"Ja","Nein") -> Nein | C79: Alles erfüllt?

Sheet LangnerSabrina
A1: Name | B1: Langner, Sabrina | F1: weiblich | G1: Jahrgang | H1: 2004
A2: Verein | B2: TSV Ganderkesee | G2: AK | H2: =2020-H1 -> 16
A3: Übung | F3: Wert | G3: Berechnung | H3: Punkte
A4: Fußdehnung | F4: 10 | G4: Bild | H4: =F4 -> 10
A5: Briefmarke mit Armrumpfwinkel | F5: 10 | G5: Bild | H5: =F5 -> 10
A6: Bückbeweglichkeit | F6: 17 | G6: Tabelle | H6: =IF(F6="",0,VLOOKUP(F6,Punktetabellen!A10:B15,2,1)) -> 6
A7: Querspagat links | F7: 0 | G7: Tabelle | H7: =IF(F7="",0,VLOOKUP(F7,Punktetabellen!A3:B6,2,0)) -> 10
A8: Querspagat rechts | F8: 0 | G8: Tabelle | H8: =IF(F8="",0,VLOOKUP(F8,Punktetabellen!A3:B6,2,0)) -> 10
A9: Gesamtpunktzahl Beweglichkeit | H9: =SUM(H4:H8) -> 46
A10: Übung | F10: Wert | G10: Berechnung | H10: Punktzahl
A11: Klimmzug | F11: 5 | G11: Tabelle | H11: =IF(F11="",0,IF(H2<12,VLOOKUP(F11,Punktetabellen!D4:F14,3,1),VLOOKUP(F11,Punktetabellen!E4:F14,2,1))) -> 0
A12: Beinheben | F12: 2 | G12: Tabelle | H12: =IF(H2=9,VLOOKUP(F12,Punktetabellen!D19:F29,3,1),VLOOKUP(F12,Punktetabellen!E19:F29,2,1)) -> 0
A13: Flieger | F13: 90 | G13: Tabelle | H13: =IF(H2=9,VLOOKUP(F13,Punktetabellen!H4:K9,4,1),IF(H2<12,VLOOKUP(F13,Punktetabellen!I4:K9,3,1),VLOOKUP(F13,Punktetabellen!J4:K9,2,1))) -> 4
A14: Rollenverbindung | F14: 29 | G14: Tabelle | H14: =IF(H2=9,VLOOKUP(F14,Punktetabellen!H14:K24,4,1),IF(H2<12,VLOOKUP(F14,Punktetabellen!I14:K24,3,1),VLOOKUP(F14,Punktetabellen!J14:K24,2,1))) -> 10
A15: Prellsprünge | F15: 7 | G15: Tabelle | H15: =IF(H2=9,VLOOKUP(F15,Punktetabellen!M4:Q14,5,1),IF(H2<12,VLOOKUP(F15,Punktetabellen!N4:Q14,4,1),IF(H2<14,VLOOKUP(F15,Punktetabellen!O4:Q14,3,1),VLOOKUP(F15,Punktetabellen!P4:Q14,2,1)))) -> 7
A16: Handstandstehen | F16: 30 | G16: Tabelle | H16: =IF(F16="",0,IF(H2<10,VLOOKUP(F16,Punktetabellen!D34:F40,3,1),VLOOKUP(F16,Punktetabellen!E34:F40,2,1))) -> 10
A17: Schweizer, Wiener | C17: =IF(H2<12,"",IF(AND(H2>13,H2<17),"Schweizer: ","Wiener: ")) -> Schweizer: | D17: 0 | E17: =IF(H2<12,"",IF(AND(H2>13,H2<17),"Wiener: ","Schweizer: ")) -> Wiener: | F17: 0 | G17: Tabelle | H17: =IF(H2<12,VLOOKUP(F17,Punktetabellen!A20:B25,2,1),((MIN(5,1*D17)*2)+MIN(MAX(0,5-(1*D17)),(1*F17)))) -> 0
A18: Bleep-Test | F18: L7 S5 | G18: Tabelle | H18: =IF(F18="",0,VLOOKUP(F18,INDIRECT(C55),2,0)) -> 5
A19: Gesamtpunktzahl Kraft/Kondition | H19: =SUM(H11:H18) -> 36
A20: Übung | D20: Max / Soll | E20: Max. Abzug | F20: Abzug / Ist | G20: Berechnung | H20: Punkte
A21: Standsprunghöhe | D21: =IF(F1="männlich",VLOOKUP(H2,Standsprünge!A3:C15,3,0),VLOOKUP(H2,Standsprünge!A3:B15,2,0)) -> 16.3 | F21: 16.03 | G21: (Ist - Soll) x 10 | H21: =IF(F21="",0,(F21-D21)*10) -> -2.7
A22: =IF(H2>16,"entfällt","TBN") -> TBN | C22: 7/4 Salto vw b zum Rücken, 1/1 aus | D22: =IF(C22="","",VLOOKUP(C22,INDIRECT($C$62),2,0)) -> 10 | E22: =IF(C22="","",VLOOKUP(C22,INDIRECT($C$62),3,0)) -> 6 | F22: 4 | G22: =IF(H2>16,"entfällt","Wert - Abzug") -> Wert - Abzug | H22: =IF(A22="entfällt",0,IF(F22="",0,D22-F22)) -> 6
A23: =IF(H2>16,"entfällt","TBN") -> TBN | D23: =IF(C23="","",VLOOKUP(C23,INDIRECT($C$62),2,0)) ->  | E23: =IF(C23="","",VLOOKUP(C23,INDIRECT($C$62),3,0)) ->  | G23: =IF(H2>16,"entfällt","Wert - Abzug") -> Wert - Abzug | H23: =IF(A23="entfällt",0,IF(F23="",0,D23-F23)) -> 0
A24: =IF(H2>12,"entfällt","TBN") -> entfällt | D24: =IF(C24="","",VLOOKUP(C24,INDIRECT($C$62),2,0)) ->  | E24: =IF(C24="","",VLOOKUP(C24,INDIRECT($C$62),3,0)) ->  | G24: =IF(H2>16,"entfällt","Wert - Abzug") -> Wert - Abzug | H24: 0
A25: TN | B25: =IF(C25="","",VLOOKUP(C25,INDIRECT($C$65),2,0)) -> 803° | C25: Fliffisrudi c | D25: =IF(C25="","",VLOOKUP(C25,INDIRECT($C$65),3,0)) -> 13 | E25: =IF(C25="","",VLOOKUP(C25,INDIRECT($C$65),4,0)) -> 6 | F25: 6 | G25: Wert - Abzug | H25: 7
A26: TN | B26: 803< | C26: Fliffisrudi b | D26: 15 | E26: 6 | F26: 6 | G26: Wert - Abzug | H26: 9
A27: TN | G27: Wert - Abzug | H27: 0
A28: =IF(H2>12,"TN","entfällt") -> TN | G28: =IF(H2>12,"Wert - Abzug","entfällt") -> Wert - Abzug | H28: 0
A29: =IF(H2>16,"TN","entfällt") -> entfällt | G29: =IF(H2>16,"Wert - Abzug","entfällt") -> entfällt | H29: 0
A30: =IF(H2>16,"TN","entfällt") -> entfällt | G30: =IF(H2>16,"Wert - Abzug","entfällt") -> entfällt | H30: =IF(A30="entfällt",0,IF(F30="",0,D30-F30)) -> 0
A31: =IF($H$2>11,"Verbindung Sprung 1","entfällt") -> Verbindung Sprung 1 | C31: =IF(A31<>"entfällt",VLOOKUP(1,INDIRECT($C$73),2,0),"") -> 801< | D31: =IF(A31<>"entfällt",VLOOKUP(1,INDIRECT($C$73),3,0),"") -> 13 | E31: =IF(A31<>"entfällt",VLOOKUP(1,INDIRECT($C$73),4,0),"") -> 3 | F31: 2 | G31: =IF(H2>12,"Wert - Abzug","entfällt") -> Wert - Abzug | H31: =IF(A31="entfällt",0,IF(F31="",0,D31-F31)) -> 11
A32: =IF($H$2>11,"Verbindung Sprung 2","entfällt") -> Verbindung Sprung 2 | C32: =IF(A32<>"entfällt",VLOOKUP(2,INDIRECT($C$73),2,0),"") -> 40< | D32: =IF(A32<>"entfällt",VLOOKUP(2,INDIRECT($C$73),3,0),"") -> 6 | E32: =IF(A32<>"entfällt",VLOOKUP(2,INDIRECT($C$73),4,0),"") -> 3 | F32: 2 | G32: =IF(H2>12,"Wert - Abzug","entfällt") -> Wert - Abzug | H32: =IF(A32="entfällt",0,IF(F32="",0,D32-F32)) -> 4
A33: =IF($H$2>11,"Verbindung Sprung 3","entfällt") -> Verbindung Sprung 3 | C33: =IF(A33<>"entfällt",VLOOKUP(3,INDIRECT($C$73),2,0),"") -> 801° | D33: =IF(A33<>"entfällt",VLOOKUP(3,INDIRECT($C$73),3,0),"") -> 11 | E33: =IF(A33<>"entfällt",VLOOKUP(3,INDIRECT($C$73),4,0),"") -> 3 | F33: 2 | G33: =IF(H2>12,"Wert - Abzug","entfällt") -> Wert - Abzug | H33: 9
A34: =IF($H$2>11,"Verbindung Sprung 4","entfällt") -> Verbindung Sprung 4 | C34: =IF(A34<>"entfällt",VLOOKUP(4,INDIRECT($C$73),2,0),"") -> 40/ | D34: =IF(A34<>"entfällt",VLOOKUP(4,INDIRECT($C$73),3,0),"") -> 6 | E34: =IF(A34<>"entfällt",VLOOKUP(4,INDIRECT($C$73),4,0),"") -> 3 | F34: 2 | G34: =IF(H2>12,"Wert - Abzug","entfällt") -> Wert - Abzug | H34: 4
A35: =IF($H$2>11,"Verbindung Sprung 5","entfällt") -> Verbindung Sprung 5 | C35: =IF(A35<>"entfällt",VLOOKUP(5,INDIRECT($C$73),2,0),"") -> 41/ | D35: =IF(A35<>"entfällt",VLOOKUP(5,INDIRECT($C$73),3,0),"") -> 6 | E35: =IF(A35<>"entfällt",VLOOKUP(5,INDIRECT($C$73),4,0),"") -> 3 | F35: 3 | G35: =IF(H2>12,"Wert - Abzug","entfällt") -> Wert - Abzug | H35: 3
A36: =IF($H$2>11,"Verbindung Sprung 6","entfällt") -> Verbindung Sprung 6 | C36: =IF(A36<>"entfällt",VLOOKUP(6,INDIRECT($C$73),2,0),"") -> 800° | D36: =IF(A36<>"entfällt",VLOOKUP(6,INDIRECT($C$73),3,0),"") -> 10 | E36: =IF(A36<>"entfällt",VLOOKUP(6,INDIRECT($C$73),4,0),"") -> 3 | F36: 3 | G36: =IF(H2>12,"Wert - Abzug","entfällt") -> Wert - Abzug | H36: =IF(A36="entfällt",0,IF(F36="",0,D36-F36)) -> 7
A37: Gesamtpunktzahl Trampolin | H37: =SUM(H21:H36) -> 57.3
A38: Element | E38: Wert | F38: Abzug | G38: Berechnung | H38: Punkte
A39: =VLOOKUP(1,INDIRECT($C$70),2,0) -> Flugrolle mit Überstrecken mit Anlauf | E39: =VLOOKUP(1,INDIRECT($C$70),3,0) -> 3 | F39: 0 | G39: Wert - Abzug | H39: =IF(E39=" ","",IF(F39="",0,E39-F39)) -> 3
A40: =VLOOKUP(2,INDIRECT($C$70),2,0) -> --> Strecksprung, Salto vorwärts gehockt | E40: =VLOOKUP(2,INDIRECT($C$70),3,0) -> 4.5 | F40: 1.5 | G40: Wert - Abzug | H40: =IF(E40=" ","",IF(F40="",0,E40-F40)) -> 3
A41: =VLOOKUP(3,INDIRECT($C$70),2,0) -> Vorspreizen, Handstand mit 1/1 Drehung, abrollen | E41: =VLOOKUP(3,INDIRECT($C$70),3,0) -> 3 | F41: 0.5 | G41: Wert - Abzug | H41: 2.5
A42: =VLOOKUP(4,INDIRECT($C$70),2,0) -> --> Aufstehen mit gestreckten Beinen | E42: =VLOOKUP(4,INDIRECT($C$70),3,0) -> 3 | F42: 2.5 | G42: Wert - Abzug | H42: 0.5
A43: =VLOOKUP(5,INDIRECT($C$70),2,0) -> Vorspreizen, Bestellschritt, Strecksprung 3/2 Drehung | E43: =VLOOKUP(5,INDIRECT($C$70),3,0) -> 3 | G43: Wert - Abzug | H43: 0
A44: =VLOOKUP(6,INDIRECT($C$70),2,0) -> Salto rückwärts gehockt | E44: =VLOOKUP(6,INDIRECT($C$70),3,0) -> 3 | F44: 0.5 | G44: Wert - Abzug | H44: 2.5
A45: =VLOOKUP(7,INDIRECT($C$70),2,0) -> Handstützüberschlag | E45: =VLOOKUP(7,INDIRECT($C$70),3,0) -> 3 | F45: 1.5 | G45: Wert - Abzug | H45: 1.5
A46: =VLOOKUP(8,INDIRECT($C$70),2,0) -> --> Ansprung Schrittstellung, Handstand mit zwei Hüpfern | E46: =VLOOKUP(8,INDIRECT($C$70),3,0) -> 3 | F46: 0.5 | G46: Wert - Abzug | H46: 2.5
A47: =VLOOKUP(9,INDIRECT($C$70),2,0) -> Abrollen --> Strecksprung 1/2 Drehung | E47: =VLOOKUP(9,INDIRECT($C$70),3,0) -> 1.5 | F47: 0 | G47: =IF(H2>16,"","Wert - Abzug") -> Wert - Abzug | H47: 1.5
A48: =VLOOKUP(10,INDIRECT($C$70),2,0) -> Salto vorwärts gebückt mit Anlauf | E48: =VLOOKUP(10,INDIRECT($C$70),3,0) -> 3 | F48: 1.5 | G48: =IF(H2>16,"","Wert - Abzug") -> Wert - Abzug | H48: 1.5
A49: =VLOOKUP(11,INDIRECT($C$70),2,0) ->  | E49: =VLOOKUP(11,INDIRECT($C$70),3,0) ->  | G49: =IF(H2>13,"","Wert - Abzug") -> 
A50: =VLOOKUP(12,INDIRECT($C$70),2,0) ->  | E50: =VLOOKUP(12,INDIRECT($C$70),3,0) ->  | G50: =IF(OR(H2=9,H2=12,H2=13),"Wert - Abzug","") -> 
A51: Gesamtpunktzahl Bodenkomplexübung | H51: =SUM(H39:H50) -> 18.5
A52: Gesamtpunktzahl | H52: =SUM(H9,H19,H37,H51) -> 157.8
B55: Shuttles | C55: ="Shuttles_"&F1&IF(H2=9,"_9",IF(H2<12,"_10_11",IF(H2<14,"_12_13",IF(H2<17,"_14_16","_17")))) -> Shuttles_weiblich_14_16
C56: ="Shuttles_"&F1&IF(H2=9,"_9",IF(H2<12,"_10_11",IF(H2<14,"_12_13",IF(H2<17,"_14_16","_17"))))&"[Shuttle]" -> Shuttles_weiblich_14_16[Shuttle]
C57: ="Shuttles_"&F1&IF(H2=9,"_9",IF(H2<12,"_10_11",IF(H2<14,"_12_13",IF(H2<17,"_14_16","_17"))))&"[Punkte]" -> Shuttles_weiblich_14_16[Punkte]
B59: G_TBN TN BKÜ | C59: =IF(H2<13,"beide",F1) -> weiblich
B60: AK | C60: =IF(OR(H2=9,H2=12),H2,IF(H2<12,"10_11",IF(H2<15,"13_14",IF(H2<17,"15_16",IF(H2<19,"17_18",19))))) -> 15_16
B62: TBN | C62: ="TBN_"&C59&"_"&C60 -> TBN_weiblich_15_16
C63: =C62&"[Beschreibung]" -> TBN_weiblich_15_16[Beschreibung]
B65: TN | C65: ="TN_"&C59&"_"&C60 -> TN_weiblich_15_16
C66: =C65&"[Beschreibung]" -> TN_weiblich_15_16[Beschreibung]
B68: TV | C68: ="TV_"&F1&"_"&C60 -> TV_weiblich_15_16
B70: BKÜ | C70: ="BKÜ"&IF(H2=9,"_9",IF(H2<12,"_10_11",IF(H2<14,"_12_13",IF(H2<17,"_14_16","_17")))) -> BKÜ_14_16
B72: G_TV | C72: =IF(H2<17,"beide",F1) -> beide
B73: TV | C73: ="TV_"&C72&"_"&C60 -> TV_beide_15_16
B75: =SUM(H19,H9,H51) -> 100.5 | C75: Vergleichspunktzahl aus Kraft, Beweglichkeit, Grundlagenausdauer, Bodenübung
B76: =IF(B75>95,"Ja","Nein") -> Ja | C76: Vergleichspunktzahl erfüllt?
B77: =IF(F1="Weiblich",VLOOKUP(H2,Punktetabellen!$D$43:$F$49,3,1),VLOOKUP(H2,Punktetabellen!$D$43:$F$49,2,1)) -> 159 | C77: Mindest-Gesamtwert
B78: =IF(H52>=B77,"Ja","Nein") -> Nein | C78: Gesamtwert erfüllt?
B79: =IF(AND(B76="Ja",B78="Ja"),"Ja","Nein") -> Nein | C79: Alles erfüllt?

Sheet VolskaNikola
A1: Name | B1: Volska, Nikola | F1: weiblich | G1: Jahrgang | H1: 2008
A2: Verein | B2: TGJ Salzgitter | G2: AK | H2: =2020-H1 -> 12
A3: Übung | F3: Wert | G3: Berechnung | H3: Punkte
A4: Fußdehnung | F4: 10 | G4: Bild | H4: =F4 -> 10
A5: Briefmarke mit Armrumpfwinkel | F5: 10 | G5: Bild | H5: =F5 -> 10
A6: Bückbeweglichkeit | F6: 20 | G6: Tabelle | H6: =IF(F6="",0,VLOOKUP(F6,Punktetabellen!A10:B15,2,1)) -> 10
A7: Querspagat links | F7: 0 | G7: Tabelle | H7: =IF(F7="",0,VLOOKUP(F7,Punktetabellen!A3:B6,2,0)) -> 10
A8: Querspagat rechts | F8: 0 | G8: Tabelle | H8: =IF(F8="",0,VLOOKUP(F8,Punktetabellen!A3:B6,2,0)) -> 10
A9: Gesamtpunktzahl Beweglichkeit | H9: =SUM(H4:H8) -> 50
A10: Übung | F10: Wert | G10: Berechnung | H10: Punktzahl
A11: Klimmzug | F11: 6 | G11: Tabelle | H11: =IF(F11="",0,IF(H2<12,VLOOKUP(F11,Punktetabellen!D4:F14,3,1),VLOOKUP(F11,Punktetabellen!E4:F14,2,1))) -> 1
A12: Beinheben | F12: 12 | G12: Tabelle | H12: =IF(H2=9,VLOOKUP(F12,Punktetabellen!D19:F29,3,1),VLOOKUP(F12,Punktetabellen!E19:F29,2,1)) -> 7
A13: Flieger | F13: 105 | G13: Tabelle | H13: =IF(H2=9,VLOOKUP(F13,Punktetabellen!H4:K9,4,1),IF(H2<12,VLOOKUP(F13,Punktetabellen!I4:K9,3,1),VLOOKUP(F13,Punktetabellen!J4:K9,2,1))) -> 6
A14: Rollenverbindung | F14: 29 | G14: Tabelle | H14: =IF(H2=9,VLOOKUP(F14,Punktetabellen!H14:K24,4,1),IF(H2<12,VLOOKUP(F14,Punktetabellen!I14:K24,3,1),VLOOKUP(F14,Punktetabellen!J14:K24,2,1))) -> 10
A15: Prellsprünge | F15: 36 | G15: Tabelle | H15: =IF(H2=9,VLOOKUP(F15,Punktetabellen!M4:Q14,5,1),IF(H2<12,VLOOKUP(F15,Punktetabellen!N4:Q14,4,1),IF(H2<14,VLOOKUP(F15,Punktetabellen!O4:Q14,3,1),VLOOKUP(F15,Punktetabellen!P4:Q14,2,1)))) -> 8
A16: Handstandstehen | F16: 23 | G16: Tabelle | H16: =IF(F16="",0,IF(H2<10,VLOOKUP(F16,Punktetabellen!D34:F40,3,1),VLOOKUP(F16,Punktetabellen!E34:F40,2,1))) -> 6
A17: Schweizer, Wiener | C17: =IF(H2<12,"",IF(AND(H2>13,H2<17),"Schweizer: ","Wiener: ")) -> Wiener: | D17: 0 | E17: =IF(H2<12,"",IF(AND(H2>13,H2<17),"Wiener: ","Schweizer: ")) -> Schweizer: | F17: 0 | G17: Tabelle | H17: =IF(H2<12,VLOOKUP(F17,Punktetabellen!A20:B25,2,1),((MIN(5,1*D17)*2)+MIN(MAX(0,5-(1*D17)),(1*F17)))) -> 0
A18: Bleep-Test | F18: L7 S10 | G18: Tabelle | H18: =IF(F18="",0,VLOOKUP(F18,INDIRECT(C55),2,0)) -> 7
A19: Gesamtpunktzahl Kraft/Kondition | H19: =SUM(H11:H18) -> 45
A20: Übung | D20: Max / Soll | E20: Max. Abzug | F20: Abzug / Ist | G20: Berechnung | H20: Punkte
A21: Standsprunghöhe | D21: =IF(F1="männlich",VLOOKUP(H2,Standsprünge!A3:C15,3,0),VLOOKUP(H2,Standsprünge!A3:B15,2,0)) -> 14.5 | F21: 15.145 | G21: (Ist - Soll) x 10 | H21: =IF(F21="",0,(F21-D21)*10) -> 6.45
A22: =IF(H2>16,"entfällt","TBN") -> TBN | D22: =IF(C22="","",VLOOKUP(C22,INDIRECT($C$62),2,0)) ->  | E22: =IF(C22="","",VLOOKUP(C22,INDIRECT($C$62),3,0)) ->  | G22: =IF(H2>16,"entfällt","Wert - Abzug") -> Wert - Abzug | H22: =IF(A22="entfällt",0,IF(F22="",0,D22-F22)) -> 0
A23: =IF(H2>16,"entfällt","TBN") -> TBN | C23: 5/4 vw mit 3/2 Schraube c (Babyrudi c) | D23: =IF(C23="","",VLOOKUP(C23,INDIRECT($C$62),2,0)) -> 9 | E23: =IF(C23="","",VLOOKUP(C23,INDIRECT($C$62),3,0)) -> 6 | F23: 0 | G23: =IF(H2>16,"entfällt","Wert - Abzug") -> Wert - Abzug | H23: =IF(A23="entfällt",0,IF(F23="",0,D23-F23)) -> 9
A24: =IF(H2>12,"entfällt","TBN") -> TBN | C24: Rücken, Schraubensalto vw Rücken (1x) | D24: =IF(C24="","",VLOOKUP(C24,INDIRECT($C$62),2,0)) -> 6 | E24: =IF(C24="","",VLOOKUP(C24,INDIRECT($C$62),3,0)) -> 4 | F24: 2 | G24: =IF(H2>16,"entfällt","Wert - Abzug") -> Wert - Abzug | H24: 4
A25: TN | B25: =IF(C25="","",VLOOKUP(C25,INDIRECT($C$65),2,0)) -> 800° | C25: Doppelsalto rw c | D25: =IF(C25="","",VLOOKUP(C25,INDIRECT($C$65),3,0)) -> 10 | E25: =IF(C25="","",VLOOKUP(C25,INDIRECT($C$65),4,0)) -> 6 | F25: 4 | G25: Wert - Abzug | H25: 6
A26: TN | B26: 700°R | C26: 7/4 vw c zum Rücken | D26: 8 | E26: 6 | F26: 0 | G26: Wert - Abzug | H26: 8
A27: TN | B27: 700<R | C27: 7/4 vw b zum Rücken | D27: 9 | E27: 6 | F27: 2 | G27: Wert - Abzug | H27: 7
A28: =IF(H2>12,"TN","entfällt") -> entfällt | B28: 700<R | C28: 7/4 vw b zum Rücken | D28: 9 | E28: 6 | F28: 0 | G28: =IF(H2>12,"Wert - Abzug","entfällt") -> entfällt | H28: 0
A29: =IF(H2>16,"TN","entfällt") -> entfällt | G29: =IF(H2>16,"Wert - Abzug","entfällt") -> entfällt | H29: 0
A30: =IF(H2>16,"TN","entfällt") -> entfällt | G30: =IF(H2>16,"Wert - Abzug","entfällt") -> entfällt | H30: =IF(A30="entfällt",0,IF(F30="",0,D30-F30)) -> 0
A31: =IF($H$2>11,"Verbindung Sprung 1","entfällt") -> Verbindung Sprung 1 | C31: =IF(A31<>"entfällt",VLOOKUP(1,INDIRECT($C$73),2,0),"") -> 40° | D31: =IF(A31<>"entfällt",VLOOKUP(1,INDIRECT($C$73),3,0),"") -> 5 | E31: =IF(A31<>"entfällt",VLOOKUP(1,INDIRECT($C$73),4,0),"") -> 3 | F31: 1 | G31: =IF(H2>12,"Wert - Abzug","entfällt") -> entfällt | H31: =IF(A31="entfällt",0,IF(F31="",0,D31-F31)) -> 4
A32: =IF($H$2>11,"Verbindung Sprung 2","entfällt") -> Verbindung Sprung 2 | C32: =IF(A32<>"entfällt",VLOOKUP(2,INDIRECT($C$73),2,0),"") -> 41° | D32: =IF(A32<>"entfällt",VLOOKUP(2,INDIRECT($C$73),3,0),"") -> 6 | E32: =IF(A32<>"entfällt",VLOOKUP(2,INDIRECT($C$73),4,0),"") -> 3 | F32: 2 | G32: =IF(H2>12,"Wert - Abzug","entfällt") -> entfällt | H32: =IF(A32="entfällt",0,IF(F32="",0,D32-F32)) -> 4
A33: =IF($H$2>11,"Verbindung Sprung 3","entfällt") -> Verbindung Sprung 3 | C33: =IF(A33<>"entfällt",VLOOKUP(3,INDIRECT($C$73),2,0),"") -> 40< | D33: =IF(A33<>"entfällt",VLOOKUP(3,INDIRECT($C$73),3,0),"") -> 6 | E33: =IF(A33<>"entfällt",VLOOKUP(3,INDIRECT($C$73),4,0),"") -> 3 | F33: 1 | G33: =IF(H2>12,"Wert - Abzug","entfällt") -> entfällt | H33: 5
A34: =IF($H$2>11,"Verbindung Sprung 4","entfällt") -> Verbindung Sprung 4 | C34: =IF(A34<>"entfällt",VLOOKUP(4,INDIRECT($C$73),2,0),"") -> 41< | D34: =IF(A34<>"entfällt",VLOOKUP(4,INDIRECT($C$73),3,0),"") -> 6 | E34: =IF(A34<>"entfällt",VLOOKUP(4,INDIRECT($C$73),4,0),"") -> 3 | F34: 2 | G34: =IF(H2>12,"Wert - Abzug","entfällt") -> entfällt | H34: 4
A35: =IF($H$2>11,"Verbindung Sprung 5","entfällt") -> Verbindung Sprung 5 | C35: =IF(A35<>"entfällt",VLOOKUP(5,INDIRECT($C$73),2,0),"") -> 40/ | D35: =IF(A35<>"entfällt",VLOOKUP(5,INDIRECT($C$73),3,0),"") -> 6 | E35: =IF(A35<>"entfällt",VLOOKUP(5,INDIRECT($C$73),4,0),"") -> 3 | F35: 2 | G35: =IF(H2>12,"Wert - Abzug","entfällt") -> entfällt | H35: 4
A36: =IF($H$2>11,"Verbindung Sprung 6","entfällt") -> Verbindung Sprung 6 | C36: =IF(A36<>"entfällt",VLOOKUP(6,INDIRECT($C$73),2,0),"") -> 02/ | D36: =IF(A36<>"entfällt",VLOOKUP(6,INDIRECT($C$73),3,0),"") -> 2 | E36: =IF(A36<>"entfällt",VLOOKUP(6,INDIRECT($C$73),4,0),"") -> 3 | F36: 2 | G36: =IF(H2>12,"Wert - Abzug","entfällt") -> entfällt | H36: =IF(A36="entfällt",0,IF(F36="",0,D36-F36)) -> 0
A37: Gesamtpunktzahl Trampolin | H37: =SUM(H21:H36) -> 61.45
A38: Element | E38: Wert | F38: Abzug | G38: Berechnung | H38: Punkte
A39: =VLOOKUP(1,INDIRECT($C$70),2,0) -> Salto vorwärts mit Anlauf | E39: =VLOOKUP(1,INDIRECT($C$70),3,0) -> 3 | F39: 0 | G39: Wert - Abzug | H39: =IF(E39=" ","",IF(F39="",0,E39-F39)) -> 3
A40: =VLOOKUP(2,INDIRECT($C$70),2,0) -> Handstand, 1/1 Drehung, Abrollen | E40: =VLOOKUP(2,INDIRECT($C$70),3,0) -> 3 | F40: 2 | G40: Wert - Abzug | H40: =IF(E40=" ","",IF(F40="",0,E40-F40)) -> 1
A41: =VLOOKUP(3,INDIRECT($C$70),2,0) -> Strecksprung 1/2 Drehung | E41: =VLOOKUP(3,INDIRECT($C$70),3,0) -> 1.5 | F41: 1 | G41: Wert - Abzug | H41: 0.5
A42: =VLOOKUP(4,INDIRECT($C$70),2,0) -> Vorspreizen, Handstandhüpfer, Abrollen Grätschsitz | E42: =VLOOKUP(4,INDIRECT($C$70),3,0) -> 1.5 | F42: 1 | G42: Wert - Abzug | H42: 0.5
A43: =VLOOKUP(5,INDIRECT($C$70),2,0) -> Briefmarke, Rückgrätschen --> Bauchlage | E43: =VLOOKUP(5,INDIRECT($C$70),3,0) -> 3 | F43: 1.5 | G43: Wert - Abzug | H43: 1.5
A44: =VLOOKUP(6,INDIRECT($C$70),2,0) -> Kniestand, Abdrücken gebückt --> Handstand, abrollen | E44: =VLOOKUP(6,INDIRECT($C$70),3,0) -> 3 | F44: 1.5 | G44: Wert - Abzug | H44: 1.5
A45: =VLOOKUP(7,INDIRECT($C$70),2,0) -> Vorspreizen, Standwaage --> abrollen, einbeinig rechts auf | E45: =VLOOKUP(7,INDIRECT($C$70),3,0) -> 3.5 | F45: 1.5 | G45: Wert - Abzug | H45: 2
A46: =VLOOKUP(8,INDIRECT($C$70),2,0) -> Vorspreizen, Standwaage --> abrollen, einbeinig links auf | E46: =VLOOKUP(8,INDIRECT($C$70),3,0) -> 3.5 | F46: 2.5 | G46: Wert - Abzug | H46: 1
A47: =VLOOKUP(9,INDIRECT($C$70),2,0) -> Rolle rückwärts durch Handstand | E47: =VLOOKUP(9,INDIRECT($C$70),3,0) -> 3 | F47: 2 | G47: =IF(H2>16,"","Wert - Abzug") -> Wert - Abzug | H47: 1
A48: =VLOOKUP(10,INDIRECT($C$70),2,0) -> Strecksprung 1/2 Drehung | E48: =VLOOKUP(10,INDIRECT($C$70),3,0) -> 1 | F48: 0 | G48: =IF(H2>16,"","Wert - Abzug") -> Wert - Abzug | H48: 1
A49: =VLOOKUP(11,INDIRECT($C$70),2,0) -> Sprungrolle mit Anlauf | E49: =VLOOKUP(11,INDIRECT($C$70),3,0) -> 2 | F49: 1.5 | G49: =IF(H2>13,"","Wert - Abzug") -> Wert - Abzug | H49: 0.5
A50: =VLOOKUP(12,INDIRECT($C$70),2,0) -> Strecksprung 1/1 Drehung | E50: =VLOOKUP(12,INDIRECT($C$70),3,0) -> 2 | F50: 2 | G50: =IF(OR(H2=9,H2=12,H2=13),"Wert - Abzug","") -> Wert - Abzug | H50: 0
A51: Gesamtpunktzahl Bodenkomplexübung | H51: =SUM(H39:H50) -> 13.5
A52: Gesamtpunktzahl | H52: =SUM(H9,H19,H37,H51) -> 169.95
B55: Shuttles | C55: ="Shuttles_"&F1&IF(H2=9,"_9",IF(H2<12,"_10_11",IF(H2<14,"_12_13",IF(H2<17,"_14_16","_17")))) -> Shuttles_weiblich_12_13
C56: ="Shuttles_"&F1&IF(H2=9,"_9",IF(H2<12,"_10_11",IF(H2<14,"_12_13",IF(H2<17,"_14_16","_17"))))&"[Shuttle]" -> Shuttles_weiblich_12_13[Shuttle]
C57: ="Shuttles_"&F1&IF(H2=9,"_9",IF(H2<12,"_10_11",IF(H2<14,"_12_13",IF(H2<17,"_14_16","_17"))))&"[Punkte]" -> Shuttles_weiblich_12_13[Punkte]
B59: G_TBN TN BKÜ | C59: =IF(H2<13,"beide",F1) -> beide
B60: AK | C60: =IF(OR(H2=9,H2=12),H2,IF(H2<12,"10_11",IF(H2<15,"13_14",IF(H2<17,"15_16",IF(H2<19,"17_18",19))))) -> 12
B62: TBN | C62: ="TBN_"&C59&"_"&C60 -> TBN_beide_12
C63: =C62&"[Beschreibung]" -> TBN_beide_12[Beschreibung]
B65: TN | C65: ="TN_"&C59&"_"&C60 -> TN_beide_12
C66: =C65&"[Beschreibung]" -> TN_beide_12[Beschreibung]
B68: TV | C68: ="TV_"&F1&"_"&C60 -> TV_weiblich_12
B70: BKÜ | C70: ="BKÜ"&IF(H2=9,"_9",IF(H2<12,"_10_11",IF(H2<14,"_12_13",IF(H2<17,"_14_16","_17")))) -> BKÜ_12_13
B72: G_TV | C72: =IF(H2<17,"beide",F1) -> beide
B73: TV | C73: ="TV_"&C72&"_"&C60 -> TV_beide_12
B75: =SUM(H19,H9,H51) -> 108.5 | C75: Vergleichspunktzahl aus Kraft, Beweglichkeit, Grundlagenausdauer, Bodenübung
B76: =IF(B75>95,"Ja","Nein") -> Ja | C76: Vergleichspunktzahl erfüllt?
B77: =IF(F1="Weiblich",VLOOKUP(H2,Punktetabellen!$D$43:$F$49,3,1),VLOOKUP(H2,Punktetabellen!$D$43:$F$49,2,1)) -> 129 | C77: Mindest-Gesamtwert
B78: =IF(H52>=B77,"Ja","Nein") -> Ja | C78: Gesamtwert erfüllt?
B79: =IF(AND(B76="Ja",B78="Ja"),"Ja","Nein") -> Ja | C79: Alles erfüllt?

Sheet RonsiekNiederbrökerHannah
A1: Name | B1: Ronsiek-Niederbröker, Hannah | F1: weiblich | G1: Jahrgang | H1: 2006
A2: Verein | B2: SC Melle | G2: AK | H2: =2020-H1 -> 14
A3: Übung | F3: Wert | G3: Berechnung | H3: Punkte
A4: Fußdehnung | F4: 10 | G4: Bild | H4: =F4 -> 10
A5: Briefmarke mit Armrumpfwinkel | F5: 6 | G5: Bild | H5: =F5 -> 6
A6: Bückbeweglichkeit | F6: 18 | G6: Tabelle | H6: =IF(F6="",0,VLOOKUP(F6,Punktetabellen!A10:B15,2,1)) -> 8
A7: Querspagat links | F7: 0 | G7: Tabelle | H7: =IF(F7="",0,VLOOKUP(F7,Punktetabellen!A3:B6,2,0)) -> 10
A8: Querspagat rechts | F8: 0 | G8: Tabelle | H8: =IF(F8="",0,VLOOKUP(F8,Punktetabellen!A3:B6,2,0)) -> 10
A9: Gesamtpunktzahl Beweglichkeit | H9: =SUM(H4:H8) -> 44
A10: Übung | F10: Wert | G10: Berechnung | H10: Punktzahl
A11: Klimmzug | F11: 1 | G11: Tabelle | H11: =IF(F11="",0,IF(H2<12,VLOOKUP(F11,Punktetabellen!D4:F14,3,1),VLOOKUP(F11,Punktetabellen!E4:F14,2,1))) -> 0
A12: Beinheben | F12: 1 | G12: Tabelle | H12: =IF(H2=9,VLOOKUP(F12,Punktetabellen!D19:F29,3,1),VLOOKUP(F12,Punktetabellen!E19:F29,2,1)) -> 0
A13: Flieger | F13: 95 | G13: Tabelle | H13: =IF(H2=9,VLOOKUP(F13,Punktetabellen!H4:K9,4,1),IF(H2<12,VLOOKUP(F13,Punktetabellen!I4:K9,3,1),VLOOKUP(F13,Punktetabellen!J4:K9,2,1))) -> 4
A14: Rollenverbindung | F14: 17 | G14: Tabelle | H14: =IF(H2=9,VLOOKUP(F14,Punktetabellen!H14:K24,4,1),IF(H2<12,VLOOKUP(F14,Punktetabellen!I14:K24,3,1),VLOOKUP(F14,Punktetabellen!J14:K24,2,1))) -> 4
A15: Prellsprünge | G15: Tabelle | H15: =IF(H2=9,VLOOKUP(F15,Punktetabellen!M4:Q14,5,1),IF(H2<12,VLOOKUP(F15,Punktetabellen!N4:Q14,4,1),IF(H2<14,VLOOKUP(F15,Punktetabellen!O4:Q14,3,1),VLOOKUP(F15,Punktetabellen!P4:Q14,2,1)))) -> 0
A16: Handstandstehen | F16: 16 | G16: Tabelle | H16: =IF(F16="",0,IF(H2<10,VLOOKUP(F16,Punktetabellen!D34:F40,3,1),VLOOKUP(F16,Punktetabellen!E34:F40,2,1))) -> 4
A17: Schweizer, Wiener | C17: =IF(H2<12,"",IF(AND(H2>13,H2<17),"Schweizer: ","Wiener: ")) -> Schweizer: | D17: 0 | E17: =IF(H2<12,"",IF(AND(H2>13,H2<17),"Wiener: ","Schweizer: ")) -> Wiener: | F17: 0 | G17: Tabelle | H17: =IF(H2<12,VLOOKUP(F17,Punktetabellen!A20:B25,2,1),((MIN(5,1*D17)*2)+MIN(MAX(0,5-(1*D17)),(1*F17)))) -> 0
A18: Bleep-Test | F18: L9 S5 | G18: Tabelle | H18: =IF(F18="",0,VLOOKUP(F18,INDIRECT(C55),2,0)) -> 9
A19: Gesamtpunktzahl Kraft/Kondition | H19: =SUM(H11:H18) -> 21
A20: Übung | D20: Max / Soll | E20: Max. Abzug | F20: Abzug / Ist | G20: Berechnung | H20: Punkte
A21: Standsprunghöhe | D21: =IF(F1="männlich",VLOOKUP(H2,Standsprünge!A3:C15,3,0),VLOOKUP(H2,Standsprünge!A3:B15,2,0)) -> 15.5 | F21: 15.955 | G21: (Ist - Soll) x 10 | H21: =IF(F21="",0,(F21-D21)*10) -> 4.55
A22: =IF(H2>16,"entfällt","TBN") -> TBN | C22: 7/4 rw c zum Rücken, 1/2 Schraube ein | D22: =IF(C22="","",VLOOKUP(C22,INDIRECT($C$62),2,0)) -> 9 | E22: =IF(C22="","",VLOOKUP(C22,INDIRECT($C$62),3,0)) -> 6 | F22: 4 | G22: =IF(H2>16,"entfällt","Wert - Abzug") -> Wert - Abzug | H22: =IF(A22="entfällt",0,IF(F22="",0,D22-F22)) -> 5
A23: =IF(H2>16,"entfällt","TBN") -> TBN | C23: 2/1 Salto vw c aus der Rückenlage | D23: =IF(C23="","",VLOOKUP(C23,INDIRECT($C$62),2,0)) -> 10 | E23: =IF(C23="","",VLOOKUP(C23,INDIRECT($C$62),3,0)) -> 6 | F23: 2 | G23: =IF(H2>16,"entfällt","Wert - Abzug") -> Wert - Abzug | H23: =IF(A23="entfällt",0,IF(F23="",0,D23-F23)) -> 8
A24: =IF(H2>12,"entfällt","TBN") -> entfällt | D24: =IF(C24="","",VLOOKUP(C24,INDIRECT($C$62),2,0)) ->  | E24: =IF(C24="","",VLOOKUP(C24,INDIRECT($C$62),3,0)) ->  | G24: =IF(H2>16,"entfällt","Wert - Abzug") -> Wert - Abzug | H24: 0
A25: TN | B25: =IF(C25="","",VLOOKUP(C25,INDIRECT($C$65),2,0)) -> 801° | C25: Fliffis c | D25: =IF(C25="","",VLOOKUP(C25,INDIRECT($C$65),3,0)) -> 11 | E25: =IF(C25="","",VLOOKUP(C25,INDIRECT($C$65),4,0)) -> 6 | F25: 2 | G25: Wert - Abzug | H25: 9
A26: TN | B26: 801< | C26: Fliffis b | D26: 13 | E26: 6 | F26: 2 | G26: Wert - Abzug | H26: 11
A27: TN | B27: 800< | C27: Doppelsalto rw b | D27: 12 | E27: 6 | F27: 6 | G27: Wert - Abzug | H27: 6
A28: =IF(H2>12,"TN","entfällt") -> TN | B28: 811° | C28: 1/2 ein 1/2 aus c | D28: 12 | E28: 6 | F28: 6 | G28: =IF(H2>12,"Wert - Abzug","entfällt") -> Wert - Abzug | H28: 6
A29: =IF(H2>16,"TN","entfällt") -> entfällt | G29: =IF(H2>16,"Wert - Abzug","entfällt") -> entfällt | H29: 0
A30: =IF(H2>16,"TN","entfällt") -> entfällt | G30: =IF(H2>16,"Wert - Abzug","entfällt") -> entfällt | H30: =IF(A30="entfällt",0,IF(F30="",0,D30-F30)) -> 0
A31: =IF($H$2>11,"Verbindung Sprung 1","entfällt") -> Verbindung Sprung 1 | C31: =IF(A31<>"entfällt",VLOOKUP(1,INDIRECT($C$73),2,0),"") -> 40/ | D31: =IF(A31<>"entfällt",VLOOKUP(1,INDIRECT($C$73),3,0),"") -> 6 | E31: =IF(A31<>"entfällt",VLOOKUP(1,INDIRECT($C$73),4,0),"") -> 3 | F31: 1 | G31: =IF(H2>12,"Wert - Abzug","entfällt") -> Wert - Abzug | H31: =IF(A31="entfällt",0,IF(F31="",0,D31-F31)) -> 5
A32: =IF($H$2>11,"Verbindung Sprung 2","entfällt") -> Verbindung Sprung 2 | C32: =IF(A32<>"entfällt",VLOOKUP(2,INDIRECT($C$73),2,0),"") -> 41/ | D32: =IF(A32<>"entfällt",VLOOKUP(2,INDIRECT($C$73),3,0),"") -> 6 | E32: =IF(A32<>"entfällt",VLOOKUP(2,INDIRECT($C$73),4,0),"") -> 3 | F32: 2 | G32: =IF(H2>12,"Wert - Abzug","entfällt") -> Wert - Abzug | H32: =IF(A32="entfällt",0,IF(F32="",0,D32-F32)) -> 4
A33: =IF($H$2>11,"Verbindung Sprung 3","entfällt") -> Verbindung Sprung 3 | C33: =IF(A33<>"entfällt",VLOOKUP(3,INDIRECT($C$73),2,0),"") -> 42/ | D33: =IF(A33<>"entfällt",VLOOKUP(3,INDIRECT($C$73),3,0),"") -> 7 | E33: =IF(A33<>"entfällt",VLOOKUP(3,INDIRECT($C$73),4,0),"") -> 3 | F33: 2 | G33: =IF(H2>12,"Wert - Abzug","entfällt") -> Wert - Abzug | H33: 5
A34: =IF($H$2>11,"Verbindung Sprung 4","entfällt") -> Verbindung Sprung 4 | C34: =IF(A34<>"entfällt",VLOOKUP(4,INDIRECT($C$73),2,0),"") -> 40° | D34: =IF(A34<>"entfällt",VLOOKUP(4,INDIRECT($C$73),3,0),"") -> 5 | E34: =IF(A34<>"entfällt",VLOOKUP(4,INDIRECT($C$73),4,0),"") -> 3 | F34: 2 | G34: =IF(H2>12,"Wert - Abzug","entfällt") -> Wert - Abzug | H34: 3
A35: =IF($H$2>11,"Verbindung Sprung 5","entfällt") -> Verbindung Sprung 5 | C35: =IF(A35<>"entfällt",VLOOKUP(5,INDIRECT($C$73),2,0),"") -> 41° | D35: =IF(A35<>"entfällt",VLOOKUP(5,INDIRECT($C$73),3,0),"") -> 6 | E35: =IF(A35<>"entfällt",VLOOKUP(5,INDIRECT($C$73),4,0),"") -> 3 | F35: 1 | G35: =IF(H2>12,"Wert - Abzug","entfällt") -> Wert - Abzug | H35: 5
A36: =IF($H$2>11,"Verbindung Sprung 6","entfällt") -> Verbindung Sprung 6 | C36: =IF(A36<>"entfällt",VLOOKUP(6,INDIRECT($C$73),2,0),"") -> 800° | D36: =IF(A36<>"entfällt",VLOOKUP(6,INDIRECT($C$73),3,0),"") -> 10 | E36: =IF(A36<>"entfällt",VLOOKUP(6,INDIRECT($C$73),4,0),"") -> 3 | F36: 3 | G36: =IF(H2>12,"Wert - Abzug","entfällt") -> Wert - Abzug | H36: =IF(A36="entfällt",0,IF(F36="",0,D36-F36)) -> 7
A37: Gesamtpunktzahl Trampolin | H37: =SUM(H21:H36) -> 78.55
A38: Element | E38: Wert | F38: Abzug | G38: Berechnung | H38: Punkte
A39: =VLOOKUP(1,INDIRECT($C$70),2,0) -> Flugrolle mit Überstrecken mit Anlauf | E39: =VLOOKUP(1,INDIRECT($C$70),3,0) -> 3 | F39: 2 | G39: Wert - Abzug | H39: =IF(E39=" ","",IF(F39="",0,E39-F39)) -> 1
A40: =VLOOKUP(2,INDIRECT($C$70),2,0) -> --> Strecksprung, Salto vorwärts gehockt | E40: =VLOOKUP(2,INDIRECT($C$70),3,0) -> 4.5 | F40: 2.5 | G40: Wert - Abzug | H40: =IF(E40=" ","",IF(F40="",0,E40-F40)) -> 2
A41: =VLOOKUP(3,INDIRECT($C$70),2,0) -> Vorspreizen, Handstand mit 1/1 Drehung, abrollen | E41: =VLOOKUP(3,INDIRECT($C$70),3,0) -> 3 | F41: 1 | G41: Wert - Abzug | H41: 2
A42: =VLOOKUP(4,INDIRECT($C$70),2,0) -> --> Aufstehen mit gestreckten Beinen | E42: =VLOOKUP(4,INDIRECT($C$70),3,0) -> 3 | G42: Wert - Abzug | H42: 0
A43: =VLOOKUP(5,INDIRECT($C$70),2,0) -> Vorspreizen, Bestellschritt, Strecksprung 3/2 Drehung | E43: =VLOOKUP(5,INDIRECT($C$70),3,0) -> 3 | G43: Wert - Abzug | H43: 0
A44: =VLOOKUP(6,INDIRECT($C$70),2,0) -> Salto rückwärts gehockt | E44: =VLOOKUP(6,INDIRECT($C$70),3,0) -> 3 | G44: Wert - Abzug | H44: 0
A45: =VLOOKUP(7,INDIRECT($C$70),2,0) -> Handstützüberschlag | E45: =VLOOKUP(7,INDIRECT($C$70),3,0) -> 3 | F45: 2 | G45: Wert - Abzug | H45: 1
A46: =VLOOKUP(8,INDIRECT($C$70),2,0) -> --> Ansprung Schrittstellung, Handstand mit zwei Hüpfern | E46: =VLOOKUP(8,INDIRECT($C$70),3,0) -> 3 | F46: 2.5 | G46: Wert - Abzug | H46: 0.5
A47: =VLOOKUP(9,INDIRECT($C$70),2,0) -> Abrollen --> Strecksprung 1/2 Drehung | E47: =VLOOKUP(9,INDIRECT($C$70),3,0) -> 1.5 | F47: 0 | G47: =IF(H2>16,"","Wert - Abzug") -> Wert - Abzug | H47: 1.5
A48: =VLOOKUP(10,INDIRECT($C$70),2,0) -> Salto vorwärts gebückt mit Anlauf | E48: =VLOOKUP(10,INDIRECT($C$70),3,0) -> 3 | F48: 2 | G48: =IF(H2>16,"","Wert - Abzug") -> Wert - Abzug | H48: 1
A49: =VLOOKUP(11,INDIRECT($C$70),2,0) ->  | E49: =VLOOKUP(11,INDIRECT($C$70),3,0) ->  | G49: =IF(H2>13,"","Wert - Abzug") -> 
A50: =VLOOKUP(12,INDIRECT($C$70),2,0) ->  | E50: =VLOOKUP(12,INDIRECT($C$70),3,0) ->  | G50: =IF(OR(H2=9,H2=12,H2=13),"Wert - Abzug","") -> 
A51: Gesamtpunktzahl Bodenkomplexübung | H51: =SUM(H39:H50) -> 9
A52: Gesamtpunktzahl | H52: =SUM(H9,H19,H37,H51) -> 152.55
B55: Shuttles | C55: ="Shuttles_"&F1&IF(H2=9,"_9",IF(H2<12,"_10_11",IF(H2<14,"_12_13",IF(H2<17,"_14_16","_17")))) -> Shuttles_weiblich_14_16
C56: ="Shuttles_"&F1&IF(H2=9,"_9",IF(H2<12,"_10_11",IF(H2<14,"_12_13",IF(H2<17,"_14_16","_17"))))&"[Shuttle]" -> Shuttles_weiblich_14_16[Shuttle]
C57: ="Shuttles_"&F1&IF(H2=9,"_9",IF(H2<12,"_10_11",IF(H2<14,"_12_13",IF(H2<17,"_14_16","_17"))))&"[Punkte]" -> Shuttles_weiblich_14_16[Punkte]
B59: G_TBN TN BKÜ | C59: =IF(H2<13,"beide",F1) -> weiblich
B60: AK | C60: =IF(OR(H2=9,H2=12),H2,IF(H2<12,"10_11",IF(H2<15,"13_14",IF(H2<17,"15_16",IF(H2<19,"17_18",19))))) -> 13_14
B62: TBN | C62: ="TBN_"&C59&"_"&C60 -> TBN_weiblich_13_14
C63: =C62&"[Beschreibung]" -> TBN_weiblich_13_14[Beschreibung]
B65: TN | C65: ="TN_"&C59&"_"&C60 -> TN_weiblich_13_14
C66: =C65&"[Beschreibung]" -> TN_weiblich_13_14[Beschreibung]
B68: TV | C68: ="TV_"&F1&"_"&C60 -> TV_weiblich_13_14
B70: BKÜ | C70: ="BKÜ"&IF(H2=9,"_9",IF(H2<12,"_10_11",IF(H2<14,"_12_13",IF(H2<17,"_14_16","_17")))) -> BKÜ_14_16
B72: G_TV | C72: =IF(H2<17,"beide",F1) -> beide
B73: TV | C73: ="TV_"&C72&"_"&C60 -> TV_beide_13_14
B75: =SUM(H19,H9,H51) -> 74 | C75: Vergleichspunktzahl aus Kraft, Beweglichkeit, Grundlagenausdauer, Bodenübung
B76: =IF(B75>95,"Ja","Nein") -> Nein | C76: Vergleichspunktzahl erfüllt?
B77: =IF(F1="Weiblich",VLOOKUP(H2,Punktetabellen!$D$43:$F$49,3,1),VLOOKUP(H2,Punktetabellen!$D$43:$F$49,2,1)) -> 143 | C77: Mindest-Gesamtwert
B78: =IF(H52>=B77,"Ja","Nein") -> Ja | C78: Gesamtwert erfüllt?
B79: =IF(AND(B76="Ja",B78="Ja"),"Ja","Nein") -> Nein | C79: Alles erfüllt?

Sheet KolaSheridan
A1: Name | B1: Kola, Sheridan | F1: weiblich | G1: Jahrgang | H1: 2005
A2: Verein | B2: MTV Peine | G2: AK | H2: =2020-H1 -> 15
A3: Übung | F3: Wert | G3: Berechnung | H3: Punkte
A4: Fußdehnung | F4: 10 | G4: Bild | H4: =F4 -> 10
A5: Briefmarke mit Armrumpfwinkel | F5: 10 | G5: Bild | H5: =F5 -> 10
A6: Bückbeweglichkeit | F6: 17 | G6: Tabelle | H6: =IF(F6="",0,VLOOKUP(F6,Punktetabellen!A10:B15,2,1)) -> 6
A7: Querspagat links | F7: 0 | G7: Tabelle | H7: =IF(F7="",0,VLOOKUP(F7,Punktetabellen!A3:B6,2,0)) -> 10
A8: Querspagat rechts | F8: 0 | G8: Tabelle | H8: =IF(F8="",0,VLOOKUP(F8,Punktetabellen!A3:B6,2,0)) -> 10
A9: Gesamtpunktzahl Beweglichkeit | H9: =SUM(H4:H8) -> 46
A10: Übung | F10: Wert | G10: Berechnung | H10: Punktzahl
A11: Klimmzug | F11: 0 | G11: Tabelle | H11: =IF(F11="",0,IF(H2<12,VLOOKUP(F11,Punktetabellen!D4:F14,3,1),VLOOKUP(F11,Punktetabellen!E4:F14,2,1))) -> 0
A12: Beinheben | F12: 0 | G12: Tabelle | H12: =IF(H2=9,VLOOKUP(F12,Punktetabellen!D19:F29,3,1),VLOOKUP(F12,Punktetabellen!E19:F29,2,1)) -> 0
A13: Flieger | F13: 80 | G13: Tabelle | H13: =IF(H2=9,VLOOKUP(F13,Punktetabellen!H4:K9,4,1),IF(H2<12,VLOOKUP(F13,Punktetabellen!I4:K9,3,1),VLOOKUP(F13,Punktetabellen!J4:K9,2,1))) -> 2
A14: Rollenverbindung | F14: 16 | G14: Tabelle | H14: =IF(H2=9,VLOOKUP(F14,Punktetabellen!H14:K24,4,1),IF(H2<12,VLOOKUP(F14,Punktetabellen!I14:K24,3,1),VLOOKUP(F14,Punktetabellen!J14:K24,2,1))) -> 3
A15: Prellsprünge | F15: 6 | G15: Tabelle | H15: =IF(H2=9,VLOOKUP(F15,Punktetabellen!M4:Q14,5,1),IF(H2<12,VLOOKUP(F15,Punktetabellen!N4:Q14,4,1),IF(H2<14,VLOOKUP(F15,Punktetabellen!O4:Q14,3,1),VLOOKUP(F15,Punktetabellen!P4:Q14,2,1)))) -> 6
A16: Handstandstehen | F16: 30 | G16: Tabelle | H16: =IF(F16="",0,IF(H2<10,VLOOKUP(F16,Punktetabellen!D34:F40,3,1),VLOOKUP(F16,Punktetabellen!E34:F40,2,1))) -> 10
A17: Schweizer, Wiener | C17: =IF(H2<12,"",IF(AND(H2>13,H2<17),"Schweizer: ","Wiener: ")) -> Schweizer: | D17: 0 | E17: =IF(H2<12,"",IF(AND(H2>13,H2<17),"Wiener: ","Schweizer: ")) -> Wiener: | F17: 0 | G17: Tabelle | H17: =IF(H2<12,VLOOKUP(F17,Punktetabellen!A20:B25,2,1),((MIN(5,1*D17)*2)+MIN(MAX(0,5-(1*D17)),(1*F17)))) -> 0
A18: Bleep-Test | F18: L5 S9 | G18: Tabelle | H18: =IF(F18="",0,VLOOKUP(F18,INDIRECT(C55),2,0)) -> 2
A19: Gesamtpunktzahl Kraft/Kondition | H19: =SUM(H11:H18) -> 23
A20: Übung | D20: Max / Soll | E20: Max. Abzug | F20: Abzug / Ist | G20: Berechnung | H20: Punkte
A21: Standsprunghöhe | D21: =IF(F1="männlich",VLOOKUP(H2,Standsprünge!A3:C15,3,0),VLOOKUP(H2,Standsprünge!A3:B15,2,0)) -> 16 | G21: (Ist - Soll) x 10 | H21: =IF(F21="",0,(F21-D21)*10) -> 0
A22: =IF(H2>16,"entfällt","TBN") -> TBN | D22: =IF(C22="","",VLOOKUP(C22,INDIRECT($C$62),2,0)) ->  | E22: =IF(C22="","",VLOOKUP(C22,INDIRECT($C$62),3,0)) ->  | G22: =IF(H2>16,"entfällt","Wert - Abzug") -> Wert - Abzug | H22: =IF(A22="entfällt",0,IF(F22="",0,D22-F22)) -> 0
A23: =IF(H2>16,"entfällt","TBN") -> TBN | D23: =IF(C23="","",VLOOKUP(C23,INDIRECT($C$62),2,0)) ->  | E23: =IF(C23="","",VLOOKUP(C23,INDIRECT($C$62),3,0)) ->  | G23: =IF(H2>16,"entfällt","Wert - Abzug") -> Wert - Abzug | H23: =IF(A23="entfällt",0,IF(F23="",0,D23-F23)) -> 0
A24: =IF(H2>12,"entfällt","TBN") -> entfällt | D24: =IF(C24="","",VLOOKUP(C24,INDIRECT($C$62),2,0)) ->  | E24: =IF(C24="","",VLOOKUP(C24,INDIRECT($C$62),3,0)) ->  | G24: =IF(H2>16,"entfällt","Wert - Abzug") -> Wert - Abzug | H24: 0
A25: TN | B25: =IF(C25="","",VLOOKUP(C25,INDIRECT($C$65),2,0)) ->  | D25: =IF(C25="","",VLOOKUP(C25,INDIRECT($C$65),3,0)) ->  | E25: =IF(C25="","",VLOOKUP(C25,INDIRECT($C$65),4,0)) ->  | G25: Wert - Abzug | H25: 0
A26: TN | G26: Wert - Abzug | H26: 0
A27: TN | G27: Wert - Abzug | H27: 0
A28: =IF(H2>12,"TN","entfällt") -> TN | G28: =IF(H2>12,"Wert - Abzug","entfällt") -> Wert - Abzug | H28: 0
A29: =IF(H2>16,"TN","entfällt") -> entfällt | G29: =IF(H2>16,"Wert - Abzug","entfällt") -> entfällt | H29: 0
A30: =IF(H2>16,"TN","entfällt") -> entfällt | G30: =IF(H2>16,"Wert - Abzug","entfällt") -> entfällt | H30: =IF(A30="entfällt",0,IF(F30="",0,D30-F30)) -> 0
A31: =IF($H$2>11,"Verbindung Sprung 1","entfällt") -> Verbindung Sprung 1 | C31: =IF(A31<>"entfällt",VLOOKUP(1,INDIRECT($C$73),2,0),"") -> 801< | D31: =IF(A31<>"entfällt",VLOOKUP(1,INDIRECT($C$73),3,0),"") -> 13 | E31: =IF(A31<>"entfällt",VLOOKUP(1,INDIRECT($C$73),4,0),"") -> 3 | G31: =IF(H2>12,"Wert - Abzug","entfällt") -> Wert - Abzug | H31: =IF(A31="entfällt",0,IF(F31="",0,D31-F31)) -> 0
A32: =IF($H$2>11,"Verbindung Sprung 2","entfällt") -> Verbindung Sprung 2 | C32: =IF(A32<>"entfällt",VLOOKUP(2,INDIRECT($C$73),2,0),"") -> 40< | D32: =IF(A32<>"entfällt",VLOOKUP(2,INDIRECT($C$73),3,0),"") -> 6 | E32: =IF(A32<>"entfällt",VLOOKUP(2,INDIRECT($C$73),4,0),"") -> 3 | G32: =IF(H2>12,"Wert - Abzug","entfällt") -> Wert - Abzug | H32: =IF(A32="entfällt",0,IF(F32="",0,D32-F32)) -> 0
A33: =IF($H$2>11,"Verbindung Sprung 3","entfällt") -> Verbindung Sprung 3 | C33: =IF(A33<>"entfällt",VLOOKUP(3,INDIRECT($C$73),2,0),"") -> 801° | D33: =IF(A33<>"entfällt",VLOOKUP(3,INDIRECT($C$73),3,0),"") -> 11 | E33: =IF(A33<>"entfällt",VLOOKUP(3,INDIRECT($C$73),4,0),"") -> 3 | G33: =IF(H2>12,"Wert - Abzug","entfällt") -> Wert - Abzug | H33: 0
A34: =IF($H$2>11,"Verbindung Sprung 4","entfällt") -> Verbindung Sprung 4 | C34: =IF(A34<>"entfällt",VLOOKUP(4,INDIRECT($C$73),2,0),"") -> 40/ | D34: =IF(A34<>"entfällt",VLOOKUP(4,INDIRECT($C$73),3,0),"") -> 6 | E34: =IF(A34<>"entfällt",VLOOKUP(4,INDIRECT($C$73),4,0),"") -> 3 | G34: =IF(H2>12,"Wert - Abzug","entfällt") -> Wert - Abzug | H34: 0
A35: =IF($H$2>11,"Verbindung Sprung 5","entfällt") -> Verbindung Sprung 5 | C35: =IF(A35<>"entfällt",VLOOKUP(5,INDIRECT($C$73),2,0),"") -> 41/ | D35: =IF(A35<>"entfällt",VLOOKUP(5,INDIRECT($C$73),3,0),"") -> 6 | E35: =IF(A35<>"entfällt",VLOOKUP(5,INDIRECT($C$73),4,0),"") -> 3 | G35: =IF(H2>12,"Wert - Abzug","entfällt") -> Wert - Abzug | H35: 0
A36: =IF($H$2>11,"Verbindung Sprung 6","entfällt") -> Verbindung Sprung 6 | C36: =IF(A36<>"entfällt",VLOOKUP(6,INDIRECT($C$73),2,0),"") -> 800° | D36: =IF(A36<>"entfällt",VLOOKUP(6,INDIRECT($C$73),3,0),"") -> 10 | E36: =IF(A36<>"entfällt",VLOOKUP(6,INDIRECT($C$73),4,0),"") -> 3 | G36: =IF(H2>12,"Wert - Abzug","entfällt") -> Wert - Abzug | H36: =IF(A36="entfällt",0,IF(F36="",0,D36-F36)) -> 0
A37: Gesamtpunktzahl Trampolin | H37: =SUM(H21:H36) -> 0
A38: Element | E38: Wert | F38: Abzug | G38: Berechnung | H38: Punkte
A39: =VLOOKUP(1,INDIRECT($C$70),2,0) -> Flugrolle mit Überstrecken mit Anlauf | E39: =VLOOKUP(1,INDIRECT($C$70),3,0) -> 3 | F39: 0.5 | G39: Wert - Abzug | H39: =IF(E39=" ","",IF(F39="",0,E39-F39)) -> 2.5
A40: =VLOOKUP(2,INDIRECT($C$70),2,0) -> --> Strecksprung, Salto vorwärts gehockt | E40: =VLOOKUP(2,INDIRECT($C$70),3,0) -> 4.5 | G40: Wert - Abzug | H40: =IF(E40=" ","",IF(F40="",0,E40-F40)) -> 0
A41: =VLOOKUP(3,INDIRECT($C$70),2,0) -> Vorspreizen, Handstand mit 1/1 Drehung, abrollen | E41: =VLOOKUP(3,INDIRECT($C$70),3,0) -> 3 | F41: 0 | G41: Wert - Abzug | H41: 3
A42: =VLOOKUP(4,INDIRECT($C$70),2,0) -> --> Aufstehen mit gestreckten Beinen | E42: =VLOOKUP(4,INDIRECT($C$70),3,0) -> 3 | G42: Wert - Abzug | H42: 0
A43: =VLOOKUP(5,INDIRECT($C$70),2,0) -> Vorspreizen, Bestellschritt, Strecksprung 3/2 Drehung | E43: =VLOOKUP(5,INDIRECT($C$70),3,0) -> 3 | F43: 1.5 | G43: Wert - Abzug | H43: 1.5
A44: =VLOOKUP(6,INDIRECT($C$70),2,0) -> Salto rückwärts gehockt | E44: =VLOOKUP(6,INDIRECT($C$70),3,0) -> 3 | G44: Wert - Abzug | H44: 0
A45: =VLOOKUP(7,INDIRECT($C$70),2,0) -> Handstützüberschlag | E45: =VLOOKUP(7,INDIRECT($C$70),3,0) -> 3 | F45: 1.5 | G45: Wert - Abzug | H45: 1.5
A46: =VLOOKUP(8,INDIRECT($C$70),2,0) -> --> Ansprung Schrittstellung, Handstand mit zwei Hüpfern | E46: =VLOOKUP(8,INDIRECT($C$70),3,0) -> 3 | F46: 0 | G46: Wert - Abzug | H46: 3
A47: =VLOOKUP(9,INDIRECT($C$70),2,0) -> Abrollen --> Strecksprung 1/2 Drehung | E47: =VLOOKUP(9,INDIRECT($C$70),3,0) -> 1.5 | F47: 0.5 | G47: =IF(H2>16,"","Wert - Abzug") -> Wert - Abzug | H47: 1
A48: =VLOOKUP(10,INDIRECT($C$70),2,0) -> Salto vorwärts gebückt mit Anlauf | E48: =VLOOKUP(10,INDIRECT($C$70),3,0) -> 3 | G48: =IF(H2>16,"","Wert - Abzug") -> Wert - Abzug | H48: 0
A49: =VLOOKUP(11,INDIRECT($C$70),2,0) ->  | E49: =VLOOKUP(11,INDIRECT($C$70),3,0) ->  | G49: =IF(H2>13,"","Wert - Abzug") -> 
A50: =VLOOKUP(12,INDIRECT($C$70),2,0) ->  | E50: =VLOOKUP(12,INDIRECT($C$70),3,0) ->  | G50: =IF(OR(H2=9,H2=12,H2=13),"Wert - Abzug","") -> 
A51: Gesamtpunktzahl Bodenkomplexübung | H51: =SUM(H39:H50) -> 12.5
A52: Gesamtpunktzahl | H52: =SUM(H9,H19,H37,H51) -> 81.5
B55: Shuttles | C55: ="Shuttles_"&F1&IF(H2=9,"_9",IF(H2<12,"_10_11",IF(H2<14,"_12_13",IF(H2<17,"_14_16","_17")))) -> Shuttles_weiblich_14_16
C56: ="Shuttles_"&F1&IF(H2=9,"_9",IF(H2<12,"_10_11",IF(H2<14,"_12_13",IF(H2<17,"_14_16","_17"))))&"[Shuttle]" -> Shuttles_weiblich_14_16[Shuttle]
C57: ="Shuttles_"&F1&IF(H2=9,"_9",IF(H2<12,"_10_11",IF(H2<14,"_12_13",IF(H2<17,"_14_16","_17"))))&"[Punkte]" -> Shuttles_weiblich_14_16[Punkte]
B59: G_TBN TN BKÜ | C59: =IF(H2<13,"beide",F1) -> weiblich
B60: AK | C60: =IF(OR(H2=9,H2=12),H2,IF(H2<12,"10_11",IF(H2<15,"13_14",IF(H2<17,"15_16",IF(H2<19,"17_18",19))))) -> 15_16
B62: TBN | C62: ="TBN_"&C59&"_"&C60 -> TBN_weiblich_15_16
C63: =C62&"[Beschreibung]" -> TBN_weiblich_15_16[Beschreibung]
B65: TN | C65: ="TN_"&C59&"_"&C60 -> TN_weiblich_15_16
C66: =C65&"[Beschreibung]" -> TN_weiblich_15_16[Beschreibung]
B68: TV | C68: ="TV_"&F1&"_"&C60 -> TV_weiblich_15_16
B70: BKÜ | C70: ="BKÜ"&IF(H2=9,"_9",IF(H2<12,"_10_11",IF(H2<14,"_12_13",IF(H2<17,"_14_16","_17")))) -> BKÜ_14_16
B72: G_TV | C72: =IF(H2<17,"beide",F1) -> beide
B73: TV | C73: ="TV_"&C72&"_"&C60 -> TV_beide_15_16
B75: =SUM(H19,H9,H51) -> 81.5 | C75: Vergleichspunktzahl aus Kraft, Beweglichkeit, Grundlagenausdauer, Bodenübung
B76: =IF(B75>95,"Ja","Nein") -> Nein | C76: Vergleichspunktzahl erfüllt?
B77: =IF(F1="Weiblich",VLOOKUP(H2,Punktetabellen!$D$43:$F$49,3,1),VLOOKUP(H2,Punktetabellen!$D$43:$F$49,2,1)) -> 159 | C77: Mindest-Gesamtwert
B78: =IF(H52>=B77,"Ja","Nein") -> Nein | C78: Gesamtwert erfüllt?
B79: =IF(AND(B76="Ja",B78="Ja"),"Ja","Nein") -> Nein | C79: Alles erfüllt?

Sheet ZimmerhackelJana
A1: Name | B1: Zimmerhackel, Jana | F1: weiblich | G1: Jahrgang | H1: 2003
A2: Verein | B2: MTV Stuttgart | G2: AK | H2: =2020-H1 -> 17
A3: Übung | F3: Wert | G3: Berechnung | H3: Punkte
A4: Fußdehnung | G4: Bild | H4: =F4 -> 0
A5: Briefmarke mit Armrumpfwinkel | F5: 6 | G5: Bild | H5: =F5 -> 6
A6: Bückbeweglichkeit | F6: 22 | G6: Tabelle | H6: =IF(F6="",0,VLOOKUP(F6,Punktetabellen!A10:B15,2,1)) -> 10
A7: Querspagat links | F7: 0 | G7: Tabelle | H7: =IF(F7="",0,VLOOKUP(F7,Punktetabellen!A3:B6,2,0)) -> 10
A8: Querspagat rechts | F8: 0 | G8: Tabelle | H8: =IF(F8="",0,VLOOKUP(F8,Punktetabellen!A3:B6,2,0)) -> 10
A9: Gesamtpunktzahl Beweglichkeit | H9: =SUM(H4:H8) -> 36
A10: Übung | F10: Wert | G10: Berechnung | H10: Punktzahl
A11: Klimmzug | F11: 5 | G11: Tabelle | H11: =IF(F11="",0,IF(H2<12,VLOOKUP(F11,Punktetabellen!D4:F14,3,1),VLOOKUP(F11,Punktetabellen!E4:F14,2,1))) -> 0
A12: Beinheben | F12: 8 | G12: Tabelle | H12: =IF(H2=9,VLOOKUP(F12,Punktetabellen!D19:F29,3,1),VLOOKUP(F12,Punktetabellen!E19:F29,2,1)) -> 4
A13: Flieger | F13: 100 | G13: Tabelle | H13: =IF(H2=9,VLOOKUP(F13,Punktetabellen!H4:K9,4,1),IF(H2<12,VLOOKUP(F13,Punktetabellen!I4:K9,3,1),VLOOKUP(F13,Punktetabellen!J4:K9,2,1))) -> 6
A14: Rollenverbindung | F14: 29 | G14: Tabelle | H14: =IF(H2=9,VLOOKUP(F14,Punktetabellen!H14:K24,4,1),IF(H2<12,VLOOKUP(F14,Punktetabellen!I14:K24,3,1),VLOOKUP(F14,Punktetabellen!J14:K24,2,1))) -> 10
A15: Prellsprünge | G15: Tabelle | H15: =IF(H2=9,VLOOKUP(F15,Punktetabellen!M4:Q14,5,1),IF(H2<12,VLOOKUP(F15,Punktetabellen!N4:Q14,4,1),IF(H2<14,VLOOKUP(F15,Punktetabellen!O4:Q14,3,1),VLOOKUP(F15,Punktetabellen!P4:Q14,2,1)))) -> 0
A16: Handstandstehen | F16: 10 | G16: Tabelle | H16: =IF(F16="",0,IF(H2<10,VLOOKUP(F16,Punktetabellen!D34:F40,3,1),VLOOKUP(F16,Punktetabellen!E34:F40,2,1))) -> 2
A17: Schweizer, Wiener | C17: =IF(H2<12,"",IF(AND(H2>13,H2<17),"Schweizer: ","Wiener: ")) -> Wiener: | D17: 0 | E17: =IF(H2<12,"",IF(AND(H2>13,H2<17),"Wiener: ","Schweizer: ")) -> Schweizer: | F17: 0 | G17: Tabelle | H17: =IF(H2<12,VLOOKUP(F17,Punktetabellen!A20:B25,2,1),((MIN(5,1*D17)*2)+MIN(MAX(0,5-(1*D17)),(1*F17)))) -> 0
A18: Bleep-Test | G18: Tabelle | H18: =IF(F18="",0,VLOOKUP(F18,INDIRECT(C55),2,0)) -> 0
A19: Gesamtpunktzahl Kraft/Kondition | H19: =SUM(H11:H18) -> 22
A20: Übung | D20: Max / Soll | E20: Max. Abzug | F20: Abzug / Ist | G20: Berechnung | H20: Punkte
A21: Standsprunghöhe | D21: =IF(F1="männlich",VLOOKUP(H2,Standsprünge!A3:C15,3,0),VLOOKUP(H2,Standsprünge!A3:B15,2,0)) -> 16.3 | G21: (Ist - Soll) x 10 | H21: =IF(F21="",0,(F21-D21)*10) -> 0
A22: =IF(H2>16,"entfällt","TBN") -> entfällt | D22: =IF(C22="","",VLOOKUP(C22,INDIRECT($C$62),2,0)) ->  | E22: =IF(C22="","",VLOOKUP(C22,INDIRECT($C$62),3,0)) ->  | G22: =IF(H2>16,"entfällt","Wert - Abzug") -> entfällt | H22: =IF(A22="entfällt",0,IF(F22="",0,D22-F22)) -> 0
A23: =IF(H2>16,"entfällt","TBN") -> entfällt | D23: =IF(C23="","",VLOOKUP(C23,INDIRECT($C$62),2,0)) ->  | E23: =IF(C23="","",VLOOKUP(C23,INDIRECT($C$62),3,0)) ->  | G23: =IF(H2>16,"entfällt","Wert - Abzug") -> entfällt | H23: =IF(A23="entfällt",0,IF(F23="",0,D23-F23)) -> 0
A24: =IF(H2>12,"entfällt","TBN") -> entfällt | D24: =IF(C24="","",VLOOKUP(C24,INDIRECT($C$62),2,0)) ->  | E24: =IF(C24="","",VLOOKUP(C24,INDIRECT($C$62),3,0)) ->  | G24: =IF(H2>16,"entfällt","Wert - Abzug") -> entfällt | H24: 0
A25: TN | B25: =IF(C25="","",VLOOKUP(C25,INDIRECT($C$65),2,0)) ->  | D25: =IF(C25="","",VLOOKUP(C25,INDIRECT($C$65),3,0)) ->  | E25: =IF(C25="","",VLOOKUP(C25,INDIRECT($C$65),4,0)) ->  | G25: Wert - Abzug | H25: 0
A26: TN | G26: Wert - Abzug | H26: 0
A27: TN | G27: Wert - Abzug | H27: 0
A28: =IF(H2>12,"TN","entfällt") -> TN | G28: =IF(H2>12,"Wert - Abzug","entfällt") -> Wert - Abzug | H28: 0
A29: =IF(H2>16,"TN","entfällt") -> TN | G29: =IF(H2>16,"Wert - Abzug","entfällt") -> Wert - Abzug | H29: 0
A30: =IF(H2>16,"TN","entfällt") -> TN | G30: =IF(H2>16,"Wert - Abzug","entfällt") -> Wert - Abzug | H30: =IF(A30="entfällt",0,IF(F30="",0,D30-F30)) -> 0
A31: =IF($H$2>11,"Verbindung Sprung 1","entfällt") -> Verbindung Sprung 1 | C31: =IF(A31<>"entfällt",VLOOKUP(1,INDIRECT($C$73),2,0),"") -> 803< | D31: =IF(A31<>"entfällt",VLOOKUP(1,INDIRECT($C$73),3,0),"") -> 15 | E31: =IF(A31<>"entfällt",VLOOKUP(1,INDIRECT($C$73),4,0),"") -> 3 | G31: =IF(H2>12,"Wert - Abzug","entfällt") -> Wert - Abzug | H31: =IF(A31="entfällt",0,IF(F31="",0,D31-F31)) -> 0
A32: =IF($H$2>11,"Verbindung Sprung 2","entfällt") -> Verbindung Sprung 2 | C32: =IF(A32<>"entfällt",VLOOKUP(2,INDIRECT($C$73),2,0),"") -> 40< | D32: =IF(A32<>"entfällt",VLOOKUP(2,INDIRECT($C$73),3,0),"") -> 6 | E32: =IF(A32<>"entfällt",VLOOKUP(2,INDIRECT($C$73),4,0),"") -> 3 | G32: =IF(H2>12,"Wert - Abzug","entfällt") -> Wert - Abzug | H32: =IF(A32="entfällt",0,IF(F32="",0,D32-F32)) -> 0
A33: =IF($H$2>11,"Verbindung Sprung 3","entfällt") -> Verbindung Sprung 3 | C33: =IF(A33<>"entfällt",VLOOKUP(3,INDIRECT($C$73),2,0),"") -> 801< | D33: =IF(A33<>"entfällt",VLOOKUP(3,INDIRECT($C$73),3,0),"") -> 13 | E33: =IF(A33<>"entfällt",VLOOKUP(3,INDIRECT($C$73),4,0),"") -> 3 | G33: =IF(H2>12,"Wert - Abzug","entfällt") -> Wert - Abzug | H33: 0
A34: =IF($H$2>11,"Verbindung Sprung 4","entfällt") -> Verbindung Sprung 4 | C34: =IF(A34<>"entfällt",VLOOKUP(4,INDIRECT($C$73),2,0),"") -> 40/ | D34: =IF(A34<>"entfällt",VLOOKUP(4,INDIRECT($C$73),3,0),"") -> 6 | E34: =IF(A34<>"entfällt",VLOOKUP(4,INDIRECT($C$73),4,0),"") -> 3 | G34: =IF(H2>12,"Wert - Abzug","entfällt") -> Wert - Abzug | H34: 0
A35: =IF($H$2>11,"Verbindung Sprung 5","entfällt") -> Verbindung Sprung 5 | C35: =IF(A35<>"entfällt",VLOOKUP(5,INDIRECT($C$73),2,0),"") -> 41/ | D35: =IF(A35<>"entfällt",VLOOKUP(5,INDIRECT($C$73),3,0),"") -> 6 | E35: =IF(A35<>"entfällt",VLOOKUP(5,INDIRECT($C$73),4,0),"") -> 3 | G35: =IF(H2>12,"Wert - Abzug","entfällt") -> Wert - Abzug | H35: 0
A36: =IF($H$2>11,"Verbindung Sprung 6","entfällt") -> Verbindung Sprung 6 | C36: =IF(A36<>"entfällt",VLOOKUP(6,INDIRECT($C$73),2,0),"") -> 811° | D36: =IF(A36<>"entfällt",VLOOKUP(6,INDIRECT($C$73),3,0),"") -> 12 | E36: =IF(A36<>"entfällt",VLOOKUP(6,INDIRECT($C$73),4,0),"") -> 3 | G36: =IF(H2>12,"Wert - Abzug","entfällt") -> Wert - Abzug | H36: =IF(A36="entfällt",0,IF(F36="",0,D36-F36)) -> 0
A37: Gesamtpunktzahl Trampolin | H37: =SUM(H21:H36) -> 0
A38: Element | E38: Wert | F38: Abzug | G38: Berechnung | H38: Punkte
A39: =VLOOKUP(1,INDIRECT($C$70),2,0) -> Salto vorwärts gehockt aus dem Stand | E39: =VLOOKUP(1,INDIRECT($C$70),3,0) -> 5 | G39: Wert - Abzug | H39: =IF(E39=" ","",IF(F39="",0,E39-F39)) -> 0
A40: =VLOOKUP(2,INDIRECT($C$70),2,0) -> Vorspreizen, Bestellschritt, Strecksprung 3/2 Drehung | E40: =VLOOKUP(2,INDIRECT($C$70),3,0) -> 3 | G40: Wert - Abzug | H40: =IF(E40=" ","",IF(F40="",0,E40-F40)) -> 0
A41: =VLOOKUP(3,INDIRECT($C$70),2,0) -> Rolle rückwärts durch Handstand mit 1/2 Drehung | E41: =VLOOKUP(3,INDIRECT($C$70),3,0) -> 4 | G41: Wert - Abzug | H41: 0
A42: =VLOOKUP(4,INDIRECT($C$70),2,0) -> --> Strecksprung --> Salto vorwärts gehockt | E42: =VLOOKUP(4,INDIRECT($C$70),3,0) -> 4 | G42: Wert - Abzug | H42: 0
A43: =VLOOKUP(5,INDIRECT($C$70),2,0) -> Wiener, 1/2 Drehung, absenken zum Stand | E43: =VLOOKUP(5,INDIRECT($C$70),3,0) -> 4 | G43: Wert - Abzug | H43: 0
A44: =VLOOKUP(6,INDIRECT($C$70),2,0) -> Handstand mit zwei Hüpfern, abrollen | E44: =VLOOKUP(6,INDIRECT($C$70),3,0) -> 2 | G44: Wert - Abzug | H44: 0
A45: =VLOOKUP(7,INDIRECT($C$70),2,0) -> --> aufstehen mit gestreckten Beinen | E45: =VLOOKUP(7,INDIRECT($C$70),3,0) -> 3 | G45: Wert - Abzug | H45: 0
A46: =VLOOKUP(8,INDIRECT($C$70),2,0) -> Salto rückwärts gebückt | E46: =VLOOKUP(8,INDIRECT($C$70),3,0) -> 5 | G46: Wert - Abzug | H46: 0
A47: =VLOOKUP(9,INDIRECT($C$70),2,0) ->  | E47: =VLOOKUP(9,INDIRECT($C$70),3,0) ->  | G47: =IF(H2>16,"","Wert - Abzug") -> 
A48: =VLOOKUP(10,INDIRECT($C$70),2,0) ->  | E48: =VLOOKUP(10,INDIRECT($C$70),3,0) ->  | G48: =IF(H2>16,"","Wert - Abzug") -> 
A49: =VLOOKUP(11,INDIRECT($C$70),2,0) ->  | E49: =VLOOKUP(11,INDIRECT($C$70),3,0) ->  | G49: =IF(H2>13,"","Wert - Abzug") -> 
A50: =VLOOKUP(12,INDIRECT($C$70),2,0) ->  | E50: =VLOOKUP(12,INDIRECT($C$70),3,0) ->  | G50: =IF(OR(H2=9,H2=12,H2=13),"Wert - Abzug","") -> 
A51: Gesamtpunktzahl Bodenkomplexübung | H51: =SUM(H39:H50) -> 0
A52: Gesamtpunktzahl | H52: =SUM(H9,H19,H37,H51) -> 58
B55: Shuttles | C55: ="Shuttles_"&F1&IF(H2=9,"_9",IF(H2<12,"_10_11",IF(H2<14,"_12_13",IF(H2<17,"_14_16","_17")))) -> Shuttles_weiblich_17
C56: ="Shuttles_"&F1&IF(H2=9,"_9",IF(H2<12,"_10_11",IF(H2<14,"_12_13",IF(H2<17,"_14_16","_17"))))&"[Shuttle]" -> Shuttles_weiblich_17[Shuttle]
C57: ="Shuttles_"&F1&IF(H2=9,"_9",IF(H2<12,"_10_11",IF(H2<14,"_12_13",IF(H2<17,"_14_16","_17"))))&"[Punkte]" -> Shuttles_weiblich_17[Punkte]
B59: G_TBN TN BKÜ | C59: =IF(H2<13,"beide",F1) -> weiblich
B60: AK | C60: =IF(OR(H2=9,H2=12),H2,IF(H2<12,"10_11",IF(H2<15,"13_14",IF(H2<17,"15_16",IF(H2<19,"17_18",19))))) -> 17_18
B62: TBN | C62: ="TBN_"&C59&"_"&C60 -> TBN_weiblich_17_18
C63: =C62&"[Beschreibung]" -> TBN_weiblich_17_18[Beschreibung]
B65: TN | C65: ="TN_"&C59&"_"&C60 -> TN_weiblich_17_18
C66: =C65&"[Beschreibung]" -> TN_weiblich_17_18[Beschreibung]
B68: TV | C68: ="TV_"&F1&"_"&C60 -> TV_weiblich_17_18
B70: BKÜ | C70: ="BKÜ"&IF(H2=9,"_9",IF(H2<12,"_10_11",IF(H2<14,"_12_13",IF(H2<17,"_14_16","_17")))) -> BKÜ_17
B72: G_TV | C72: =IF(H2<17,"beide",F1) -> weiblich
B73: TV | C73: ="TV_"&C72&"_"&C60 -> TV_weiblich_17_18
B75: =SUM(H19,H9,H51) -> 58 | C75: Vergleichspunktzahl aus Kraft, Beweglichkeit, Grundlagenausdauer, Bodenübung
B76: =IF(B75>95,"Ja","Nein") -> Nein | C76: Vergleichspunktzahl erfüllt?
B77: =IF(F1="Weiblich",VLOOKUP(H2,Punktetabellen!$D$43:$F$49,3,1),VLOOKUP(H2,Punktetabellen!$D$43:$F$49,2,1)) -> 169 | C77: Mindest-Gesamtwert
B78: =IF(H52>=B77,"Ja","Nein") -> Nein | C78: Gesamtwert erfüllt?
B79: =IF(AND(B76="Ja",B78="Ja"),"Ja","Nein") -> Nein | C79: Alles erfüllt?

Sheet StaiberSelina
A1: Name | B1: Staiber, Selina | F1: weiblich | G1: Jahrgang | H1: 2001
A2: Verein | B2: MTV Stuttgart | G2: AK | H2: =2020-H1 -> 19
A3: Übung | F3: Wert | G3: Berechnung | H3: Punkte
A4: Fußdehnung | F4: 10 | G4: Bild | H4: =F4 -> 10
A5: Briefmarke mit Armrumpfwinkel | F5: 10 | G5: Bild | H5: =F5 -> 10
A6: Bückbeweglichkeit | F6: 19 | G6: Tabelle | H6: =IF(F6="",0,VLOOKUP(F6,Punktetabellen!A10:B15,2,1)) -> 8
A7: Querspagat links | F7: 0 | G7: Tabelle | H7: =IF(F7="",0,VLOOKUP(F7,Punktetabellen!A3:B6,2,0)) -> 10
A8: Querspagat rechts | F8: 0 | G8: Tabelle | H8: =IF(F8="",0,VLOOKUP(F8,Punktetabellen!A3:B6,2,0)) -> 10
A9: Gesamtpunktzahl Beweglichkeit | H9: =SUM(H4:H8) -> 48
A10: Übung | F10: Wert | G10: Berechnung | H10: Punktzahl
A11: Klimmzug | F11: 7 | G11: Tabelle | H11: =IF(F11="",0,IF(H2<12,VLOOKUP(F11,Punktetabellen!D4:F14,3,1),VLOOKUP(F11,Punktetabellen!E4:F14,2,1))) -> 2
A12: Beinheben | F12: 10 | G12: Tabelle | H12: =IF(H2=9,VLOOKUP(F12,Punktetabellen!D19:F29,3,1),VLOOKUP(F12,Punktetabellen!E19:F29,2,1)) -> 6
A13: Flieger | F13: 65 | G13: Tabelle | H13: =IF(H2=9,VLOOKUP(F13,Punktetabellen!H4:K9,4,1),IF(H2<12,VLOOKUP(F13,Punktetabellen!I4:K9,3,1),VLOOKUP(F13,Punktetabellen!J4:K9,2,1))) -> 0
A14: Rollenverbindung | F14: 29 | G14: Tabelle | H14: =IF(H2=9,VLOOKUP(F14,Punktetabellen!H14:K24,4,1),IF(H2<12,VLOOKUP(F14,Punktetabellen!I14:K24,3,1),VLOOKUP(F14,Punktetabellen!J14:K24,2,1))) -> 10
A15: Prellsprünge | F15: 7 | G15: Tabelle | H15: =IF(H2=9,VLOOKUP(F15,Punktetabellen!M4:Q14,5,1),IF(H2<12,VLOOKUP(F15,Punktetabellen!N4:Q14,4,1),IF(H2<14,VLOOKUP(F15,Punktetabellen!O4:Q14,3,1),VLOOKUP(F15,Punktetabellen!P4:Q14,2,1)))) -> 7
A16: Handstandstehen | F16: 30 | G16: Tabelle | H16: =IF(F16="",0,IF(H2<10,VLOOKUP(F16,Punktetabellen!D34:F40,3,1),VLOOKUP(F16,Punktetabellen!E34:F40,2,1))) -> 10
A17: Schweizer, Wiener | C17: =IF(H2<12,"",IF(AND(H2>13,H2<17),"Schweizer: ","Wiener: ")) -> Wiener: | D17: 0 | E17: =IF(H2<12,"",IF(AND(H2>13,H2<17),"Wiener: ","Schweizer: ")) -> Schweizer: | F17: 0 | G17: Tabelle | H17: =IF(H2<12,VLOOKUP(F17,Punktetabellen!A20:B25,2,1),((MIN(5,1*D17)*2)+MIN(MAX(0,5-(1*D17)),(1*F17)))) -> 0
A18: Bleep-Test | F18: L7 S10 | G18: Tabelle | H18: =IF(F18="",0,VLOOKUP(F18,INDIRECT(C55),2,0)) -> 4
A19: Gesamtpunktzahl Kraft/Kondition | H19: =SUM(H11:H18) -> 39
A20: Übung | D20: Max / Soll | E20: Max. Abzug | F20: Abzug / Ist | G20: Berechnung | H20: Punkte
A21: Standsprunghöhe | D21: =IF(F1="männlich",VLOOKUP(H2,Standsprünge!A3:C15,3,0),VLOOKUP(H2,Standsprünge!A3:B15,2,0)) -> 16.5 | F21: 15.975 | G21: (Ist - Soll) x 10 | H21: =IF(F21="",0,(F21-D21)*10) -> -5.25
A22: =IF(H2>16,"entfällt","TBN") -> entfällt | D22: =IF(C22="","",VLOOKUP(C22,INDIRECT($C$62),2,0)) ->  | E22: =IF(C22="","",VLOOKUP(C22,INDIRECT($C$62),3,0)) ->  | G22: =IF(H2>16,"entfällt","Wert - Abzug") -> entfällt | H22: =IF(A22="entfällt",0,IF(F22="",0,D22-F22)) -> 0
A23: =IF(H2>16,"entfällt","TBN") -> entfällt | D23: =IF(C23="","",VLOOKUP(C23,INDIRECT($C$62),2,0)) ->  | E23: =IF(C23="","",VLOOKUP(C23,INDIRECT($C$62),3,0)) ->  | G23: =IF(H2>16,"entfällt","Wert - Abzug") -> entfällt | H23: =IF(A23="entfällt",0,IF(F23="",0,D23-F23)) -> 0
A24: =IF(H2>12,"entfällt","TBN") -> entfällt | D24: =IF(C24="","",VLOOKUP(C24,INDIRECT($C$62),2,0)) ->  | E24: =IF(C24="","",VLOOKUP(C24,INDIRECT($C$62),3,0)) ->  | G24: =IF(H2>16,"entfällt","Wert - Abzug") -> entfällt | H24: 0
A25: TN | B25: =IF(C25="","",VLOOKUP(C25,INDIRECT($C$65),2,0)) -> 813< | C25: 1/2 ein 3/2 aus b | D25: =IF(C25="","",VLOOKUP(C25,INDIRECT($C$65),3,0)) -> 16 | E25: =IF(C25="","",VLOOKUP(C25,INDIRECT($C$65),4,0)) -> 6 | F25: 6 | G25: Wert - Abzug | H25: 10
A26: TN | G26: Wert - Abzug | H26: 0
A27: TN | G27: Wert - Abzug | H27: 0
A28: =IF(H2>12,"TN","entfällt") -> TN | G28: =IF(H2>12,"Wert - Abzug","entfällt") -> Wert - Abzug | H28: 0
A29: =IF(H2>16,"TN","entfällt") -> TN | G29: =IF(H2>16,"Wert - Abzug","entfällt") -> Wert - Abzug | H29: 0
A30: =IF(H2>16,"TN","entfällt") -> TN | G30: =IF(H2>16,"Wert - Abzug","entfällt") -> Wert - Abzug | H30: =IF(A30="entfällt",0,IF(F30="",0,D30-F30)) -> 0
A31: =IF($H$2>11,"Verbindung Sprung 1","entfällt") -> Verbindung Sprung 1 | C31: =IF(A31<>"entfällt",VLOOKUP(1,INDIRECT($C$73),2,0),"") -> 803< | D31: =IF(A31<>"entfällt",VLOOKUP(1,INDIRECT($C$73),3,0),"") -> 15 | E31: =IF(A31<>"entfällt",VLOOKUP(1,INDIRECT($C$73),4,0),"") -> 3 | F31: 2 | G31: =IF(H2>12,"Wert - Abzug","entfällt") -> Wert - Abzug | H31: =IF(A31="entfällt",0,IF(F31="",0,D31-F31)) -> 13
A32: =IF($H$2>11,"Verbindung Sprung 2","entfällt") -> Verbindung Sprung 2 | C32: =IF(A32<>"entfällt",VLOOKUP(2,INDIRECT($C$73),2,0),"") -> 40< | D32: =IF(A32<>"entfällt",VLOOKUP(2,INDIRECT($C$73),3,0),"") -> 6 | E32: =IF(A32<>"entfällt",VLOOKUP(2,INDIRECT($C$73),4,0),"") -> 3 | F32: 2 | G32: =IF(H2>12,"Wert - Abzug","entfällt") -> Wert - Abzug | H32: =IF(A32="entfällt",0,IF(F32="",0,D32-F32)) -> 4
A33: =IF($H$2>11,"Verbindung Sprung 3","entfällt") -> Verbindung Sprung 3 | C33: =IF(A33<>"entfällt",VLOOKUP(3,INDIRECT($C$73),2,0),"") -> 801< | D33: =IF(A33<>"entfällt",VLOOKUP(3,INDIRECT($C$73),3,0),"") -> 13 | E33: =IF(A33<>"entfällt",VLOOKUP(3,INDIRECT($C$73),4,0),"") -> 3 | F33: 2 | G33: =IF(H2>12,"Wert - Abzug","entfällt") -> Wert - Abzug | H33: 11
A34: =IF($H$2>11,"Verbindung Sprung 4","entfällt") -> Verbindung Sprung 4 | C34: =IF(A34<>"entfällt",VLOOKUP(4,INDIRECT($C$73),2,0),"") -> 40/ | D34: =IF(A34<>"entfällt",VLOOKUP(4,INDIRECT($C$73),3,0),"") -> 6 | E34: =IF(A34<>"entfällt",VLOOKUP(4,INDIRECT($C$73),4,0),"") -> 3 | F34: 2 | G34: =IF(H2>12,"Wert - Abzug","entfällt") -> Wert - Abzug | H34: 4
A35: =IF($H$2>11,"Verbindung Sprung 5","entfällt") -> Verbindung Sprung 5 | C35: =IF(A35<>"entfällt",VLOOKUP(5,INDIRECT($C$73),2,0),"") -> 41/ | D35: =IF(A35<>"entfällt",VLOOKUP(5,INDIRECT($C$73),3,0),"") -> 6 | E35: =IF(A35<>"entfällt",VLOOKUP(5,INDIRECT($C$73),4,0),"") -> 3 | F35: 2 | G35: =IF(H2>12,"Wert - Abzug","entfällt") -> Wert - Abzug | H35: 4
A36: =IF($H$2>11,"Verbindung Sprung 6","entfällt") -> Verbindung Sprung 6 | C36: =IF(A36<>"entfällt",VLOOKUP(6,INDIRECT($C$73),2,0),"") -> 811< | D36: =IF(A36<>"entfällt",VLOOKUP(6,INDIRECT($C$73),3,0),"") -> 14 | E36: =IF(A36<>"entfällt",VLOOKUP(6,INDIRECT($C$73),4,0),"") -> 3 | F36: 3 | G36: =IF(H2>12,"Wert - Abzug","entfällt") -> Wert - Abzug | H36: =IF(A36="entfällt",0,IF(F36="",0,D36-F36)) -> 11
A37: Gesamtpunktzahl Trampolin | H37: =SUM(H21:H36) -> 51.75
A38: Element | E38: Wert | F38: Abzug | G38: Berechnung | H38: Punkte
A39: =VLOOKUP(1,INDIRECT($C$70),2,0) -> Salto vorwärts gehockt aus dem Stand | E39: =VLOOKUP(1,INDIRECT($C$70),3,0) -> 5 | F39: 1 | G39: Wert - Abzug | H39: =IF(E39=" ","",IF(F39="",0,E39-F39)) -> 4
A40: =VLOOKUP(2,INDIRECT($C$70),2,0) -> Vorspreizen, Bestellschritt, Strecksprung 3/2 Drehung | E40: =VLOOKUP(2,INDIRECT($C$70),3,0) -> 3 | F40: 2 | G40: Wert - Abzug | H40: =IF(E40=" ","",IF(F40="",0,E40-F40)) -> 1
A41: =VLOOKUP(3,INDIRECT($C$70),2,0) -> Rolle rückwärts durch Handstand mit 1/2 Drehung | E41: =VLOOKUP(3,INDIRECT($C$70),3,0) -> 4 | F41: 1 | G41: Wert - Abzug | H41: 3
A42: =VLOOKUP(4,INDIRECT($C$70),2,0) -> --> Strecksprung --> Salto vorwärts gehockt | E42: =VLOOKUP(4,INDIRECT($C$70),3,0) -> 4 | F42: 1 | G42: Wert - Abzug | H42: 3
A43: =VLOOKUP(5,INDIRECT($C$70),2,0) -> Wiener, 1/2 Drehung, absenken zum Stand | E43: =VLOOKUP(5,INDIRECT($C$70),3,0) -> 4 | G43: Wert - Abzug | H43: 0
A44: =VLOOKUP(6,INDIRECT($C$70),2,0) -> Handstand mit zwei Hüpfern, abrollen | E44: =VLOOKUP(6,INDIRECT($C$70),3,0) -> 2 | F44: 0 | G44: Wert - Abzug | H44: 2
A45: =VLOOKUP(7,INDIRECT($C$70),2,0) -> --> aufstehen mit gestreckten Beinen | E45: =VLOOKUP(7,INDIRECT($C$70),3,0) -> 3 | F45: 0 | G45: Wert - Abzug | H45: 3
A46: =VLOOKUP(8,INDIRECT($C$70),2,0) -> Salto rückwärts gebückt | E46: =VLOOKUP(8,INDIRECT($C$70),3,0) -> 5 | F46: 2 | G46: Wert - Abzug | H46: 3
A47: =VLOOKUP(9,INDIRECT($C$70),2,0) ->  | E47: =VLOOKUP(9,INDIRECT($C$70),3,0) ->  | G47: =IF(H2>16,"","Wert - Abzug") -> 
A48: =VLOOKUP(10,INDIRECT($C$70),2,0) ->  | E48: =VLOOKUP(10,INDIRECT($C$70),3,0) ->  | G48: =IF(H2>16,"","Wert - Abzug") -> 
A49: =VLOOKUP(11,INDIRECT($C$70),2,0) ->  | E49: =VLOOKUP(11,INDIRECT($C$70),3,0) ->  | G49: =IF(H2>13,"","Wert - Abzug") -> 
A50: =VLOOKUP(12,INDIRECT($C$70),2,0) ->  | E50: =VLOOKUP(12,INDIRECT($C$70),3,0) ->  | G50: =IF(OR(H2=9,H2=12,H2=13),"Wert - Abzug","") -> 
A51: Gesamtpunktzahl Bodenkomplexübung | H51: =SUM(H39:H50) -> 19
A52: Gesamtpunktzahl | H52: =SUM(H9,H19,H37,H51) -> 157.75
B55: Shuttles | C55: ="Shuttles_"&F1&IF(H2=9,"_9",IF(H2<12,"_10_11",IF(H2<14,"_12_13",IF(H2<17,"_14_16","_17")))) -> Shuttles_weiblich_17
C56: ="Shuttles_"&F1&IF(H2=9,"_9",IF(H2<12,"_10_11",IF(H2<14,"_12_13",IF(H2<17,"_14_16","_17"))))&"[Shuttle]" -> Shuttles_weiblich_17[Shuttle]
C57: ="Shuttles_"&F1&IF(H2=9,"_9",IF(H2<12,"_10_11",IF(H2<14,"_12_13",IF(H2<17,"_14_16","_17"))))&"[Punkte]" -> Shuttles_weiblich_17[Punkte]
B59: G_TBN TN BKÜ | C59: =IF(H2<13,"beide",F1) -> weiblich
B60: AK | C60: =IF(OR(H2=9,H2=12),H2,IF(H2<12,"10_11",IF(H2<15,"13_14",IF(H2<17,"15_16",IF(H2<19,"17_18",19))))) -> 19
B62: TBN | C62: ="TBN_"&C59&"_"&C60 -> TBN_weiblich_19
C63: =C62&"[Beschreibung]" -> TBN_weiblich_19[Beschreibung]
B65: TN | C65: ="TN_"&C59&"_"&C60 -> TN_weiblich_19
C66: =C65&"[Beschreibung]" -> TN_weiblich_19[Beschreibung]
B68: TV | C68: ="TV_"&F1&"_"&C60 -> TV_weiblich_19
B70: BKÜ | C70: ="BKÜ"&IF(H2=9,"_9",IF(H2<12,"_10_11",IF(H2<14,"_12_13",IF(H2<17,"_14_16","_17")))) -> BKÜ_17
B72: G_TV | C72: =IF(H2<17,"beide",F1) -> weiblich
B73: TV | C73: ="TV_"&C72&"_"&C60 -> TV_weiblich_19
B75: =SUM(H19,H9,H51) -> 106 | C75: Vergleichspunktzahl aus Kraft, Beweglichkeit, Grundlagenausdauer, Bodenübung
B76: =IF(B75>95,"Ja","Nein") -> Ja | C76: Vergleichspunktzahl erfüllt?
B77: =IF(F1="Weiblich",VLOOKUP(H2,Punktetabellen!$D$43:$F$49,3,1),VLOOKUP(H2,Punktetabellen!$D$43:$F$49,2,1)) -> 178 | C77: Mindest-Gesamtwert
B78: =IF(H52>=B77,"Ja","Nein") -> Nein | C78: Gesamtwert erfüllt?
B79: =IF(AND(B76="Ja",B78="Ja"),"Ja","Nein") -> Nein | C79: Alles erfüllt?

Sheet SchuldtChristine
A1: Name | B1: Schuldt, Christine | F1: weiblich | G1: Jahrgang | H1: 2002
A2: Verein | B2: Frankfurt Flyers | G2: AK | H2: =2020-H1 -> 18
A3: Übung | F3: Wert | G3: Berechnung | H3: Punkte
A4: Fußdehnung | F4: 10 | G4: Bild | H4: =F4 -> 10
A5: Briefmarke mit Armrumpfwinkel | F5: 10 | G5: Bild | H5: =F5 -> 10
A6: Bückbeweglichkeit | F6: 17 | G6: Tabelle | H6: =IF(F6="",0,VLOOKUP(F6,Punktetabellen!A10:B15,2,1)) -> 6
A7: Querspagat links | F7: 0 | G7: Tabelle | H7: =IF(F7="",0,VLOOKUP(F7,Punktetabellen!A3:B6,2,0)) -> 10
A8: Querspagat rechts | F8: 0 | G8: Tabelle | H8: =IF(F8="",0,VLOOKUP(F8,Punktetabellen!A3:B6,2,0)) -> 10
A9: Gesamtpunktzahl Beweglichkeit | H9: =SUM(H4:H8) -> 46
A10: Übung | F10: Wert | G10: Berechnung | H10: Punktzahl
A11: Klimmzug | F11: 1 | G11: Tabelle | H11: =IF(F11="",0,IF(H2<12,VLOOKUP(F11,Punktetabellen!D4:F14,3,1),VLOOKUP(F11,Punktetabellen!E4:F14,2,1))) -> 0
A12: Beinheben | F12: 0 | G12: Tabelle | H12: =IF(H2=9,VLOOKUP(F12,Punktetabellen!D19:F29,3,1),VLOOKUP(F12,Punktetabellen!E19:F29,2,1)) -> 0
A13: Flieger | F13: 80 | G13: Tabelle | H13: =IF(H2=9,VLOOKUP(F13,Punktetabellen!H4:K9,4,1),IF(H2<12,VLOOKUP(F13,Punktetabellen!I4:K9,3,1),VLOOKUP(F13,Punktetabellen!J4:K9,2,1))) -> 2
A14: Rollenverbindung | F14: 25 | G14: Tabelle | H14: =IF(H2=9,VLOOKUP(F14,Punktetabellen!H14:K24,4,1),IF(H2<12,VLOOKUP(F14,Punktetabellen!I14:K24,3,1),VLOOKUP(F14,Punktetabellen!J14:K24,2,1))) -> 8
A15: Prellsprünge | F15: 7 | G15: Tabelle | H15: =IF(H2=9,VLOOKUP(F15,Punktetabellen!M4:Q14,5,1),IF(H2<12,VLOOKUP(F15,Punktetabellen!N4:Q14,4,1),IF(H2<14,VLOOKUP(F15,Punktetabellen!O4:Q14,3,1),VLOOKUP(F15,Punktetabellen!P4:Q14,2,1)))) -> 7
A16: Handstandstehen | F16: 30 | G16: Tabelle | H16: =IF(F16="",0,IF(H2<10,VLOOKUP(F16,Punktetabellen!D34:F40,3,1),VLOOKUP(F16,Punktetabellen!E34:F40,2,1))) -> 10
A17: Schweizer, Wiener | C17: =IF(H2<12,"",IF(AND(H2>13,H2<17),"Schweizer: ","Wiener: ")) -> Wiener: | D17: 0 | E17: =IF(H2<12,"",IF(AND(H2>13,H2<17),"Wiener: ","Schweizer: ")) -> Schweizer: | F17: 0 | G17: Tabelle | H17: =IF(H2<12,VLOOKUP(F17,Punktetabellen!A20:B25,2,1),((MIN(5,1*D17)*2)+MIN(MAX(0,5-(1*D17)),(1*F17)))) -> 0
A18: Bleep-Test | F18: L7 S10 | G18: Tabelle | H18: =IF(F18="",0,VLOOKUP(F18,INDIRECT(C55),2,0)) -> 4
A19: Gesamtpunktzahl Kraft/Kondition | H19: =SUM(H11:H18) -> 31
A20: Übung | D20: Max / Soll | E20: Max. Abzug | F20: Abzug / Ist | G20: Berechnung | H20: Punkte
A21: Standsprunghöhe | D21: =IF(F1="männlich",VLOOKUP(H2,Standsprünge!A3:C15,3,0),VLOOKUP(H2,Standsprünge!A3:B15,2,0)) -> 16.4 | F21: 16.78 | G21: (Ist - Soll) x 10 | H21: =IF(F21="",0,(F21-D21)*10) -> 3.8
A22: =IF(H2>16,"entfällt","TBN") -> entfällt | D22: =IF(C22="","",VLOOKUP(C22,INDIRECT($C$62),2,0)) ->  | E22: =IF(C22="","",VLOOKUP(C22,INDIRECT($C$62),3,0)) ->  | G22: =IF(H2>16,"entfällt","Wert - Abzug") -> entfällt | H22: =IF(A22="entfällt",0,IF(F22="",0,D22-F22)) -> 0
A23: =IF(H2>16,"entfällt","TBN") -> entfällt | D23: =IF(C23="","",VLOOKUP(C23,INDIRECT($C$62),2,0)) ->  | E23: =IF(C23="","",VLOOKUP(C23,INDIRECT($C$62),3,0)) ->  | G23: =IF(H2>16,"entfällt","Wert - Abzug") -> entfällt | H23: =IF(A23="entfällt",0,IF(F23="",0,D23-F23)) -> 0
A24: =IF(H2>12,"entfällt","TBN") -> entfällt | D24: =IF(C24="","",VLOOKUP(C24,INDIRECT($C$62),2,0)) ->  | E24: =IF(C24="","",VLOOKUP(C24,INDIRECT($C$62),3,0)) ->  | G24: =IF(H2>16,"entfällt","Wert - Abzug") -> entfällt | H24: 0
A25: TN | B25: =IF(C25="","",VLOOKUP(C25,INDIRECT($C$65),2,0)) -> 803< | C25: Fliffisrudi b | D25: =IF(C25="","",VLOOKUP(C25,INDIRECT($C$65),3,0)) -> 15 | E25: =IF(C25="","",VLOOKUP(C25,INDIRECT($C$65),4,0)) -> 6 | F25: 4 | G25: Wert - Abzug | H25: 11
A26: TN | B26: 821< | C26: 1/1 ein 1/2 aus b | D26: 15 | E26: 6 | F26: 4 | G26: Wert - Abzug | H26: 11
A27: TN | B27: 811< | C27: 1/2 ein 1/2 aus b | D27: 14 | E27: 6 | F27: 6 | G27: Wert - Abzug | H27: 8
A28: =IF(H2>12,"TN","entfällt") -> TN | B28: 822° | C28: 1/1 ein 1/1 aus c | D28: 14 | E28: 6 | F28: 6 | G28: =IF(H2>12,"Wert - Abzug","entfällt") -> Wert - Abzug | H28: 8
A29: =IF(H2>16,"TN","entfällt") -> TN | B29: 813° | C29: 1/2 ein 3/2 aus c | D29: 14 | E29: 6 | F29: 6 | G29: =IF(H2>16,"Wert - Abzug","entfällt") -> Wert - Abzug | H29: 8
A30: =IF(H2>16,"TN","entfällt") -> TN | G30: =IF(H2>16,"Wert - Abzug","entfällt") -> Wert - Abzug | H30: =IF(A30="entfällt",0,IF(F30="",0,D30-F30)) -> 0
A31: =IF($H$2>11,"Verbindung Sprung 1","entfällt") -> Verbindung Sprung 1 | C31: =IF(A31<>"entfällt",VLOOKUP(1,INDIRECT($C$73),2,0),"") -> 803< | D31: =IF(A31<>"entfällt",VLOOKUP(1,INDIRECT($C$73),3,0),"") -> 15 | E31: =IF(A31<>"entfällt",VLOOKUP(1,INDIRECT($C$73),4,0),"") -> 3 | F31: 2 | G31: =IF(H2>12,"Wert - Abzug","entfällt") -> Wert - Abzug | H31: =IF(A31="entfällt",0,IF(F31="",0,D31-F31)) -> 13
A32: =IF($H$2>11,"Verbindung Sprung 2","entfällt") -> Verbindung Sprung 2 | C32: =IF(A32<>"entfällt",VLOOKUP(2,INDIRECT($C$73),2,0),"") -> 40< | D32: =IF(A32<>"entfällt",VLOOKUP(2,INDIRECT($C$73),3,0),"") -> 6 | E32: =IF(A32<>"entfällt",VLOOKUP(2,INDIRECT($C$73),4,0),"") -> 3 | F32: 2 | G32: =IF(H2>12,"Wert - Abzug","entfällt") -> Wert - Abzug | H32: =IF(A32="entfällt",0,IF(F32="",0,D32-F32)) -> 4
A33: =IF($H$2>11,"Verbindung Sprung 3","entfällt") -> Verbindung Sprung 3 | C33: =IF(A33<>"entfällt",VLOOKUP(3,INDIRECT($C$73),2,0),"") -> 801< | D33: =IF(A33<>"entfällt",VLOOKUP(3,INDIRECT($C$73),3,0),"") -> 13 | E33: =IF(A33<>"entfällt",VLOOKUP(3,INDIRECT($C$73),4,0),"") -> 3 | F33: 3 | G33: =IF(H2>12,"Wert - Abzug","entfällt") -> Wert - Abzug | H33: 10
A34: =IF($H$2>11,"Verbindung Sprung 4","entfällt") -> Verbindung Sprung 4 | C34: =IF(A34<>"entfällt",VLOOKUP(4,INDIRECT($C$73),2,0),"") -> 40/ | D34: =IF(A34<>"entfällt",VLOOKUP(4,INDIRECT($C$73),3,0),"") -> 6 | E34: =IF(A34<>"entfällt",VLOOKUP(4,INDIRECT($C$73),4,0),"") -> 3 | F34: 2 | G34: =IF(H2>12,"Wert - Abzug","entfällt") -> Wert - Abzug | H34: 4
A35: =IF($H$2>11,"Verbindung Sprung 5","entfällt") -> Verbindung Sprung 5 | C35: =IF(A35<>"entfällt",VLOOKUP(5,INDIRECT($C$73),2,0),"") -> 41/ | D35: =IF(A35<>"entfällt",VLOOKUP(5,INDIRECT($C$73),3,0),"") -> 6 | E35: =IF(A35<>"entfällt",VLOOKUP(5,INDIRECT($C$73),4,0),"") -> 3 | F35: 1 | G35: =IF(H2>12,"Wert - Abzug","entfällt") -> Wert - Abzug | H35: 5
A36: =IF($H$2>11,"Verbindung Sprung 6","entfällt") -> Verbindung Sprung 6 | C36: =IF(A36<>"entfällt",VLOOKUP(6,INDIRECT($C$73),2,0),"") -> 811° | D36: =IF(A36<>"entfällt",VLOOKUP(6,INDIRECT($C$73),3,0),"") -> 12 | E36: =IF(A36<>"entfällt",VLOOKUP(6,INDIRECT($C$73),4,0),"") -> 3 | F36: 2 | G36: =IF(H2>12,"Wert - Abzug","entfällt") -> Wert - Abzug | H36: =IF(A36="entfällt",0,IF(F36="",0,D36-F36)) -> 10
A37: Gesamtpunktzahl Trampolin | H37: =SUM(H21:H36) -> 95.8
A38: Element | E38: Wert | F38: Abzug | G38: Berechnung | H38: Punkte
A39: =VLOOKUP(1,INDIRECT($C$70),2,0) -> Salto vorwärts gehockt aus dem Stand | E39: =VLOOKUP(1,INDIRECT($C$70),3,0) -> 5 | G39: Wert - Abzug | H39: =IF(E39=" ","",IF(F39="",0,E39-F39)) -> 0
A40: =VLOOKUP(2,INDIRECT($C$70),2,0) -> Vorspreizen, Bestellschritt, Strecksprung 3/2 Drehung | E40: =VLOOKUP(2,INDIRECT($C$70),3,0) -> 3 | F40: 1.5 | G40: Wert - Abzug | H40: =IF(E40=" ","",IF(F40="",0,E40-F40)) -> 1.5
A41: =VLOOKUP(3,INDIRECT($C$70),2,0) -> Rolle rückwärts durch Handstand mit 1/2 Drehung | E41: =VLOOKUP(3,INDIRECT($C$70),3,0) -> 4 | F41: 2 | G41: Wert - Abzug | H41: 2
A42: =VLOOKUP(4,INDIRECT($C$70),2,0) -> --> Strecksprung --> Salto vorwärts gehockt | E42: =VLOOKUP(4,INDIRECT($C$70),3,0) -> 4 | F42: 1 | G42: Wert - Abzug | H42: 3
A43: =VLOOKUP(5,INDIRECT($C$70),2,0) -> Wiener, 1/2 Drehung, absenken zum Stand | E43: =VLOOKUP(5,INDIRECT($C$70),3,0) -> 4 | G43: Wert - Abzug | H43: 0
A44: =VLOOKUP(6,INDIRECT($C$70),2,0) -> Handstand mit zwei Hüpfern, abrollen | E44: =VLOOKUP(6,INDIRECT($C$70),3,0) -> 2 | F44: 0 | G44: Wert - Abzug | H44: 2
A45: =VLOOKUP(7,INDIRECT($C$70),2,0) -> --> aufstehen mit gestreckten Beinen | E45: =VLOOKUP(7,INDIRECT($C$70),3,0) -> 3 | F45: 1.5 | G45: Wert - Abzug | H45: 1.5
A46: =VLOOKUP(8,INDIRECT($C$70),2,0) -> Salto rückwärts gebückt | E46: =VLOOKUP(8,INDIRECT($C$70),3,0) -> 5 | G46: Wert - Abzug | H46: 0
A47: =VLOOKUP(9,INDIRECT($C$70),2,0) ->  | E47: =VLOOKUP(9,INDIRECT($C$70),3,0) ->  | G47: =IF(H2>16,"","Wert - Abzug") -> 
A48: =VLOOKUP(10,INDIRECT($C$70),2,0) ->  | E48: =VLOOKUP(10,INDIRECT($C$70),3,0) ->  | G48: =IF(H2>16,"","Wert - Abzug") -> 
A49: =VLOOKUP(11,INDIRECT($C$70),2,0) ->  | E49: =VLOOKUP(11,INDIRECT($C$70),3,0) ->  | G49: =IF(H2>13,"","Wert - Abzug") -> 
A50: =VLOOKUP(12,INDIRECT($C$70),2,0) ->  | E50: =VLOOKUP(12,INDIRECT($C$70),3,0) ->  | G50: =IF(OR(H2=9,H2=12,H2=13),"Wert - Abzug","") -> 
A51: Gesamtpunktzahl Bodenkomplexübung | H51: =SUM(H39:H50) -> 10
A52: Gesamtpunktzahl | H52: =SUM(H9,H19,H37,H51) -> 182.8
B55: Shuttles | C55: ="Shuttles_"&F1&IF(H2=9,"_9",IF(H2<12,"_10_11",IF(H2<14,"_12_13",IF(H2<17,"_14_16","_17")))) -> Shuttles_weiblich_17
C56: ="Shuttles_"&F1&IF(H2=9,"_9",IF(H2<12,"_10_11",IF(H2<14,"_12_13",IF(H2<17,"_14_16","_17"))))&"[Shuttle]" -> Shuttles_weiblich_17[Shuttle]
C57: ="Shuttles_"&F1&IF(H2=9,"_9",IF(H2<12,"_10_11",IF(H2<14,"_12_13",IF(H2<17,"_14_16","_17"))))&"[Punkte]" -> Shuttles_weiblich_17[Punkte]
B59: G_TBN TN BKÜ | C59: =IF(H2<13,"beide",F1) -> weiblich
B60: AK | C60: =IF(OR(H2=9,H2=12),H2,IF(H2<12,"10_11",IF(H2<15,"13_14",IF(H2<17,"15_16",IF(H2<19,"17_18",19))))) -> 17_18
B62: TBN | C62: ="TBN_"&C59&"_"&C60 -> TBN_weiblich_17_18
C63: =C62&"[Beschreibung]" -> TBN_weiblich_17_18[Beschreibung]
B65: TN | C65: ="TN_"&C59&"_"&C60 -> TN_weiblich_17_18
C66: =C65&"[Beschreibung]" -> TN_weiblich_17_18[Beschreibung]
B68: TV | C68: ="TV_"&F1&"_"&C60 -> TV_weiblich_17_18
B70: BKÜ | C70: ="BKÜ"&IF(H2=9,"_9",IF(H2<12,"_10_11",IF(H2<14,"_12_13",IF(H2<17,"_14_16","_17")))) -> BKÜ_17
B72: G_TV | C72: =IF(H2<17,"beide",F1) -> weiblich
B73: TV | C73: ="TV_"&C72&"_"&C60 -> TV_weiblich_17_18
B75: =SUM(H19,H9,H51) -> 87 | C75: Vergleichspunktzahl aus Kraft, Beweglichkeit, Grundlagenausdauer, Bodenübung
B76: =IF(B75>95,"Ja","Nein") -> Nein | C76: Vergleichspunktzahl erfüllt?
B77: =IF(F1="Weiblich",VLOOKUP(H2,Punktetabellen!$D$43:$F$49,3,1),VLOOKUP(H2,Punktetabellen!$D$43:$F$49,2,1)) -> 169 | C77: Mindest-Gesamtwert
